Workbook

Sheet Introduction & Options d'Unité
T5: Métrique
T6: Impérial
B11: Options d'Unité
B12: Impérial

Sheet Étape 1 Configuration de TP-Air
A1: ÉTAPE 1 : DÉFINIR LA CONFIGURATION DE THERMOPOMPE À AIR | S1: DO NOT TOUCH THESE CELLS
T2: Option A: Thermopompe à air à conduit central
A3: Données de conception de l'étape 1 | F3: Référence | T3: Option B: Thermopompe à air mini-bibloc sans conduit, une seule zone
F4: Cet onglet est utilisé pour définir la configuration de thermopompe à air dans l'habitation ou la zone envisagée pour l'installation. | T4: Option C: Thermopompe à air mini-bibloc sans conduit, plusieurs zones
F5: Cela comprend le type d'installation et le nombre d'unités requises. | T5: Option D: Thermopompe à air mini-bibloc avec conduit
A6: Configuration de thermopompe à air | B6: Option A: Thermopompe à air à conduit central | F6: Cette section réfère aux pages 6 à 9 du Guide de dimensionnement des thermopompes à air.
A7: =IF(OR(B6=T3,B6=T5),"Nombre d'unités",IF(B6=T4,"Nombre d'unités intérieures","")) ->  | B7: 5
A8: =IF(B6=T4,"Nombre d'unités extérieures","") ->  | B8: 1 | F8: Après avoir effectué l'étape 1, vous aurez : | T8: Nouvelle système CVC
A9: Type d'installation | B9: Remplacement de système complet | F9: Sélectionné le type de thermopompe à air le plus approprié pour l'application. | T9: Remplacement de système complet
F10: Pour les applications de thermopompe à air sans conduit, estimé le nombre d'unités requises. | T10: Ajout de thermopompe à air
F11: Inscrit le type d'installation : nouvelle habitation/remplacement de CVC complet/ajout de thermopompe à air.
T12: 1
T13: 2
T14: 3
T15: 4
T16: 5
A18: LEGEND
A20: Saisie | B20: Dans ces cellules, l'utilisateur doit saisir une valeur
A22: Menu déroulant | B22: Dans ces cellules, un menu déroulant permettra à l'utilisateur de choisir une valeur précise
A24: Calcul interne | B24: Les valeurs de ces cellules proviennent des calculs internes de l'outil - elles ne nécessitent aucune saisie de l'utilisateur.

Sheet Étape 2 Unités Intérieure
A1: ÉTAPE 2 : CHOISIR UN OU DES TYPES D'UNITÉ INTÉRIEURE À UTILISER AVEC UNE THERMOPOMPE À AIR MINI-BIBLOC SANS CONDUIT | S1: DO NOT TOUCH THESE CELLS
T2: =IF(OR('Étape 1 Configuration de TP-Air'!B6='Étape 1 Configuration de TP-Air'!T2,'Étape 1 Configuration de TP-Air'!B6='Étape 1 Configuration de TP-Air'!T5),"Non", "Oui") -> Non
A3: Données de conception de l'étape 2 | F3: Référence
F4: Cette section réfère aux pages 10 à 12 du Guide de dimensionnement des thermopompes à air. | T4: Option 2A : Installée au mur
A5: =IF(OR('Étape 1 Configuration de TP-Air'!B6='Étape 1 Configuration de TP-Air'!T3,'Étape 1 Configuration de TP-Air'!B6='Étape 1 Configuration de TP-Air'!T4),"","• Pas des unités intérieures") -> • Pas des unités intérieures | T5: Option 2B : Installée au plancher
A6: Unité intérieure #1 | B6: Option 2D : Avec conduit (dissimulée) | F6: Après avoir effectué l'étape 2, vous aurez: | T6: Option 2C : Installée au plafond
A7: =IF('Étape 1 Configuration de TP-Air'!$B$7<2,"","Unité intérieure #2") -> Unité intérieure #2 | B7: Option 2B : Installée au plancher | F7: Estimé le nombre d'unités intérieures requises pour l'application de thermopompe à air sans conduit. | G7: Estimé le nombre d'unités intérieures requises pour l'application de thermopompe à air sans conduit. | H7: Estimé le nombre d'unités intérieures requises pour l'application de thermopompe à air sans conduit. | I7: Estimé le nombre d'unités intérieures requises pour l'application de thermopompe à air sans conduit. | J7: Estimé le nombre d'unités intérieures requises pour l'application de thermopompe à air sans conduit. | K7: Estimé le nombre d'unités intérieures requises pour l'application de thermopompe à air sans conduit. | L7: Estimé le nombre d'unités intérieures requises pour l'application de thermopompe à air sans conduit. | M7: Estimé le nombre d'unités intérieures requises pour l'application de thermopompe à air sans conduit. | T7: Option 2D : Avec conduit (dissimulée)
A8: =IF('Étape 1 Configuration de TP-Air'!$B$7<3,"","Unité intérieure #3") -> Unité intérieure #3 | B8: Option 2A : Installée au mur | F8: Sélectionné le ou les types d'unité intérieure qui conviennent le mieux à l'application. | G8: Sélectionné le ou les types d'unité intérieure qui conviennent le mieux à l'application. | H8: Sélectionné le ou les types d'unité intérieure qui conviennent le mieux à l'application. | I8: Sélectionné le ou les types d'unité intérieure qui conviennent le mieux à l'application. | J8: Sélectionné le ou les types d'unité intérieure qui conviennent le mieux à l'application. | K8: Sélectionné le ou les types d'unité intérieure qui conviennent le mieux à l'application. | L8: Sélectionné le ou les types d'unité intérieure qui conviennent le mieux à l'application. | M8: Sélectionné le ou les types d'unité intérieure qui conviennent le mieux à l'application.
A9: =IF('Étape 1 Configuration de TP-Air'!$B$7<4,"","Unité intérieure #4") -> Unité intérieure #4 | B9: Option 2C : Installée au plafond
A10: =IF('Étape 1 Configuration de TP-Air'!$B$7<5,"","Unité intérieure #5") -> Unité intérieure #5 | B10: Option 2B : Installée au plancher

Sheet Étape 3 Charges de Conception
A1: ÉTAPE 3 : ESTIMER LES CHARGES DE CHAUFFAGE ET DE REFROIDISSEMENT DE CONCEPTION
E2: Design Step 3 Reference
A3: Données de conception de l'étape 3 | E3: Données climatiques | S3: DO NOT TOUCH THESE CELLS | Y3: Référence
A4: Données climatiques | Y4: Cette section réfère aux pages 13 à 25 du Guide de dimensionnement des thermopompes à air.
A5: Pays | B5: CAN | T5: Option A: Estimation des charges selon la norme d'analyse des charges CSA F280;
A6: Province | B6: QC | T6: Option B: Estimation des charges selon un audit énergétique; | Y6: Après avoir effectué l'étape 3, vous aurez:
A7: Ville | B7: Varennes | C7: (Attendez 5 secondes avant d'effectuer la sélection) | T7: Option C: Estimation des charges selon un modèle énergétique; | Y7: Estimé les charges de chauffage et de refroidissement de conception pour l'ensemble de l'habitation ou l'espace visé.
A8: Type de climat | B8: =VLOOKUP($B$7,'Climate Zones'!$D$2:$F$1686,3,FALSE) -> Très-froid | T8: Option D: Estimation des charges selon les capacités des équipements existants. | Y8: Estimé, dans le cas d'amélioration de systèmes à conduit central, le débit d'air maximum des systèmes de conduit existants de l'habitation.
A9: Degrés-jours de chauffage (métrique) | B9: =VLOOKUP($B$7,'Climate Zones'!$D$2:$F$1686,2,FALSE) -> 4500 | Y9: Créé une courbe de charge de chauffage pour l'ensemble de l'habitation ou de l'espace visé afin de faciliter la sélection de l'équipement de thermopompe à air.
A10: Données de charge
A11: Manière d'estimer les charges de conception | B11: Option A: Estimation des charges selon la norme d'analyse des charges CSA F280; | T11: =IF(NOT(A17=""),"Oui","") -> 
A12: =IF(OR($B$11=$T$5,$B$11=$T$7),"Charge de chauffage de conception",IF($B$11=$T$6,"Charge de chauffage si toutes les améliorations de l'enveloppe du bâtiment étaient mises en oeuvre",IF(B11=T8,"Capacité de chauffage (nominale)",""))) -> Charge de chauffage de conception | B12: 10000 | C12: =IF('Introduction & Options d''Unité'!$B$12="Métrique","kW","BTU/h") -> BTU/h | T12: =IF(NOT(A17=""),"Non","") -> 
A13: =IF(OR($B$11=$T$5,$B$11=$T$7),"Température de chauffage de conception",IF(OR($B$11=$T$6,$B$11=$T$8),"Température de chauffage de conception","")) -> Température de chauffage de conception | B13: =IF('Introduction & Options d''Unité'!$B$12="Impérial",ROUND(VLOOKUP($B$7,'Climate Zones'!$D$2:$G$1686,4,FALSE)*(9/5)+32,0),VLOOKUP($B$7,'Climate Zones'!$D$2:$G$1686,4,FALSE)) -> -11 | C13: =IF('Introduction & Options d''Unité'!$B$12="Métrique","C","F") -> F
A14: =IF(OR($B$11=$T$5,$B$11=$T$7),"Charge de refroidissement de conception",IF($B$11=$T$6,"Charge de refroidissement si toutes les améliorations de l'enveloppe du bâtiment étaient mises en oeuvre",IF(B11=T8,"Capacité de refroidissement (nominale)",""))) -> Charge de refroidissement de conception | B14: 10000 | C14: =IF('Introduction & Options d''Unité'!$B$12="Métrique","kW","BTU/h") -> BTU/h
A15: =IF(OR($B$11=$T$5,$B$11=$T$7),"Température de refroidissement de conception",IF(OR($B$11=$T$6,$B$11=$T$8),"Température de refroidissement de conception","")) -> Température de refroidissement de conception | B15: =IF('Introduction & Options d''Unité'!$B$12="Impérial",ROUND(VLOOKUP($B$7,'Climate Zones'!$D$2:$H$1686,5,FALSE)*(9/5)+32,0),VLOOKUP($B$7,'Climate Zones'!$D$2:$H$1686,5,FALSE)) -> 86 | C15: =IF('Introduction & Options d''Unité'!$B$12="Métrique","C","F") -> F | U15: X-axis | V15: Y-axis
A16: =IF(B11=T6,"Économies (pour cent) en effectuant toutes les améliorations recommandées pour le système de chauffage autre que le chauffage des locaux.","") ->  | B16: 12 | C16: =IF(B11=T6,"%","") ->  | T16: Max | U16: ='Design Load Calcs'!O12 -> 110 | V16: =IF(NOT('Introduction & Options d''Unité'!B12="Métrique"),CEILING('Étape 3 Charges de Conception'!B12,10000),CEILING('Étape 3 Charges de Conception'!B12,10)) -> 10000
A17: =IF(B11=T8,"Problèmes de confort existants/améliorations récentes de l'habitation?","") ->  | B17: Oui | T17: Min | U17: ='Design Load Calcs'!O6 -> -20 | V17: 0
A18: =+IF(B11=T8,"Surdimensionnement présumé de l'équipement existant", "") ->  | B18: 125 | T18: Major Unit | U18: 10 | V18: =IF(NOT('Introduction & Options d''Unité'!B12="Métrique"),10000,2) -> 10000
A20: Valeurs de conception de l'étape 3 | E20: Conversion d'unité | T20: Oversizing | U20: 0
A21: =IFERROR(IF(B11=T8,IF(B18=140,"Chauffage en présumant un surdimensionnement de 140 %: "&ROUND('Design Load Calcs'!B23,IF('Introduction & Options d''Unité'!B12="Métrique",1,-2))&" "&C12&" à une température de conception de "&B13&C13,IF(B18=125,"Chauffage en présumant un surdimensionnement de 125 %: "&ROUND('Design Load Calcs'!B23,IF('Introduction & Options d''Unité'!B12="Métrique",1,-2))&" "&C12&" à une température de conception de "&B13&C13,IF(B18=0,"Chauffage en présumant aucun surdimensionnement: "&ROUND('Design Load Calcs'!C23,IF('Introduction & Options d''Unité'!B12="Métrique",1,-2))&" "&C12&" à une température de conception de "&B13&C13))),"Chauffage en présumant aucun surdimensionnement: "&ROUND('Design Load Calcs'!B23,IF('Introduction & Options d''Unité'!B12="Métrique",1,-2))&" "&C12&" à une température de conception de "&B13&C13 ),"") -> Chauffage en présumant aucun surdimensionnement: 10000 BTU/h à une température de conception de -11F | U21: 125
A22: =IFERROR(IF(B11=T8,IF(B18=140,"Chauffage en présumant un surdimensionnement de 140 % : "&ROUND('Design Load Calcs'!B25,IF('Introduction & Options d''Unité'!B12="Métrique",1,-2))&" "&C14&" à une température de conception de "&B15&C15,IF(B18=125,"Chauffage en présumant un surdimensionnement de 125 % : "&ROUND('Design Load Calcs'!B25,IF('Introduction & Options d''Unité'!B12="Métrique",1,-2))&" "&C14&" à une température de conception de "&B15&C15,IF(B18=0,"Refroidissement en présumant aucun surdimensionnement: "&ROUND('Design Load Calcs'!C25,IF('Introduction & Options d''Unité'!B12="Métrique",1,-2))&" "&C14&" à une température de conception de "&B15&C15))),"Refroidissement en présumant aucun surdimensionnement: "&ROUND('Design Load Calcs'!B25,IF('Introduction & Options d''Unité'!B12="Métrique",1,-2))&" "&C14&" à une température de conception de "&B15&C15 ),"") -> Refroidissement en présumant aucun surdimensionnement: 10000 BTU/h à une température de conception de 86F | I22: Conversion d'unité | U22: 140
F23: °F | H23: °C | J23: BTU/h | L23: kW
F24: 0 | H24: =ROUND((F24-32)*(5/9),0) -> -18 | J24: 1 | L24: =ROUND(J24/3212.142,0) -> 0 | U24: Max Flow Capacity
A25: Notes: | F25: °C | H25: °F | J25: kW | L25: BTU/h | T25: Rectangulaire | U25: =(W28*V28+W29*V29+W30*V30+W31*V31+W32*V32+W33*V33)*6.25 -> 1100 | V25: Rectangulaire&Rond | W25: =ROUND(U25+U26,-1) -> 1100
A26: =IF(B11=T8,"• Un audit énergétique de l'habitation devrait être effectué avant le dimensionnement et la sélection de la thermopompe","") ->  | F26: 0 | H26: =ROUND((F26*9/5)+32,0) -> 32 | J26: 1 | L26: =ROUND(J26*3412.142,0) -> 3412 | T26: Rond | U26: =((U28^2)+(U29^2)+(U30^2)+(U31^2)+(U32^2)+(U33^2))*4.91 -> 0
A27: =IF(AND($B$11=$T$8,B17="Oui"),"• Notez aussi que les problèmes de confort peuvent être causés par l'équipement sous-dimensionné, des défauts dans la barrière thermique, dans l'équipement mécanique, ou les deux à la fois.","") ->  | T27: Rectangulaire&Rond | U27: =IF(Q27=AI26, "Depth [inches]",IF(Q27=AI27,"Diameter [inches]","")) -> Depth [inches] | V27: =IF(Q27=AI26, "Width [inches]",IF(Q27=AI27,"","")) -> Width [inches] | W27: Depth (in)
T28: 1 | U28: =IF(E32="",0,F32)*IF(OR($B$31=$T$26,AND($B$31=$T$27,J32="ROND")),1,0) -> 0 | V28: =IF(E32="",0,IF(OR($B$31=$T$25,AND($B$31=$T$27,$J$32=$T$25)),H32,0)) -> 22 | W28: =IF(E32="",0,IF(OR($B$31=$T$25,AND($B$31=$T$27,$J$32=$T$25)),F32,0)) -> 8
T29: 2 | U29: 0 | V29: =IF(E33="",0,IF(OR($B$31=$T$25,AND($B$31=$T$27,$J$33=$T$25)),H33,0)) -> 0 | W29: =IF(E33="",0,IF(OR($B$31=$T$25,AND($B$31=$T$27,$J$33=$T$25)),F33,0)) -> 0
A30: Données supplémentaires : Estimation du débit d'air maximum des conduits existants | T30: 3 | U30: 0 | V30: =IF(E34="",0,IF(OR($B$31=$T$25,AND($B$31=$T$27,$J$34=$T$25)),H34,0)) -> 0 | W30: =IF(E34="",0,IF(OR($B$31=$T$25,AND($B$31=$T$27,$J$34=$T$25)),F34,0)) -> 0
A31: Géométrie des conduits? | B31: Rectangulaire | F31: =IF(B31=T25, "Profondeur [pouces]",IF(B31=T26,"Diamètre [pouces]",IF(B31=T27,"Diamètre/Profondeur[pouces]",""))) -> Profondeur [pouces] | H31: =IF(OR(B31=T25,B31=T27), "Largeur [pouces]",IF(B31=T26,"","")) -> Largeur [pouces] | J31: Type | T31: 4 | U31: 0 | V31: =IF(E35="",0,IF(OR($B$31=$T$25,AND($B$31=$T$27,$J$35=$T$25)),H35,0)) -> 0 | W31: =IF(E35="",0,IF(OR($B$31=$T$25,AND($B$31=$T$27,$J$35=$T$25)),F35,0)) -> 0
A32: Nombre de conduits? | B32: 1 | E32: =IF(B32>0,"Conduit 1","") -> Conduit 1 | F32: 8 | H32: 22 | J32: Rectangulaire | T32: 5 | U32: 0 | V32: =IF(E36="",0,IF(OR($B$31=$T$25,AND($B$31=$T$27,$J$36=$T$25)),H36,0)) -> 0 | W32: =IF(E36="",0,IF(OR($B$31=$T$25,AND($B$31=$T$27,$J$36=$T$25)),F36,0)) -> 0
A33: Débit d'air maximum selon la conception de systèmes d'air résidentiels de l'ICCCR | B33: =IF(B31=T25,U25,IF(B31=T26,U26,IF(B31=T27,W25,""))) -> 1100 | C33: CFM | E33: =IF(B32>1,"Conduit 2","") ->  | F33: 6 | H33: 10 | J33: Rond | T33: 6 | U33: 0 | V33: =IF(E37="",0,IF(OR($B$31=$T$25,AND($B$31=$T$27,$J$37=$T$25)),H37,0)) -> 0 | W33: =IF(E37="",0,IF(OR($B$31=$T$25,AND($B$31=$T$27,$J$37=$T$25)),F37,0)) -> 0
E34: =IF(B32>2,"Conduit 3","") ->  | F34: 6 | H34: 10 | J34: Rond
E35: =IF(B32>3,"Conduit 4","") ->  | F35: 10 | H35: 4 | J35: Rond
E36: =IF(B32>4,"Conduit 5","") ->  | F36: 10 | H36: 10 | J36: Rectangulaire
E37: =IF(B32>5,"Conduit 6","") ->  | F37: 6 | H37: 10 | J37: Rectangulaire
E38: Remarques supplémentaires
E39: Remarque : Débit d'air maximum indiqué dans le matériel de formation en conception de systèmes d'air résidentiels de l'Institut canadien du chauffage, de la climatisation et de la réfrigération pour éviter les bruits et les pertes de frottement inacceptables. Le matériel de formation recommande une vitesse de conduit d'alimentation maximale de 900 pi/min. La formation vise une pression statique externe totale du système de 0,5 po

Sheet Design Load Calcs (hidden)
G1: Load Line | O1: line at 17F
A2: User input | O2: =IF('Étape 4 Dimensionnement '!B6='Étape 4 Dimensionnement '!T4,G15,NA()) -> 17 | P2: =IF('Étape 4 Dimensionnement '!B6='Étape 4 Dimensionnement '!T4,H15,NA()) -> 6056.338028
A3: Heating Load | B3: =IF(OR('Étape 3 Charges de Conception'!$B$11='Étape 3 Charges de Conception'!$T$5,'Étape 3 Charges de Conception'!$B$11='Étape 3 Charges de Conception'!$T$7),'Étape 3 Charges de Conception'!B12,IF('Étape 3 Charges de Conception'!$B$11='Étape 3 Charges de Conception'!$T$6,('Étape 3 Charges de Conception'!B12)/((100-'Étape 3 Charges de Conception'!B16)/100),IF('Étape 3 Charges de Conception'!$B$11='Étape 3 Charges de Conception'!$T$8,'Étape 3 Charges de Conception'!B12,"-"))) -> 10000 | G3: =IF('Introduction & Options d''Unité'!$B$12="Impérial","Température extérieure (°F)","Température extérieure (°C)") -> Température extérieure (°F) | H3: =IF('Introduction & Options d''Unité'!$B$12="Impérial","Charge de chauffage (BTU/h)","Charge de chauffage (kW)") -> Charge de chauffage (BTU/h) | O3: =O2 -> 17 | P3: 0
A4: Heating temperature | B4: =IF(OR('Étape 3 Charges de Conception'!$B$11='Étape 3 Charges de Conception'!$T$5,'Étape 3 Charges de Conception'!$B$11='Étape 3 Charges de Conception'!$T$7),'Étape 3 Charges de Conception'!B13,IF('Étape 3 Charges de Conception'!$B$11='Étape 3 Charges de Conception'!$T$6,'Étape 3 Charges de Conception'!B13,IF('Étape 3 Charges de Conception'!$B$11='Étape 3 Charges de Conception'!$T$8,'Étape 3 Charges de Conception'!B13,"-"))) -> -11 | G4: =B4 -> -11 | H4: =B23 -> 10000 | I4: =IF(C23="","Ligne de charge de chauffage","Ligne de charge de chauffage (surdimensionnement de 140 %)") -> Ligne de charge de chauffage | K4: Charge et température de chauffage de conception | O4: Charge de chauffage de conception
A5: Cooling Load | B5: =IF(OR('Étape 3 Charges de Conception'!$B$11='Étape 3 Charges de Conception'!$T$5,'Étape 3 Charges de Conception'!$B$11='Étape 3 Charges de Conception'!$T$7,'Étape 3 Charges de Conception'!$B$11='Étape 3 Charges de Conception'!$T$6),'Étape 3 Charges de Conception'!B14,IF('Étape 3 Charges de Conception'!$B$11='Étape 3 Charges de Conception'!$T$8,'Étape 3 Charges de Conception'!B14,"-")) -> 10000 | G5: =IF('Introduction & Options d''Unité'!B12="Métrique",(60-32)*(5/9),60) -> 60 | H5: 0 | O5: =G4 -> -11 | P5: =H4 -> 10000
A6: Cooling temperature | B6: =IF(OR('Étape 3 Charges de Conception'!$B$11='Étape 3 Charges de Conception'!$T$5,'Étape 3 Charges de Conception'!$B$11='Étape 3 Charges de Conception'!$T$7),'Étape 3 Charges de Conception'!B15,IF('Étape 3 Charges de Conception'!$B$11='Étape 3 Charges de Conception'!$T$6,'Étape 3 Charges de Conception'!B15,IF('Étape 3 Charges de Conception'!$B$11='Étape 3 Charges de Conception'!$T$8,'Étape 3 Charges de Conception'!B15,"-"))) -> 86 | O6: =IFERROR(IF(O5=FLOOR(O5,10),O5-10,FLOOR(O5,10)),0) -> -20 | P6: =H4 -> 10000
G7: =IF(C23="",NA(),B24) ->  | H7: =IF(C23="",NA(),C23) ->  | I7: =IF(C23="","","Heating Load (125% Oversize)") ->  | O7: Température de chauffage de conception
G8: =IF(C23="",NA(),IF('Introduction & Options d''Unité'!B12="Métrique",(60-32)*(5/9),60)) ->  | H8: =IF(C23="",NA(),0) ->  | O8: =G4 -> -11 | P8: =H4 -> 10000
H9: =IF('Introduction & Options d''Unité'!$B$12="Impérial","Charge de refroidissement(BTU/h)","Charge de refroidissement (kW)") -> Charge de refroidissement(BTU/h) | O9: =O8 -> -11 | P9: 0
G10: =B6 -> 86 | H10: =B25 -> 10000 | I10: =IF(C23="","Charge de refroidissement de conception ","Charge de refroidissement de conception INFÉRIEUR") -> Charge de refroidissement de conception | K10: Cooling Design T and Load | O10: Charge de refroidissement de conception
G11: =IF(C23="",NA(),B26) ->  | H11: =IF(C23="",NA(),C25) ->  | I11: =IF(C23="","","Design Cooling Load HIGH") ->  | O11: =B6 -> 86 | P11: =H10 -> 10000
A12: Option D range: | O12: =IFERROR(CEILING(O11,10)+10,0)+IF('Introduction & Options d''Unité'!B12="Métrique",0,10) -> 110 | P12: =P11 -> 10000
A13: Heating | B13: Low | C13: =B3/1.4 -> 7142.857143 | D13: 140% oversize | O13: Température de refroidissement de conception
B14: High | C14: =B3/1.25 -> 8000 | D14: 125% oversize | G14: ASHP Target Heat Capacity (If Option C or D) | O14: =B6 -> 86 | P14: =H10 -> 10000
A15: Cooling | B15: Low | C15: =B5/1.4 -> 7142.857143 | D15: 140% oversize | G15: =IF(OR('Étape 4 Dimensionnement '!B6='Étape 4 Dimensionnement '!T4,'Étape 4 Dimensionnement '!B6='Étape 4 Dimensionnement '!T5),IF('Introduction & Options d''Unité'!B12="Métrique",(17-32)*(5/9),17),NA()) -> 17 | H15: =G25 -> 6056.338028 | O15: =O14 -> 86 | P15: 0
B16: High | C16: =B5/1.25 -> 8000 | D16: 125% oversize
G17: Échelle de capacité
G18: =IF(OR('Étape 4 Dimensionnement '!B6='Étape 4 Dimensionnement '!T2,'Étape 4 Dimensionnement '!B6='Étape 4 Dimensionnement '!T3),B6,NA()) ->  | H18: =IF(OR('Étape 4 Dimensionnement '!B6='Étape 4 Dimensionnement '!T2,'Étape 4 Dimensionnement '!B6='Étape 4 Dimensionnement '!T3),IF(OR('Étape 4 Dimensionnement '!B6='Étape 4 Dimensionnement '!T5,'Étape 4 Dimensionnement '!B6='Étape 4 Dimensionnement '!T4),C20*0.8,'Étape 4 Dimensionnement '!B15),NA()) -> 
G19: =G18 ->  | H19: =IF(OR('Étape 4 Dimensionnement '!B6='Étape 4 Dimensionnement '!T2,'Étape 4 Dimensionnement '!B6='Étape 4 Dimensionnement '!T3),IF(OR('Étape 4 Dimensionnement '!B6='Étape 4 Dimensionnement '!T5,'Étape 4 Dimensionnement '!B6='Étape 4 Dimensionnement '!T4),C20*1.25,'Étape 4 Dimensionnement '!D15),NA()) -> 
A20: Cooling Load | C20: =IF('Étape 3 Charges de Conception'!B11='Étape 3 Charges de Conception'!T8,IF('Étape 3 Charges de Conception'!B18=140,C15, C16),B5) -> 10000
F21: Slope line (low or nornal) | J21: Slope line (high)
A22: Oversize | B22: =IF('Étape 3 Charges de Conception'!B18=140,1.4,1.25) -> 1.25 | C22: 1.25 | G22: a | H22: b | J22: a | K22: b | O22: ='Étape 3 Charges de Conception'!#REF! -> 
A23: Heating Load | B23: =IF('Étape 3 Charges de Conception'!B11='Étape 3 Charges de Conception'!T8,IF('Étape 3 Charges de Conception'!B18=140,'Design Load Calcs'!C13,'Design Load Calcs'!C14),B3) -> 10000 | C23: =IF('Étape 3 Charges de Conception'!B11='Étape 3 Charges de Conception'!T8,"","") ->  | G23: =(H5-H4)/(G5-G4) -> -140.8450704 | H23: =H5-(G23*G5) -> 8450.704225 | J23: =(H8-H7)/(G5-G4) ->  | K23: =H7-(J23*G7) -> 
A24: Heating temperature | B24: =B4 -> -11
A25: Cooling Load | B25: =IF('Étape 3 Charges de Conception'!B11='Étape 3 Charges de Conception'!T8,IF('Étape 3 Charges de Conception'!B18=140,C15, C16),B5) -> 10000 | C25: =IF('Étape 3 Charges de Conception'!B11='Étape 3 Charges de Conception'!T8,"","") ->  | G25: =G23*G15+H23 -> 6056.338028 | J25: =J23*G15+K23 -> 
A26: Cooling temperature | B26: =B6 -> 86
G27: Target Capacity Range (Option A,B)
G28: =B6 -> 86 | H28: =IF(C23="",NA(),C20*0.8) -> 
G29: =G28 -> 86 | H29: =IF(C25="",NA(),C20*1.25) -> 
A30: Target AF | B30: =IF('Introduction & Options d''Unité'!B12="Métrique",(400*(B25*3412))/12000,(400*(B25))/12000) -> 333.3333333
A31: Max AF+200 | B31: ='Étape 4 Dimensionnement '!B10+200 -> 1300
G32: =B26 -> 86 | H32: =C20*0.8 -> 8000
G33: =G32 -> 86 | H33: =B25*1.25 -> 12500

Sheet Étape 4 Dimensionnement
A1: ÉTAPE 4 : DÉTERMINER L'APPROCHE DE DIMENSIONNEMENT ET LES EXIGENCES DE CAPACITÉ DE THERMOPOMPE À AIR | S1: DO NOT TOUCH THESE CELLS
T2: Option A: Accent sur le refroidissement
A3: Données de conception de l'étape 4 | I3: Référence | T3: Option B: Équilibre entre chauffage et refroidissement
T4: Option C: Accent sur le chauffage
I5: Cette section réfère aux pages 26 à 32 du Guide de dimensionnement des thermopompes à air. | T5: Option D: Dimensionné selon la charge de chauffage de conception
A6: Option de dimensionnement | B6: Option C: Accent sur le chauffage
I7: Après avoir effectué l'étape 4, vous aurez:
A8: =IF(OR('Étape 1 Configuration de TP-Air'!B9='Étape 1 Configuration de TP-Air'!T9,'Étape 1 Configuration de TP-Air'!B9='Étape 1 Configuration de TP-Air'!T10),"Remplacement de système complet?","") -> Remplacement de système complet? | B8: =IF('Étape 1 Configuration de TP-Air'!B9="Remplacement de système complet","Oui","Non") -> Oui | I8: Défini une capacité de chauffage ou de refroidissement dans des conditions extérieures particulières pour l'application envisagée. | T8: =IF($A$8="","","Oui") -> Oui
I9: Défini des critères pour sélectionner les modèles de thermopompe à air offerts sur le marché qui conviennent le mieux aux objectifs de base du client. | T9: =IF($A$8="","","Non") -> Non
A10: =IF('Étape 1 Configuration de TP-Air'!$B$6='Étape 1 Configuration de TP-Air'!$T$2,"Débit d'air maximum","") -> Débit d'air maximum | B10: ='Étape 3 Charges de Conception'!B33 -> 1100 | C10: CFM | D10: @ | E10: 0.5 | F10: =IF('Introduction & Options d''Unité'!$B$12="Métrique","mmWG","inches Water Gauge") -> inches Water Gauge
T11: =IF($A$9="","","Oui") -> 
A12: Valeurs de conception de l'étape 4 | T12: =IF($A$9="","","Non") -> 
A15: =IF('Étape 3 Charges de Conception'!B11='Étape 3 Charges de Conception'!T8,IF(OR(B6=T2,B6=T3),"Échelle de capacité de refroidissement ",IF(OR(B6=T4,B6=T5),"Capacité de chauffage","")),IF(OR(B6=T2,B6=T3),"Échelle de capacité de refroidissement ",IF(OR(B6=T4,B6=T5),"Capacité de chauffage",""))) -> Capacité de chauffage | B15: =IFERROR(ROUND(IF(A15="Échelle de capacité de refroidissement ",'Design Load Calcs'!C20*0.8,IF(A15="Target Cooling Capacity Range LOW",'Design Load Calcs'!C20*0.8,IF(A15="Capacité de chauffage",IF(B6=T4,'Design Load Calcs'!H15,'Design Load Calcs'!B23),IF(A15="Target Heating Capacity LOW",IF(B6=T4,'Design Load Calcs'!H15,'Design Load Calcs'!C13),"")))),IF('Introduction & Options d''Unité'!B12="Métrique",1,-2)),"") -> 6100 | C15: =IF(OR(A15="Échelle de capacité de refroidissement ",A15="Target Cooling Capacity Range LOW"),"à",IF(OR(A15="Capacité de chauffage",A15="Target Heating Capacity LOW"),IF('Introduction & Options d''Unité'!$B$12="Métrique","kW","BTU/h"),"")) -> BTU/h | D15: =IFERROR(ROUND(IF(A15="Échelle de capacité de refroidissement ",'Design Load Calcs'!C20*1.25,IF(A15="Target Cooling Capacity Range LOW",'Design Load Calcs'!C20*1.25,"")),IF('Introduction & Options d''Unité'!B12="Métrique",1,-2)),"") ->  | E15: =IF(D15="","",IF(OR(A15="Capacité de chauffage",A15="Target Heating Capacity LOW"),"",IF('Introduction & Options d''Unité'!$B$12="Métrique","kW","BTU/h"))) ->  | U15: X-axis | V15: Y-axis
A16: =IF('Étape 3 Charges de Conception'!B11='Étape 3 Charges de Conception'!T8,IF(OR(B6=T2,B6=T3),"",IF(OR(B6=T4,B6=T5),"","")),"") ->  | B16: =IF(A16="Target Cooling Capacity Range HIGH",'Design Load Calcs'!C16*0.8,IF(A16="Target Heating Capacity HIGH",IF(B6=T4,'Design Load Calcs'!J25,'Design Load Calcs'!C14),"")) ->  | C16: =IF(A16="Target Cooling Capacity Range HIGH","to",IF(A16="Target Heating Capacity HIGH",IF('Introduction & Options d''Unité'!$B$12="Métrique","kW","BTU/h"),"")) ->  | D16: =IF(A16="Target Cooling Capacity Range HIGH",'Design Load Calcs'!C16*1.25,"") ->  | E16: =IF(OR(A16="Target Heating Capacity HIGH",A16=""),"",IF('Introduction & Options d''Unité'!$B$12="Métrique","kW","BTU/h")) ->  | T16: Max | U16: ='Design Load Calcs'!O12 -> 110 | V16: =IF(NOT('Introduction & Options d''Unité'!B12="Métrique"),CEILING('Étape 3 Charges de Conception'!B12,10000),CEILING('Étape 3 Charges de Conception'!B12,10)) -> 10000
A17: ="Chauffage du bâtiment à "&IF('Introduction & Options d''Unité'!B12="Métrique","-8.3C","17F") -> Chauffage du bâtiment à 17F | T17: Min | U17: ='Design Load Calcs'!O6 -> -20 | V17: 0
A18: Charge de chauffage du bâtiment à la température de conception | T18: Major Unit | U18: 10 | V18: =IF(NOT('Introduction & Options d''Unité'!B12="Métrique"),10000,2) -> 10000
A19: Remarques supplémentaires
A20: • Les capacités de refroidissement à une température extérieure de 95 °F (35 °C) peuvent être utilisées à des fins de sélection initiale, puisque ces données sont habituellement fournies par le fabricant. Si des données de rendement étendues sont disponibles, utilisez les capacités à une température extérieure proche de la température de conception du site.
A22: =IF(B6=T2,"• Pour les unités à deux étages et à capacité variable, la capacité de la thermopompe à air devrait être sélectionnée à l'étage SUPÉRIEUR",IF(B6=T3,"• Pour les unités à deux étages et à capacité variable, la capacité de la thermopompe à air devrait être sélectionnée à l'étage INFÉRIEUR",IF(AND(NOT('Étape 1 Configuration de TP-Air'!B9="Nouvelle système CVC"),B9="Oui",'Design Load Calcs'!B30>('Étape 4 Dimensionnement '!B10+200),B10<>"",B8="Non"),"Notes: ",""))) -> 
A23: =IF(AND(NOT('Étape 1 Configuration de TP-Air'!B9="Nouvelle système CVC"),B9="Oui",'Design Load Calcs'!B30>'Design Load Calcs'!B31,B10<>"",B8="Non"),"• Les conduits existants peuvent ne pas être dimensionnés adéquatement pour le système de thermopompe. L'utilisateur doit s'assurer que les conduits existants sont adéquats avant l'installation du système.","") -> 
A28: Graphiques

Sheet Climate Zones (hidden)
A1: Seq | B1: Country | C1: Region | D1: City | E1: DegDay | F1: Climate Zone | G1: DHDBT | H1: DCDBT | K1: DO NOT TOUCH THESE CELLS | N1: User Choice | O1: Country | P1: Province | Q1: City | S1: A--->Z | U1: =INDEX($T$2:$T$231,MATCH(FALSE,ISNONTEXT($T$2:$T$231),0)) -> Acton-Vale | V1: =U1 -> Acton-Vale | X1: Source: Data for Canadian locations adapted from the Canadian Standards Association, CSA F280-12, "Determining the required capacity of residential space heating and cooling appliances".
A2: 1 | B2: CAN | C2: AB | D2: Athabasca | E2: 6000 | F2: Très-froid | G2: -35 | H2: 27 | K2: 13 | L2: 50 | N2: ='Étape 3 Charges de Conception'!B5 -> CAN | O2: CAN | P2: =_xlfn.IFNA(LOOKUP(2, 1/((COUNTIF($P$1:P1, $C$2:$C$1686)=0)*($N$2=$B$2:$B$1686)), $C$2:$C$1686),"") -> YT | Q2: =_xlfn.IFNA(LOOKUP(2, 1/((COUNTIF($Q$1:Q1, $D$2:$D$1686)=0)*($N$3=$C$2:$C$1686)), $D$2:$D$1686),"") -> Windsor | R2: =IF($N$2=$O$2,K2,IF($N$2=$O$3,L2)) -> 13 | S2: =INDEX($P$2:$P$51,R2) -> AB | T2: =IFERROR(INDEX($Q$2:$Q$231,MATCH(ROWS($Q$2:Q2),COUNTIF($Q$2:$Q$231,"<="&$Q$2:$Q$231),0)),0) -> 0 | U2: =MATCH(U1,T1:T231,0) -> 107 | V2: =IFERROR(INDEX($T$2:$T$231,U2,1),"") -> Alma | X2: Source: Data for locations in the United States of America adapted from the Canadian Standards Association, CSA EXP-07, "Energy performance of split-system and single-package air conditioners and heat pumps".
A3: 2 | B3: CAN | C3: AB | D3: Banff | E3: 5500 | F3: Très-froid | G3: -31 | H3: 27 | K3: =K2-1 -> 12 | L3: =L2-1 -> 49 | N3: ='Étape 3 Charges de Conception'!B6 -> QC | O3: US | P3: =_xlfn.IFNA(LOOKUP(2, 1/((COUNTIF($P$1:P2, $C$2:$C$1686)=0)*($N$2=$B$2:$B$1686)), $C$2:$C$1686),"") -> SK | Q3: =_xlfn.IFNA(LOOKUP(2, 1/((COUNTIF($Q$1:Q2, $D$2:$D$1686)=0)*($N$3=$C$2:$C$1686)), $D$2:$D$1686),"") -> Waterloo | R3: =IF($N$2=$O$2,K3,IF($N$2=$O$3,L3)) -> 12 | S3: =INDEX($P$2:$P$51,R3) -> BC | T3: =IFERROR(INDEX($Q$2:$Q$231,MATCH(ROWS($Q$2:Q3),COUNTIF($Q$2:$Q$231,"<="&$Q$2:$Q$231),0)),0) -> 0 | U3: =U2+1 -> 108 | V3: =IFERROR(INDEX($T$2:$T$231,U3,1),"") -> Amos | X3: F280 weather data for Spreadsheet project (Interpreted from CSA_F280_Table 5_Final_2012-01-03.xls by Philip Jarrett Environment Canada)
A4: 3 | B4: CAN | C4: AB | D4: Barrhead | E4: 5740 | F4: Très-froid | G4: -33 | H4: 27 | K4: =K3-1 -> 11 | L4: =L3-1 -> 48 | P4: =_xlfn.IFNA(LOOKUP(2, 1/((COUNTIF($P$1:P3, $C$2:$C$1686)=0)*($N$2=$B$2:$B$1686)), $C$2:$C$1686),"") -> QC | Q4: =_xlfn.IFNA(LOOKUP(2, 1/((COUNTIF($Q$1:Q3, $D$2:$D$1686)=0)*($N$3=$C$2:$C$1686)), $D$2:$D$1686),"") -> Wakefield | R4: 11 | S4: MB | T4: =IFERROR(INDEX($Q$2:$Q$231,MATCH(ROWS($Q$2:Q4),COUNTIF($Q$2:$Q$231,"<="&$Q$2:$Q$231),0)),0) -> 0 | U4: =U3+1 -> 109 | V4: Ancienne-Lorette
A5: 4 | B5: CAN | C5: AB | D5: Beaverlodge | E5: 5700 | F5: Très-froid | G5: -36 | H5: 28 | K5: 10 | L5: 47 | P5: =_xlfn.IFNA(LOOKUP(2, 1/((COUNTIF($P$1:P4, $C$2:$C$1686)=0)*($N$2=$B$2:$B$1686)), $C$2:$C$1686),"") -> PE | Q5: =_xlfn.IFNA(LOOKUP(2, 1/((COUNTIF($Q$1:Q4, $D$2:$D$1686)=0)*($N$3=$C$2:$C$1686)), $D$2:$D$1686),"") -> Ville-Marie | R5: 10 | S5: NB | T5: =IFERROR(INDEX($Q$2:$Q$231,MATCH(ROWS($Q$2:Q5),COUNTIF($Q$2:$Q$231,"<="&$Q$2:$Q$231),0)),0) -> 0 | U5: 110 | V5: Asbestos
A6: 5 | B6: CAN | C6: AB | D6: Brooks | E6: 4880 | F6: Très-froid | G6: -32 | H6: 32 | K6: 9 | L6: 46 | P6: =_xlfn.IFNA(LOOKUP(2, 1/((COUNTIF($P$1:P5, $C$2:$C$1686)=0)*($N$2=$B$2:$B$1686)), $C$2:$C$1686),"") -> ON | Q6: =_xlfn.IFNA(LOOKUP(2, 1/((COUNTIF($Q$1:Q5, $D$2:$D$1686)=0)*($N$3=$C$2:$C$1686)), $D$2:$D$1686),"") -> Victoriaville | R6: 9 | S6: NL | T6: =IFERROR(INDEX($Q$2:$Q$231,MATCH(ROWS($Q$2:Q6),COUNTIF($Q$2:$Q$231,"<="&$Q$2:$Q$231),0)),0) -> 0 | U6: 111 | V6: Aylmer
A7: 6 | B7: CAN | C7: AB | D7: Calgary | E7: 5000 | F7: Très-froid | G7: -30 | H7: 28 | K7: 8 | L7: 45 | P7: =_xlfn.IFNA(LOOKUP(2, 1/((COUNTIF($P$1:P6, $C$2:$C$1686)=0)*($N$2=$B$2:$B$1686)), $C$2:$C$1686),"") -> NU | Q7: =_xlfn.IFNA(LOOKUP(2, 1/((COUNTIF($Q$1:Q6, $D$2:$D$1686)=0)*($N$3=$C$2:$C$1686)), $D$2:$D$1686),"") -> Verdun | R7: 8 | S7: NS | T7: =IFERROR(INDEX($Q$2:$Q$231,MATCH(ROWS($Q$2:Q7),COUNTIF($Q$2:$Q$231,"<="&$Q$2:$Q$231),0)),0) -> 0 | U7: 112 | V7: Baie-Comeau
A8: 7 | B8: CAN | C8: AB | D8: Campsie | E8: 5750 | F8: Très-froid | G8: -33 | H8: 27 | K8: 7 | L8: 44 | P8: =_xlfn.IFNA(LOOKUP(2, 1/((COUNTIF($P$1:P7, $C$2:$C$1686)=0)*($N$2=$B$2:$B$1686)), $C$2:$C$1686),"") -> NT | Q8: =_xlfn.IFNA(LOOKUP(2, 1/((COUNTIF($Q$1:Q7, $D$2:$D$1686)=0)*($N$3=$C$2:$C$1686)), $D$2:$D$1686),"") -> Verchères | R8: 7 | S8: NT | T8: =IFERROR(INDEX($Q$2:$Q$231,MATCH(ROWS($Q$2:Q8),COUNTIF($Q$2:$Q$231,"<="&$Q$2:$Q$231),0)),0) -> 0 | U8: 113 | V8: Baie-Saint-Paul
A9: 8 | B9: CAN | C9: AB | D9: Camrose | E9: 5500 | F9: Très-froid | G9: -33 | H9: 29 | K9: 6 | L9: 43 | P9: =_xlfn.IFNA(LOOKUP(2, 1/((COUNTIF($P$1:P8, $C$2:$C$1686)=0)*($N$2=$B$2:$B$1686)), $C$2:$C$1686),"") -> NS | Q9: =_xlfn.IFNA(LOOKUP(2, 1/((COUNTIF($Q$1:Q8, $D$2:$D$1686)=0)*($N$3=$C$2:$C$1686)), $D$2:$D$1686),"") -> Varennes | R9: 6 | S9: NU | T9: =IFERROR(INDEX($Q$2:$Q$231,MATCH(ROWS($Q$2:Q9),COUNTIF($Q$2:$Q$231,"<="&$Q$2:$Q$231),0)),0) -> 0 | U9: 114 | V9: Beaconsfield
A10: 9 | B10: CAN | C10: AB | D10: Canmore | E10: 5400 | F10: Très-froid | G10: -31 | H10: 28 | K10: 5 | L10: 42 | P10: =_xlfn.IFNA(LOOKUP(2, 1/((COUNTIF($P$1:P9, $C$2:$C$1686)=0)*($N$2=$B$2:$B$1686)), $C$2:$C$1686),"") -> NL | Q10: =_xlfn.IFNA(LOOKUP(2, 1/((COUNTIF($Q$1:Q9, $D$2:$D$1686)=0)*($N$3=$C$2:$C$1686)), $D$2:$D$1686),"") -> Val-d'Or | R10: 5 | S10: ON | T10: =IFERROR(INDEX($Q$2:$Q$231,MATCH(ROWS($Q$2:Q10),COUNTIF($Q$2:$Q$231,"<="&$Q$2:$Q$231),0)),0) -> 0 | U10: 115 | V10: Beauport
A11: 10 | B11: CAN | C11: AB | D11: Cardston | E11: 4700 | F11: Très-froid | G11: -29 | H11: 30 | K11: 4 | L11: 41 | P11: =_xlfn.IFNA(LOOKUP(2, 1/((COUNTIF($P$1:P10, $C$2:$C$1686)=0)*($N$2=$B$2:$B$1686)), $C$2:$C$1686),"") -> NB | Q11: =_xlfn.IFNA(LOOKUP(2, 1/((COUNTIF($Q$1:Q10, $D$2:$D$1686)=0)*($N$3=$C$2:$C$1686)), $D$2:$D$1686),"") -> Trois-Rivières | R11: 4 | S11: PE | T11: =IFERROR(INDEX($Q$2:$Q$231,MATCH(ROWS($Q$2:Q11),COUNTIF($Q$2:$Q$231,"<="&$Q$2:$Q$231),0)),0) -> 0 | U11: 116 | V11: Bedford
A12: 11 | B12: CAN | C12: AB | D12: Claresholm | E12: 4680 | F12: Très-froid | G12: -30 | H12: 30 | K12: 3 | L12: 40 | P12: =_xlfn.IFNA(LOOKUP(2, 1/((COUNTIF($P$1:P11, $C$2:$C$1686)=0)*($N$2=$B$2:$B$1686)), $C$2:$C$1686),"") -> MB | Q12: =_xlfn.IFNA(LOOKUP(2, 1/((COUNTIF($Q$1:Q11, $D$2:$D$1686)=0)*($N$3=$C$2:$C$1686)), $D$2:$D$1686),"") -> Thurso | R12: 3 | S12: QC | T12: =IFERROR(INDEX($Q$2:$Q$231,MATCH(ROWS($Q$2:Q12),COUNTIF($Q$2:$Q$231,"<="&$Q$2:$Q$231),0)),0) -> 0 | U12: 117 | V12: Beloeil
A13: 12 | B13: CAN | C13: AB | D13: Cold Lake | E13: 5860 | F13: Très-froid | G13: -35 | H13: 28 | K13: 2 | L13: 39 | P13: =_xlfn.IFNA(LOOKUP(2, 1/((COUNTIF($P$1:P12, $C$2:$C$1686)=0)*($N$2=$B$2:$B$1686)), $C$2:$C$1686),"") -> BC | Q13: =_xlfn.IFNA(LOOKUP(2, 1/((COUNTIF($Q$1:Q12, $D$2:$D$1686)=0)*($N$3=$C$2:$C$1686)), $D$2:$D$1686),"") -> Thetford Mines | R13: 2 | S13: SK | T13: =IFERROR(INDEX($Q$2:$Q$231,MATCH(ROWS($Q$2:Q13),COUNTIF($Q$2:$Q$231,"<="&$Q$2:$Q$231),0)),0) -> 0 | U13: 118 | V13: Brome
A14: 13 | B14: CAN | C14: AB | D14: Coleman | E14: 5210 | F14: Très-froid | G14: -31 | H14: 29 | K14: 1 | L14: 38 | P14: =_xlfn.IFNA(LOOKUP(2, 1/((COUNTIF($P$1:P13, $C$2:$C$1686)=0)*($N$2=$B$2:$B$1686)), $C$2:$C$1686),"") -> AB | Q14: =_xlfn.IFNA(LOOKUP(2, 1/((COUNTIF($Q$1:Q13, $D$2:$D$1686)=0)*($N$3=$C$2:$C$1686)), $D$2:$D$1686),"") -> Terrebonne | R14: 1 | S14: YT | T14: =IFERROR(INDEX($Q$2:$Q$231,MATCH(ROWS($Q$2:Q14),COUNTIF($Q$2:$Q$231,"<="&$Q$2:$Q$231),0)),0) -> 0 | U14: 119 | V14: Brossard
A15: 14 | B15: CAN | C15: AB | D15: Coronation | E15: 5640 | F15: Très-froid | G15: -32 | H15: 30 | K15: 0 | L15: 37 | P15: =_xlfn.IFNA(LOOKUP(2, 1/((COUNTIF($P$1:P14, $C$2:$C$1686)=0)*($N$2=$B$2:$B$1686)), $C$2:$C$1686),"") ->  | Q15: =_xlfn.IFNA(LOOKUP(2, 1/((COUNTIF($Q$1:Q14, $D$2:$D$1686)=0)*($N$3=$C$2:$C$1686)), $D$2:$D$1686),"") -> Témiscaming | R15: 0 | T15: =IFERROR(INDEX($Q$2:$Q$231,MATCH(ROWS($Q$2:Q15),COUNTIF($Q$2:$Q$231,"<="&$Q$2:$Q$231),0)),0) -> 0 | U15: 120 | V15: Buckingham
A16: 15 | B16: CAN | C16: AB | D16: Cowley | E16: 4810 | F16: Très-froid | G16: -29 | H16: 29 | K16: 0 | L16: 36 | P16: =_xlfn.IFNA(LOOKUP(2, 1/((COUNTIF($P$1:P15, $C$2:$C$1686)=0)*($N$2=$B$2:$B$1686)), $C$2:$C$1686),"") ->  | Q16: =_xlfn.IFNA(LOOKUP(2, 1/((COUNTIF($Q$1:Q15, $D$2:$D$1686)=0)*($N$3=$C$2:$C$1686)), $D$2:$D$1686),"") -> Tadoussac | R16: 0 | T16: =IFERROR(INDEX($Q$2:$Q$231,MATCH(ROWS($Q$2:Q16),COUNTIF($Q$2:$Q$231,"<="&$Q$2:$Q$231),0)),0) -> 0 | U16: 121 | V16: Campbell's Bay
A17: 16 | B17: CAN | C17: AB | D17: Drumheller | E17: 5050 | F17: Très-froid | G17: -32 | H17: 30 | K17: 0 | L17: 35 | P17: =_xlfn.IFNA(LOOKUP(2, 1/((COUNTIF($P$1:P16, $C$2:$C$1686)=0)*($N$2=$B$2:$B$1686)), $C$2:$C$1686),"") ->  | Q17: =_xlfn.IFNA(LOOKUP(2, 1/((COUNTIF($Q$1:Q16, $D$2:$D$1686)=0)*($N$3=$C$2:$C$1686)), $D$2:$D$1686),"") -> Sutton | R17: 0 | T17: =IFERROR(INDEX($Q$2:$Q$231,MATCH(ROWS($Q$2:Q17),COUNTIF($Q$2:$Q$231,"<="&$Q$2:$Q$231),0)),0) -> 0 | U17: 122 | V17: Chambly
A18: 17 | B18: CAN | C18: AB | D18: Edmonton | E18: 5120 | F18: Très-froid | G18: -30 | H18: 28 | K18: 0 | L18: 34 | P18: =_xlfn.IFNA(LOOKUP(2, 1/((COUNTIF($P$1:P17, $C$2:$C$1686)=0)*($N$2=$B$2:$B$1686)), $C$2:$C$1686),"") ->  | Q18: =_xlfn.IFNA(LOOKUP(2, 1/((COUNTIF($Q$1:Q17, $D$2:$D$1686)=0)*($N$3=$C$2:$C$1686)), $D$2:$D$1686),"") -> St-Nicolas | R18: 0 | T18: =IFERROR(INDEX($Q$2:$Q$231,MATCH(ROWS($Q$2:Q18),COUNTIF($Q$2:$Q$231,"<="&$Q$2:$Q$231),0)),0) -> 0 | U18: 123 | V18: Coaticook
A19: 18 | B19: CAN | C19: AB | D19: Edson | E19: 5750 | F19: Très-froid | G19: -34 | H19: 27 | K19: 0 | L19: 33 | P19: =_xlfn.IFNA(LOOKUP(2, 1/((COUNTIF($P$1:P18, $C$2:$C$1686)=0)*($N$2=$B$2:$B$1686)), $C$2:$C$1686),"") ->  | Q19: =_xlfn.IFNA(LOOKUP(2, 1/((COUNTIF($Q$1:Q18, $D$2:$D$1686)=0)*($N$3=$C$2:$C$1686)), $D$2:$D$1686),"") -> St-Lazare-Hudson | R19: 0 | T19: =IFERROR(INDEX($Q$2:$Q$231,MATCH(ROWS($Q$2:Q19),COUNTIF($Q$2:$Q$231,"<="&$Q$2:$Q$231),0)),0) -> 0 | U19: 124 | V19: Contrecoeur
A20: 19 | B20: CAN | C20: AB | D20: Embarras Portage | E20: 7100 | F20: Subarctique | G20: -41 | H20: 28 | K20: 0 | L20: 32 | P20: =_xlfn.IFNA(LOOKUP(2, 1/((COUNTIF($P$1:P19, $C$2:$C$1686)=0)*($N$2=$B$2:$B$1686)), $C$2:$C$1686),"") ->  | Q20: =_xlfn.IFNA(LOOKUP(2, 1/((COUNTIF($Q$1:Q19, $D$2:$D$1686)=0)*($N$3=$C$2:$C$1686)), $D$2:$D$1686),"") -> St-Laurent | R20: 0 | T20: =IFERROR(INDEX($Q$2:$Q$231,MATCH(ROWS($Q$2:Q20),COUNTIF($Q$2:$Q$231,"<="&$Q$2:$Q$231),0)),0) -> 0 | U20: 125 | V20: Cowansville
A21: 20 | B21: CAN | C21: AB | D21: Fairview | E21: 5840 | F21: Très-froid | G21: -37 | H21: 27 | K21: 0 | L21: 31 | P21: =_xlfn.IFNA(LOOKUP(2, 1/((COUNTIF($P$1:P20, $C$2:$C$1686)=0)*($N$2=$B$2:$B$1686)), $C$2:$C$1686),"") ->  | Q21: =_xlfn.IFNA(LOOKUP(2, 1/((COUNTIF($Q$1:Q20, $D$2:$D$1686)=0)*($N$3=$C$2:$C$1686)), $D$2:$D$1686),"") -> St-Lambert | R21: 0 | T21: =IFERROR(INDEX($Q$2:$Q$231,MATCH(ROWS($Q$2:Q21),COUNTIF($Q$2:$Q$231,"<="&$Q$2:$Q$231),0)),0) -> 0 | U21: 126 | V21: Deux-Montagnes
A22: 21 | B22: CAN | C22: AB | D22: Fort MacLeod | E22: 4600 | F22: Très-froid | G22: -30 | H22: 31 | K22: 0 | L22: 30 | P22: =_xlfn.IFNA(LOOKUP(2, 1/((COUNTIF($P$1:P21, $C$2:$C$1686)=0)*($N$2=$B$2:$B$1686)), $C$2:$C$1686),"") ->  | Q22: =_xlfn.IFNA(LOOKUP(2, 1/((COUNTIF($Q$1:Q21, $D$2:$D$1686)=0)*($N$3=$C$2:$C$1686)), $D$2:$D$1686),"") -> St-Jovite | R22: 0 | T22: =IFERROR(INDEX($Q$2:$Q$231,MATCH(ROWS($Q$2:Q22),COUNTIF($Q$2:$Q$231,"<="&$Q$2:$Q$231),0)),0) -> 0 | U22: 127 | V22: Dolbeau
A23: 22 | B23: CAN | C23: AB | D23: Fort McMurray | E23: 6250 | F23: Très-froid | G23: -38 | H23: 28 | K23: 0 | L23: 29 | P23: =_xlfn.IFNA(LOOKUP(2, 1/((COUNTIF($P$1:P22, $C$2:$C$1686)=0)*($N$2=$B$2:$B$1686)), $C$2:$C$1686),"") ->  | Q23: =_xlfn.IFNA(LOOKUP(2, 1/((COUNTIF($Q$1:Q22, $D$2:$D$1686)=0)*($N$3=$C$2:$C$1686)), $D$2:$D$1686),"") -> St-Jérôme | R23: 0 | T23: =IFERROR(INDEX($Q$2:$Q$231,MATCH(ROWS($Q$2:Q23),COUNTIF($Q$2:$Q$231,"<="&$Q$2:$Q$231),0)),0) -> 0 | U23: 128 | V23: Dorval
A24: 23 | B24: CAN | C24: AB | D24: Fort Saskatchewan | E24: 5420 | F24: Très-froid | G24: -32 | H24: 28 | K24: 0 | L24: 28 | P24: =_xlfn.IFNA(LOOKUP(2, 1/((COUNTIF($P$1:P23, $C$2:$C$1686)=0)*($N$2=$B$2:$B$1686)), $C$2:$C$1686),"") ->  | Q24: =_xlfn.IFNA(LOOKUP(2, 1/((COUNTIF($Q$1:Q23, $D$2:$D$1686)=0)*($N$3=$C$2:$C$1686)), $D$2:$D$1686),"") -> St-Hyacinthe | R24: 0 | T24: =IFERROR(INDEX($Q$2:$Q$231,MATCH(ROWS($Q$2:Q24),COUNTIF($Q$2:$Q$231,"<="&$Q$2:$Q$231),0)),0) -> 0 | U24: 129 | V24: Drummondville
A25: 24 | B25: CAN | C25: AB | D25: Fort Vermilion | E25: 6700 | F25: Subarctique | G25: -41 | H25: 28 | K25: 0 | L25: 27 | P25: =_xlfn.IFNA(LOOKUP(2, 1/((COUNTIF($P$1:P24, $C$2:$C$1686)=0)*($N$2=$B$2:$B$1686)), $C$2:$C$1686),"") ->  | Q25: =_xlfn.IFNA(LOOKUP(2, 1/((COUNTIF($Q$1:Q24, $D$2:$D$1686)=0)*($N$3=$C$2:$C$1686)), $D$2:$D$1686),"") -> St-Hubert-de-Rivière-du-Loup | R25: 0 | T25: =IFERROR(INDEX($Q$2:$Q$231,MATCH(ROWS($Q$2:Q25),COUNTIF($Q$2:$Q$231,"<="&$Q$2:$Q$231),0)),0) -> 0 | U25: 130 | V25: Farnham
A26: 25 | B26: CAN | C26: AB | D26: Grande Prairie | E26: 5790 | F26: Très-froid | G26: -36 | H26: 27 | K26: 0 | L26: 26 | P26: =_xlfn.IFNA(LOOKUP(2, 1/((COUNTIF($P$1:P25, $C$2:$C$1686)=0)*($N$2=$B$2:$B$1686)), $C$2:$C$1686),"") ->  | Q26: =_xlfn.IFNA(LOOKUP(2, 1/((COUNTIF($Q$1:Q25, $D$2:$D$1686)=0)*($N$3=$C$2:$C$1686)), $D$2:$D$1686),"") -> St-Hubert | R26: 0 | T26: =IFERROR(INDEX($Q$2:$Q$231,MATCH(ROWS($Q$2:Q26),COUNTIF($Q$2:$Q$231,"<="&$Q$2:$Q$231),0)),0) -> 0 | U26: 131 | V26: Fort-Coulonge
A27: 26 | B27: CAN | C27: AB | D27: Habay | E27: 6750 | F27: Subarctique | G27: -41 | H27: 28 | K27: 0 | L27: 25 | P27: =_xlfn.IFNA(LOOKUP(2, 1/((COUNTIF($P$1:P26, $C$2:$C$1686)=0)*($N$2=$B$2:$B$1686)), $C$2:$C$1686),"") ->  | Q27: =_xlfn.IFNA(LOOKUP(2, 1/((COUNTIF($Q$1:Q26, $D$2:$D$1686)=0)*($N$3=$C$2:$C$1686)), $D$2:$D$1686),"") -> St-Georges-de-Cacouna | R27: 0 | T27: =IFERROR(INDEX($Q$2:$Q$231,MATCH(ROWS($Q$2:Q27),COUNTIF($Q$2:$Q$231,"<="&$Q$2:$Q$231),0)),0) -> 0 | U27: 132 | V27: Gagnon
A28: 27 | B28: CAN | C28: AB | D28: Hardisty | E28: 5640 | F28: Très-froid | G28: -33 | H28: 30 | K28: 0 | L28: 24 | P28: =_xlfn.IFNA(LOOKUP(2, 1/((COUNTIF($P$1:P27, $C$2:$C$1686)=0)*($N$2=$B$2:$B$1686)), $C$2:$C$1686),"") ->  | Q28: =_xlfn.IFNA(LOOKUP(2, 1/((COUNTIF($Q$1:Q27, $D$2:$D$1686)=0)*($N$3=$C$2:$C$1686)), $D$2:$D$1686),"") -> St-Félicien | R28: 0 | T28: =IFERROR(INDEX($Q$2:$Q$231,MATCH(ROWS($Q$2:Q28),COUNTIF($Q$2:$Q$231,"<="&$Q$2:$Q$231),0)),0) -> 0 | U28: 133 | V28: Gaspé
A29: 28 | B29: CAN | C29: AB | D29: High River | E29: 4900 | F29: Très-froid | G29: -31 | H29: 28 | K29: 0 | L29: 23 | P29: =_xlfn.IFNA(LOOKUP(2, 1/((COUNTIF($P$1:P28, $C$2:$C$1686)=0)*($N$2=$B$2:$B$1686)), $C$2:$C$1686),"") ->  | Q29: =_xlfn.IFNA(LOOKUP(2, 1/((COUNTIF($Q$1:Q28, $D$2:$D$1686)=0)*($N$3=$C$2:$C$1686)), $D$2:$D$1686),"") -> Ste-Foy | R29: 0 | T29: =IFERROR(INDEX($Q$2:$Q$231,MATCH(ROWS($Q$2:Q29),COUNTIF($Q$2:$Q$231,"<="&$Q$2:$Q$231),0)),0) -> 0 | U29: 134 | V29: Gatineau
A30: 29 | B30: CAN | C30: AB | D30: Hinton | E30: 5500 | F30: Très-froid | G30: -34 | H30: 27 | K30: 0 | L30: 22 | P30: =_xlfn.IFNA(LOOKUP(2, 1/((COUNTIF($P$1:P29, $C$2:$C$1686)=0)*($N$2=$B$2:$B$1686)), $C$2:$C$1686),"") ->  | Q30: =_xlfn.IFNA(LOOKUP(2, 1/((COUNTIF($Q$1:Q29, $D$2:$D$1686)=0)*($N$3=$C$2:$C$1686)), $D$2:$D$1686),"") -> Ste-Anne-de-Bellevue | R30: 0 | T30: =IFERROR(INDEX($Q$2:$Q$231,MATCH(ROWS($Q$2:Q30),COUNTIF($Q$2:$Q$231,"<="&$Q$2:$Q$231),0)),0) -> 0 | U30: 135 | V30: Gracefield
A31: 30 | B31: CAN | C31: AB | D31: Jasper | E31: 5300 | F31: Très-froid | G31: -31 | H31: 28 | K31: 0 | L31: 21 | P31: =_xlfn.IFNA(LOOKUP(2, 1/((COUNTIF($P$1:P30, $C$2:$C$1686)=0)*($N$2=$B$2:$B$1686)), $C$2:$C$1686),"") ->  | Q31: =_xlfn.IFNA(LOOKUP(2, 1/((COUNTIF($Q$1:Q30, $D$2:$D$1686)=0)*($N$3=$C$2:$C$1686)), $D$2:$D$1686),"") -> Ste-Agathe-des-Monts | R31: 0 | T31: =IFERROR(INDEX($Q$2:$Q$231,MATCH(ROWS($Q$2:Q31),COUNTIF($Q$2:$Q$231,"<="&$Q$2:$Q$231),0)),0) -> 0 | U31: 136 | V31: Granby
A32: 31 | B32: CAN | C32: AB | D32: Keg River | E32: 6520 | F32: Subarctique | G32: -40 | H32: 28 | K32: 0 | L32: 20 | P32: =_xlfn.IFNA(LOOKUP(2, 1/((COUNTIF($P$1:P31, $C$2:$C$1686)=0)*($N$2=$B$2:$B$1686)), $C$2:$C$1686),"") ->  | Q32: =_xlfn.IFNA(LOOKUP(2, 1/((COUNTIF($Q$1:Q31, $D$2:$D$1686)=0)*($N$3=$C$2:$C$1686)), $D$2:$D$1686),"") -> Sorel | R32: 0 | T32: =IFERROR(INDEX($Q$2:$Q$231,MATCH(ROWS($Q$2:Q32),COUNTIF($Q$2:$Q$231,"<="&$Q$2:$Q$231),0)),0) -> 0 | U32: 137 | V32: Harrington-Harbour
A33: 32 | B33: CAN | C33: AB | D33: Lac la Biche | E33: 6100 | F33: Très-froid | G33: -35 | H33: 28 | K33: 0 | L33: 19 | P33: =_xlfn.IFNA(LOOKUP(2, 1/((COUNTIF($P$1:P32, $C$2:$C$1686)=0)*($N$2=$B$2:$B$1686)), $C$2:$C$1686),"") ->  | Q33: =_xlfn.IFNA(LOOKUP(2, 1/((COUNTIF($Q$1:Q32, $D$2:$D$1686)=0)*($N$3=$C$2:$C$1686)), $D$2:$D$1686),"") -> Sillery | R33: 0 | T33: =IFERROR(INDEX($Q$2:$Q$231,MATCH(ROWS($Q$2:Q33),COUNTIF($Q$2:$Q$231,"<="&$Q$2:$Q$231),0)),0) -> 0 | U33: 138 | V33: Havre-St-Pierre
A34: 33 | B34: CAN | C34: AB | D34: Lacombe | E34: 5500 | F34: Très-froid | G34: -33 | H34: 28 | K34: 0 | L34: 18 | P34: =_xlfn.IFNA(LOOKUP(2, 1/((COUNTIF($P$1:P33, $C$2:$C$1686)=0)*($N$2=$B$2:$B$1686)), $C$2:$C$1686),"") ->  | Q34: =_xlfn.IFNA(LOOKUP(2, 1/((COUNTIF($Q$1:Q33, $D$2:$D$1686)=0)*($N$3=$C$2:$C$1686)), $D$2:$D$1686),"") -> Sherbrooke | R34: 0 | T34: =IFERROR(INDEX($Q$2:$Q$231,MATCH(ROWS($Q$2:Q34),COUNTIF($Q$2:$Q$231,"<="&$Q$2:$Q$231),0)),0) -> 0 | U34: 139 | V34: Hemmingford
A35: 34 | B35: CAN | C35: AB | D35: Lethbridge | E35: 4500 | F35: Très-froid | G35: -30 | H35: 31 | K35: 0 | L35: 17 | P35: =_xlfn.IFNA(LOOKUP(2, 1/((COUNTIF($P$1:P34, $C$2:$C$1686)=0)*($N$2=$B$2:$B$1686)), $C$2:$C$1686),"") ->  | Q35: =_xlfn.IFNA(LOOKUP(2, 1/((COUNTIF($Q$1:Q34, $D$2:$D$1686)=0)*($N$3=$C$2:$C$1686)), $D$2:$D$1686),"") -> Shawville | R35: 0 | T35: =IFERROR(INDEX($Q$2:$Q$231,MATCH(ROWS($Q$2:Q35),COUNTIF($Q$2:$Q$231,"<="&$Q$2:$Q$231),0)),0) -> 0 | U35: 140 | V35: Hull
A36: 35 | B36: CAN | C36: AB | D36: Manning | E36: 6300 | F36: Très-froid | G36: -39 | H36: 27 | K36: 0 | L36: 16 | P36: =_xlfn.IFNA(LOOKUP(2, 1/((COUNTIF($P$1:P35, $C$2:$C$1686)=0)*($N$2=$B$2:$B$1686)), $C$2:$C$1686),"") ->  | Q36: =_xlfn.IFNA(LOOKUP(2, 1/((COUNTIF($Q$1:Q35, $D$2:$D$1686)=0)*($N$3=$C$2:$C$1686)), $D$2:$D$1686),"") -> Shawinigan | R36: 0 | T36: =IFERROR(INDEX($Q$2:$Q$231,MATCH(ROWS($Q$2:Q36),COUNTIF($Q$2:$Q$231,"<="&$Q$2:$Q$231),0)),0) -> 0 | U36: 141 | V36: Iberville
A37: 36 | B37: CAN | C37: AB | D37: Medicine Hat | E37: 4540 | F37: Très-froid | G37: -31 | H37: 32 | K37: 0 | L37: 15 | P37: =_xlfn.IFNA(LOOKUP(2, 1/((COUNTIF($P$1:P36, $C$2:$C$1686)=0)*($N$2=$B$2:$B$1686)), $C$2:$C$1686),"") ->  | Q37: =_xlfn.IFNA(LOOKUP(2, 1/((COUNTIF($Q$1:Q36, $D$2:$D$1686)=0)*($N$3=$C$2:$C$1686)), $D$2:$D$1686),"") -> Sept-Îles | R37: 0 | T37: =IFERROR(INDEX($Q$2:$Q$231,MATCH(ROWS($Q$2:Q37),COUNTIF($Q$2:$Q$231,"<="&$Q$2:$Q$231),0)),0) -> 0 | U37: 142 | V37: Inukjuak
A38: 37 | B38: CAN | C38: AB | D38: Peace River | E38: 6050 | F38: Très-froid | G38: -37 | H38: 27 | K38: 0 | L38: 14 | P38: =_xlfn.IFNA(LOOKUP(2, 1/((COUNTIF($P$1:P37, $C$2:$C$1686)=0)*($N$2=$B$2:$B$1686)), $C$2:$C$1686),"") ->  | Q38: =_xlfn.IFNA(LOOKUP(2, 1/((COUNTIF($Q$1:Q37, $D$2:$D$1686)=0)*($N$3=$C$2:$C$1686)), $D$2:$D$1686),"") -> Senneterre | R38: 0 | T38: =IFERROR(INDEX($Q$2:$Q$231,MATCH(ROWS($Q$2:Q38),COUNTIF($Q$2:$Q$231,"<="&$Q$2:$Q$231),0)),0) -> 0 | U38: 143 | V38: Joliette
A39: 38 | B39: CAN | C39: AB | D39: Pincher Creek | E39: 4740 | F39: Très-froid | G39: -29 | H39: 29 | K39: 0 | L39: 13 | P39: =_xlfn.IFNA(LOOKUP(2, 1/((COUNTIF($P$1:P38, $C$2:$C$1686)=0)*($N$2=$B$2:$B$1686)), $C$2:$C$1686),"") ->  | Q39: =_xlfn.IFNA(LOOKUP(2, 1/((COUNTIF($Q$1:Q38, $D$2:$D$1686)=0)*($N$3=$C$2:$C$1686)), $D$2:$D$1686),"") -> Schefferville | R39: 0 | T39: =IFERROR(INDEX($Q$2:$Q$231,MATCH(ROWS($Q$2:Q39),COUNTIF($Q$2:$Q$231,"<="&$Q$2:$Q$231),0)),0) -> 0 | U39: 144 | V39: Kuujjuaq
A40: 39 | B40: CAN | C40: AB | D40: Ranfurly | E40: 5700 | F40: Très-froid | G40: -34 | H40: 29 | K40: 0 | L40: 12 | P40: =_xlfn.IFNA(LOOKUP(2, 1/((COUNTIF($P$1:P39, $C$2:$C$1686)=0)*($N$2=$B$2:$B$1686)), $C$2:$C$1686),"") ->  | Q40: =_xlfn.IFNA(LOOKUP(2, 1/((COUNTIF($Q$1:Q39, $D$2:$D$1686)=0)*($N$3=$C$2:$C$1686)), $D$2:$D$1686),"") -> Salaberry-de-Valleyfield | R40: 0 | T40: =IFERROR(INDEX($Q$2:$Q$231,MATCH(ROWS($Q$2:Q40),COUNTIF($Q$2:$Q$231,"<="&$Q$2:$Q$231),0)),0) -> 0 | U40: 145 | V40: Kuujjuarapik
A41: 40 | B41: CAN | C41: AB | D41: Red Deer | E41: 5550 | F41: Très-froid | G41: -32 | H41: 28 | K41: 0 | L41: 11 | P41: =_xlfn.IFNA(LOOKUP(2, 1/((COUNTIF($P$1:P40, $C$2:$C$1686)=0)*($N$2=$B$2:$B$1686)), $C$2:$C$1686),"") ->  | Q41: =_xlfn.IFNA(LOOKUP(2, 1/((COUNTIF($Q$1:Q40, $D$2:$D$1686)=0)*($N$3=$C$2:$C$1686)), $D$2:$D$1686),"") -> Saint-Jean-sur-Richelieu | R41: 0 | T41: =IFERROR(INDEX($Q$2:$Q$231,MATCH(ROWS($Q$2:Q41),COUNTIF($Q$2:$Q$231,"<="&$Q$2:$Q$231),0)),0) -> 0 | U41: 146 | V41: La Pocatière
A42: 41 | B42: CAN | C42: AB | D42: Rocky Mountain House | E42: 5640 | F42: Très-froid | G42: -32 | H42: 27 | K42: 0 | L42: 10 | P42: =_xlfn.IFNA(LOOKUP(2, 1/((COUNTIF($P$1:P41, $C$2:$C$1686)=0)*($N$2=$B$2:$B$1686)), $C$2:$C$1686),"") ->  | Q42: =_xlfn.IFNA(LOOKUP(2, 1/((COUNTIF($Q$1:Q41, $D$2:$D$1686)=0)*($N$3=$C$2:$C$1686)), $D$2:$D$1686),"") -> Saint-Eustache | R42: 0 | T42: =IFERROR(INDEX($Q$2:$Q$231,MATCH(ROWS($Q$2:Q42),COUNTIF($Q$2:$Q$231,"<="&$Q$2:$Q$231),0)),0) -> 0 | U42: 147 | V42: Lachute
A43: 42 | B43: CAN | C43: AB | D43: Slave Lake | E43: 5850 | F43: Très-froid | G43: -35 | H43: 26 | K43: 0 | L43: 9 | P43: =_xlfn.IFNA(LOOKUP(2, 1/((COUNTIF($P$1:P42, $C$2:$C$1686)=0)*($N$2=$B$2:$B$1686)), $C$2:$C$1686),"") ->  | Q43: =_xlfn.IFNA(LOOKUP(2, 1/((COUNTIF($Q$1:Q42, $D$2:$D$1686)=0)*($N$3=$C$2:$C$1686)), $D$2:$D$1686),"") -> Saguenay (Kénogami) | R43: 0 | T43: =IFERROR(INDEX($Q$2:$Q$231,MATCH(ROWS($Q$2:Q43),COUNTIF($Q$2:$Q$231,"<="&$Q$2:$Q$231),0)),0) -> 0 | U43: 148 | V43: Lac-Mégantic
A44: 43 | B44: CAN | C44: AB | D44: Stettler | E44: 5300 | F44: Très-froid | G44: -32 | H44: 30 | K44: 0 | L44: 8 | P44: =_xlfn.IFNA(LOOKUP(2, 1/((COUNTIF($P$1:P43, $C$2:$C$1686)=0)*($N$2=$B$2:$B$1686)), $C$2:$C$1686),"") ->  | Q44: =_xlfn.IFNA(LOOKUP(2, 1/((COUNTIF($Q$1:Q43, $D$2:$D$1686)=0)*($N$3=$C$2:$C$1686)), $D$2:$D$1686),"") -> Saguenay (Jonquière) | R44: 0 | T44: =IFERROR(INDEX($Q$2:$Q$231,MATCH(ROWS($Q$2:Q44),COUNTIF($Q$2:$Q$231,"<="&$Q$2:$Q$231),0)),0) -> 0 | U44: 149 | V44: La-Malbaie
A45: 44 | B45: CAN | C45: AB | D45: Stony Plain | E45: 5300 | F45: Très-froid | G45: -32 | H45: 28 | K45: 0 | L45: 7 | P45: =_xlfn.IFNA(LOOKUP(2, 1/((COUNTIF($P$1:P44, $C$2:$C$1686)=0)*($N$2=$B$2:$B$1686)), $C$2:$C$1686),"") ->  | Q45: =_xlfn.IFNA(LOOKUP(2, 1/((COUNTIF($Q$1:Q44, $D$2:$D$1686)=0)*($N$3=$C$2:$C$1686)), $D$2:$D$1686),"") -> Saguenay (Bagotville) | R45: 0 | T45: =IFERROR(INDEX($Q$2:$Q$231,MATCH(ROWS($Q$2:Q45),COUNTIF($Q$2:$Q$231,"<="&$Q$2:$Q$231),0)),0) -> 0 | U45: 150 | V45: La-Tuque
A46: 45 | B46: CAN | C46: AB | D46: Suffield | E46: 4770 | F46: Très-froid | G46: -31 | H46: 32 | K46: 0 | L46: 6 | P46: =_xlfn.IFNA(LOOKUP(2, 1/((COUNTIF($P$1:P45, $C$2:$C$1686)=0)*($N$2=$B$2:$B$1686)), $C$2:$C$1686),"") ->  | Q46: =_xlfn.IFNA(LOOKUP(2, 1/((COUNTIF($Q$1:Q45, $D$2:$D$1686)=0)*($N$3=$C$2:$C$1686)), $D$2:$D$1686),"") -> Saguenay | R46: 0 | T46: =IFERROR(INDEX($Q$2:$Q$231,MATCH(ROWS($Q$2:Q46),COUNTIF($Q$2:$Q$231,"<="&$Q$2:$Q$231),0)),0) -> 0 | U46: 151 | V46: Laval
A47: 46 | B47: CAN | C47: AB | D47: Taber | E47: 4580 | F47: Très-froid | G47: -31 | H47: 31 | K47: 0 | L47: 5 | P47: =_xlfn.IFNA(LOOKUP(2, 1/((COUNTIF($P$1:P46, $C$2:$C$1686)=0)*($N$2=$B$2:$B$1686)), $C$2:$C$1686),"") ->  | Q47: =_xlfn.IFNA(LOOKUP(2, 1/((COUNTIF($Q$1:Q46, $D$2:$D$1686)=0)*($N$3=$C$2:$C$1686)), $D$2:$D$1686),"") -> Rouyn | R47: 0 | T47: =IFERROR(INDEX($Q$2:$Q$231,MATCH(ROWS($Q$2:Q47),COUNTIF($Q$2:$Q$231,"<="&$Q$2:$Q$231),0)),0) -> 0 | U47: 152 | V47: Lennoxville
A48: 47 | B48: CAN | C48: AB | D48: Turner Valley | E48: 5220 | F48: Très-froid | G48: -31 | H48: 28 | K48: 0 | L48: 4 | P48: =_xlfn.IFNA(LOOKUP(2, 1/((COUNTIF($P$1:P47, $C$2:$C$1686)=0)*($N$2=$B$2:$B$1686)), $C$2:$C$1686),"") ->  | Q48: =_xlfn.IFNA(LOOKUP(2, 1/((COUNTIF($Q$1:Q47, $D$2:$D$1686)=0)*($N$3=$C$2:$C$1686)), $D$2:$D$1686),"") -> Rosemère | R48: 0 | T48: =IFERROR(INDEX($Q$2:$Q$231,MATCH(ROWS($Q$2:Q48),COUNTIF($Q$2:$Q$231,"<="&$Q$2:$Q$231),0)),0) -> 0 | U48: 153 | V48: Léry
A49: 48 | B49: CAN | C49: AB | D49: Valleyview | E49: 5600 | F49: Très-froid | G49: -37 | H49: 27 | K49: 0 | L49: 3 | P49: =_xlfn.IFNA(LOOKUP(2, 1/((COUNTIF($P$1:P48, $C$2:$C$1686)=0)*($N$2=$B$2:$B$1686)), $C$2:$C$1686),"") ->  | Q49: =_xlfn.IFNA(LOOKUP(2, 1/((COUNTIF($Q$1:Q48, $D$2:$D$1686)=0)*($N$3=$C$2:$C$1686)), $D$2:$D$1686),"") -> Rock-Island | R49: 0 | T49: =IFERROR(INDEX($Q$2:$Q$231,MATCH(ROWS($Q$2:Q49),COUNTIF($Q$2:$Q$231,"<="&$Q$2:$Q$231),0)),0) -> 0 | U49: 154 | V49: Lévis
A50: 49 | B50: CAN | C50: AB | D50: Vegreville | E50: 5780 | F50: Très-froid | G50: -34 | H50: 29 | K50: 0 | L50: 2 | P50: =_xlfn.IFNA(LOOKUP(2, 1/((COUNTIF($P$1:P49, $C$2:$C$1686)=0)*($N$2=$B$2:$B$1686)), $C$2:$C$1686),"") ->  | Q50: =_xlfn.IFNA(LOOKUP(2, 1/((COUNTIF($Q$1:Q49, $D$2:$D$1686)=0)*($N$3=$C$2:$C$1686)), $D$2:$D$1686),"") -> Roberval | R50: 0 | T50: =IFERROR(INDEX($Q$2:$Q$231,MATCH(ROWS($Q$2:Q50),COUNTIF($Q$2:$Q$231,"<="&$Q$2:$Q$231),0)),0) -> 0 | U50: 155 | V50: Loretteville
A51: 50 | B51: CAN | C51: AB | D51: Vermilion | E51: 5740 | F51: Très-froid | G51: -35 | H51: 29 | K51: 0 | L51: =L50-1 -> 1 | P51: =_xlfn.IFNA(LOOKUP(2, 1/((COUNTIF($P$1:P50, $C$2:$C$1686)=0)*($N$2=$B$2:$B$1686)), $C$2:$C$1686),"") ->  | Q51: =_xlfn.IFNA(LOOKUP(2, 1/((COUNTIF($Q$1:Q50, $D$2:$D$1686)=0)*($N$3=$C$2:$C$1686)), $D$2:$D$1686),"") -> Rivière-du-Loup | R51: 0 | T51: =IFERROR(INDEX($Q$2:$Q$231,MATCH(ROWS($Q$2:Q51),COUNTIF($Q$2:$Q$231,"<="&$Q$2:$Q$231),0)),0) -> 0 | U51: 156 | V51: Louiseville
A52: 51 | B52: CAN | C52: AB | D52: Wagner | E52: 5850 | F52: Très-froid | G52: -35 | H52: 26 | P52: =_xlfn.IFNA(LOOKUP(2, 1/((COUNTIF($P$1:P51, $C$2:$C$1686)=0)*($N$2=$B$2:$B$1686)), $C$2:$C$1686),"") ->  | Q52: =_xlfn.IFNA(LOOKUP(2, 1/((COUNTIF($Q$1:Q51, $D$2:$D$1686)=0)*($N$3=$C$2:$C$1686)), $D$2:$D$1686),"") -> Rimouski | T52: =IFERROR(INDEX($Q$2:$Q$231,MATCH(ROWS($Q$2:Q52),COUNTIF($Q$2:$Q$231,"<="&$Q$2:$Q$231),0)),0) -> 0 | U52: 157 | V52: Magog
A53: 52 | B53: CAN | C53: AB | D53: Wainwright | E53: 5700 | F53: Très-froid | G53: -33 | H53: 29 | P53: =_xlfn.IFNA(LOOKUP(2, 1/((COUNTIF($P$1:P52, $C$2:$C$1686)=0)*($N$2=$B$2:$B$1686)), $C$2:$C$1686),"") ->  | Q53: =_xlfn.IFNA(LOOKUP(2, 1/((COUNTIF($Q$1:Q52, $D$2:$D$1686)=0)*($N$3=$C$2:$C$1686)), $D$2:$D$1686),"") -> Richmond | T53: =IFERROR(INDEX($Q$2:$Q$231,MATCH(ROWS($Q$2:Q53),COUNTIF($Q$2:$Q$231,"<="&$Q$2:$Q$231),0)),0) -> 0 | U53: 158 | V53: Malartic
A54: 53 | B54: CAN | C54: AB | D54: Wetaskiwin | E54: 5500 | F54: Très-froid | G54: -33 | H54: 29 | P54: =_xlfn.IFNA(LOOKUP(2, 1/((COUNTIF($P$1:P53, $C$2:$C$1686)=0)*($N$2=$B$2:$B$1686)), $C$2:$C$1686),"") ->  | Q54: =_xlfn.IFNA(LOOKUP(2, 1/((COUNTIF($Q$1:Q53, $D$2:$D$1686)=0)*($N$3=$C$2:$C$1686)), $D$2:$D$1686),"") -> Québec | T54: =IFERROR(INDEX($Q$2:$Q$231,MATCH(ROWS($Q$2:Q54),COUNTIF($Q$2:$Q$231,"<="&$Q$2:$Q$231),0)),0) -> 0 | U54: 159 | V54: Maniwaki
A55: 54 | B55: CAN | C55: AB | D55: Whitecourt | E55: 5650 | F55: Très-froid | G55: -33 | H55: 27 | P55: =_xlfn.IFNA(LOOKUP(2, 1/((COUNTIF($P$1:P54, $C$2:$C$1686)=0)*($N$2=$B$2:$B$1686)), $C$2:$C$1686),"") ->  | Q55: =_xlfn.IFNA(LOOKUP(2, 1/((COUNTIF($Q$1:Q54, $D$2:$D$1686)=0)*($N$3=$C$2:$C$1686)), $D$2:$D$1686),"") -> Puvinrituq | T55: =IFERROR(INDEX($Q$2:$Q$231,MATCH(ROWS($Q$2:Q55),COUNTIF($Q$2:$Q$231,"<="&$Q$2:$Q$231),0)),0) -> 0 | U55: 160 | V55: Masson
A56: 55 | B56: CAN | C56: AB | D56: Wimborne | E56: 5310 | F56: Très-froid | G56: -31 | H56: 29 | P56: =_xlfn.IFNA(LOOKUP(2, 1/((COUNTIF($P$1:P55, $C$2:$C$1686)=0)*($N$2=$B$2:$B$1686)), $C$2:$C$1686),"") ->  | Q56: =_xlfn.IFNA(LOOKUP(2, 1/((COUNTIF($Q$1:Q55, $D$2:$D$1686)=0)*($N$3=$C$2:$C$1686)), $D$2:$D$1686),"") -> Port-Cartier | T56: =IFERROR(INDEX($Q$2:$Q$231,MATCH(ROWS($Q$2:Q56),COUNTIF($Q$2:$Q$231,"<="&$Q$2:$Q$231),0)),0) -> 0 | U56: 161 | V56: Matane
A57: 56 | B57: CAN | C57: BC | D57: 100 Mile House | E57: 5030 | F57: Très-froid | G57: -30 | H57: 29 | P57: =_xlfn.IFNA(LOOKUP(2, 1/((COUNTIF($P$1:P56, $C$2:$C$1686)=0)*($N$2=$B$2:$B$1686)), $C$2:$C$1686),"") ->  | Q57: =_xlfn.IFNA(LOOKUP(2, 1/((COUNTIF($Q$1:Q56, $D$2:$D$1686)=0)*($N$3=$C$2:$C$1686)), $D$2:$D$1686),"") -> Plessisville | T57: =IFERROR(INDEX($Q$2:$Q$231,MATCH(ROWS($Q$2:Q57),COUNTIF($Q$2:$Q$231,"<="&$Q$2:$Q$231),0)),0) -> 0 | U57: 162 | V57: Mont-Joli
A58: 57 | B58: CAN | C58: BC | D58: Abbotsford | E58: 2860 | F58: Marin | G58: -8 | H58: 29 | P58: =_xlfn.IFNA(LOOKUP(2, 1/((COUNTIF($P$1:P57, $C$2:$C$1686)=0)*($N$2=$B$2:$B$1686)), $C$2:$C$1686),"") ->  | Q58: =_xlfn.IFNA(LOOKUP(2, 1/((COUNTIF($Q$1:Q57, $D$2:$D$1686)=0)*($N$3=$C$2:$C$1686)), $D$2:$D$1686),"") -> Pincourt | T58: =IFERROR(INDEX($Q$2:$Q$231,MATCH(ROWS($Q$2:Q58),COUNTIF($Q$2:$Q$231,"<="&$Q$2:$Q$231),0)),0) -> 0 | U58: 163 | V58: Mont-Laurier
A59: 58 | B59: CAN | C59: BC | D59: Agassiz | E59: 2750 | F59: Froid-humide | G59: -9 | H59: 31 | P59: =_xlfn.IFNA(LOOKUP(2, 1/((COUNTIF($P$1:P58, $C$2:$C$1686)=0)*($N$2=$B$2:$B$1686)), $C$2:$C$1686),"") ->  | Q59: =_xlfn.IFNA(LOOKUP(2, 1/((COUNTIF($Q$1:Q58, $D$2:$D$1686)=0)*($N$3=$C$2:$C$1686)), $D$2:$D$1686),"") -> Pierrefonds | T59: =IFERROR(INDEX($Q$2:$Q$231,MATCH(ROWS($Q$2:Q59),COUNTIF($Q$2:$Q$231,"<="&$Q$2:$Q$231),0)),0) -> 0 | U59: 164 | V59: Montmagny
A60: 59 | B60: CAN | C60: BC | D60: Alberni | E60: 3100 | F60: Marin | G60: -5 | H60: 31 | P60: =_xlfn.IFNA(LOOKUP(2, 1/((COUNTIF($P$1:P59, $C$2:$C$1686)=0)*($N$2=$B$2:$B$1686)), $C$2:$C$1686),"") ->  | Q60: =_xlfn.IFNA(LOOKUP(2, 1/((COUNTIF($Q$1:Q59, $D$2:$D$1686)=0)*($N$3=$C$2:$C$1686)), $D$2:$D$1686),"") -> Percé | T60: =IFERROR(INDEX($Q$2:$Q$231,MATCH(ROWS($Q$2:Q60),COUNTIF($Q$2:$Q$231,"<="&$Q$2:$Q$231),0)),0) -> 0 | U60: 165 | V60: Montréal (city hall)
A61: 60 | B61: CAN | C61: BC | D61: Ashcroft | E61: 3700 | F61: Froid-sec | G61: -24 | H61: 34 | P61: =_xlfn.IFNA(LOOKUP(2, 1/((COUNTIF($P$1:P60, $C$2:$C$1686)=0)*($N$2=$B$2:$B$1686)), $C$2:$C$1686),"") ->  | Q61: =_xlfn.IFNA(LOOKUP(2, 1/((COUNTIF($Q$1:Q60, $D$2:$D$1686)=0)*($N$3=$C$2:$C$1686)), $D$2:$D$1686),"") -> Outremont | T61: =IFERROR(INDEX($Q$2:$Q$231,MATCH(ROWS($Q$2:Q61),COUNTIF($Q$2:$Q$231,"<="&$Q$2:$Q$231),0)),0) -> 0 | U61: 166 | V61: Montréal-Est
A62: 61 | B62: CAN | C62: BC | D62: Bamfield | E62: 3080 | F62: Marin | G62: -2 | H62: 23 | P62: =_xlfn.IFNA(LOOKUP(2, 1/((COUNTIF($P$1:P61, $C$2:$C$1686)=0)*($N$2=$B$2:$B$1686)), $C$2:$C$1686),"") ->  | Q62: =_xlfn.IFNA(LOOKUP(2, 1/((COUNTIF($Q$1:Q61, $D$2:$D$1686)=0)*($N$3=$C$2:$C$1686)), $D$2:$D$1686),"") -> Noranda | T62: =IFERROR(INDEX($Q$2:$Q$231,MATCH(ROWS($Q$2:Q62),COUNTIF($Q$2:$Q$231,"<="&$Q$2:$Q$231),0)),0) -> 0 | U62: 167 | V62: Montréal-Nord
A63: 62 | B63: CAN | C63: BC | D63: Beatton River | E63: 6300 | F63: Très-froid | G63: -37 | H63: 26 | P63: =_xlfn.IFNA(LOOKUP(2, 1/((COUNTIF($P$1:P62, $C$2:$C$1686)=0)*($N$2=$B$2:$B$1686)), $C$2:$C$1686),"") ->  | Q63: =_xlfn.IFNA(LOOKUP(2, 1/((COUNTIF($Q$1:Q62, $D$2:$D$1686)=0)*($N$3=$C$2:$C$1686)), $D$2:$D$1686),"") -> Nitchequon | T63: =IFERROR(INDEX($Q$2:$Q$231,MATCH(ROWS($Q$2:Q63),COUNTIF($Q$2:$Q$231,"<="&$Q$2:$Q$231),0)),0) -> 0 | U63: 168 | V63: Nicolet (Gentilly)
A64: 63 | B64: CAN | C64: BC | D64: Bella Bella | E64: 3180 | F64: Marin | G64: -5 | H64: 23 | P64: =_xlfn.IFNA(LOOKUP(2, 1/((COUNTIF($P$1:P63, $C$2:$C$1686)=0)*($N$2=$B$2:$B$1686)), $C$2:$C$1686),"") ->  | Q64: =_xlfn.IFNA(LOOKUP(2, 1/((COUNTIF($Q$1:Q63, $D$2:$D$1686)=0)*($N$3=$C$2:$C$1686)), $D$2:$D$1686),"") -> Nicolet (Gentilly) | T64: =IFERROR(INDEX($Q$2:$Q$231,MATCH(ROWS($Q$2:Q64),COUNTIF($Q$2:$Q$231,"<="&$Q$2:$Q$231),0)),0) -> 0 | U64: 169 | V64: Nitchequon
A65: 64 | B65: CAN | C65: BC | D65: Bella Coola | E65: 3560 | F65: Froid-humide | G65: -14 | H65: 27 | P65: =_xlfn.IFNA(LOOKUP(2, 1/((COUNTIF($P$1:P64, $C$2:$C$1686)=0)*($N$2=$B$2:$B$1686)), $C$2:$C$1686),"") ->  | Q65: =_xlfn.IFNA(LOOKUP(2, 1/((COUNTIF($Q$1:Q64, $D$2:$D$1686)=0)*($N$3=$C$2:$C$1686)), $D$2:$D$1686),"") -> Montréal-Nord | T65: =IFERROR(INDEX($Q$2:$Q$231,MATCH(ROWS($Q$2:Q65),COUNTIF($Q$2:$Q$231,"<="&$Q$2:$Q$231),0)),0) -> 0 | U65: 170 | V65: Noranda
A66: 65 | B66: CAN | C66: BC | D66: Burnaby (Simon Fraser Univ.) | E66: 3100 | F66: Marin | G66: -7 | H66: 25 | Q66: =_xlfn.IFNA(LOOKUP(2, 1/((COUNTIF($Q$1:Q65, $D$2:$D$1686)=0)*($N$3=$C$2:$C$1686)), $D$2:$D$1686),"") -> Montréal-Est | T66: =IFERROR(INDEX($Q$2:$Q$231,MATCH(ROWS($Q$2:Q66),COUNTIF($Q$2:$Q$231,"<="&$Q$2:$Q$231),0)),0) -> 0 | U66: 171 | V66: Outremont
A67: 66 | B67: CAN | C67: BC | D67: Burns Lake | E67: 5450 | F67: Très-froid | G67: -31 | H67: 26 | Q67: =_xlfn.IFNA(LOOKUP(2, 1/((COUNTIF($Q$1:Q66, $D$2:$D$1686)=0)*($N$3=$C$2:$C$1686)), $D$2:$D$1686),"") -> Montréal (city hall) | T67: =IFERROR(INDEX($Q$2:$Q$231,MATCH(ROWS($Q$2:Q67),COUNTIF($Q$2:$Q$231,"<="&$Q$2:$Q$231),0)),0) -> 0 | U67: 172 | V67: =IFERROR(INDEX($T$2:$T$231,U67,1),"") -> Percé
A68: 67 | B68: CAN | C68: BC | D68: Cache Creek | E68: 3700 | F68: Froid-sec | G68: -24 | H68: 34 | Q68: =_xlfn.IFNA(LOOKUP(2, 1/((COUNTIF($Q$1:Q67, $D$2:$D$1686)=0)*($N$3=$C$2:$C$1686)), $D$2:$D$1686),"") -> Montmagny | T68: =IFERROR(INDEX($Q$2:$Q$231,MATCH(ROWS($Q$2:Q68),COUNTIF($Q$2:$Q$231,"<="&$Q$2:$Q$231),0)),0) -> 0 | U68: =U67+1 -> 173 | V68: Pierrefonds
A69: 68 | B69: CAN | C69: BC | D69: Campbell River | E69: 3000 | F69: Marin | G69: -5 | H69: 26 | Q69: =_xlfn.IFNA(LOOKUP(2, 1/((COUNTIF($Q$1:Q68, $D$2:$D$1686)=0)*($N$3=$C$2:$C$1686)), $D$2:$D$1686),"") -> Mont-Laurier | T69: =IFERROR(INDEX($Q$2:$Q$231,MATCH(ROWS($Q$2:Q69),COUNTIF($Q$2:$Q$231,"<="&$Q$2:$Q$231),0)),0) -> 0 | U69: 174 | V69: Pincourt
A70: 69 | B70: CAN | C70: BC | D70: Carmi | E70: 4750 | F70: Très-froid | G70: -24 | H70: 31 | Q70: =_xlfn.IFNA(LOOKUP(2, 1/((COUNTIF($Q$1:Q69, $D$2:$D$1686)=0)*($N$3=$C$2:$C$1686)), $D$2:$D$1686),"") -> Mont-Joli | T70: =IFERROR(INDEX($Q$2:$Q$231,MATCH(ROWS($Q$2:Q70),COUNTIF($Q$2:$Q$231,"<="&$Q$2:$Q$231),0)),0) -> 0 | U70: 175 | V70: Plessisville
A71: 70 | B71: CAN | C71: BC | D71: Castlegar | E71: 3580 | F71: Froid-humide | G71: -18 | H71: 32 | Q71: =_xlfn.IFNA(LOOKUP(2, 1/((COUNTIF($Q$1:Q70, $D$2:$D$1686)=0)*($N$3=$C$2:$C$1686)), $D$2:$D$1686),"") -> Matane | T71: =IFERROR(INDEX($Q$2:$Q$231,MATCH(ROWS($Q$2:Q71),COUNTIF($Q$2:$Q$231,"<="&$Q$2:$Q$231),0)),0) -> 0 | U71: 176 | V71: Port-Cartier
A72: 71 | B72: CAN | C72: BC | D72: Chetwynd | E72: 5500 | F72: Très-froid | G72: -35 | H72: 27 | Q72: =_xlfn.IFNA(LOOKUP(2, 1/((COUNTIF($Q$1:Q71, $D$2:$D$1686)=0)*($N$3=$C$2:$C$1686)), $D$2:$D$1686),"") -> Masson | T72: =IFERROR(INDEX($Q$2:$Q$231,MATCH(ROWS($Q$2:Q72),COUNTIF($Q$2:$Q$231,"<="&$Q$2:$Q$231),0)),0) -> 0 | U72: 177 | V72: Puvinrituq
A73: 72 | B73: CAN | C73: BC | D73: Chilliwack | E73: 2780 | F73: Froid-humide | G73: -9 | H73: 30 | Q73: =_xlfn.IFNA(LOOKUP(2, 1/((COUNTIF($Q$1:Q72, $D$2:$D$1686)=0)*($N$3=$C$2:$C$1686)), $D$2:$D$1686),"") -> Maniwaki | T73: =IFERROR(INDEX($Q$2:$Q$231,MATCH(ROWS($Q$2:Q73),COUNTIF($Q$2:$Q$231,"<="&$Q$2:$Q$231),0)),0) -> 0 | U73: 178 | V73: Québec
A74: 73 | B74: CAN | C74: BC | D74: Cloverdale | E74: 2700 | F74: Marin | G74: -8 | H74: 29 | Q74: =_xlfn.IFNA(LOOKUP(2, 1/((COUNTIF($Q$1:Q73, $D$2:$D$1686)=0)*($N$3=$C$2:$C$1686)), $D$2:$D$1686),"") -> Malartic | T74: =IFERROR(INDEX($Q$2:$Q$231,MATCH(ROWS($Q$2:Q74),COUNTIF($Q$2:$Q$231,"<="&$Q$2:$Q$231),0)),0) -> 0 | U74: 179 | V74: Richmond
A75: 74 | B75: CAN | C75: BC | D75: Comox | E75: 3100 | F75: Marin | G75: -7 | H75: 27 | Q75: =_xlfn.IFNA(LOOKUP(2, 1/((COUNTIF($Q$1:Q74, $D$2:$D$1686)=0)*($N$3=$C$2:$C$1686)), $D$2:$D$1686),"") -> Magog | T75: =IFERROR(INDEX($Q$2:$Q$231,MATCH(ROWS($Q$2:Q75),COUNTIF($Q$2:$Q$231,"<="&$Q$2:$Q$231),0)),0) -> 0 | U75: 180 | V75: Rimouski
A76: 75 | B76: CAN | C76: BC | D76: Courtenay | E76: 3100 | F76: Marin | G76: -7 | H76: 28 | Q76: =_xlfn.IFNA(LOOKUP(2, 1/((COUNTIF($Q$1:Q75, $D$2:$D$1686)=0)*($N$3=$C$2:$C$1686)), $D$2:$D$1686),"") -> Louiseville | T76: =IFERROR(INDEX($Q$2:$Q$231,MATCH(ROWS($Q$2:Q76),COUNTIF($Q$2:$Q$231,"<="&$Q$2:$Q$231),0)),0) -> 0 | U76: 181 | V76: Rivière-du-Loup
A77: 76 | B77: CAN | C77: BC | D77: Cranbrook | E77: 4400 | F77: Froid-sec | G77: -26 | H77: 32 | Q77: =_xlfn.IFNA(LOOKUP(2, 1/((COUNTIF($Q$1:Q76, $D$2:$D$1686)=0)*($N$3=$C$2:$C$1686)), $D$2:$D$1686),"") -> Loretteville | T77: =IFERROR(INDEX($Q$2:$Q$231,MATCH(ROWS($Q$2:Q77),COUNTIF($Q$2:$Q$231,"<="&$Q$2:$Q$231),0)),0) -> 0 | U77: 182 | V77: Roberval
A78: 77 | B78: CAN | C78: BC | D78: Crescent Valley | E78: 3650 | F78: Froid-humide | G78: -18 | H78: 31 | Q78: =_xlfn.IFNA(LOOKUP(2, 1/((COUNTIF($Q$1:Q77, $D$2:$D$1686)=0)*($N$3=$C$2:$C$1686)), $D$2:$D$1686),"") -> Lévis | T78: =IFERROR(INDEX($Q$2:$Q$231,MATCH(ROWS($Q$2:Q78),COUNTIF($Q$2:$Q$231,"<="&$Q$2:$Q$231),0)),0) -> 0 | U78: 183 | V78: Rock-Island
A79: 78 | B79: CAN | C79: BC | D79: Crofton | E79: 2880 | F79: Marin | G79: -4 | H79: 28 | Q79: =_xlfn.IFNA(LOOKUP(2, 1/((COUNTIF($Q$1:Q78, $D$2:$D$1686)=0)*($N$3=$C$2:$C$1686)), $D$2:$D$1686),"") -> Léry | T79: =IFERROR(INDEX($Q$2:$Q$231,MATCH(ROWS($Q$2:Q79),COUNTIF($Q$2:$Q$231,"<="&$Q$2:$Q$231),0)),0) -> 0 | U79: 184 | V79: Rosemère
A80: 79 | B80: CAN | C80: BC | D80: Dawson Creek | E80: 5900 | F80: Très-froid | G80: -38 | H80: 27 | Q80: =_xlfn.IFNA(LOOKUP(2, 1/((COUNTIF($Q$1:Q79, $D$2:$D$1686)=0)*($N$3=$C$2:$C$1686)), $D$2:$D$1686),"") -> Lennoxville | T80: =IFERROR(INDEX($Q$2:$Q$231,MATCH(ROWS($Q$2:Q80),COUNTIF($Q$2:$Q$231,"<="&$Q$2:$Q$231),0)),0) -> 0 | U80: 185 | V80: Rouyn
A81: 80 | B81: CAN | C81: BC | D81: Dease Lake | E81: 6730 | F81: Subarctique | G81: -37 | H81: 24 | Q81: =_xlfn.IFNA(LOOKUP(2, 1/((COUNTIF($Q$1:Q80, $D$2:$D$1686)=0)*($N$3=$C$2:$C$1686)), $D$2:$D$1686),"") -> Laval | T81: =IFERROR(INDEX($Q$2:$Q$231,MATCH(ROWS($Q$2:Q81),COUNTIF($Q$2:$Q$231,"<="&$Q$2:$Q$231),0)),0) -> 0 | U81: 186 | V81: Saguenay
A82: 81 | B82: CAN | C82: BC | D82: Dog Creek | E82: 4800 | F82: Très-froid | G82: -28 | H82: 29 | Q82: =_xlfn.IFNA(LOOKUP(2, 1/((COUNTIF($Q$1:Q81, $D$2:$D$1686)=0)*($N$3=$C$2:$C$1686)), $D$2:$D$1686),"") -> La-Tuque | T82: =IFERROR(INDEX($Q$2:$Q$231,MATCH(ROWS($Q$2:Q82),COUNTIF($Q$2:$Q$231,"<="&$Q$2:$Q$231),0)),0) -> 0 | U82: 187 | V82: Saguenay (Bagotville)
A83: 82 | B83: CAN | C83: BC | D83: Duncan | E83: 2980 | F83: Marin | G83: -6 | H83: 28 | Q83: =_xlfn.IFNA(LOOKUP(2, 1/((COUNTIF($Q$1:Q82, $D$2:$D$1686)=0)*($N$3=$C$2:$C$1686)), $D$2:$D$1686),"") -> La-Malbaie | T83: =IFERROR(INDEX($Q$2:$Q$231,MATCH(ROWS($Q$2:Q83),COUNTIF($Q$2:$Q$231,"<="&$Q$2:$Q$231),0)),0) -> 0 | U83: 188 | V83: Saguenay (Jonquière)
A84: 83 | B84: CAN | C84: BC | D84: Elko | E84: 4600 | F84: Très-froid | G84: -28 | H84: 30 | Q84: =_xlfn.IFNA(LOOKUP(2, 1/((COUNTIF($Q$1:Q83, $D$2:$D$1686)=0)*($N$3=$C$2:$C$1686)), $D$2:$D$1686),"") -> Lac-Mégantic | T84: =IFERROR(INDEX($Q$2:$Q$231,MATCH(ROWS($Q$2:Q84),COUNTIF($Q$2:$Q$231,"<="&$Q$2:$Q$231),0)),0) -> 0 | U84: 189 | V84: Saguenay (Kénogami)
A85: 84 | B85: CAN | C85: BC | D85: Fernie | E85: 4750 | F85: Très-froid | G85: -27 | H85: 30 | Q85: =_xlfn.IFNA(LOOKUP(2, 1/((COUNTIF($Q$1:Q84, $D$2:$D$1686)=0)*($N$3=$C$2:$C$1686)), $D$2:$D$1686),"") -> Lachute | T85: =IFERROR(INDEX($Q$2:$Q$231,MATCH(ROWS($Q$2:Q85),COUNTIF($Q$2:$Q$231,"<="&$Q$2:$Q$231),0)),0) -> 0 | U85: 190 | V85: Saint-Eustache
A86: 85 | B86: CAN | C86: BC | D86: Fort Nelson | E86: 6710 | F86: Subarctique | G86: -39 | H86: 28 | Q86: =_xlfn.IFNA(LOOKUP(2, 1/((COUNTIF($Q$1:Q85, $D$2:$D$1686)=0)*($N$3=$C$2:$C$1686)), $D$2:$D$1686),"") -> La Pocatière | T86: =IFERROR(INDEX($Q$2:$Q$231,MATCH(ROWS($Q$2:Q86),COUNTIF($Q$2:$Q$231,"<="&$Q$2:$Q$231),0)),0) -> 0 | U86: 191 | V86: Saint-Jean-sur-Richelieu
A87: 86 | B87: CAN | C87: BC | D87: Fort St. John | E87: 5750 | F87: Très-froid | G87: -35 | H87: 26 | Q87: =_xlfn.IFNA(LOOKUP(2, 1/((COUNTIF($Q$1:Q86, $D$2:$D$1686)=0)*($N$3=$C$2:$C$1686)), $D$2:$D$1686),"") -> Kuujjuarapik | T87: =IFERROR(INDEX($Q$2:$Q$231,MATCH(ROWS($Q$2:Q87),COUNTIF($Q$2:$Q$231,"<="&$Q$2:$Q$231),0)),0) -> 0 | U87: 192 | V87: Salaberry-de-Valleyfield
A88: 87 | B88: CAN | C88: BC | D88: Glacier | E88: 5800 | F88: Très-froid | G88: -27 | H88: 27 | Q88: =_xlfn.IFNA(LOOKUP(2, 1/((COUNTIF($Q$1:Q87, $D$2:$D$1686)=0)*($N$3=$C$2:$C$1686)), $D$2:$D$1686),"") -> Kuujjuaq | T88: =IFERROR(INDEX($Q$2:$Q$231,MATCH(ROWS($Q$2:Q88),COUNTIF($Q$2:$Q$231,"<="&$Q$2:$Q$231),0)),0) -> 0 | U88: 193 | V88: Schefferville
A89: 88 | B89: CAN | C89: BC | D89: Gold River | E89: 3230 | F89: Marin | G89: -8 | H89: 31 | Q89: =_xlfn.IFNA(LOOKUP(2, 1/((COUNTIF($Q$1:Q88, $D$2:$D$1686)=0)*($N$3=$C$2:$C$1686)), $D$2:$D$1686),"") -> Joliette | T89: =IFERROR(INDEX($Q$2:$Q$231,MATCH(ROWS($Q$2:Q89),COUNTIF($Q$2:$Q$231,"<="&$Q$2:$Q$231),0)),0) -> 0 | U89: 194 | V89: Senneterre
A90: 89 | B90: CAN | C90: BC | D90: Golden | E90: 4750 | F90: Très-froid | G90: -27 | H90: 30 | Q90: =_xlfn.IFNA(LOOKUP(2, 1/((COUNTIF($Q$1:Q89, $D$2:$D$1686)=0)*($N$3=$C$2:$C$1686)), $D$2:$D$1686),"") -> Inukjuak | T90: =IFERROR(INDEX($Q$2:$Q$231,MATCH(ROWS($Q$2:Q90),COUNTIF($Q$2:$Q$231,"<="&$Q$2:$Q$231),0)),0) -> 0 | U90: 195 | V90: Sept-Îles
A91: 90 | B91: CAN | C91: BC | D91: Grand Forks | E91: 3820 | F91: Froid-sec | G91: -19 | H91: 34 | Q91: =_xlfn.IFNA(LOOKUP(2, 1/((COUNTIF($Q$1:Q90, $D$2:$D$1686)=0)*($N$3=$C$2:$C$1686)), $D$2:$D$1686),"") -> Iberville | T91: =IFERROR(INDEX($Q$2:$Q$231,MATCH(ROWS($Q$2:Q91),COUNTIF($Q$2:$Q$231,"<="&$Q$2:$Q$231),0)),0) -> 0 | U91: 196 | V91: Shawinigan
A92: 91 | B92: CAN | C92: BC | D92: Greenwood | E92: 4100 | F92: Froid-sec | G92: -20 | H92: 34 | Q92: =_xlfn.IFNA(LOOKUP(2, 1/((COUNTIF($Q$1:Q91, $D$2:$D$1686)=0)*($N$3=$C$2:$C$1686)), $D$2:$D$1686),"") -> Hull | T92: =IFERROR(INDEX($Q$2:$Q$231,MATCH(ROWS($Q$2:Q92),COUNTIF($Q$2:$Q$231,"<="&$Q$2:$Q$231),0)),0) -> 0 | U92: 197 | V92: Shawville
A93: 92 | B93: CAN | C93: BC | D93: Haney | E93: 2840 | F93: Froid-humide | G93: -9 | H93: 30 | Q93: =_xlfn.IFNA(LOOKUP(2, 1/((COUNTIF($Q$1:Q92, $D$2:$D$1686)=0)*($N$3=$C$2:$C$1686)), $D$2:$D$1686),"") -> Hemmingford | T93: =IFERROR(INDEX($Q$2:$Q$231,MATCH(ROWS($Q$2:Q93),COUNTIF($Q$2:$Q$231,"<="&$Q$2:$Q$231),0)),0) -> 0 | U93: 198 | V93: Sherbrooke
A94: 93 | B94: CAN | C94: BC | D94: Hope | E94: 3000 | F94: Froid-humide | G94: -13 | H94: 31 | Q94: =_xlfn.IFNA(LOOKUP(2, 1/((COUNTIF($Q$1:Q93, $D$2:$D$1686)=0)*($N$3=$C$2:$C$1686)), $D$2:$D$1686),"") -> Havre-St-Pierre | T94: =IFERROR(INDEX($Q$2:$Q$231,MATCH(ROWS($Q$2:Q94),COUNTIF($Q$2:$Q$231,"<="&$Q$2:$Q$231),0)),0) -> 0 | U94: 199 | V94: Sillery
A95: 94 | B95: CAN | C95: BC | D95: Jordan River | E95: 2900 | F95: Marin | G95: -1 | H95: 22 | Q95: =_xlfn.IFNA(LOOKUP(2, 1/((COUNTIF($Q$1:Q94, $D$2:$D$1686)=0)*($N$3=$C$2:$C$1686)), $D$2:$D$1686),"") -> Harrington-Harbour | T95: =IFERROR(INDEX($Q$2:$Q$231,MATCH(ROWS($Q$2:Q95),COUNTIF($Q$2:$Q$231,"<="&$Q$2:$Q$231),0)),0) -> 0 | U95: 200 | V95: Sorel
A96: 95 | B96: CAN | C96: BC | D96: Kamloops | E96: 3450 | F96: Froid-sec | G96: -23 | H96: 34 | Q96: =_xlfn.IFNA(LOOKUP(2, 1/((COUNTIF($Q$1:Q95, $D$2:$D$1686)=0)*($N$3=$C$2:$C$1686)), $D$2:$D$1686),"") -> Granby | T96: =IFERROR(INDEX($Q$2:$Q$231,MATCH(ROWS($Q$2:Q96),COUNTIF($Q$2:$Q$231,"<="&$Q$2:$Q$231),0)),0) -> 0 | U96: 201 | V96: Ste-Agathe-des-Monts
A97: 96 | B97: CAN | C97: BC | D97: Kaslo | E97: 3830 | F97: Froid-sec | G97: -17 | H97: 30 | Q97: =_xlfn.IFNA(LOOKUP(2, 1/((COUNTIF($Q$1:Q96, $D$2:$D$1686)=0)*($N$3=$C$2:$C$1686)), $D$2:$D$1686),"") -> Gracefield | T97: =IFERROR(INDEX($Q$2:$Q$231,MATCH(ROWS($Q$2:Q97),COUNTIF($Q$2:$Q$231,"<="&$Q$2:$Q$231),0)),0) -> 0 | U97: 202 | V97: Ste-Anne-de-Bellevue
A98: 97 | B98: CAN | C98: BC | D98: Kelowna | E98: 3400 | F98: Froid-sec | G98: -17 | H98: 33 | Q98: =_xlfn.IFNA(LOOKUP(2, 1/((COUNTIF($Q$1:Q97, $D$2:$D$1686)=0)*($N$3=$C$2:$C$1686)), $D$2:$D$1686),"") -> Gatineau | T98: =IFERROR(INDEX($Q$2:$Q$231,MATCH(ROWS($Q$2:Q98),COUNTIF($Q$2:$Q$231,"<="&$Q$2:$Q$231),0)),0) -> 0 | U98: 203 | V98: Ste-Foy
A99: 98 | B99: CAN | C99: BC | D99: Kimberley | E99: 4650 | F99: Très-froid | G99: -25 | H99: 31 | Q99: =_xlfn.IFNA(LOOKUP(2, 1/((COUNTIF($Q$1:Q98, $D$2:$D$1686)=0)*($N$3=$C$2:$C$1686)), $D$2:$D$1686),"") -> Gaspé | T99: =IFERROR(INDEX($Q$2:$Q$231,MATCH(ROWS($Q$2:Q99),COUNTIF($Q$2:$Q$231,"<="&$Q$2:$Q$231),0)),0) -> 0 | U99: 204 | V99: St-Félicien
A100: 99 | B100: CAN | C100: BC | D100: Kitimat Plant | E100: 3750 | F100: Froid-sec | G100: -16 | H100: 25 | Q100: =_xlfn.IFNA(LOOKUP(2, 1/((COUNTIF($Q$1:Q99, $D$2:$D$1686)=0)*($N$3=$C$2:$C$1686)), $D$2:$D$1686),"") -> Gagnon | T100: =IFERROR(INDEX($Q$2:$Q$231,MATCH(ROWS($Q$2:Q100),COUNTIF($Q$2:$Q$231,"<="&$Q$2:$Q$231),0)),0) -> 0 | U100: 205 | V100: St-Georges-de-Cacouna
A101: 100 | B101: CAN | C101: BC | D101: Kitimat Townsite | E101: 3900 | F101: Froid-sec | G101: -16 | H101: 24 | Q101: =_xlfn.IFNA(LOOKUP(2, 1/((COUNTIF($Q$1:Q100, $D$2:$D$1686)=0)*($N$3=$C$2:$C$1686)), $D$2:$D$1686),"") -> Fort-Coulonge | T101: =IFERROR(INDEX($Q$2:$Q$231,MATCH(ROWS($Q$2:Q101),COUNTIF($Q$2:$Q$231,"<="&$Q$2:$Q$231),0)),0) -> 0 | U101: 206 | V101: St-Hubert
A102: 101 | B102: CAN | C102: BC | D102: Ladner | E102: 2600 | F102: Marin | G102: -6 | H102: 27 | Q102: =_xlfn.IFNA(LOOKUP(2, 1/((COUNTIF($Q$1:Q101, $D$2:$D$1686)=0)*($N$3=$C$2:$C$1686)), $D$2:$D$1686),"") -> Farnham | T102: =IFERROR(INDEX($Q$2:$Q$231,MATCH(ROWS($Q$2:Q102),COUNTIF($Q$2:$Q$231,"<="&$Q$2:$Q$231),0)),0) -> 0 | U102: 207 | V102: St-Hubert-de-Rivière-du-Loup
A103: 102 | B103: CAN | C103: BC | D103: Ladysmith | E103: 3000 | F103: Marin | G103: -7 | H103: 27 | Q103: =_xlfn.IFNA(LOOKUP(2, 1/((COUNTIF($Q$1:Q102, $D$2:$D$1686)=0)*($N$3=$C$2:$C$1686)), $D$2:$D$1686),"") -> Drummondville | T103: =IFERROR(INDEX($Q$2:$Q$231,MATCH(ROWS($Q$2:Q103),COUNTIF($Q$2:$Q$231,"<="&$Q$2:$Q$231),0)),0) -> 0 | U103: 208 | V103: St-Hyacinthe
A104: 103 | B104: CAN | C104: BC | D104: Langford | E104: 2750 | F104: Marin | G104: -4 | H104: 27 | Q104: =_xlfn.IFNA(LOOKUP(2, 1/((COUNTIF($Q$1:Q103, $D$2:$D$1686)=0)*($N$3=$C$2:$C$1686)), $D$2:$D$1686),"") -> Dorval | T104: =IFERROR(INDEX($Q$2:$Q$231,MATCH(ROWS($Q$2:Q104),COUNTIF($Q$2:$Q$231,"<="&$Q$2:$Q$231),0)),0) -> 0 | U104: 209 | V104: St-Jérôme
A105: 104 | B105: CAN | C105: BC | D105: Langley | E105: 2700 | F105: Marin | G105: -8 | H105: 29 | Q105: =_xlfn.IFNA(LOOKUP(2, 1/((COUNTIF($Q$1:Q104, $D$2:$D$1686)=0)*($N$3=$C$2:$C$1686)), $D$2:$D$1686),"") -> Dolbeau | T105: =IFERROR(INDEX($Q$2:$Q$231,MATCH(ROWS($Q$2:Q105),COUNTIF($Q$2:$Q$231,"<="&$Q$2:$Q$231),0)),0) -> 0 | U105: 210 | V105: St-Jovite
A106: 105 | B106: CAN | C106: BC | D106: Lillooet | E106: 3400 | F106: Froid-sec | G106: -21 | H106: 34 | Q106: =_xlfn.IFNA(LOOKUP(2, 1/((COUNTIF($Q$1:Q105, $D$2:$D$1686)=0)*($N$3=$C$2:$C$1686)), $D$2:$D$1686),"") -> Deux-Montagnes | T106: =IFERROR(INDEX($Q$2:$Q$231,MATCH(ROWS($Q$2:Q106),COUNTIF($Q$2:$Q$231,"<="&$Q$2:$Q$231),0)),0) -> 0 | U106: 211 | V106: St-Lambert
A107: 106 | B107: CAN | C107: BC | D107: Lytton | E107: 3300 | F107: Froid-sec | G107: -17 | H107: 35 | Q107: =_xlfn.IFNA(LOOKUP(2, 1/((COUNTIF($Q$1:Q106, $D$2:$D$1686)=0)*($N$3=$C$2:$C$1686)), $D$2:$D$1686),"") -> Cowansville | T107: =IFERROR(INDEX($Q$2:$Q$231,MATCH(ROWS($Q$2:Q107),COUNTIF($Q$2:$Q$231,"<="&$Q$2:$Q$231),0)),0) -> Acton-Vale | U107: 212 | V107: St-Laurent
A108: 107 | B108: CAN | C108: BC | D108: Mackenzie | E108: 5550 | F108: Très-froid | G108: -34 | H108: 27 | Q108: =_xlfn.IFNA(LOOKUP(2, 1/((COUNTIF($Q$1:Q107, $D$2:$D$1686)=0)*($N$3=$C$2:$C$1686)), $D$2:$D$1686),"") -> Contrecoeur | T108: =IFERROR(INDEX($Q$2:$Q$231,MATCH(ROWS($Q$2:Q108),COUNTIF($Q$2:$Q$231,"<="&$Q$2:$Q$231),0)),0) -> Alma | U108: 213 | V108: St-Lazare-Hudson
A109: 108 | B109: CAN | C109: BC | D109: Masset | E109: 3700 | F109: Marin | G109: -5 | H109: 17 | Q109: =_xlfn.IFNA(LOOKUP(2, 1/((COUNTIF($Q$1:Q108, $D$2:$D$1686)=0)*($N$3=$C$2:$C$1686)), $D$2:$D$1686),"") -> Coaticook | T109: =IFERROR(INDEX($Q$2:$Q$231,MATCH(ROWS($Q$2:Q109),COUNTIF($Q$2:$Q$231,"<="&$Q$2:$Q$231),0)),0) -> Amos | U109: 214 | V109: St-Nicolas
A110: 109 | B110: CAN | C110: BC | D110: McBride | E110: 4980 | F110: Très-froid | G110: -29 | H110: 29 | Q110: =_xlfn.IFNA(LOOKUP(2, 1/((COUNTIF($Q$1:Q109, $D$2:$D$1686)=0)*($N$3=$C$2:$C$1686)), $D$2:$D$1686),"") -> Chambly | T110: =IFERROR(INDEX($Q$2:$Q$231,MATCH(ROWS($Q$2:Q110),COUNTIF($Q$2:$Q$231,"<="&$Q$2:$Q$231),0)),0) -> Ancienne-Lorette | U110: 215 | V110: Sutton
A111: 110 | B111: CAN | C111: BC | D111: McLeod Lake | E111: 5450 | F111: Très-froid | G111: -35 | H111: 27 | Q111: =_xlfn.IFNA(LOOKUP(2, 1/((COUNTIF($Q$1:Q110, $D$2:$D$1686)=0)*($N$3=$C$2:$C$1686)), $D$2:$D$1686),"") -> Campbell's Bay | T111: =IFERROR(INDEX($Q$2:$Q$231,MATCH(ROWS($Q$2:Q111),COUNTIF($Q$2:$Q$231,"<="&$Q$2:$Q$231),0)),0) -> Asbestos | U111: 216 | V111: Tadoussac
A112: 111 | B112: CAN | C112: BC | D112: Merritt | E112: 3900 | F112: Froid-sec | G112: -24 | H112: 34 | Q112: =_xlfn.IFNA(LOOKUP(2, 1/((COUNTIF($Q$1:Q111, $D$2:$D$1686)=0)*($N$3=$C$2:$C$1686)), $D$2:$D$1686),"") -> Buckingham | T112: =IFERROR(INDEX($Q$2:$Q$231,MATCH(ROWS($Q$2:Q112),COUNTIF($Q$2:$Q$231,"<="&$Q$2:$Q$231),0)),0) -> Aylmer | U112: 217 | V112: Témiscaming
A113: 112 | B113: CAN | C113: BC | D113: Mission City | E113: 2850 | F113: Froid-humide | G113: -9 | H113: 30 | Q113: =_xlfn.IFNA(LOOKUP(2, 1/((COUNTIF($Q$1:Q112, $D$2:$D$1686)=0)*($N$3=$C$2:$C$1686)), $D$2:$D$1686),"") -> Brossard | T113: =IFERROR(INDEX($Q$2:$Q$231,MATCH(ROWS($Q$2:Q113),COUNTIF($Q$2:$Q$231,"<="&$Q$2:$Q$231),0)),0) -> Baie-Comeau | U113: 218 | V113: Terrebonne
A114: 113 | B114: CAN | C114: BC | D114: Montrose | E114: 3600 | F114: Froid-humide | G114: -16 | H114: 32 | Q114: =_xlfn.IFNA(LOOKUP(2, 1/((COUNTIF($Q$1:Q113, $D$2:$D$1686)=0)*($N$3=$C$2:$C$1686)), $D$2:$D$1686),"") -> Brome | T114: =IFERROR(INDEX($Q$2:$Q$231,MATCH(ROWS($Q$2:Q114),COUNTIF($Q$2:$Q$231,"<="&$Q$2:$Q$231),0)),0) -> Baie-Saint-Paul | U114: 219 | V114: Thetford Mines
A115: 114 | B115: CAN | C115: BC | D115: Nakusp | E115: 3560 | F115: Froid-humide | G115: -20 | H115: 31 | Q115: =_xlfn.IFNA(LOOKUP(2, 1/((COUNTIF($Q$1:Q114, $D$2:$D$1686)=0)*($N$3=$C$2:$C$1686)), $D$2:$D$1686),"") -> Beloeil | T115: =IFERROR(INDEX($Q$2:$Q$231,MATCH(ROWS($Q$2:Q115),COUNTIF($Q$2:$Q$231,"<="&$Q$2:$Q$231),0)),0) -> Beaconsfield | U115: 220 | V115: Thurso
A116: 115 | B116: CAN | C116: BC | D116: Nanaimo | E116: 3000 | F116: Marin | G116: -6 | H116: 27 | Q116: =_xlfn.IFNA(LOOKUP(2, 1/((COUNTIF($Q$1:Q115, $D$2:$D$1686)=0)*($N$3=$C$2:$C$1686)), $D$2:$D$1686),"") -> Bedford | T116: =IFERROR(INDEX($Q$2:$Q$231,MATCH(ROWS($Q$2:Q116),COUNTIF($Q$2:$Q$231,"<="&$Q$2:$Q$231),0)),0) -> Beauport | U116: 221 | V116: Trois-Rivières
A117: 116 | B117: CAN | C117: BC | D117: Nelson | E117: 3500 | F117: Froid-humide | G117: -18 | H117: 31 | Q117: =_xlfn.IFNA(LOOKUP(2, 1/((COUNTIF($Q$1:Q116, $D$2:$D$1686)=0)*($N$3=$C$2:$C$1686)), $D$2:$D$1686),"") -> Beauport | T117: =IFERROR(INDEX($Q$2:$Q$231,MATCH(ROWS($Q$2:Q117),COUNTIF($Q$2:$Q$231,"<="&$Q$2:$Q$231),0)),0) -> Bedford | U117: 222 | V117: Val-d'Or
A118: 117 | B118: CAN | C118: BC | D118: New Westminster | E118: 2800 | F118: Marin | G118: -8 | H118: 29 | Q118: =_xlfn.IFNA(LOOKUP(2, 1/((COUNTIF($Q$1:Q117, $D$2:$D$1686)=0)*($N$3=$C$2:$C$1686)), $D$2:$D$1686),"") -> Beaconsfield | T118: =IFERROR(INDEX($Q$2:$Q$231,MATCH(ROWS($Q$2:Q118),COUNTIF($Q$2:$Q$231,"<="&$Q$2:$Q$231),0)),0) -> Beloeil | U118: 223 | V118: Varennes
A119: 118 | B119: CAN | C119: BC | D119: North Vancouver | E119: 2910 | F119: Marin | G119: -7 | H119: 26 | Q119: =_xlfn.IFNA(LOOKUP(2, 1/((COUNTIF($Q$1:Q118, $D$2:$D$1686)=0)*($N$3=$C$2:$C$1686)), $D$2:$D$1686),"") -> Baie-Saint-Paul | T119: =IFERROR(INDEX($Q$2:$Q$231,MATCH(ROWS($Q$2:Q119),COUNTIF($Q$2:$Q$231,"<="&$Q$2:$Q$231),0)),0) -> Brome | U119: 224 | V119: Verchères
A120: 119 | B120: CAN | C120: BC | D120: Ocean Falls | E120: 3400 | F120: Froid-humide | G120: -10 | H120: 23 | Q120: =_xlfn.IFNA(LOOKUP(2, 1/((COUNTIF($Q$1:Q119, $D$2:$D$1686)=0)*($N$3=$C$2:$C$1686)), $D$2:$D$1686),"") -> Baie-Comeau | T120: =IFERROR(INDEX($Q$2:$Q$231,MATCH(ROWS($Q$2:Q120),COUNTIF($Q$2:$Q$231,"<="&$Q$2:$Q$231),0)),0) -> Brossard | U120: 225 | V120: Verdun
A121: 120 | B121: CAN | C121: BC | D121: Osoyoos | E121: 3100 | F121: Froid-humide | G121: -14 | H121: 35 | Q121: =_xlfn.IFNA(LOOKUP(2, 1/((COUNTIF($Q$1:Q120, $D$2:$D$1686)=0)*($N$3=$C$2:$C$1686)), $D$2:$D$1686),"") -> Aylmer | T121: =IFERROR(INDEX($Q$2:$Q$231,MATCH(ROWS($Q$2:Q121),COUNTIF($Q$2:$Q$231,"<="&$Q$2:$Q$231),0)),0) -> Buckingham | U121: 226 | V121: Victoriaville
A122: 121 | B122: CAN | C122: BC | D122: Parksville | E122: 3200 | F122: Marin | G122: -6 | H122: 26 | Q122: =_xlfn.IFNA(LOOKUP(2, 1/((COUNTIF($Q$1:Q121, $D$2:$D$1686)=0)*($N$3=$C$2:$C$1686)), $D$2:$D$1686),"") -> Asbestos | T122: =IFERROR(INDEX($Q$2:$Q$231,MATCH(ROWS($Q$2:Q122),COUNTIF($Q$2:$Q$231,"<="&$Q$2:$Q$231),0)),0) -> Campbell's Bay | U122: 227 | V122: Ville-Marie
A123: 122 | B123: CAN | C123: BC | D123: Penticton | E123: 3350 | F123: Froid-sec | G123: -15 | H123: 33 | Q123: =_xlfn.IFNA(LOOKUP(2, 1/((COUNTIF($Q$1:Q122, $D$2:$D$1686)=0)*($N$3=$C$2:$C$1686)), $D$2:$D$1686),"") -> Ancienne-Lorette | T123: =IFERROR(INDEX($Q$2:$Q$231,MATCH(ROWS($Q$2:Q123),COUNTIF($Q$2:$Q$231,"<="&$Q$2:$Q$231),0)),0) -> Chambly | U123: 228 | V123: Wakefield
A124: 123 | B124: CAN | C124: BC | D124: Port Alberni | E124: 3100 | F124: Marin | G124: -5 | H124: 31 | Q124: =_xlfn.IFNA(LOOKUP(2, 1/((COUNTIF($Q$1:Q123, $D$2:$D$1686)=0)*($N$3=$C$2:$C$1686)), $D$2:$D$1686),"") -> Amos | T124: =IFERROR(INDEX($Q$2:$Q$231,MATCH(ROWS($Q$2:Q124),COUNTIF($Q$2:$Q$231,"<="&$Q$2:$Q$231),0)),0) -> Coaticook | U124: 229 | V124: Waterloo
A125: 124 | B125: CAN | C125: BC | D125: Port Alice | E125: 3010 | F125: Marin | G125: -3 | H125: 26 | Q125: =_xlfn.IFNA(LOOKUP(2, 1/((COUNTIF($Q$1:Q124, $D$2:$D$1686)=0)*($N$3=$C$2:$C$1686)), $D$2:$D$1686),"") -> Alma | T125: =IFERROR(INDEX($Q$2:$Q$231,MATCH(ROWS($Q$2:Q125),COUNTIF($Q$2:$Q$231,"<="&$Q$2:$Q$231),0)),0) -> Contrecoeur | U125: 230 | V125: Windsor
A126: 125 | B126: CAN | C126: BC | D126: Port Hardy | E126: 3440 | F126: Marin | G126: -5 | H126: 20 | Q126: =_xlfn.IFNA(LOOKUP(2, 1/((COUNTIF($Q$1:Q125, $D$2:$D$1686)=0)*($N$3=$C$2:$C$1686)), $D$2:$D$1686),"") -> Acton-Vale | T126: =IFERROR(INDEX($Q$2:$Q$231,MATCH(ROWS($Q$2:Q126),COUNTIF($Q$2:$Q$231,"<="&$Q$2:$Q$231),0)),0) -> Cowansville | U126: 231
A127: 126 | B127: CAN | C127: BC | D127: Port McNeill | E127: 3410 | F127: Marin | G127: -5 | H127: 22 | Q127: =_xlfn.IFNA(LOOKUP(2, 1/((COUNTIF($Q$1:Q126, $D$2:$D$1686)=0)*($N$3=$C$2:$C$1686)), $D$2:$D$1686),"") ->  | T127: =IFERROR(INDEX($Q$2:$Q$231,MATCH(ROWS($Q$2:Q127),COUNTIF($Q$2:$Q$231,"<="&$Q$2:$Q$231),0)),0) -> Deux-Montagnes | U127: 232
A128: 127 | B128: CAN | C128: BC | D128: Port Renfrew | E128: 2900 | F128: Marin | G128: -3 | H128: 24 | Q128: =_xlfn.IFNA(LOOKUP(2, 1/((COUNTIF($Q$1:Q127, $D$2:$D$1686)=0)*($N$3=$C$2:$C$1686)), $D$2:$D$1686),"") ->  | T128: =IFERROR(INDEX($Q$2:$Q$231,MATCH(ROWS($Q$2:Q128),COUNTIF($Q$2:$Q$231,"<="&$Q$2:$Q$231),0)),0) -> Dolbeau | U128: 233
A129: 128 | B129: CAN | C129: BC | D129: Powell River | E129: 3100 | F129: Marin | G129: -7 | H129: 26 | Q129: =_xlfn.IFNA(LOOKUP(2, 1/((COUNTIF($Q$1:Q128, $D$2:$D$1686)=0)*($N$3=$C$2:$C$1686)), $D$2:$D$1686),"") ->  | T129: =IFERROR(INDEX($Q$2:$Q$231,MATCH(ROWS($Q$2:Q129),COUNTIF($Q$2:$Q$231,"<="&$Q$2:$Q$231),0)),0) -> Dorval | U129: 234
A130: 129 | B130: CAN | C130: BC | D130: Prince George | E130: 4720 | F130: Très-froid | G130: -32 | H130: 28 | Q130: =_xlfn.IFNA(LOOKUP(2, 1/((COUNTIF($Q$1:Q129, $D$2:$D$1686)=0)*($N$3=$C$2:$C$1686)), $D$2:$D$1686),"") ->  | T130: =IFERROR(INDEX($Q$2:$Q$231,MATCH(ROWS($Q$2:Q130),COUNTIF($Q$2:$Q$231,"<="&$Q$2:$Q$231),0)),0) -> Drummondville | U130: 235
A131: 130 | B131: CAN | C131: BC | D131: Prince Rupert | E131: 3900 | F131: Froid-sec | G131: -13 | H131: 19 | Q131: =_xlfn.IFNA(LOOKUP(2, 1/((COUNTIF($Q$1:Q130, $D$2:$D$1686)=0)*($N$3=$C$2:$C$1686)), $D$2:$D$1686),"") ->  | T131: =IFERROR(INDEX($Q$2:$Q$231,MATCH(ROWS($Q$2:Q131),COUNTIF($Q$2:$Q$231,"<="&$Q$2:$Q$231),0)),0) -> Farnham | U131: 236 | V131: =IFERROR(INDEX($T$2:$T$231,U131,1),"") -> 
A132: 131 | B132: CAN | C132: BC | D132: Princeton | E132: 4250 | F132: Froid-sec | G132: -24 | H132: 33 | Q132: =_xlfn.IFNA(LOOKUP(2, 1/((COUNTIF($Q$1:Q131, $D$2:$D$1686)=0)*($N$3=$C$2:$C$1686)), $D$2:$D$1686),"") ->  | T132: =IFERROR(INDEX($Q$2:$Q$231,MATCH(ROWS($Q$2:Q132),COUNTIF($Q$2:$Q$231,"<="&$Q$2:$Q$231),0)),0) -> Fort-Coulonge | U132: =U131+1 -> 237
A133: 132 | B133: CAN | C133: BC | D133: Qualicum Beach | E133: 3200 | F133: Marin | G133: -7 | H133: 27 | Q133: =_xlfn.IFNA(LOOKUP(2, 1/((COUNTIF($Q$1:Q132, $D$2:$D$1686)=0)*($N$3=$C$2:$C$1686)), $D$2:$D$1686),"") ->  | T133: =IFERROR(INDEX($Q$2:$Q$231,MATCH(ROWS($Q$2:Q133),COUNTIF($Q$2:$Q$231,"<="&$Q$2:$Q$231),0)),0) -> Gagnon | U133: 238
A134: 133 | B134: CAN | C134: BC | D134: Queen Charlotte City | E134: 3520 | F134: Marin | G134: -6 | H134: 21 | Q134: =_xlfn.IFNA(LOOKUP(2, 1/((COUNTIF($Q$1:Q133, $D$2:$D$1686)=0)*($N$3=$C$2:$C$1686)), $D$2:$D$1686),"") ->  | T134: =IFERROR(INDEX($Q$2:$Q$231,MATCH(ROWS($Q$2:Q134),COUNTIF($Q$2:$Q$231,"<="&$Q$2:$Q$231),0)),0) -> Gaspé | U134: 239
A135: 134 | B135: CAN | C135: BC | D135: Quesnel | E135: 4650 | F135: Très-froid | G135: -31 | H135: 30 | Q135: =_xlfn.IFNA(LOOKUP(2, 1/((COUNTIF($Q$1:Q134, $D$2:$D$1686)=0)*($N$3=$C$2:$C$1686)), $D$2:$D$1686),"") ->  | T135: =IFERROR(INDEX($Q$2:$Q$231,MATCH(ROWS($Q$2:Q135),COUNTIF($Q$2:$Q$231,"<="&$Q$2:$Q$231),0)),0) -> Gatineau | U135: 240
A136: 135 | B136: CAN | C136: BC | D136: Revelstoke | E136: 4000 | F136: Froid-sec | G136: -20 | H136: 31 | Q136: =_xlfn.IFNA(LOOKUP(2, 1/((COUNTIF($Q$1:Q135, $D$2:$D$1686)=0)*($N$3=$C$2:$C$1686)), $D$2:$D$1686),"") ->  | T136: =IFERROR(INDEX($Q$2:$Q$231,MATCH(ROWS($Q$2:Q136),COUNTIF($Q$2:$Q$231,"<="&$Q$2:$Q$231),0)),0) -> Gracefield | U136: 241
A137: 136 | B137: CAN | C137: BC | D137: Richmond | E137: 2800 | F137: Marin | G137: -7 | H137: 27 | Q137: =_xlfn.IFNA(LOOKUP(2, 1/((COUNTIF($Q$1:Q136, $D$2:$D$1686)=0)*($N$3=$C$2:$C$1686)), $D$2:$D$1686),"") ->  | T137: =IFERROR(INDEX($Q$2:$Q$231,MATCH(ROWS($Q$2:Q137),COUNTIF($Q$2:$Q$231,"<="&$Q$2:$Q$231),0)),0) -> Granby | U137: 242
A138: 137 | B138: CAN | C138: BC | D138: Salmon Arm | E138: 3650 | F138: Froid-humide | G138: -19 | H138: 33 | Q138: =_xlfn.IFNA(LOOKUP(2, 1/((COUNTIF($Q$1:Q137, $D$2:$D$1686)=0)*($N$3=$C$2:$C$1686)), $D$2:$D$1686),"") ->  | T138: =IFERROR(INDEX($Q$2:$Q$231,MATCH(ROWS($Q$2:Q138),COUNTIF($Q$2:$Q$231,"<="&$Q$2:$Q$231),0)),0) -> Harrington-Harbour | U138: 243
A139: 138 | B139: CAN | C139: BC | D139: Sandspit | E139: 3450 | F139: Marin | G139: -4 | H139: 18 | Q139: =_xlfn.IFNA(LOOKUP(2, 1/((COUNTIF($Q$1:Q138, $D$2:$D$1686)=0)*($N$3=$C$2:$C$1686)), $D$2:$D$1686),"") ->  | T139: =IFERROR(INDEX($Q$2:$Q$231,MATCH(ROWS($Q$2:Q139),COUNTIF($Q$2:$Q$231,"<="&$Q$2:$Q$231),0)),0) -> Havre-St-Pierre | U139: 244
A140: 139 | B140: CAN | C140: BC | D140: Sechelt | E140: 2680 | F140: Marin | G140: -6 | H140: 27 | Q140: =_xlfn.IFNA(LOOKUP(2, 1/((COUNTIF($Q$1:Q139, $D$2:$D$1686)=0)*($N$3=$C$2:$C$1686)), $D$2:$D$1686),"") ->  | T140: =IFERROR(INDEX($Q$2:$Q$231,MATCH(ROWS($Q$2:Q140),COUNTIF($Q$2:$Q$231,"<="&$Q$2:$Q$231),0)),0) -> Hemmingford | U140: 245
A141: 140 | B141: CAN | C141: BC | D141: Sidney | E141: 2850 | F141: Marin | G141: -4 | H141: 26 | Q141: =_xlfn.IFNA(LOOKUP(2, 1/((COUNTIF($Q$1:Q140, $D$2:$D$1686)=0)*($N$3=$C$2:$C$1686)), $D$2:$D$1686),"") ->  | T141: =IFERROR(INDEX($Q$2:$Q$231,MATCH(ROWS($Q$2:Q141),COUNTIF($Q$2:$Q$231,"<="&$Q$2:$Q$231),0)),0) -> Hull | U141: 246
A142: 141 | B142: CAN | C142: BC | D142: Smith River | E142: 7100 | F142: Subarctique | G142: -45 | H142: 26 | Q142: =_xlfn.IFNA(LOOKUP(2, 1/((COUNTIF($Q$1:Q141, $D$2:$D$1686)=0)*($N$3=$C$2:$C$1686)), $D$2:$D$1686),"") ->  | T142: =IFERROR(INDEX($Q$2:$Q$231,MATCH(ROWS($Q$2:Q142),COUNTIF($Q$2:$Q$231,"<="&$Q$2:$Q$231),0)),0) -> Iberville | U142: 247
A143: 142 | B143: CAN | C143: BC | D143: Smithers | E143: 5040 | F143: Très-froid | G143: -29 | H143: 26 | Q143: =_xlfn.IFNA(LOOKUP(2, 1/((COUNTIF($Q$1:Q142, $D$2:$D$1686)=0)*($N$3=$C$2:$C$1686)), $D$2:$D$1686),"") ->  | T143: =IFERROR(INDEX($Q$2:$Q$231,MATCH(ROWS($Q$2:Q143),COUNTIF($Q$2:$Q$231,"<="&$Q$2:$Q$231),0)),0) -> Inukjuak | U143: 248
A144: 143 | B144: CAN | C144: BC | D144: Sooke | E144: 2900 | F144: Marin | G144: -1 | H144: 21 | Q144: =_xlfn.IFNA(LOOKUP(2, 1/((COUNTIF($Q$1:Q143, $D$2:$D$1686)=0)*($N$3=$C$2:$C$1686)), $D$2:$D$1686),"") ->  | T144: =IFERROR(INDEX($Q$2:$Q$231,MATCH(ROWS($Q$2:Q144),COUNTIF($Q$2:$Q$231,"<="&$Q$2:$Q$231),0)),0) -> Joliette | U144: 249
A145: 144 | B145: CAN | C145: BC | D145: Squamish | E145: 2950 | F145: Froid-humide | G145: -9 | H145: 29 | Q145: =_xlfn.IFNA(LOOKUP(2, 1/((COUNTIF($Q$1:Q144, $D$2:$D$1686)=0)*($N$3=$C$2:$C$1686)), $D$2:$D$1686),"") ->  | T145: =IFERROR(INDEX($Q$2:$Q$231,MATCH(ROWS($Q$2:Q145),COUNTIF($Q$2:$Q$231,"<="&$Q$2:$Q$231),0)),0) -> Kuujjuaq | U145: 250
A146: 145 | B146: CAN | C146: BC | D146: Stewart | E146: 4350 | F146: Froid-sec | G146: -17 | H146: 25 | Q146: =_xlfn.IFNA(LOOKUP(2, 1/((COUNTIF($Q$1:Q145, $D$2:$D$1686)=0)*($N$3=$C$2:$C$1686)), $D$2:$D$1686),"") ->  | T146: =IFERROR(INDEX($Q$2:$Q$231,MATCH(ROWS($Q$2:Q146),COUNTIF($Q$2:$Q$231,"<="&$Q$2:$Q$231),0)),0) -> Kuujjuarapik | U146: 251
A147: 146 | B147: CAN | C147: BC | D147: Surrey (88 Ave & 156 St.) | E147: 2750 | F147: Marin | G147: -8 | H147: 29 | Q147: =_xlfn.IFNA(LOOKUP(2, 1/((COUNTIF($Q$1:Q146, $D$2:$D$1686)=0)*($N$3=$C$2:$C$1686)), $D$2:$D$1686),"") ->  | T147: =IFERROR(INDEX($Q$2:$Q$231,MATCH(ROWS($Q$2:Q147),COUNTIF($Q$2:$Q$231,"<="&$Q$2:$Q$231),0)),0) -> La Pocatière | U147: 252
A148: 147 | B148: CAN | C148: BC | D148: Tahsis | E148: 3150 | F148: Marin | G148: -4 | H148: 26 | Q148: =_xlfn.IFNA(LOOKUP(2, 1/((COUNTIF($Q$1:Q147, $D$2:$D$1686)=0)*($N$3=$C$2:$C$1686)), $D$2:$D$1686),"") ->  | T148: =IFERROR(INDEX($Q$2:$Q$231,MATCH(ROWS($Q$2:Q148),COUNTIF($Q$2:$Q$231,"<="&$Q$2:$Q$231),0)),0) -> Lachute | U148: 253
A149: 148 | B149: CAN | C149: BC | D149: Taylor | E149: 5720 | F149: Très-froid | G149: -35 | H149: 26 | Q149: =_xlfn.IFNA(LOOKUP(2, 1/((COUNTIF($Q$1:Q148, $D$2:$D$1686)=0)*($N$3=$C$2:$C$1686)), $D$2:$D$1686),"") ->  | T149: =IFERROR(INDEX($Q$2:$Q$231,MATCH(ROWS($Q$2:Q149),COUNTIF($Q$2:$Q$231,"<="&$Q$2:$Q$231),0)),0) -> Lac-Mégantic | U149: 254
A150: 149 | B150: CAN | C150: BC | D150: Terrace | E150: 4150 | F150: Froid-sec | G150: -19 | H150: 27 | Q150: =_xlfn.IFNA(LOOKUP(2, 1/((COUNTIF($Q$1:Q149, $D$2:$D$1686)=0)*($N$3=$C$2:$C$1686)), $D$2:$D$1686),"") ->  | T150: =IFERROR(INDEX($Q$2:$Q$231,MATCH(ROWS($Q$2:Q150),COUNTIF($Q$2:$Q$231,"<="&$Q$2:$Q$231),0)),0) -> La-Malbaie | U150: 255
A151: 150 | B151: CAN | C151: BC | D151: Tofino | E151: 3150 | F151: Marin | G151: -2 | H151: 20 | Q151: =_xlfn.IFNA(LOOKUP(2, 1/((COUNTIF($Q$1:Q150, $D$2:$D$1686)=0)*($N$3=$C$2:$C$1686)), $D$2:$D$1686),"") ->  | T151: =IFERROR(INDEX($Q$2:$Q$231,MATCH(ROWS($Q$2:Q151),COUNTIF($Q$2:$Q$231,"<="&$Q$2:$Q$231),0)),0) -> La-Tuque | U151: 256
A152: 151 | B152: CAN | C152: BC | D152: Trail | E152: 3600 | F152: Froid-sec | G152: -14 | H152: 33 | Q152: =_xlfn.IFNA(LOOKUP(2, 1/((COUNTIF($Q$1:Q151, $D$2:$D$1686)=0)*($N$3=$C$2:$C$1686)), $D$2:$D$1686),"") ->  | T152: =IFERROR(INDEX($Q$2:$Q$231,MATCH(ROWS($Q$2:Q152),COUNTIF($Q$2:$Q$231,"<="&$Q$2:$Q$231),0)),0) -> Laval | U152: 257
A153: 152 | B153: CAN | C153: BC | D153: Ucluelet | E153: 3120 | F153: Marin | G153: -2 | H153: 18 | Q153: =_xlfn.IFNA(LOOKUP(2, 1/((COUNTIF($Q$1:Q152, $D$2:$D$1686)=0)*($N$3=$C$2:$C$1686)), $D$2:$D$1686),"") ->  | T153: =IFERROR(INDEX($Q$2:$Q$231,MATCH(ROWS($Q$2:Q153),COUNTIF($Q$2:$Q$231,"<="&$Q$2:$Q$231),0)),0) -> Lennoxville | U153: 258
A154: 153 | B154: CAN | C154: BC | D154: Vancouver (city hall) | E154: 2825 | F154: Marin | G154: -7 | H154: 28 | Q154: =_xlfn.IFNA(LOOKUP(2, 1/((COUNTIF($Q$1:Q153, $D$2:$D$1686)=0)*($N$3=$C$2:$C$1686)), $D$2:$D$1686),"") ->  | T154: =IFERROR(INDEX($Q$2:$Q$231,MATCH(ROWS($Q$2:Q154),COUNTIF($Q$2:$Q$231,"<="&$Q$2:$Q$231),0)),0) -> Léry | U154: 259
A155: 154 | B155: CAN | C155: BC | D155: Vancouver (Granville & 41 Ave) | E155: 2925 | F155: Marin | G155: -6 | H155: 28 | Q155: =_xlfn.IFNA(LOOKUP(2, 1/((COUNTIF($Q$1:Q154, $D$2:$D$1686)=0)*($N$3=$C$2:$C$1686)), $D$2:$D$1686),"") ->  | T155: =IFERROR(INDEX($Q$2:$Q$231,MATCH(ROWS($Q$2:Q155),COUNTIF($Q$2:$Q$231,"<="&$Q$2:$Q$231),0)),0) -> Lévis | U155: 260
A156: 155 | B156: CAN | C156: BC | D156: Vernon | E156: 3600 | F156: Froid-sec | G156: -20 | H156: 33 | Q156: =_xlfn.IFNA(LOOKUP(2, 1/((COUNTIF($Q$1:Q155, $D$2:$D$1686)=0)*($N$3=$C$2:$C$1686)), $D$2:$D$1686),"") ->  | T156: =IFERROR(INDEX($Q$2:$Q$231,MATCH(ROWS($Q$2:Q156),COUNTIF($Q$2:$Q$231,"<="&$Q$2:$Q$231),0)),0) -> Loretteville | U156: 261
A157: 156 | B157: CAN | C157: BC | D157: Victoria | E157: 2650 | F157: Marin | G157: -4 | H157: 24 | Q157: =_xlfn.IFNA(LOOKUP(2, 1/((COUNTIF($Q$1:Q156, $D$2:$D$1686)=0)*($N$3=$C$2:$C$1686)), $D$2:$D$1686),"") ->  | T157: =IFERROR(INDEX($Q$2:$Q$231,MATCH(ROWS($Q$2:Q157),COUNTIF($Q$2:$Q$231,"<="&$Q$2:$Q$231),0)),0) -> Louiseville | U157: 262
A158: 157 | B158: CAN | C158: BC | D158: Victoria Gonzales Height | E158: 2700 | F158: Marin | G158: -4 | H158: 24 | Q158: =_xlfn.IFNA(LOOKUP(2, 1/((COUNTIF($Q$1:Q157, $D$2:$D$1686)=0)*($N$3=$C$2:$C$1686)), $D$2:$D$1686),"") ->  | T158: =IFERROR(INDEX($Q$2:$Q$231,MATCH(ROWS($Q$2:Q158),COUNTIF($Q$2:$Q$231,"<="&$Q$2:$Q$231),0)),0) -> Magog | U158: 263
A159: 158 | B159: CAN | C159: BC | D159: Victoria Mt Tolmie | E159: 2700 | F159: Marin | G159: -6 | H159: 24 | Q159: =_xlfn.IFNA(LOOKUP(2, 1/((COUNTIF($Q$1:Q158, $D$2:$D$1686)=0)*($N$3=$C$2:$C$1686)), $D$2:$D$1686),"") ->  | T159: =IFERROR(INDEX($Q$2:$Q$231,MATCH(ROWS($Q$2:Q159),COUNTIF($Q$2:$Q$231,"<="&$Q$2:$Q$231),0)),0) -> Malartic | U159: 264
A160: 159 | B160: CAN | C160: BC | D160: West Vancouver | E160: 2950 | F160: Marin | G160: -7 | H160: 28 | Q160: =_xlfn.IFNA(LOOKUP(2, 1/((COUNTIF($Q$1:Q159, $D$2:$D$1686)=0)*($N$3=$C$2:$C$1686)), $D$2:$D$1686),"") ->  | T160: =IFERROR(INDEX($Q$2:$Q$231,MATCH(ROWS($Q$2:Q160),COUNTIF($Q$2:$Q$231,"<="&$Q$2:$Q$231),0)),0) -> Maniwaki | U160: 265
A161: 160 | B161: CAN | C161: BC | D161: Whistler | E161: 4180 | F161: Froid-humide | G161: -17 | H161: 30 | Q161: =_xlfn.IFNA(LOOKUP(2, 1/((COUNTIF($Q$1:Q160, $D$2:$D$1686)=0)*($N$3=$C$2:$C$1686)), $D$2:$D$1686),"") ->  | T161: =IFERROR(INDEX($Q$2:$Q$231,MATCH(ROWS($Q$2:Q161),COUNTIF($Q$2:$Q$231,"<="&$Q$2:$Q$231),0)),0) -> Masson | U161: 266
A162: 161 | B162: CAN | C162: BC | D162: White Rock | E162: 2620 | F162: Marin | G162: -5 | H162: 25 | Q162: =_xlfn.IFNA(LOOKUP(2, 1/((COUNTIF($Q$1:Q161, $D$2:$D$1686)=0)*($N$3=$C$2:$C$1686)), $D$2:$D$1686),"") ->  | T162: =IFERROR(INDEX($Q$2:$Q$231,MATCH(ROWS($Q$2:Q162),COUNTIF($Q$2:$Q$231,"<="&$Q$2:$Q$231),0)),0) -> Matane | U162: 267
A163: 162 | B163: CAN | C163: BC | D163: Williams Lake | E163: 4400 | F163: Froid-sec | G163: -30 | H163: 29 | Q163: =_xlfn.IFNA(LOOKUP(2, 1/((COUNTIF($Q$1:Q162, $D$2:$D$1686)=0)*($N$3=$C$2:$C$1686)), $D$2:$D$1686),"") ->  | T163: =IFERROR(INDEX($Q$2:$Q$231,MATCH(ROWS($Q$2:Q163),COUNTIF($Q$2:$Q$231,"<="&$Q$2:$Q$231),0)),0) -> Mont-Joli | U163: 268
A164: 163 | B164: CAN | C164: BC | D164: Youbou | E164: 3050 | F164: Marin | G164: -5 | H164: 31 | Q164: =_xlfn.IFNA(LOOKUP(2, 1/((COUNTIF($Q$1:Q163, $D$2:$D$1686)=0)*($N$3=$C$2:$C$1686)), $D$2:$D$1686),"") ->  | T164: =IFERROR(INDEX($Q$2:$Q$231,MATCH(ROWS($Q$2:Q164),COUNTIF($Q$2:$Q$231,"<="&$Q$2:$Q$231),0)),0) -> Mont-Laurier | U164: 269
A165: 164 | B165: CAN | C165: MB | D165: Beausejour | E165: 5680 | F165: Très-froid | G165: -33 | H165: 29 | Q165: =_xlfn.IFNA(LOOKUP(2, 1/((COUNTIF($Q$1:Q164, $D$2:$D$1686)=0)*($N$3=$C$2:$C$1686)), $D$2:$D$1686),"") ->  | T165: =IFERROR(INDEX($Q$2:$Q$231,MATCH(ROWS($Q$2:Q165),COUNTIF($Q$2:$Q$231,"<="&$Q$2:$Q$231),0)),0) -> Montmagny | U165: 270
A166: 165 | B166: CAN | C166: MB | D166: Boissevain | E166: 5500 | F166: Très-froid | G166: -32 | H166: 30 | Q166: =_xlfn.IFNA(LOOKUP(2, 1/((COUNTIF($Q$1:Q165, $D$2:$D$1686)=0)*($N$3=$C$2:$C$1686)), $D$2:$D$1686),"") ->  | T166: =IFERROR(INDEX($Q$2:$Q$231,MATCH(ROWS($Q$2:Q166),COUNTIF($Q$2:$Q$231,"<="&$Q$2:$Q$231),0)),0) -> Montréal (city hall) | U166: 271
A167: 166 | B167: CAN | C167: MB | D167: Brandon | E167: 5760 | F167: Très-froid | G167: -33 | H167: 30 | Q167: =_xlfn.IFNA(LOOKUP(2, 1/((COUNTIF($Q$1:Q166, $D$2:$D$1686)=0)*($N$3=$C$2:$C$1686)), $D$2:$D$1686),"") ->  | T167: =IFERROR(INDEX($Q$2:$Q$231,MATCH(ROWS($Q$2:Q167),COUNTIF($Q$2:$Q$231,"<="&$Q$2:$Q$231),0)),0) -> Montréal-Est | U167: 272
A168: 167 | B168: CAN | C168: MB | D168: Churchill | E168: 8950 | F168: Subarctique | G168: -38 | H168: 25 | Q168: =_xlfn.IFNA(LOOKUP(2, 1/((COUNTIF($Q$1:Q167, $D$2:$D$1686)=0)*($N$3=$C$2:$C$1686)), $D$2:$D$1686),"") ->  | T168: =IFERROR(INDEX($Q$2:$Q$231,MATCH(ROWS($Q$2:Q168),COUNTIF($Q$2:$Q$231,"<="&$Q$2:$Q$231),0)),0) -> Montréal-Nord | U168: 273
A169: 168 | B169: CAN | C169: MB | D169: Dauphin | E169: 5900 | F169: Très-froid | G169: -33 | H169: 30 | Q169: =_xlfn.IFNA(LOOKUP(2, 1/((COUNTIF($Q$1:Q168, $D$2:$D$1686)=0)*($N$3=$C$2:$C$1686)), $D$2:$D$1686),"") ->  | T169: =IFERROR(INDEX($Q$2:$Q$231,MATCH(ROWS($Q$2:Q169),COUNTIF($Q$2:$Q$231,"<="&$Q$2:$Q$231),0)),0) -> Nicolet (Gentilly) | U169: 274
A170: 169 | B170: CAN | C170: MB | D170: Flin Flon | E170: 6440 | F170: Très-froid | G170: -38 | H170: 27 | Q170: =_xlfn.IFNA(LOOKUP(2, 1/((COUNTIF($Q$1:Q169, $D$2:$D$1686)=0)*($N$3=$C$2:$C$1686)), $D$2:$D$1686),"") ->  | T170: =IFERROR(INDEX($Q$2:$Q$231,MATCH(ROWS($Q$2:Q170),COUNTIF($Q$2:$Q$231,"<="&$Q$2:$Q$231),0)),0) -> Nitchequon | U170: 275
A171: 170 | B171: CAN | C171: MB | D171: Gimli | E171: 5800 | F171: Très-froid | G171: -34 | H171: 29 | Q171: =_xlfn.IFNA(LOOKUP(2, 1/((COUNTIF($Q$1:Q170, $D$2:$D$1686)=0)*($N$3=$C$2:$C$1686)), $D$2:$D$1686),"") ->  | T171: =IFERROR(INDEX($Q$2:$Q$231,MATCH(ROWS($Q$2:Q171),COUNTIF($Q$2:$Q$231,"<="&$Q$2:$Q$231),0)),0) -> Noranda | U171: 276
A172: 171 | B172: CAN | C172: MB | D172: Island Lake | E172: 6900 | F172: Subarctique | G172: -36 | H172: 27 | Q172: =_xlfn.IFNA(LOOKUP(2, 1/((COUNTIF($Q$1:Q171, $D$2:$D$1686)=0)*($N$3=$C$2:$C$1686)), $D$2:$D$1686),"") ->  | T172: =IFERROR(INDEX($Q$2:$Q$231,MATCH(ROWS($Q$2:Q172),COUNTIF($Q$2:$Q$231,"<="&$Q$2:$Q$231),0)),0) -> Outremont | U172: 277
A173: 172 | B173: CAN | C173: MB | D173: Lac du Bonnet | E173: 5730 | F173: Très-froid | G173: -34 | H173: 29 | Q173: =_xlfn.IFNA(LOOKUP(2, 1/((COUNTIF($Q$1:Q172, $D$2:$D$1686)=0)*($N$3=$C$2:$C$1686)), $D$2:$D$1686),"") ->  | T173: =IFERROR(INDEX($Q$2:$Q$231,MATCH(ROWS($Q$2:Q173),COUNTIF($Q$2:$Q$231,"<="&$Q$2:$Q$231),0)),0) -> Percé | U173: 278
A174: 173 | B174: CAN | C174: MB | D174: Lynn Lake | E174: 7770 | F174: Subarctique | G174: -40 | H174: 27 | Q174: =_xlfn.IFNA(LOOKUP(2, 1/((COUNTIF($Q$1:Q173, $D$2:$D$1686)=0)*($N$3=$C$2:$C$1686)), $D$2:$D$1686),"") ->  | T174: =IFERROR(INDEX($Q$2:$Q$231,MATCH(ROWS($Q$2:Q174),COUNTIF($Q$2:$Q$231,"<="&$Q$2:$Q$231),0)),0) -> Pierrefonds | U174: 279
A175: 174 | B175: CAN | C175: MB | D175: Morden | E175: 5400 | F175: Très-froid | G175: -31 | H175: 30 | Q175: =_xlfn.IFNA(LOOKUP(2, 1/((COUNTIF($Q$1:Q174, $D$2:$D$1686)=0)*($N$3=$C$2:$C$1686)), $D$2:$D$1686),"") ->  | T175: =IFERROR(INDEX($Q$2:$Q$231,MATCH(ROWS($Q$2:Q175),COUNTIF($Q$2:$Q$231,"<="&$Q$2:$Q$231),0)),0) -> Pincourt | U175: 280
A176: 175 | B176: CAN | C176: MB | D176: Neepawa | E176: 5760 | F176: Très-froid | G176: -32 | H176: 29 | Q176: =_xlfn.IFNA(LOOKUP(2, 1/((COUNTIF($Q$1:Q175, $D$2:$D$1686)=0)*($N$3=$C$2:$C$1686)), $D$2:$D$1686),"") ->  | T176: =IFERROR(INDEX($Q$2:$Q$231,MATCH(ROWS($Q$2:Q176),COUNTIF($Q$2:$Q$231,"<="&$Q$2:$Q$231),0)),0) -> Plessisville | U176: 281
A177: 176 | B177: CAN | C177: MB | D177: Pine Falls | E177: 5900 | F177: Très-froid | G177: -34 | H177: 28 | Q177: =_xlfn.IFNA(LOOKUP(2, 1/((COUNTIF($Q$1:Q176, $D$2:$D$1686)=0)*($N$3=$C$2:$C$1686)), $D$2:$D$1686),"") ->  | T177: =IFERROR(INDEX($Q$2:$Q$231,MATCH(ROWS($Q$2:Q177),COUNTIF($Q$2:$Q$231,"<="&$Q$2:$Q$231),0)),0) -> Port-Cartier | U177: 282
A178: 177 | B178: CAN | C178: MB | D178: Portage la Prairie | E178: 5600 | F178: Très-froid | G178: -31 | H178: 30 | Q178: =_xlfn.IFNA(LOOKUP(2, 1/((COUNTIF($Q$1:Q177, $D$2:$D$1686)=0)*($N$3=$C$2:$C$1686)), $D$2:$D$1686),"") ->  | T178: =IFERROR(INDEX($Q$2:$Q$231,MATCH(ROWS($Q$2:Q178),COUNTIF($Q$2:$Q$231,"<="&$Q$2:$Q$231),0)),0) -> Puvinrituq | U178: 283
A179: 178 | B179: CAN | C179: MB | D179: Rivers | E179: 5840 | F179: Très-froid | G179: -34 | H179: 29 | Q179: =_xlfn.IFNA(LOOKUP(2, 1/((COUNTIF($Q$1:Q178, $D$2:$D$1686)=0)*($N$3=$C$2:$C$1686)), $D$2:$D$1686),"") ->  | T179: =IFERROR(INDEX($Q$2:$Q$231,MATCH(ROWS($Q$2:Q179),COUNTIF($Q$2:$Q$231,"<="&$Q$2:$Q$231),0)),0) -> Québec | U179: 284
A180: 179 | B180: CAN | C180: MB | D180: Sandilands | E180: 5650 | F180: Très-froid | G180: -32 | H180: 29 | Q180: =_xlfn.IFNA(LOOKUP(2, 1/((COUNTIF($Q$1:Q179, $D$2:$D$1686)=0)*($N$3=$C$2:$C$1686)), $D$2:$D$1686),"") ->  | T180: =IFERROR(INDEX($Q$2:$Q$231,MATCH(ROWS($Q$2:Q180),COUNTIF($Q$2:$Q$231,"<="&$Q$2:$Q$231),0)),0) -> Richmond | U180: 285
A181: 180 | B181: CAN | C181: MB | D181: Selkirk | E181: 5700 | F181: Très-froid | G181: -33 | H181: 29 | Q181: =_xlfn.IFNA(LOOKUP(2, 1/((COUNTIF($Q$1:Q180, $D$2:$D$1686)=0)*($N$3=$C$2:$C$1686)), $D$2:$D$1686),"") ->  | T181: =IFERROR(INDEX($Q$2:$Q$231,MATCH(ROWS($Q$2:Q181),COUNTIF($Q$2:$Q$231,"<="&$Q$2:$Q$231),0)),0) -> Rimouski | U181: 286
A182: 181 | B182: CAN | C182: MB | D182: Split Lake | E182: 7900 | F182: Subarctique | G182: -38 | H182: 27 | Q182: =_xlfn.IFNA(LOOKUP(2, 1/((COUNTIF($Q$1:Q181, $D$2:$D$1686)=0)*($N$3=$C$2:$C$1686)), $D$2:$D$1686),"") ->  | T182: =IFERROR(INDEX($Q$2:$Q$231,MATCH(ROWS($Q$2:Q182),COUNTIF($Q$2:$Q$231,"<="&$Q$2:$Q$231),0)),0) -> Rivière-du-Loup | U182: 287
A183: 182 | B183: CAN | C183: MB | D183: Steinbach | E183: 5700 | F183: Très-froid | G183: -33 | H183: 29 | Q183: =_xlfn.IFNA(LOOKUP(2, 1/((COUNTIF($Q$1:Q182, $D$2:$D$1686)=0)*($N$3=$C$2:$C$1686)), $D$2:$D$1686),"") ->  | T183: =IFERROR(INDEX($Q$2:$Q$231,MATCH(ROWS($Q$2:Q183),COUNTIF($Q$2:$Q$231,"<="&$Q$2:$Q$231),0)),0) -> Roberval | U183: 288
A184: 183 | B184: CAN | C184: MB | D184: Swan River | E184: 6100 | F184: Très-froid | G184: -34 | H184: 29 | Q184: =_xlfn.IFNA(LOOKUP(2, 1/((COUNTIF($Q$1:Q183, $D$2:$D$1686)=0)*($N$3=$C$2:$C$1686)), $D$2:$D$1686),"") ->  | T184: =IFERROR(INDEX($Q$2:$Q$231,MATCH(ROWS($Q$2:Q184),COUNTIF($Q$2:$Q$231,"<="&$Q$2:$Q$231),0)),0) -> Rock-Island | U184: 289
A185: 184 | B185: CAN | C185: MB | D185: The Pas | E185: 6480 | F185: Très-froid | G185: -36 | H185: 28 | Q185: =_xlfn.IFNA(LOOKUP(2, 1/((COUNTIF($Q$1:Q184, $D$2:$D$1686)=0)*($N$3=$C$2:$C$1686)), $D$2:$D$1686),"") ->  | T185: =IFERROR(INDEX($Q$2:$Q$231,MATCH(ROWS($Q$2:Q185),COUNTIF($Q$2:$Q$231,"<="&$Q$2:$Q$231),0)),0) -> Rosemère | U185: 290
A186: 185 | B186: CAN | C186: MB | D186: Thompson | E186: 7600 | F186: Subarctique | G186: -40 | H186: 27 | Q186: =_xlfn.IFNA(LOOKUP(2, 1/((COUNTIF($Q$1:Q185, $D$2:$D$1686)=0)*($N$3=$C$2:$C$1686)), $D$2:$D$1686),"") ->  | T186: =IFERROR(INDEX($Q$2:$Q$231,MATCH(ROWS($Q$2:Q186),COUNTIF($Q$2:$Q$231,"<="&$Q$2:$Q$231),0)),0) -> Rouyn | U186: 291
A187: 186 | B187: CAN | C187: MB | D187: Virden | E187: 5620 | F187: Très-froid | G187: -33 | H187: 30 | Q187: =_xlfn.IFNA(LOOKUP(2, 1/((COUNTIF($Q$1:Q186, $D$2:$D$1686)=0)*($N$3=$C$2:$C$1686)), $D$2:$D$1686),"") ->  | T187: =IFERROR(INDEX($Q$2:$Q$231,MATCH(ROWS($Q$2:Q187),COUNTIF($Q$2:$Q$231,"<="&$Q$2:$Q$231),0)),0) -> Saguenay | U187: 292
A188: 187 | B188: CAN | C188: MB | D188: Winnipeg | E188: 5670 | F188: Très-froid | G188: -33 | H188: 30 | Q188: =_xlfn.IFNA(LOOKUP(2, 1/((COUNTIF($Q$1:Q187, $D$2:$D$1686)=0)*($N$3=$C$2:$C$1686)), $D$2:$D$1686),"") ->  | T188: =IFERROR(INDEX($Q$2:$Q$231,MATCH(ROWS($Q$2:Q188),COUNTIF($Q$2:$Q$231,"<="&$Q$2:$Q$231),0)),0) -> Saguenay (Bagotville) | U188: 293
A189: 188 | B189: CAN | C189: NB | D189: Alma | E189: 4500 | F189: Très-froid | G189: -21 | H189: 26 | Q189: =_xlfn.IFNA(LOOKUP(2, 1/((COUNTIF($Q$1:Q188, $D$2:$D$1686)=0)*($N$3=$C$2:$C$1686)), $D$2:$D$1686),"") ->  | T189: =IFERROR(INDEX($Q$2:$Q$231,MATCH(ROWS($Q$2:Q189),COUNTIF($Q$2:$Q$231,"<="&$Q$2:$Q$231),0)),0) -> Saguenay (Jonquière) | U189: 294
A190: 189 | B190: CAN | C190: NB | D190: Bathurst | E190: 5020 | F190: Très-froid | G190: -23 | H190: 30 | Q190: =_xlfn.IFNA(LOOKUP(2, 1/((COUNTIF($Q$1:Q189, $D$2:$D$1686)=0)*($N$3=$C$2:$C$1686)), $D$2:$D$1686),"") ->  | T190: =IFERROR(INDEX($Q$2:$Q$231,MATCH(ROWS($Q$2:Q190),COUNTIF($Q$2:$Q$231,"<="&$Q$2:$Q$231),0)),0) -> Saguenay (Kénogami) | U190: 295
A191: 190 | B191: CAN | C191: NB | D191: Campbellton | E191: 5500 | F191: Très-froid | G191: -26 | H191: 29 | Q191: =_xlfn.IFNA(LOOKUP(2, 1/((COUNTIF($Q$1:Q190, $D$2:$D$1686)=0)*($N$3=$C$2:$C$1686)), $D$2:$D$1686),"") ->  | T191: =IFERROR(INDEX($Q$2:$Q$231,MATCH(ROWS($Q$2:Q191),COUNTIF($Q$2:$Q$231,"<="&$Q$2:$Q$231),0)),0) -> Saint-Eustache | U191: 296
A192: 191 | B192: CAN | C192: NB | D192: Edmundston | E192: 5320 | F192: Très-froid | G192: -27 | H192: 28 | Q192: =_xlfn.IFNA(LOOKUP(2, 1/((COUNTIF($Q$1:Q191, $D$2:$D$1686)=0)*($N$3=$C$2:$C$1686)), $D$2:$D$1686),"") ->  | T192: =IFERROR(INDEX($Q$2:$Q$231,MATCH(ROWS($Q$2:Q192),COUNTIF($Q$2:$Q$231,"<="&$Q$2:$Q$231),0)),0) -> Saint-Jean-sur-Richelieu | U192: 297
A193: 192 | B193: CAN | C193: NB | D193: Fredericton | E193: 4670 | F193: Très-froid | G193: -24 | H193: 29 | Q193: =_xlfn.IFNA(LOOKUP(2, 1/((COUNTIF($Q$1:Q192, $D$2:$D$1686)=0)*($N$3=$C$2:$C$1686)), $D$2:$D$1686),"") ->  | T193: =IFERROR(INDEX($Q$2:$Q$231,MATCH(ROWS($Q$2:Q193),COUNTIF($Q$2:$Q$231,"<="&$Q$2:$Q$231),0)),0) -> Salaberry-de-Valleyfield | U193: 298
A194: 193 | B194: CAN | C194: NB | D194: Gagetown | E194: 4460 | F194: Froid-humide | G194: -24 | H194: 29 | Q194: =_xlfn.IFNA(LOOKUP(2, 1/((COUNTIF($Q$1:Q193, $D$2:$D$1686)=0)*($N$3=$C$2:$C$1686)), $D$2:$D$1686),"") ->  | T194: =IFERROR(INDEX($Q$2:$Q$231,MATCH(ROWS($Q$2:Q194),COUNTIF($Q$2:$Q$231,"<="&$Q$2:$Q$231),0)),0) -> Schefferville | U194: 299
A195: 194 | B195: CAN | C195: NB | D195: Grand Falls | E195: 5300 | F195: Très-froid | G195: -27 | H195: 28 | Q195: =_xlfn.IFNA(LOOKUP(2, 1/((COUNTIF($Q$1:Q194, $D$2:$D$1686)=0)*($N$3=$C$2:$C$1686)), $D$2:$D$1686),"") ->  | T195: =IFERROR(INDEX($Q$2:$Q$231,MATCH(ROWS($Q$2:Q195),COUNTIF($Q$2:$Q$231,"<="&$Q$2:$Q$231),0)),0) -> Senneterre | U195: 300 | V195: =IFERROR(INDEX($T$2:$T$231,U195,1),"") -> 
A196: 195 | B196: CAN | C196: NB | D196: Miramichi | E196: 4950 | F196: Très-froid | G196: -24 | H196: 30 | Q196: =_xlfn.IFNA(LOOKUP(2, 1/((COUNTIF($Q$1:Q195, $D$2:$D$1686)=0)*($N$3=$C$2:$C$1686)), $D$2:$D$1686),"") ->  | T196: =IFERROR(INDEX($Q$2:$Q$231,MATCH(ROWS($Q$2:Q196),COUNTIF($Q$2:$Q$231,"<="&$Q$2:$Q$231),0)),0) -> Sept-Îles | U196: =U195+1 -> 301
A197: 196 | B197: CAN | C197: NB | D197: Moncton | E197: 4680 | F197: Très-froid | G197: -23 | H197: 28 | Q197: =_xlfn.IFNA(LOOKUP(2, 1/((COUNTIF($Q$1:Q196, $D$2:$D$1686)=0)*($N$3=$C$2:$C$1686)), $D$2:$D$1686),"") ->  | T197: =IFERROR(INDEX($Q$2:$Q$231,MATCH(ROWS($Q$2:Q197),COUNTIF($Q$2:$Q$231,"<="&$Q$2:$Q$231),0)),0) -> Shawinigan | U197: 302
A198: 197 | B198: CAN | C198: NB | D198: Oromocto | E198: 4650 | F198: Très-froid | G198: -24 | H198: 29 | Q198: =_xlfn.IFNA(LOOKUP(2, 1/((COUNTIF($Q$1:Q197, $D$2:$D$1686)=0)*($N$3=$C$2:$C$1686)), $D$2:$D$1686),"") ->  | T198: =IFERROR(INDEX($Q$2:$Q$231,MATCH(ROWS($Q$2:Q198),COUNTIF($Q$2:$Q$231,"<="&$Q$2:$Q$231),0)),0) -> Shawville | U198: 303
A199: 198 | B199: CAN | C199: NB | D199: Sackville | E199: 4590 | F199: Très-froid | G199: -22 | H199: 27 | Q199: =_xlfn.IFNA(LOOKUP(2, 1/((COUNTIF($Q$1:Q198, $D$2:$D$1686)=0)*($N$3=$C$2:$C$1686)), $D$2:$D$1686),"") ->  | T199: =IFERROR(INDEX($Q$2:$Q$231,MATCH(ROWS($Q$2:Q199),COUNTIF($Q$2:$Q$231,"<="&$Q$2:$Q$231),0)),0) -> Sherbrooke | U199: 304
A200: 199 | B200: CAN | C200: NB | D200: Saint Andrews | E200: 4680 | F200: Très-froid | G200: -22 | H200: 25 | Q200: =_xlfn.IFNA(LOOKUP(2, 1/((COUNTIF($Q$1:Q199, $D$2:$D$1686)=0)*($N$3=$C$2:$C$1686)), $D$2:$D$1686),"") ->  | T200: =IFERROR(INDEX($Q$2:$Q$231,MATCH(ROWS($Q$2:Q200),COUNTIF($Q$2:$Q$231,"<="&$Q$2:$Q$231),0)),0) -> Sillery | U200: 305
... 1486 more rows

Sheet Étape 5 Sélectionner des TP-Air
A1: ÉTAPE 5 : DÉTERMINER ET SÉLECTIONNER UNE THERMOPOMPE À AIR CORRESPONDANT AUX EXIGENCES CLÉS | V1: DO NOT TOUCH THESE CELLS
A2: Climate Inputs | AB2: Subarctic
A3: Paramètres d'analyse | G3: Notes: | W3: 1 | AB3: Very Cold
A4: Sommaire du climat (sélectionné à l'étape 3) | W4: 2 | AB4: Cold/Dry
A5: Site | B5: ='Étape 3 Charges de Conception'!B7 -> Varennes | C5: ='Étape 3 Charges de Conception'!B6 -> QC | D5: ='Étape 3 Charges de Conception'!B5 -> CAN | G5: Les courbes représentatives ne sont activées que si les données de chauffage fournies sont insuffisantes | W5: 3 | AB5: Cold/Humid
A6: Zone climatique | B6: ='Étape 3 Charges de Conception'!B8 -> Très-froid | G6: Les points de données supplémentaires saisis par l'utilisateur doivent être saisis en ordre décroissant de température extérieure | W6: 4 | AB6: Marine
A7: DJC (Métrique) | B7: ='Étape 3 Charges de Conception'!B9 -> 4500 | G7: Tous les points de données doivent être saisis en ordre | AB7: Mixed/Humid
A8: Sélection : Thermopompes à examiner | B8: ='Étape 3 Charges de Conception'!B7 -> Varennes | G8: Consultez l'onglet des zones climatiques pour déterminer la zone climatique la plus proche de votre site | W8: =IF(A27="","","Étage Supérieur") ->  | X8: =IF(F27="","","Étage Supérieur") -> Étage Supérieur | Y8: =IF(K27="","","Étage Supérieur") -> Étage Supérieur | Z8: =IF(P27="","","Étage Supérieur") -> Étage Supérieur | AB8: Hot/Dry
A9: # thermopompes à examiner | B9: 2 | G9: Attention: Les boutons de rafraîchissement régleront toutes les données à zéro dans la section des points de données supplémentaires. | W9: =IF(A27="","","Étage Inférieur") ->  | X9: =IF(F27="","","Étage Inférieur") -> Étage Inférieur | Y9: =IF(K27="","","Étage Inférieur") -> Étage Inférieur | Z9: =IF(P27="","","Étage Inférieur") -> Étage Inférieur | AB9: Hot/Humid
G10: N'utilisez le rafraîchissement que si vous modifiez le type de thermopompe, saisissez des données pour un autre modèle de thermopompe ou choisissez de saisir le COP/EER ou la puissance
W11: =IF(OR(B25="Conduit Central",B25="Mini-bibloc avec conduit"),"Monoétagé",IF(B25="Sans conduit, une seule zone","Variable (ordinaire)",IF(B25="Sans conduit, Plusieurs zones","Variable (ordinaire)",""))) -> Monoétagé
G12: Référence | W12: =IF(OR(B25="Conduit Central",B25="Mini-bibloc avec conduit"),"Deux étages",IF(B25="Sans conduit, une seule zone","Variable (climat froid)",IF(B25="Sans conduit, Plusieurs zones","Variable (climat froid)",""))) -> Deux étages
A13: Conditions intérieures pour la sélection de thermopompe | W13: =IF(OR(B25="Conduit Central",B25="Mini-bibloc avec conduit"),"Variable","") -> Variable
A14: Chuaffage: | B14: =IF('Introduction & Options d''Unité'!B12="Métrique",21.1,70)&'Étape 3 Charges de Conception'!C13&" Température du thermomètre sec " -> 70F Température du thermomètre sec | G14: Cette section réfère aux pages 33 à 45 du Guide de dimensionnement des thermopompes à air.
A16: Refroidissement: | B16: =IF('Introduction & Options d''Unité'!B12="Métrique",24,75)&'Étape 3 Charges de Conception'!C13&" Température du thermomètre sec " -> 75F Température du thermomètre sec | G16: Après avoir effectué l'étape 5, vous aurez: | W16: =IF('Introduction & Options d''Unité'!$B$12="Métrique","@ -8.3C","@ 17F") -> @ 17F | X16: =IF('Introduction & Options d''Unité'!$B$12="Métrique","@ -8.3C","@ 17F") -> @ 17F | Y16: =IF('Introduction & Options d''Unité'!$B$12="Métrique","@ -8.3C","@ 17F") -> @ 17F | Z16: =IF('Introduction & Options d''Unité'!$B$12="Métrique","@ -8.3C","@ 17F") -> @ 17F
B17: =IF('Introduction & Options d''Unité'!B12="Métrique",17,63)&'Étape 3 Charges de Conception'!C13&" Température du thermomètre mouillé " -> 63F Température du thermomètre mouillé | G17: Sélectionné un modèle et une taille de thermopompe à air qui convient le mieux aux exigences de l'application et aux attentes du client définies par les options sélectionnées aux ÉTAPES 1 à 4. | W17: =IF('Introduction & Options d''Unité'!$B$12="Métrique","@ 8.3C","@ 47F") -> @ 47F | X17: =IF('Introduction & Options d''Unité'!$B$12="Métrique","@ 8.3C","@ 47F") -> @ 47F | Y17: =IF('Introduction & Options d''Unité'!$B$12="Métrique","@ 8.3C","@ 47F") -> @ 47F | Z17: =IF('Introduction & Options d''Unité'!$B$12="Métrique","@ 8.3C","@ 47F") -> @ 47F
A18: Données de la thermopompe | W18: =IF(B37="Oui","@ "&'Étape 3 Charges de Conception'!B13&'Étape 3 Charges de Conception'!C13,IFERROR(IF(INDEX('HP Calcs'!B4:B20,MATCH('HP Calcs'!J18,'HP Calcs'!A4:A20,1))="-","","@ "&'Étape 3 Charges de Conception'!B13&'Étape 3 Charges de Conception'!C13),"")) ->  | X18: =IF(G37="Oui","@ "&'Étape 3 Charges de Conception'!B13&'Étape 3 Charges de Conception'!C13,IFERROR(IF(INDEX('HP Calcs'!B26:B42,MATCH('HP Calcs'!J18,'HP Calcs'!A26:A42,1))="-","","@ "&'Étape 3 Charges de Conception'!B13&'Étape 3 Charges de Conception'!C13),"")) ->  | Y18: =IF(L37="Oui","@ "&'Étape 3 Charges de Conception'!B13&'Étape 3 Charges de Conception'!C13,IFERROR(IF(INDEX('HP Calcs'!B48:B64,MATCH('HP Calcs'!J18,'HP Calcs'!A48:A64,1))="-","","@ "&'Étape 3 Charges de Conception'!B13&'Étape 3 Charges de Conception'!C13),"")) ->  | Z18: =IF(B37="Oui","@ "&'Étape 3 Charges de Conception'!B13&'Étape 3 Charges de Conception'!C13,IFERROR(IF(INDEX('HP Calcs'!B70:B86,MATCH('HP Calcs'!J18,'HP Calcs'!A70:A86,1))="-","","@ "&'Étape 3 Charges de Conception'!B13&'Étape 3 Charges de Conception'!C13),"")) -> 
A19: Thermopompe #1 | F19: Thermopompe #2 | K19: Thermopompe #3 | P19: Thermopompe #4
A20: Thermopompe #1 | F20: Thermopompe #2 | K20: Thermopompe #3 | P20: Thermopompe #4
A21: Modèle | F21: Modèle | K21: Modèle | P21: Modèle
A22: Niveau de bruit | C22: dB(A) | F22: Niveau de bruit | H22: dB(A) | K22: Niveau de bruit | M22: dB(A) | P22: Niveau de bruit | R22: dB(A)
A23: Débit d'air maximum nominal | C23: CFM | F23: Débit d'air maximum nominal | H23: CFM | K23: Débit d'air maximum nominal | M23: CFM | P23: Débit d'air maximum nominal | R23: CFM
A24: Type de saisie de données | B24: =IF(OR(B32=0,ISBLANK(B32),B33=0,ISBLANK(B33)),"Courbe représentative","Courbe saisie par l'utilisateur") -> Courbe saisie par l'utilisateur | F24: Type de saisie de données | G24: =IF(OR(G32=0,ISBLANK(G32),G33=0,ISBLANK(G33)),"Courbe représentative","Courbe saisie par l'utilisateur") -> Courbe saisie par l'utilisateur | K24: Type de saisie de données | L24: =IF(OR(L32=0,ISBLANK(L32),L33=0,ISBLANK(L33)),"Courbe représentative","Courbe saisie par l'utilisateur") -> Courbe saisie par l'utilisateur | P24: Type de saisie de données | Q24: =IF(OR(Q32=0,ISBLANK(Q32),Q33=0,ISBLANK(Q33)),"Courbe représentative","Courbe saisie par l'utilisateur") -> Courbe saisie par l'utilisateur
A25: Intégration de thermopompe | B25: =IF('Étape 1 Configuration de TP-Air'!B6='Étape 1 Configuration de TP-Air'!T2,"Conduit Central",IF('Étape 1 Configuration de TP-Air'!B6='Étape 1 Configuration de TP-Air'!T3,"Sans conduit, une seule zone",IF('Étape 1 Configuration de TP-Air'!B6='Étape 1 Configuration de TP-Air'!T4,"Sans conduit, Plusieurs zones",IF('Étape 1 Configuration de TP-Air'!B6='Étape 1 Configuration de TP-Air'!T5,"Mini-bibloc avec conduit","")))) -> Conduit Central | F25: Intégration de thermopompe | G25: =IF('Étape 1 Configuration de TP-Air'!B6='Étape 1 Configuration de TP-Air'!T2,"Conduit Central",IF('Étape 1 Configuration de TP-Air'!B6='Étape 1 Configuration de TP-Air'!T3,"Sans conduit, une seule zone",IF('Étape 1 Configuration de TP-Air'!B6='Étape 1 Configuration de TP-Air'!T4,"Sans conduit, Plusieurs zones",IF('Étape 1 Configuration de TP-Air'!B6='Étape 1 Configuration de TP-Air'!T5,"Mini-bibloc avec conduit","")))) -> Conduit Central | K25: Intégration de thermopompe | L25: =IF('Étape 1 Configuration de TP-Air'!B6='Étape 1 Configuration de TP-Air'!T2,"Conduit Central",IF('Étape 1 Configuration de TP-Air'!B6='Étape 1 Configuration de TP-Air'!T3,"Sans conduit, une seule zone",IF('Étape 1 Configuration de TP-Air'!B6='Étape 1 Configuration de TP-Air'!T4,"Sans conduit, Plusieurs zones",IF('Étape 1 Configuration de TP-Air'!B6='Étape 1 Configuration de TP-Air'!T5,"Mini-bibloc avec conduit","")))) -> Conduit Central | P25: Intégration de thermopompe | Q25: =IF('Étape 1 Configuration de TP-Air'!B6='Étape 1 Configuration de TP-Air'!T2,"Conduit Central",IF('Étape 1 Configuration de TP-Air'!B6='Étape 1 Configuration de TP-Air'!T3,"Sans conduit, une seule zone",IF('Étape 1 Configuration de TP-Air'!B6='Étape 1 Configuration de TP-Air'!T4,"Sans conduit, Plusieurs zones",IF('Étape 1 Configuration de TP-Air'!B6='Étape 1 Configuration de TP-Air'!T5,"Mini-bibloc avec conduit","")))) -> Conduit Central
A26: Type de thermopompe | B26: Monoétagé | F26: Type de thermopompe | G26: Deux étages | K26: Type de thermopompe | L26: Variable | P26: Type de thermopompe | Q26: Variable
A27: =IF(OR(B26="Deux étages",B26="Variable",B26="Variable (ordinaire)",B26="Variable (climat froid)"),"Condition nominale : Étage supérieur/inférieur","") ->  | B27: Étage Supérieur | F27: =IF(OR(G26="Deux étages",G26="Variable",G26="Variable (ordinaire)",G26="Variable (climat froid)"),"Condition nominale : Étage supérieur/inférieur","") -> Condition nominale : Étage supérieur/inférieur | G27: Étage Supérieur | K27: =IF(OR(L26="Deux étages",L26="Variable",L26="Variable (ordinaire)",L26="Variable (climat froid)"),"Condition nominale : Étage supérieur/inférieur","") -> Condition nominale : Étage supérieur/inférieur | L27: Étage Supérieur | P27: =IF(OR(Q26="Deux étages",Q26="Variable",Q26="Variable (ordinaire)",Q26="Variable (climat froid)"),"Condition nominale : Étage supérieur/inférieur","") -> Condition nominale : Étage supérieur/inférieur | Q27: Étage Inférieur
A28: Option de dimensionnement | B28: =IF('Étape 4 Dimensionnement '!B6='Étape 4 Dimensionnement '!T2,"A",IF('Étape 4 Dimensionnement '!B6:F6='Étape 4 Dimensionnement '!T3,"B",IF('Étape 4 Dimensionnement '!B6:F6='Étape 4 Dimensionnement '!T4,"C",IF('Étape 4 Dimensionnement '!B6:F6='Étape 4 Dimensionnement '!T5,"D","")))) -> C | F28: Option de dimensionnement | G28: =IF('Étape 4 Dimensionnement '!B6='Étape 4 Dimensionnement '!T2,"A",IF('Étape 4 Dimensionnement '!B6='Étape 4 Dimensionnement '!T3,"B",IF('Étape 4 Dimensionnement '!B6='Étape 4 Dimensionnement '!T4,"C",IF('Étape 4 Dimensionnement '!B6='Étape 4 Dimensionnement '!T5,"D","")))) -> C | K28: Option de dimensionnement | L28: =IF('Étape 4 Dimensionnement '!B6='Étape 4 Dimensionnement '!T2,"A",IF('Étape 4 Dimensionnement '!B6='Étape 4 Dimensionnement '!T3,"B",IF('Étape 4 Dimensionnement '!B6='Étape 4 Dimensionnement '!T4,"C",IF('Étape 4 Dimensionnement '!B6='Étape 4 Dimensionnement '!T5,"D","")))) -> C | P28: Option de dimensionnement | Q28: =IF('Étape 4 Dimensionnement '!B6='Étape 4 Dimensionnement '!T2,"A",IF('Étape 4 Dimensionnement '!B6='Étape 4 Dimensionnement '!T3,"B",IF('Étape 4 Dimensionnement '!B6='Étape 4 Dimensionnement '!T4,"C",IF('Étape 4 Dimensionnement '!B6='Étape 4 Dimensionnement '!T5,"D","")))) -> C
A29: Puissance/COP de chauffage | B29: COP | F29: Puissance/COP de chauffage | G29: COP | K29: Puissance/COP de chauffage | L29: COP | P29: Puissance/COP de chauffage | Q29: COP
A30: Capacité de chauffage | B30: 24000 | C30: =IF('Introduction & Options d''Unité'!$B$12="Métrique","kW","BTU/h") -> BTU/h | D30: =IF('Introduction & Options d''Unité'!$B$12="Métrique","@ 8.3C","@ 47F") -> @ 47F | F30: Capacité de chauffage | G30: 36000 | H30: =IF('Introduction & Options d''Unité'!$B$12="Métrique","kW","BTU/h") -> BTU/h | I30: =IF('Introduction & Options d''Unité'!$B$12="Métrique","@ 8.3C","@ 47F") -> @ 47F | K30: Capacité de chauffage | L30: 48000 | M30: =IF('Introduction & Options d''Unité'!$B$12="Métrique","kW","BTU/h") -> BTU/h | N30: =IF('Introduction & Options d''Unité'!$B$12="Métrique","@ 8.3C","@ 47F") -> @ 47F | P30: Capacité de chauffage | Q30: 20000 | R30: =IF('Introduction & Options d''Unité'!$B$12="Métrique","kW","BTU/h") -> BTU/h | S30: =IF('Introduction & Options d''Unité'!$B$12="Métrique","@ 8.3C","@ 47F") -> @ 47F
A31: =IF(B29="Puissance","Puissance de chauffage","COP de chauffage") -> COP de chauffage | B31: 3.2 | C31: =IF(B29="Puissance","kW","") ->  | D31: =IF(D30="","",D30) -> @ 47F | F31: =IF(G29="Puissance","Puissance de chauffage","COP de chauffage") -> COP de chauffage | G31: 3.1 | H31: =IF(G29="Puissance","kW","") ->  | I31: =IF(I30="","",I30) -> @ 47F | K31: =IF(L29="Puissance","Puissance de chauffage","COP de chauffage") -> COP de chauffage | L31: 3.5 | M31: =IF(L29="Puissance","kW","") ->  | N31: =IF(N30="","",N30) -> @ 47F | P31: =IF(Q29="Puissance","Puissance de chauffage","COP de chauffage") -> COP de chauffage | Q31: 3 | R31: =IF(Q29="Puissance","kW","") ->  | S31: =IF(S30="","",S30) -> @ 47F | X31: X-axis | Y31: Y-axis
A32: Capacité de chauffage | B32: 24000 | C32: =IF('Introduction & Options d''Unité'!$B$12="Métrique","kW","BTU/h") -> BTU/h | D32: =IF('Introduction & Options d''Unité'!$B$12="Métrique","@ -8.3C","@ 17F") -> @ 17F | F32: Capacité de chauffage | G32: 36000 | H32: =IF('Introduction & Options d''Unité'!$B$12="Métrique","kW","BTU/h") -> BTU/h | I32: =IF('Introduction & Options d''Unité'!$B$12="Métrique","@ -8.3C","@ 17F") -> @ 17F | K32: Capacité de chauffage | L32: 48000 | M32: =IF('Introduction & Options d''Unité'!$B$12="Métrique","kW","BTU/h") -> BTU/h | N32: =IF('Introduction & Options d''Unité'!$B$12="Métrique","@ -8.3C","@ 17F") -> @ 17F | P32: Capacité de chauffage | Q32: 20000 | R32: =IF('Introduction & Options d''Unité'!$B$12="Métrique","kW","BTU/h") -> BTU/h | S32: =IF('Introduction & Options d''Unité'!$B$12="Métrique","@ -8.3C","@ 17F") -> @ 17F | W32: Max | X32: ='Design Load Calcs'!O12 -> 110 | Y32: =CEILING(MAX('Étape 3 Charges de Conception'!B12,'HP Calcs'!D86,'HP Calcs'!D64,'HP Calcs'!D42,'HP Calcs'!D20),10000) -> 
A33: =IF(B29="Puissance","Puissance de chauffage","COP de chauffage") -> COP de chauffage | B33: 2.1 | C33: =IF(B29="Puissance","kW","") ->  | D33: =IF(D32="","",D32) -> @ 17F | F33: =IF(G29="Puissance","Puissance de chauffage","COP de chauffage") -> COP de chauffage | G33: 2.55 | H33: =H31 ->  | I33: =IF(I32="","",I32) -> @ 17F | K33: =IF(L29="Puissance","Puissance de chauffage","COP de chauffage") -> COP de chauffage | L33: 3.2 | M33: =M31 ->  | N33: =IF(N32="","",N32) -> @ 17F | P33: =IF(Q29="Puissance","Puissance de chauffage","COP de chauffage") -> COP de chauffage | Q33: 2.1 | R33: =R31 ->  | S33: =IF(S32="","",S32) -> @ 17F | W33: Min | X33: ='Design Load Calcs'!O6 -> -20 | Y33: 0
A34: Puissance/EER de refroidissement | B34: EER | F34: Puissance/EER de refroidissement | G34: EER | K34: Puissance/EER de refroidissement | L34: EER | P34: Puissance/EER de refroidissement | Q34: EER | W34: MajorUnit | X34: 10 | Y34: =IF(NOT('Introduction & Options d''Unité'!B12="Métrique"),10000,2) -> 10000
A35: Capacité de refroidissement | B35: 24000 | C35: =IF('Introduction & Options d''Unité'!$B$12="Métrique","kW","BTU/h") -> BTU/h | D35: =IF('Introduction & Options d''Unité'!$B$12="Métrique","@ 35C","@ 95F") -> @ 95F | E35: thermomètre sec | F35: Capacité de refroidissement | G35: 36000 | H35: =IF('Introduction & Options d''Unité'!$B$12="Métrique","kW","BTU/h") -> BTU/h | I35: =IF('Introduction & Options d''Unité'!$B$12="Métrique","@ 35C","@ 95F") -> @ 95F | J35: thermomètre sec | K35: Capacité de refroidissement | L35: 48000 | M35: =IF('Introduction & Options d''Unité'!$B$12="Métrique","kW","BTU/h") -> BTU/h | N35: =IF('Introduction & Options d''Unité'!$B$12="Métrique","@ 35C","@ 95F") -> @ 95F | O35: thermomètre sec | P35: Capacité de refroidissement | Q35: 20000 | R35: =IF('Introduction & Options d''Unité'!$B$12="Métrique","kW","BTU/h") -> BTU/h | S35: =IF('Introduction & Options d''Unité'!$B$12="Métrique","@ 35C","@ 95F") -> @ 95F | T35: thermomètre sec
A36: =IF(B34="Puissance","Puissance de refroidissement","EER de refroidissement") -> EER de refroidissement | B36: 13 | C36: =IF(B34="Puissance","kW","") ->  | D36: =IF(D35="","",D35) -> @ 95F | E36: thermomètre sec | F36: =IF(G34="Puissance","Puissance de refroidissement","EER de refroidissement") -> EER de refroidissement | G36: 23 | H36: =IF(G34="Puissance","kW","") ->  | I36: =IF(I35="","",I35) -> @ 95F | J36: thermomètre sec | K36: =IF(L34="Puissance","Puissance de refroidissement","EER de refroidissement") -> EER de refroidissement | L36: 23 | M36: =IF(L34="Puissance","kW","") ->  | N36: =IF(N35="","",N35) -> @ 95F | O36: thermomètre sec | P36: =IF(Q34="Puissance","Puissance de refroidissement","EER de refroidissement") -> EER de refroidissement | Q36: 2 | R36: =IF(Q34="Puissance","kW","") ->  | S36: =IF(S35="","",S35) -> @ 95F | T36: thermomètre sec | X36: X-axis | Y36: Y-axis
A37: HP Low Temp Cut-off | B37: 32 | F37: HP Low Temp Cut-off | G37: 32 | K37: HP Low Temp Cut-off | L37: 32 | P37: HP Low Temp Cut-off | Q37: 32 | W37: Max | Y37: =CEILING(MAX('Étape 3 Charges de Conception'!#REF!,'HP Calcs'!D91,'HP Calcs'!D69,'HP Calcs'!D47,'HP Calcs'!D25),10000) -> 
A38: =IF(OR(B37="Non",B37="Pas Certain"),"","Limite de basse température") -> Limite de basse température | B38: -13 | D38: =IF('Introduction & Options d''Unité'!B12="Métrique","C","F") -> F | F38: =IF(OR(G37="Non",G37="Pas Certain"),"","Limite de basse température") -> Limite de basse température | G38: -13 | I38: =IF('Introduction & Options d''Unité'!B12="Métrique","C","F") -> F | K38: =IF(OR(L37="Non",L37="Pas Certain"),"","Limite de basse température") -> Limite de basse température | L38: -13 | N38: =IF('Introduction & Options d''Unité'!B12="Métrique","C","F") -> F | P38: =IF(OR(Q37="Non",Q37="Pas Certain"),"","Limite de basse température") -> Limite de basse température | Q38: -13 | S38: =IF('Introduction & Options d''Unité'!B12="Métrique","C","F") -> F | W38: Min | X38: =FLOOR('Load %s'!B11,10) -> -10 | Y38: 0
A39: =B26 -> Monoétagé | F39: =G26 -> Deux étages | K39: =L26 -> Variable | P39: =Q26 -> Variable | W39: MajorUnit | X39: 10 | Y39: =Y34 -> 10000
A40: Points de données supplémentaires | F40: Points de données supplémentaires | K40: Points de données supplémentaires | P40: Points de données supplémentaires
A41: ="Nombre de points supérieurs à "&IF('Introduction & Options d''Unité'!$B$12="Métrique","8.3C","47F") -> Nombre de points supérieurs à 47F | B41: 0 | C41: Limite de 5 | F41: ="Nombre de points supérieurs à "&IF('Introduction & Options d''Unité'!$B$12="Métrique","8.3C","47F") -> Nombre de points supérieurs à 47F | G41: 0 | H41: =IF(F41=" "," ","Limite de 5") -> Limite de 5 | K41: ="Nombre de points supérieurs à "&IF('Introduction & Options d''Unité'!$B$12="Métrique","8.3C","47F") -> Nombre de points supérieurs à 47F | L41: 0 | M41: Limite de 5 | P41: ="Nombre de points supérieurs à "&IF('Introduction & Options d''Unité'!$B$12="Métrique","8.3C","47F") -> Nombre de points supérieurs à 47F | Q41: 0 | R41: Limite de 5
A42: ="Nombre de points entre "&IF('Introduction & Options d''Unité'!$B$12="Métrique","8.3C","47F")&" and "&IF('Introduction & Options d''Unité'!$B$12="Métrique","-8.3C","17F") -> Nombre de points entre 47F and 17F | B42: 0 | C42: Limite de 5 | F42: ="Nombre de points entre "&IF('Introduction & Options d''Unité'!$B$12="Métrique","8.3C","47F")&" and "&IF('Introduction & Options d''Unité'!$B$12="Métrique","-8.3C","17F") -> Nombre de points entre 47F and 17F | G42: 0 | H42: Limite de 5 | K42: ="Nombre de points entre "&IF('Introduction & Options d''Unité'!$B$12="Métrique","8.3C","47F")&" and "&IF('Introduction & Options d''Unité'!$B$12="Métrique","-8.3C","17F") -> Nombre de points entre 47F and 17F | L42: 0 | M42: Limite de 5 | P42: ="Nombre de points entre "&IF('Introduction & Options d''Unité'!$B$12="Métrique","8.3C","47F")&" and "&IF('Introduction & Options d''Unité'!$B$12="Métrique","-8.3C","17F") -> Nombre de points entre 47F and 17F | Q42: 0 | R42: Limite de 5
A43: ="Nombre de points inférieurs à "&IF('Introduction & Options d''Unité'!$B$12="Métrique","-8.3C","17F") -> Nombre de points inférieurs à 17F | B43: 0 | C43: Limite de 5 | F43: ="Nombre de points inférieurs à "&IF('Introduction & Options d''Unité'!$B$12="Métrique","-8.3C","17F") -> Nombre de points inférieurs à 17F | G43: 0 | H43: Limite de 5 | K43: ="Nombre de points inférieurs à "&IF('Introduction & Options d''Unité'!$B$12="Métrique","-8.3C","17F") -> Nombre de points inférieurs à 17F | L43: 0 | M43: Limite de 5 | P43: ="Nombre de points inférieurs à "&IF('Introduction & Options d''Unité'!$B$12="Métrique","-8.3C","17F") -> Nombre de points inférieurs à 17F | Q43: 0 | R43: Limite de 5 | W43: ="@ "&ROUND('Étape 3 Charges de Conception'!B15,0)&'Étape 3 Charges de Conception'!C13 -> @ 86F
A44: ="Nombre de points supérieurs à "&IF('Introduction & Options d''Unité'!$B$12="Métrique","35C","95F") -> Nombre de points supérieurs à 95F | B44: 0 | C44: Limite de 5 | F44: ="Nombre de points supérieurs à "&IF('Introduction & Options d''Unité'!$B$12="Métrique","35C","95F") -> Nombre de points supérieurs à 95F | G44: 0 | H44: Limite de 5 | K44: ="Nombre de points supérieurs à "&IF('Introduction & Options d''Unité'!$B$12="Métrique","35C","95F") -> Nombre de points supérieurs à 95F | L44: 0 | M44: Limite de 5 | P44: ="Nombre de points supérieurs à "&IF('Introduction & Options d''Unité'!$B$12="Métrique","35C","95F") -> Nombre de points supérieurs à 95F | Q44: 0 | R44: Limite de 5 | W44: =IF('Introduction & Options d''Unité'!$B$12="Métrique","@ 35C","@ 95F") -> @ 95F
A45: ="Nombre de points inférieurs à "&IF('Introduction & Options d''Unité'!$B$12="Métrique","35C","95F") -> Nombre de points inférieurs à 95F | B45: 0 | C45: Limite de 5 | F45: ="Nombre de points inférieurs à "&IF('Introduction & Options d''Unité'!$B$12="Métrique","35C","95F") -> Nombre de points inférieurs à 95F | G45: 0 | H45: Limite de 5 | K45: ="Nombre de points inférieurs à "&IF('Introduction & Options d''Unité'!$B$12="Métrique","35C","95F") -> Nombre de points inférieurs à 95F | L45: 0 | M45: Limite de 5 | P45: ="Nombre de points inférieurs à "&IF('Introduction & Options d''Unité'!$B$12="Métrique","35C","95F") -> Nombre de points inférieurs à 95F | Q45: 0 | R45: Limite de 5
A46: =IF(B24="Courbe représentative","","Chauffage : COP ou puissance?") -> Chauffage : COP ou puissance? | B46: COP | F46: =IF(G24="Courbe représentative","","Chauffage : COP ou puissance?") -> Chauffage : COP ou puissance? | G46: COP | K46: =IF(L24="Courbe représentative","","Chauffage : COP ou puissance?") -> Chauffage : COP ou puissance? | L46: COP | P46: =IF(Q24="Courbe représentative","","Chauffage : COP ou puissance?") -> Chauffage : COP ou puissance? | Q46: Puissance | W46: Courbe saisie par l'utilisateur
A47: =IF(B24="Courbe représentative","","Refroidissement : EER ou puissance?") -> Refroidissement : EER ou puissance? | B47: EER | F47: =IF(G24="Courbe représentative","","Refroidissement : EER ou puissance?") -> Refroidissement : EER ou puissance? | G47: EER | K47: =IF(L24="Courbe représentative","","Refroidissement : EER ou puissance?") -> Refroidissement : EER ou puissance? | L47: EER | P47: =IF(Q24="Courbe représentative","","Refroidissement : EER ou puissance?") -> Refroidissement : EER ou puissance? | Q47: EER
A49: Chauffage | F49: Chauffage | K49: Chauffage | P49: Chauffage
A50: Température | B50: Capacité de chauffage | C50: Puissance de chauffage | D50: COP de chauffage (-) | F50: Température | G50: Capacité de chauffage | H50: Puissance de chauffage | I50: COP de chauffage (-) | K50: Température | L50: Capacité de chauffage | M50: Puissance de chauffage | N50: COP de chauffage (-) | P50: Température | Q50: Capacité de chauffage | R50: Puissance de chauffage | S50: COP de chauffage (-) | W50: Courbe représentative
A51: 47 | B51: 24000 | C51: 2.2 | D51: 3.2 | E51: 1 | F51: 47 | G51: 36000 | H51: 3.4 | I51: 3.1 | J51: 1 | K51: 47 | L51: 48000 | M51: 4.02 | N51: 3.5 | O51: 1 | P51: 47 | Q51: 20000 | R51: 1.953888238 | S51: 3 | T51: 1
A52: 17 | B52: 24000 | C52: 3.35 | D52: 2.1 | E52: 2 | F52: 17 | G52: 36000 | H52: 4.14 | I52: 2.55 | J52: 2 | K52: 17 | L52: 48000 | M52: 4.4 | N52: 3.2 | O52: 2 | P52: 17 | Q52: 20000 | R52: 2.791268911 | S52: 2.1 | T52: 2
E53: 3 | J53: 3 | O53: 3 | T53: 3 | W53: Oui
E54: 4 | J54: 4 | O54: 4 | T54: 4 | W54: Non
E55: 5 | J55: 5 | O55: 5 | T55: 5 | W55: Pas Certain
E56: 6 | J56: 6 | O56: 6 | T56: 6
E57: 7 | J57: 7 | O57: 7 | T57: 7 | W57: Puissance
E58: 8 | J58: 8 | O58: 8 | T58: 8 | W58: COP
E59: 9 | J59: 9 | O59: 9 | T59: 9
E60: 10 | J60: 10 | O60: 10 | T60: 10
E61: 11 | J61: 11 | O61: 11 | T61: 11 | W61: EER
E62: 12 | J62: 12 | O62: 12 | T62: 12 | W62: Puissance
E63: 13 | J63: 13 | O63: 13 | T63: 13
E64: 14 | J64: 14 | O64: 14 | T64: 14 | W64: COP
E65: 15 | J65: 15 | O65: 15 | T65: 15 | W65: Puissance
E66: 16 | J66: 16 | O66: 16 | T66: 16
E67: 17 | J67: 17 | O67: 17 | P67: -22 | Q67: 12400 | R67: 1.81 | S67: 2.01 | T67: 17
A68: Refroidissement | F68: Refroidissement | K68: Refroidissement | P68: Refroidissement
A69: Température | B69: Capacité de refroidissement totale | C69: Puissance de refroidissement | D69: EER de refroidissement (-) | F69: Température | G69: Capacité de refroidissement totale | H69: Puissance de refroidissement | I69: EER de refroidissement (-) | K69: Température | L69: Capacité de refroidissement totale | M69: Puissance de refroidissement | N69: EER de refroidissement (-) | P69: Température | Q69: Capacité de refroidissement totale | R69: Puissance de refroidissement | S69: EER de refroidissement (-)
A70: 95 | B70: 24000 | C70: 1.846153846 | D70: 13 | E70: 1 | F70: 95 | G70: 36000 | H70: 1.565217391 | I70: 23 | J70: 1 | K70: 95 | L70: 48000 | M70: 2.086956522 | N70: 23 | O70: 1 | P70: 95 | Q70: 20000 | R70: 10 | S70: 2 | T70: 1 | W70: Oui
E71: 2 | J71: 2 | O71: 2 | T71: 2 | W71: Non
E72: 3 | J72: 3 | O72: 3 | T72: 3 | W72: Pas Certain
E73: 4 | J73: 4 | O73: 4 | T73: 4
E74: 5 | J74: 5 | O74: 5 | T74: 5
E75: 6 | J75: 6 | O75: 6 | T75: 6
E76: 7 | J76: 7 | O76: 7 | T76: 7
E77: 8 | J77: 8 | O77: 8 | T77: 8
E78: 9 | J78: 9 | O78: 9 | T78: 9
E79: 10 | J79: 10 | O79: 10 | T79: 10
E80: 11 | J80: 11 | O80: 11 | T80: 11
E81: 12 | J81: 12 | O81: 12 | T81: 12
E82: 13 | J82: 13 | O82: 13 | T82: 13
E83: 14 | J83: 14 | O83: 14 | T83: 14
A84: Outputs
A85: Données de conception de l'étape 5
B86: Charges de conception (Étape 3) | E86: Option de dimensionnement (Étape 4) | G86: Thermopompe sélectionnée : Étages; capacité de chauffage; capacité de refroidissement (Étape 5) | K86: Limite de température de la thermopompe | L86: Production de froid à la température de conception (% de conception) | N86: Température du point d'équilibre thermique (t-TPE) | P86: Fraction de chauffage au-dessus de la t-TPE
A87: Thermopompe #1 | B87: =IF('Étape 3 Charges de Conception'!B11='Étape 3 Charges de Conception'!T8, "Chauffage: "&ROUND('Design Load Calcs'!B23,IF('Introduction & Options d''Unité'!B12="Métrique",1,-2))&" "&'Étape 3 Charges de Conception'!C12&" à "&'Étape 3 Charges de Conception'!B13&'Étape 3 Charges de Conception'!C13&" Refroidissement: "&ROUND('Design Load Calcs'!B25,IF('Introduction & Options d''Unité'!B12="Métrique",1,-2))&" "&'Étape 3 Charges de Conception'!C14&" à "&'Étape 3 Charges de Conception'!B15&'Étape 3 Charges de Conception'!C15, "Chauffage: "&ROUND('Design Load Calcs'!B23,IF('Introduction & Options d''Unité'!B12="Métrique",1,-2))&" "&'Étape 3 Charges de Conception'!C12&" à "&'Étape 3 Charges de Conception'!B13&'Étape 3 Charges de Conception'!C13&" Refroidissement: "&ROUND('Design Load Calcs'!B25,IF('Introduction & Options d''Unité'!B12="Métrique",1,-2))&" "&'Étape 3 Charges de Conception'!C14&" à "&'Étape 3 Charges de Conception'!B15&'Étape 3 Charges de Conception'!C15) -> Chauffage: 10000 BTU/h à -11F Refroidissement: 10000 BTU/h à 86F | E87: ='Étape 4 Dimensionnement '!B6 -> Option C: Accent sur le chauffage | G87: =B26&"; "&B30&" "&C30&"; "&B35&" "&C35 -> Monoétagé; 24000 BTU/h; 24000 BTU/h | K87: =ROUND(IF(AND(OR(B37="Non",B37="Pas Certain"),B24="Courbe représentative"),'Control Strategy Calcs'!U4,IF(AND(OR(B37="Non",B37="Pas Certain"),B24="Courbe saisie par l'utilisateur"),MIN(A51:A66),B38)),0)&'Étape 3 Charges de Conception'!C13 -> -13F | L87: =ROUND(IF(B24="Courbe représentative",'HP Calcs'!H16,'HP1'!J18),IF('Introduction & Options d''Unité'!B12="Métrique",1,-2))&" "&C30&" ("&ROUND(IF(B24="Courbe représentative",'HP Calcs'!H18,'HP1'!J21),2)*100&"%)" -> 24000 BTU/h (240%) | N87: =IFERROR(ROUND(IF(B24="Courbe représentative",'HP Calcs'!X4,'HP1'!L7),0)&'Étape 3 Charges de Conception'!C13,"Aucun") -> Aucun | P87: =IF(OR(N87="None. Heat pump capacity > heating load",IFERROR(ROUND(IF(B24="Courbe représentative",'HP Calcs'!X4,'HP1'!L7),0)&'Étape 3 Charges de Conception'!C13,"None. Heat pump capacity > heating load")="None. Heat pump capacity > heating load"),"100%",IF(IF(B24="Courbe représentative",'HP Calcs'!X4,'HP1'!L7)<'Étape 3 Charges de Conception'!B13,"100%",ROUND(IF(B24="Courbe représentative",'HP Calcs'!Z4,'HP1'!L8),2)*100&"%")) -> 100%
A88: Thermopompe #2 | B88: =IF('Étape 3 Charges de Conception'!B11='Étape 3 Charges de Conception'!T8,"Chauffage: "&ROUND('Design Load Calcs'!B23,IF('Introduction & Options d''Unité'!B12="Métrique",1,-2))&" "&'Étape 3 Charges de Conception'!C12&" à "&'Étape 3 Charges de Conception'!B13&'Étape 3 Charges de Conception'!C13&" Refroidissement: "&ROUND('Design Load Calcs'!B25,IF('Introduction & Options d''Unité'!B12="Métrique",1,-2))&" "&'Étape 3 Charges de Conception'!C14&" à "&'Étape 3 Charges de Conception'!B15&'Étape 3 Charges de Conception'!C15, "Chauffage: "&ROUND('Design Load Calcs'!B23,IF('Introduction & Options d''Unité'!B12="Métrique",1,-2))&" "&'Étape 3 Charges de Conception'!C12&" à "&'Étape 3 Charges de Conception'!B13&'Étape 3 Charges de Conception'!C13&" Refroidissement: "&ROUND('Design Load Calcs'!B25,IF('Introduction & Options d''Unité'!B12="Métrique",1,-2))&" "&'Étape 3 Charges de Conception'!C14&" à "&'Étape 3 Charges de Conception'!B15&'Étape 3 Charges de Conception'!C15) -> Chauffage: 10000 BTU/h à -11F Refroidissement: 10000 BTU/h à 86F | E88: ='Étape 4 Dimensionnement '!B6 -> Option C: Accent sur le chauffage | G88: =G26&"; "&G30&" "&C30&"; "&G35&" "&C35 -> Deux étages; 36000 BTU/h; 36000 BTU/h | K88: =ROUND(IF(AND(OR(G37="Non",G37="Pas Certain"),G24="Courbe représentative"),'Control Strategy Calcs'!U6,IF(AND(OR(G37="Non",G37="Pas Certain"),G24="Courbe saisie par l'utilisateur"),MIN(F51:F66),G38)),0)&'Étape 3 Charges de Conception'!C13 -> -13F | L88: =ROUND(IF(G24="Courbe représentative",'HP Calcs'!H38,'HP2'!J18),IF('Introduction & Options d''Unité'!B12="Métrique",1,-2))&" "&C30&" ("&ROUND(IF(G24="Courbe représentative",'HP Calcs'!H40,'HP2'!J21),2)*100&"%)" -> 36000 BTU/h (360%) | N88: =IFERROR(ROUND(IF(G24="Courbe représentative",'HP Calcs'!X26,'HP2'!L7),0)&'Étape 3 Charges de Conception'!C13,"Aucun") -> Aucun | P88: =IF(OR(N88="None. Heat pump capacity > heating load",IFERROR(ROUND(IF(G24="Courbe représentative",'HP Calcs'!X26,'HP2'!L7),0)&'Étape 3 Charges de Conception'!C13,"None. Heat pump capacity > heating load")="None. Heat pump capacity > heating load"),"100%",IF(IF(G24="Courbe représentative",'HP Calcs'!X26,'HP2'!L7)<'Étape 3 Charges de Conception'!B13,"100%",ROUND(IF(G24="Courbe représentative",'HP Calcs'!Z26,'HP2'!L8),2)*100&"%")) -> 100%
A89: Thermopompe #3 | B89: =IF('Étape 3 Charges de Conception'!B11='Étape 3 Charges de Conception'!T8, "Chauffage: "&ROUND('Design Load Calcs'!B23,IF('Introduction & Options d''Unité'!B12="Métrique",1,-2))&" "&'Étape 3 Charges de Conception'!C12&" à "&'Étape 3 Charges de Conception'!B13&'Étape 3 Charges de Conception'!C13&" Refroidissement: "&ROUND('Design Load Calcs'!B25,IF('Introduction & Options d''Unité'!B12="Métrique",1,-2))&" "&'Étape 3 Charges de Conception'!C14&" à "&'Étape 3 Charges de Conception'!B15&'Étape 3 Charges de Conception'!C15, "Chauffage: "&ROUND('Design Load Calcs'!B23,IF('Introduction & Options d''Unité'!B12="Métrique",1,-2))&" "&'Étape 3 Charges de Conception'!C12&" à "&'Étape 3 Charges de Conception'!B13&'Étape 3 Charges de Conception'!C13&" Refroidissement: "&ROUND('Design Load Calcs'!B25,IF('Introduction & Options d''Unité'!B12="Métrique",1,-2))&" "&'Étape 3 Charges de Conception'!C14&" à "&'Étape 3 Charges de Conception'!B15&'Étape 3 Charges de Conception'!C15) -> Chauffage: 10000 BTU/h à -11F Refroidissement: 10000 BTU/h à 86F | E89: ='Étape 4 Dimensionnement '!B6 -> Option C: Accent sur le chauffage | G89: =L26&"; "&L30&" "&C30&"; "&L35&" "&C35 -> Variable; 48000 BTU/h; 48000 BTU/h | K89: =ROUND(IF(AND(OR(L37="Non",L37="Pas Certain"),L24="Courbe représentative"),'Control Strategy Calcs'!U8,IF(AND(OR(L37="Non",L37="Pas Certain"),L24="Courbe saisie par l'utilisateur"),MIN(K51:K66),L38)),0)&'Étape 3 Charges de Conception'!C13 -> -13F | L89: =ROUND(IF(L24="Courbe représentative",'HP Calcs'!H60,'HP3'!J18),IF('Introduction & Options d''Unité'!B12="Métrique",1,-2))&" "&C30&" ("&ROUND(IF(L24="Courbe représentative",'HP Calcs'!H62,'HP3'!J21),2)*100&"%)" -> 48000 BTU/h (480%) | N89: =IFERROR(ROUND(IF(L24="Courbe représentative",'HP Calcs'!X48,'HP3'!L7),0)&'Étape 3 Charges de Conception'!C13,"Aucun") -> Aucun | P89: =IF(OR(N89="None. Heat pump capacity > heating load",IFERROR(ROUND(IF(L24="Courbe représentative",'HP Calcs'!X48,'HP3'!L7),0)&'Étape 3 Charges de Conception'!C13,"None. Heat pump capacity > heating load")="None. Heat pump capacity > heating load"),"100%",IF(IF(L24="Courbe représentative",'HP Calcs'!X48,'HP3'!L7)<'Étape 3 Charges de Conception'!B13,"100%",ROUND(IF(L24="Courbe représentative",'HP Calcs'!Z48,'HP3'!L8),2)*100&"%")) -> 100%
A90: Thermopompe #4 | B90: =IF('Étape 3 Charges de Conception'!B11='Étape 3 Charges de Conception'!T8, "Chauffage: "&ROUND('Design Load Calcs'!B23,IF('Introduction & Options d''Unité'!B12="Métrique",1,-2))&" "&'Étape 3 Charges de Conception'!C12&" à "&'Étape 3 Charges de Conception'!B13&'Étape 3 Charges de Conception'!C13&" Refroidissement: "&ROUND('Design Load Calcs'!B25,IF('Introduction & Options d''Unité'!B12="Métrique",1,-2))&" "&'Étape 3 Charges de Conception'!C14&" à "&'Étape 3 Charges de Conception'!B15&'Étape 3 Charges de Conception'!C15, "Chauffage: "&ROUND('Design Load Calcs'!B23,IF('Introduction & Options d''Unité'!B12="Métrique",1,-2))&" "&'Étape 3 Charges de Conception'!C12&" à "&'Étape 3 Charges de Conception'!B13&'Étape 3 Charges de Conception'!C13&" Refroidissement: "&ROUND('Design Load Calcs'!B25,IF('Introduction & Options d''Unité'!B12="Métrique",1,-2))&" "&'Étape 3 Charges de Conception'!C14&" à "&'Étape 3 Charges de Conception'!B15&'Étape 3 Charges de Conception'!C15) -> Chauffage: 10000 BTU/h à -11F Refroidissement: 10000 BTU/h à 86F | E90: ='Étape 4 Dimensionnement '!B6 -> Option C: Accent sur le chauffage | G90: =Q26&"; "&Q30&" "&C30&"; "&Q35&" "&C35 -> Variable; 20000 BTU/h; 20000 BTU/h | K90: =ROUND(IF(AND(OR(Q37="Non",Q37="Pas Certain"),Q24="Courbe représentative"),'Control Strategy Calcs'!U10,IF(AND(OR(Q37="Non",Q37="Pas Certain"),Q24="Courbe saisie par l'utilisateur"),MIN(P51:P66),Q38)),0)&'Étape 3 Charges de Conception'!C13 -> -13F | L90: =ROUND(IF(Q24="Courbe représentative",'HP Calcs'!H82,'HP4'!J18),IF('Introduction & Options d''Unité'!B12="Métrique",1,-2))&" "&C30&" ("&ROUND(IF(Q24="Courbe représentative",'HP Calcs'!H84,'HP4'!J21),2)*100&"%)" -> 20000 BTU/h (200%) | N90: =IFERROR(ROUND(IF(Q24="Courbe représentative",'HP Calcs'!X70,'HP4'!L7),0)&'Étape 3 Charges de Conception'!C13,"Aucun") -> Aucun | P90: =IF(OR(N90="None. Heat pump capacity > heating load",IFERROR(ROUND(IF(Q24="Courbe représentative",'HP Calcs'!X70,'HP4'!L7),0)&'Étape 3 Charges de Conception'!C13,"None. Heat pump capacity > heating load")="None. Heat pump capacity > heating load"),"100%",IF(IF(Q24="Courbe représentative",'HP Calcs'!X70,'HP4'!L7)<'Étape 3 Charges de Conception'!B13,"100%",ROUND(IF(Q24="Courbe représentative",'HP Calcs'!Z70,'HP4'!L8),2)*100&"%")) -> 100%
A98: Graphiques

Sheet Ducted Performance Tables (hidden)
A1: Ducted, Single Stage | B1: 25HNB524A* Outdoor Section With FX4DNF025 Indoor Section @ 800 CFM
A2: Heat | E2: ='Étape 3 Charges de Conception'!B13 -> -11 | F2: ='Étape 3 Charges de Conception'!B15 -> 86
A3: Temperature (F) | B3: Normalized Capacity | C3: Normalized Power
A4: -23 | B4: - | C4: -
A5: -18 | B5: - | C5: -
A6: -13 | B6: - | C6: -
A7: -8 | B7: - | C7: -
A8: -3 | B8: 0.31125 | C8: 0.8079096045
A9: 2 | B9: 0.3635416667 | C9: 0.8305084746
A10: 7 | B10: 0.4158333333 | C10: 0.8531073446
A11: 12 | B11: 0.4766666667 | C11: 0.8728813559
A12: 17 | B12: 0.5375 | C12: 0.8926553672
A13: 22 | B13: 0.5839583333 | C13: 0.906779661
A14: 27 | B14: 0.6304166667 | C14: 0.9209039548
A15: 32 | B15: 0.7 | C15: 0.9350282486
A16: 37 | B16: 0.7695833333 | C16: 0.9491525424
A17: 42 | B17: 0.8847916667 | C17: 0.9745762712
A18: 47 | B18: 1 | C18: 1
A19: 52 | B19: 1.087708333 | C19: 1.036723164
A20: 57 | B20: 1.175416667 | C20: 1.073446328
A22: Cool
A23: Temperature (F) | B23: Normalized Capacity | C23: Normalized Power
A24: 72 | B24: - | C24: -
A25: 77 | B25: 1.012 | C25: 0.8010416667
A26: 82 | B26: 0.9886414141 | C26: 0.8510206229
A27: 87 | B27: 0.9649404762 | C27: 0.9027777778
A28: 92 | B28: 0.9407589286 | C28: 0.95703125
A29: 97 | B29: 0.9157506614 | C29: 1.014384921
A30: 102 | B30: 0.8895023148 | C30: 1.076388889
A31: 107 | B31: 0.8621818182 | C31: 1.141856061
A32: 112 | B32: 0.8331414141 | C32: 1.212878788
A40: Ducted, Two Stage | B40: 25HNB924A @ 800 CFM
A41: HIGH Stage, Heat | I41: LOW Stage, Heat
A42: Temperature (F) | B42: Normalized Capacity | C42: Normalized Power | I42: Temperature (F) | J42: Normalized Capacity | K42: Normalized Power
A43: -23 | B43: - | C43: - | I43: -23 | J43: - | K43: - | L43: ='Étape 5 Sélectionner des TP-Air'!$B$30*'Ducted Performance Tables'!J43 ->  | M43: ='Étape 5 Sélectionner des TP-Air'!$B$31*'Ducted Performance Tables'!K43 ->  | N43: =(L43/3412)/K43 ->  | R43: =IF(AND(J43<>"-",J42="-",ISNUMBER(J44)),J43,"-") -> - | S43: =IF(AND(K43<>"-",K42="-",ISNUMBER(K44)),K43,"-") -> -
A44: -18 | B44: - | C44: - | I44: -18 | J44: - | K44: - | L44: ='Étape 5 Sélectionner des TP-Air'!$B$30*'Ducted Performance Tables'!J44 ->  | M44: ='Étape 5 Sélectionner des TP-Air'!$B$31*'Ducted Performance Tables'!K44 ->  | N44: =(L44/3412)/K44 ->  | R44: =IF(AND(J44<>"-",J43="-",ISNUMBER(J45)),J44,"-") -> - | S44: -
A45: -13 | B45: - | C45: - | E45: =(($E$2-INDEX('HP Calcs'!$A$4:$A$20,MATCH($E$2,'HP Calcs'!$A$4:$A$20,1)))*(INDEX(J43:J59,MATCH($E$2,'HP Calcs'!$A$4:$A$20,1)+1)-INDEX(J43:J59,MATCH($E$2,'HP Calcs'!$A$4:$A$20,1))))/(INDEX('HP Calcs'!$A$4:$A$20,MATCH($E$2,'HP Calcs'!$A$4:$A$20,1)+1)-INDEX('HP Calcs'!$A$4:$A$20,MATCH($E$2,'HP Calcs'!$A$4:$A$20,1)))+INDEX(J43:J59,MATCH($E$2,'HP Calcs'!$A$4:$A$20,1)) ->  | F45: =(($E$2-INDEX('HP Calcs'!$A$4:$A$20,MATCH($E$2,'HP Calcs'!$A$4:$A$20,1)))*(INDEX(K43:K59,MATCH($E$2,'HP Calcs'!$A$4:$A$20,1)+1)-INDEX(K43:K59,MATCH($E$2,'HP Calcs'!$A$4:$A$20,1))))/(INDEX('HP Calcs'!$A$4:$A$20,MATCH($E$2,'HP Calcs'!$A$4:$A$20,1)+1)-INDEX('HP Calcs'!$A$4:$A$20,MATCH($E$2,'HP Calcs'!$A$4:$A$20,1)))+INDEX(K43:K59,MATCH($E$2,'HP Calcs'!$A$4:$A$20,1)) ->  | I45: -13 | J45: - | K45: - | L45: ='Étape 5 Sélectionner des TP-Air'!$B$30*'Ducted Performance Tables'!J45 ->  | M45: ='Étape 5 Sélectionner des TP-Air'!$B$31*'Ducted Performance Tables'!K45 ->  | R45: - | S45: -
A46: -8 | B46: - | C46: - | I46: -8 | J46: - | K46: - | L46: ='Étape 5 Sélectionner des TP-Air'!$B$30*'Ducted Performance Tables'!J46 ->  | M46: ='Étape 5 Sélectionner des TP-Air'!$B$31*'Ducted Performance Tables'!K46 ->  | R46: - | S46: -
A47: -3 | B47: 0.3312 | C47: 0.8181818182 | D47: HP1 | E47: =IF(OR('Étape 5 Sélectionner des TP-Air'!$B$37="Non",'Étape 5 Sélectionner des TP-Air'!$B$37="Pas Certain"),0,IF(P51<0,INDEX(J43:J59,MATCH(MIN(R43:R59),J43:J59)),'HP Calcs'!$A$4*'Ducted Performance Tables'!P51+'Ducted Performance Tables'!P52)) -> 0.0352 | F47: =IF(OR('Étape 5 Sélectionner des TP-Air'!$B$37="Non",'Étape 5 Sélectionner des TP-Air'!$B$37="Pas Certain"),0,IF(Q51<0,INDEX(K43:K59,MATCH(MIN(S43:S59),K43:K59)),'HP Calcs'!$A$4*'Ducted Performance Tables'!Q51+'Ducted Performance Tables'!Q52)) -> 0.6136363636 | I47: -3 | J47: 0.158 | K47: 0.6420454545 | L47: ='Étape 5 Sélectionner des TP-Air'!$B$30*'Ducted Performance Tables'!J47 -> 3792 | M47: ='Étape 5 Sélectionner des TP-Air'!$B$31*'Ducted Performance Tables'!K47 -> 2.054545455 | N47: 1.730985901 | R47: =IF(AND(J47<>"-",J46="-",ISNUMBER(J48)),J47,"-") -> 0.158 | S47: =IF(AND(K47<>"-",K46="-",ISNUMBER(K48)),K47,"-") -> 0.6420454545
A48: 2 | B48: 0.3862 | C48: 0.8323863636 | D48: HP2 | E48: =IF(OR('Étape 5 Sélectionner des TP-Air'!$G$37="Non",'Étape 5 Sélectionner des TP-Air'!$G$37="Pas Certain"),0,IF(P51<0,INDEX(J43:J59,MATCH(MIN(R43:R59),J43:J59)),'HP Calcs'!$A$26*'Ducted Performance Tables'!P51+'Ducted Performance Tables'!P52)) -> 0.0352 | F48: =IF(OR('Étape 5 Sélectionner des TP-Air'!$G$37="Non",'Étape 5 Sélectionner des TP-Air'!$G$37="Pas Certain"),0,IF(Q51<0,INDEX(K43:K59,MATCH(MIN(S43:S59),K43:K59)),'HP Calcs'!$A$26*'Ducted Performance Tables'!Q51+'Ducted Performance Tables'!Q52)) -> 0.6136363636 | I48: 2 | J48: 0.2194 | K48: 0.65625 | L48: ='Étape 5 Sélectionner des TP-Air'!$B$30*'Ducted Performance Tables'!J48 -> 5265.6 | M48: ='Étape 5 Sélectionner des TP-Air'!$B$31*'Ducted Performance Tables'!K48 -> 2.1 | N48: 2.351632892 | P48: =INDEX(I43:I59,MATCH(MIN(R43:R59),R43:R59)) -> -3 | Q48: =INDEX(I43:I59,MATCH(MIN(S43:S59),S43:S59)) -> -3 | R48: - | S48: =IF(AND(K48<>"-",K47="-",ISNUMBER(K49)),K48,"-") -> -
A49: 7 | B49: 0.4412 | C49: 0.8465909091 | D49: HP3 | E49: =IF(OR('Étape 5 Sélectionner des TP-Air'!$L$37="Non",'Étape 5 Sélectionner des TP-Air'!$L$37="Pas Certain"),0,IF(P51<0,INDEX(J43:J59,MATCH(MIN(R43:R59),J43:J59)),'HP Calcs'!$A$48*'Ducted Performance Tables'!P51+'Ducted Performance Tables'!P52)) -> 0.0352 | F49: =IF(OR('Étape 5 Sélectionner des TP-Air'!$L$37="Non",'Étape 5 Sélectionner des TP-Air'!$L$37="Pas Certain"),0,IF(Q51<0,INDEX(K43:K59,MATCH(MIN(S43:S59),K43:K59)),'HP Calcs'!$A$48*'Ducted Performance Tables'!Q51+'Ducted Performance Tables'!Q52)) -> 0.6136363636 | I49: 7 | J49: 0.2808 | K49: 0.6704545455 | L49: ='Étape 5 Sélectionner des TP-Air'!$B$30*'Ducted Performance Tables'!J49 -> 6739.2 | M49: ='Étape 5 Sélectionner des TP-Air'!$B$31*'Ducted Performance Tables'!K49 -> 2.145454545 | N49: 2.945981282 | P49: =INDEX(I43:I59,MATCH(MIN(R43:R59),R43:R59)+1) -> 2 | Q49: =INDEX(I43:I59,MATCH(MIN(S43:S59),S43:S59)+1) -> 2 | R49: - | S49: -
A50: 12 | B50: 0.5032 | C50: 0.8636363636 | D50: HP4 | E50: =IF(OR('Étape 5 Sélectionner des TP-Air'!$Q$37="Non",'Étape 5 Sélectionner des TP-Air'!$Q$37="Pas Certain"),0,IF(P51<0,INDEX(J43:J59,MATCH(MIN(R43:R59),J43:J59)),'HP Calcs'!$A$70*'Ducted Performance Tables'!P51+'Ducted Performance Tables'!P52)) -> 0.0352 | F50: =IF(OR('Étape 5 Sélectionner des TP-Air'!$Q$37="Non",'Étape 5 Sélectionner des TP-Air'!$Q$37="Pas Certain"),0,IF(Q51<0,INDEX(K43:K59,MATCH(MIN(S43:S59),K43:K59)),'HP Calcs'!$A$70*'Ducted Performance Tables'!Q51+'Ducted Performance Tables'!Q52)) -> 0.6136363636 | I50: 12 | J50: 0.336 | K50: 0.6761363636 | L50: ='Étape 5 Sélectionner des TP-Air'!$B$30*'Ducted Performance Tables'!J50 -> 8064 | M50: ='Étape 5 Sélectionner des TP-Air'!$B$31*'Ducted Performance Tables'!K50 -> 2.163636364 | N50: 3.49548307 | R50: - | S50: -
A51: 17 | B51: 0.5652 | C51: 0.8806818182 | I51: 17 | J51: 0.3912 | K51: 0.6818181818 | L51: ='Étape 5 Sélectionner des TP-Air'!$B$30*'Ducted Performance Tables'!J51 -> 9388.8 | M51: ='Étape 5 Sélectionner des TP-Air'!$B$31*'Ducted Performance Tables'!K51 -> 2.181818182 | N51: 4.035826495 | P51: =((INDEX(J43:J59,MATCH(MIN(R43:R59),R43:R59)+1))-INDEX(J43:J59,MATCH(MIN(R43:R59),R43:R59)))/(P49-P48) -> 0.01228 | Q51: =((INDEX(K43:K59,MATCH(MIN(S43:S59),S43:S59)+1))-INDEX(K43:K59,MATCH(MIN(S43:S59),S43:S59)))/(Q49-Q48) -> 0.002840909091 | R51: - | S51: -
A52: 22 | B52: 0.6106 | C52: 0.8948863636 | I52: 22 | J52: 0.4378 | K52: 0.6875 | L52: ='Étape 5 Sélectionner des TP-Air'!$B$30*'Ducted Performance Tables'!J52 -> 10507.2 | M52: ='Étape 5 Sélectionner des TP-Air'!$B$31*'Ducted Performance Tables'!K52 -> 2.2 | N52: 4.479249707 | P52: =INDEX(J43:J59,MATCH(MIN(R43:R59),R43:R59))-P51*P48 -> 0.19484 | Q52: =INDEX(K43:K59,MATCH(MIN(S43:S59),S43:S59))-Q51*Q48 -> 0.6505681818 | R52: - | S52: -
A53: 27 | B53: 0.656 | C53: 0.9090909091 | I53: 27 | J53: 0.4844 | K53: 0.6931818182 | L53: ='Étape 5 Sélectionner des TP-Air'!$B$30*'Ducted Performance Tables'!J53 -> 11625.6 | M53: ='Étape 5 Sélectionner des TP-Air'!$B$31*'Ducted Performance Tables'!K53 -> 2.218181818 | N53: 4.915403686 | R53: - | S53: -
A54: 32 | B54: 0.7218 | C54: 0.9318181818 | I54: 32 | J54: 0.5422 | K54: 0.6960227273 | L54: ='Étape 5 Sélectionner des TP-Air'!$B$30*'Ducted Performance Tables'!J54 -> 13012.8 | M54: ='Étape 5 Sélectionner des TP-Air'!$B$31*'Ducted Performance Tables'!K54 -> 2.227272727 | N54: 5.479466947 | R54: - | S54: -
A55: 37 | B55: 0.7876 | C55: 0.9545454545 | I55: 37 | J55: 0.6 | K55: 0.6988636364 | L55: ='Étape 5 Sélectionner des TP-Air'!$B$30*'Ducted Performance Tables'!J55 -> 14400 | M55: ='Étape 5 Sélectionner des TP-Air'!$B$31*'Ducted Performance Tables'!K55 -> 2.236363636 | N55: 6.038944328 | R55: - | S55: -
A56: 42 | B56: 0.8938 | C56: 0.9772727273 | I56: 42 | J56: 0.6742 | K56: 0.6988636364 | L56: ='Étape 5 Sélectionner des TP-Air'!$B$30*'Ducted Performance Tables'!J56 -> 16180.8 | M56: ='Étape 5 Sélectionner des TP-Air'!$B$31*'Ducted Performance Tables'!K56 -> 2.236363636 | N56: 6.785760444 | R56: - | S56: -
A57: 47 | B57: 1 | C57: 1 | I57: 47 | J57: 0.7484 | K57: 0.6988636364 | L57: ='Étape 5 Sélectionner des TP-Air'!$B$30*'Ducted Performance Tables'!J57 -> 17961.6 | M57: ='Étape 5 Sélectionner des TP-Air'!$B$31*'Ducted Performance Tables'!K57 -> 2.236363636 | N57: 7.532576559 | R57: - | S57: -
A58: 52 | B58: 1.0714 | C58: 1.03125 | I58: 52 | J58: 0.7914 | K58: 0.6988636364 | L58: ='Étape 5 Sélectionner des TP-Air'!$B$30*'Ducted Performance Tables'!J58 -> 18993.6 | M58: ='Étape 5 Sélectionner des TP-Air'!$B$31*'Ducted Performance Tables'!K58 -> 2.236363636 | N58: 7.965367569 | R58: - | S58: -
A59: 57 | B59: 1.1428 | C59: 1.0625 | I59: 57 | J59: 0.8344 | K59: 0.6988636364 | L59: ='Étape 5 Sélectionner des TP-Air'!$B$30*'Ducted Performance Tables'!J59 -> 20025.6 | M59: ='Étape 5 Sélectionner des TP-Air'!$B$31*'Ducted Performance Tables'!K59 -> 2.236363636 | N59: 8.398158579 | R59: - | S59: -
A61: HIGH Stage, Cool | I61: LoW Stage, Cool
A62: Temperature (F) | B62: Normalized Capacity | C62: Normalized Power | I62: Temperature (F) | J62: Normalized Capacity | K62: Normalized Power
A63: 72 | I63: 72
A64: 77 | B64: 1.065241935 | C64: 0.7967391304 | E64: =(($F$2-INDEX('HP Calcs'!$H$5:$H$13,MATCH($F$2,'HP Calcs'!$H$5:$H$13,1)))*(INDEX(J63:J71,MATCH($F$2,'HP Calcs'!$H$5:$H$13,1)+1)-INDEX(J63:J71,MATCH($F$2,'HP Calcs'!$H$5:$H$13,1))))/(INDEX('HP Calcs'!$H$5:$H$13,MATCH($F$2,'HP Calcs'!$H$5:$H$13,1)+1)-INDEX('HP Calcs'!$H$5:$H$13,MATCH($F$2,'HP Calcs'!$H$5:$H$13,1)))+INDEX(J63:J71,MATCH($F$2,'HP Calcs'!$H$5:$H$13,1)) -> 0.7627526416 | F64: =(($F$2-INDEX('HP Calcs'!$H$5:$H$13,MATCH($F$2,'HP Calcs'!$H$5:$H$13,1)))*(INDEX(K63:K71,MATCH($F$2,'HP Calcs'!$H$5:$H$13,1)+1)-INDEX(K63:K71,MATCH($F$2,'HP Calcs'!$H$5:$H$13,1))))/(INDEX('HP Calcs'!$H$5:$H$13,MATCH($F$2,'HP Calcs'!$H$5:$H$13,1)+1)-INDEX('HP Calcs'!$H$5:$H$13,MATCH($F$2,'HP Calcs'!$H$5:$H$13,1)))+INDEX(K63:K71,MATCH($F$2,'HP Calcs'!$H$5:$H$13,1)) -> 0.6489393939 | I64: 77 | J64: 0.8161290323 | K64: 0.5576086957
A65: 82 | B65: 1.025326654 | C65: 0.8461462451 | I65: 82 | J65: 0.7865998697 | K65: 0.6070158103
A66: 87 | B66: 0.9855414747 | C66: 0.8996721877 | I66: 87 | J66: 0.7567908346 | K66: 0.6594202899
A67: 92 | B67: 0.9459389401 | C67: 0.9589803313 | E67: 95 | F67: =((95-A67)*(B68-B67))/(A68-A67)+B67 -> 0.9221294163 | G67: =((95-A67)*(C68-C67))/(A68-A67)+C67 -> 0.9965062112 | I67: 92 | J67: 0.7265889017 | K67: 0.7160326087 | M67: 95 | N67: =((95-I67)*(J68-J67))/(I68-I67)+J67 -> 0.7083237327 | O67: =((95-I67)*(K68-K67))/(I68-I67)+K67 -> 0.7519409938
A68: 97 | B68: 0.9062564004 | C68: 1.021523464 | I68: 97 | J68: 0.6961469534 | K68: 0.7758799172
A69: 102 | B69: 0.866453853 | C69: 1.088919082 | I69: 102 | J69: 0.6653449821 | K69: 0.8405797101
A70: 107 | B70: 0.8263734115 | C70: 1.161001318 | I70: 107 | J70: 0.6344843597 | K70: 0.9110013175
A71: 112 | B71: 0.7858471815 | C71: 1.240601669 | I71: 112 | J71: 0.6035296514 | K71: 0.9906016689
A73: Ducted Variable | C73: (From Daikin DZ20VC 36 Unit)
A74: MAX, Heat | I74: MIN, Heat
A75: Temperature (F) | B75: Normalized Capacity | C75: Normalized Power | I75: Temperature (F) | J75: Normalized Capacity | K75: Normalized Power
A76: -10 | B76: 0.3828571429 | C76: 1.286290323 | I76: -10 | J76: 0.2457142857 | K76: 0.6693548387 | L76: ='Étape 5 Sélectionner des TP-Air'!$B$30*'Ducted Performance Tables'!J76 -> 5897.142857 | M76: ='Étape 5 Sélectionner des TP-Air'!$B$31*'Ducted Performance Tables'!K76 -> 2.141935484 | N76: =(L76/3412)/K76 -> 2.582118795
A77: -5 | B77: 0.4685714286 | C77: 1.326612903 | I77: -5 | J77: 0.3 | K77: 0.685483871 | L77: ='Étape 5 Sélectionner des TP-Air'!$B$30*'Ducted Performance Tables'!J77 -> 7200 | M77: ='Étape 5 Sélectionner des TP-Air'!$B$31*'Ducted Performance Tables'!K77 -> 2.193548387 | N77: =(L77/3412)/K77 -> 3.078408386
A78: 0 | B78: 0.5485714286 | C78: 1.366935484 | I78: 0 | J78: 0.3514285714 | K78: 0.7056451613 | L78: ='Étape 5 Sélectionner des TP-Air'!$B$30*'Ducted Performance Tables'!J78 -> 8434.285714 | M78: ='Étape 5 Sélectionner des TP-Air'!$B$31*'Ducted Performance Tables'!K78 -> 2.258064516 | N78: 3.503103094 | R78: AHRI Rated Capacity | S78: If at 47F. Identical to entry
A79: 5 | B79: 0.6314285714 | C79: 1.403225806 | I79: 5 | J79: 0.4028571429 | K79: 0.7217741935 | L79: ='Étape 5 Sélectionner des TP-Air'!$B$30*'Ducted Performance Tables'!J79 -> 9668.571429 | M79: ='Étape 5 Sélectionner des TP-Air'!$B$31*'Ducted Performance Tables'!K79 -> 2.309677419 | N79: 3.926014845 | S79: If at 17F, use correction formula in slides and example
A80: 10 | B80: 0.7114285714 | C80: 1.443548387 | I80: 10 | J80: 0.4542857143 | K80: 0.7419354839 | L80: ='Étape 5 Sélectionner des TP-Air'!$B$30*'Ducted Performance Tables'!J80 -> 10902.85714 | M80: ='Étape 5 Sélectionner des TP-Air'!$B$31*'Ducted Performance Tables'!K80 -> 2.374193548 | N80: 4.306903658
A81: 15 | B81: 0.7914285714 | C81: 1.483870968 | I81: 15 | J81: 0.5057142857 | K81: 0.7580645161 | L81: ='Étape 5 Sélectionner des TP-Air'!$B$30*'Ducted Performance Tables'!J81 -> 12137.14286 | M81: ='Étape 5 Sélectionner des TP-Air'!$B$31*'Ducted Performance Tables'!K81 -> 2.425806452 | N81: 4.692467494
A82: 17 | B82: 0.8228571429 | C82: 1.5 | I82: 17 | J82: 0.5257142857 | K82: 0.7661290323 | L82: ='Étape 5 Sélectionner des TP-Air'!$B$30*'Ducted Performance Tables'!J82 -> 12617.14286 | M82: ='Étape 5 Sélectionner des TP-Air'!$B$31*'Ducted Performance Tables'!K82 -> 2.451612903 | N82: 4.826697459
A83: 20 | B83: 0.8714285714 | C83: 1.52016129 | I83: 20 | J83: 0.5571428571 | K83: 0.7741935484 | L83: ='Étape 5 Sélectionner des TP-Air'!$B$30*'Ducted Performance Tables'!J83 -> 13371.42857 | M83: ='Étape 5 Sélectionner des TP-Air'!$B$31*'Ducted Performance Tables'!K83 -> 2.477419355 | N83: 5.06196617
A84: 25 | B84: 0.9457142857 | C84: 1.560483871 | I84: 25 | J84: 0.6028571429 | K84: 0.7943548387 | L84: ='Étape 5 Sélectionner des TP-Air'!$B$30*'Ducted Performance Tables'!J84 -> 14468.57143 | M84: ='Étape 5 Sélectionner des TP-Air'!$B$31*'Ducted Performance Tables'!K84 -> 2.541935484 | N84: 5.33828904
A85: 30 | B85: 1.025714286 | C85: 1.600806452 | I85: 30 | J85: 0.6542857143 | K85: 0.810483871 | L85: ='Étape 5 Sélectionner des TP-Air'!$B$30*'Ducted Performance Tables'!J85 -> 15702.85714 | M85: ='Étape 5 Sélectionner des TP-Air'!$B$31*'Ducted Performance Tables'!K85 -> 2.593548387 | N85: 5.678390829
A86: 35 | B86: 0.8314285714 | C86: 0.9516129032 | I86: 35 | J86: 0.6 | K86: 0.5524193548 | L86: ='Étape 5 Sélectionner des TP-Air'!$B$30*'Ducted Performance Tables'!J86 -> 14400 | M86: ='Étape 5 Sélectionner des TP-Air'!$B$31*'Ducted Performance Tables'!K86 -> 1.767741935 | N86: 7.639845629
A87: 40 | B87: 0.9 | C87: 0.9717741935 | I87: 40 | J87: 0.6485714286 | K87: 0.564516129 | L87: ='Étape 5 Sélectionner des TP-Air'!$B$30*'Ducted Performance Tables'!J87 -> 15565.71429 | M87: ='Étape 5 Sélectionner des TP-Air'!$B$31*'Ducted Performance Tables'!K87 -> 1.806451613 | N87: 8.081345551
A88: 45 | B88: 0.9685714286 | C88: 0.9919354839 | I88: 45 | J88: 0.7 | K88: 0.5725806452 | L88: ='Étape 5 Sélectionner des TP-Air'!$B$30*'Ducted Performance Tables'!J88 -> 16800 | M88: ='Étape 5 Sélectionner des TP-Air'!$B$31*'Ducted Performance Tables'!K88 -> 1.832258065 | N88: 8.59930981
A89: 47 | B89: 1 | C89: 1 | I89: 47 | J89: 0.72 | K89: 0.5766129032 | L89: ='Étape 5 Sélectionner des TP-Air'!$B$30*'Ducted Performance Tables'!J89 -> 17280 | M89: ='Étape 5 Sélectionner des TP-Air'!$B$31*'Ducted Performance Tables'!K89 -> 1.84516129 | N89: 8.783151198
A90: 50 | B90: 1.045714286 | C90: 1.012096774 | I90: 50 | J90: 0.7542857143 | K90: 0.5846774194 | L90: ='Étape 5 Sélectionner des TP-Air'!$B$30*'Ducted Performance Tables'!J90 -> 18102.85714 | M90: ='Étape 5 Sélectionner des TP-Air'!$B$31*'Ducted Performance Tables'!K90 -> 1.870967742 | N90: 9.07448068
A91: 55 | B91: 1.12 | C91: 1.032258065 | I91: 55 | J91: 0.8085714286 | K91: 0.5927419355 | L91: ='Étape 5 Sélectionner des TP-Air'!$B$30*'Ducted Performance Tables'!J91 -> 19405.71429 | M91: ='Étape 5 Sélectionner des TP-Air'!$B$31*'Ducted Performance Tables'!K91 -> 1.896774194 | N91: 9.595220436
A92: 60 | B92: 1.191428571 | C92: 1.052419355 | I92: 60 | J92: 0.8571428571 | K92: 0.6048387097 | L92: ='Étape 5 Sélectionner des TP-Air'!$B$30*'Ducted Performance Tables'!J92 -> 20571.42857 | M92: ='Étape 5 Sélectionner des TP-Air'!$B$31*'Ducted Performance Tables'!K92 -> 1.935483871 | N92: 9.968179534
A93: 65 | B93: 1.257142857 | C93: 1.072580645 | I93: 65 | J93: 0.9057142857 | K93: 0.6169354839 | L93: ='Étape 5 Sélectionner des TP-Air'!$B$30*'Ducted Performance Tables'!J93 -> 21737.14286 | M93: ='Étape 5 Sélectionner des TP-Air'!$B$31*'Ducted Performance Tables'!K93 -> 1.974193548 | N93: =(L93/3412)/K93 -> 10.32651279
A95: Temperature (F) | I95: Temperature (F)
A96: -23 | B96: - | C96: - | I96: -23 | J96: - | K96: - | L96: ='Étape 5 Sélectionner des TP-Air'!$B$30*'Ducted Performance Tables'!J96 ->  | M96: ='Étape 5 Sélectionner des TP-Air'!$B$31*'Ducted Performance Tables'!K96 ->  | N96: =(L96/3412)/K96 ->  | R96: =IF(AND(J96<>"-",J95="-",ISNUMBER(J97)),J96,"-") -> - | S96: =IF(AND(K96<>"-",K95="-",ISNUMBER(K97)),K96,"-") -> -
A97: -18 | B97: - | C97: - | I97: -18 | J97: - | K97: - | L97: ='Étape 5 Sélectionner des TP-Air'!$B$30*'Ducted Performance Tables'!J97 ->  | M97: ='Étape 5 Sélectionner des TP-Air'!$B$31*'Ducted Performance Tables'!K97 ->  | N97: =(L97/3412)/K97 ->  | R97: =IF(AND(J97<>"-",J96="-",ISNUMBER(J98)),J97,"-") -> - | S97: =IF(AND(K97<>"-",K96="-",ISNUMBER(K98)),K97,"-") -> -
A98: -13 | B98: - | C98: - | E98: =(($E$2-INDEX('HP Calcs'!$A$4:$A$20,MATCH($E$2,'HP Calcs'!$A$4:$A$20,1)))*(INDEX(J96:J112,MATCH($E$2,'HP Calcs'!$A$4:$A$20,1)+1)-INDEX(J96:J112,MATCH($E$2,'HP Calcs'!$A$4:$A$20,1))))/(INDEX('HP Calcs'!$A$4:$A$20,MATCH($E$2,'HP Calcs'!$A$4:$A$20,1)+1)-INDEX('HP Calcs'!$A$4:$A$20,MATCH($E$2,'HP Calcs'!$A$4:$A$20,1)))+INDEX(J96:J112,MATCH($E$2,'HP Calcs'!$A$4:$A$20,1)) ->  | F98: =(($E$2-INDEX('HP Calcs'!$A$4:$A$20,MATCH($E$2,'HP Calcs'!$A$4:$A$20,1)))*(INDEX(K96:K112,MATCH($E$2,'HP Calcs'!$A$4:$A$20,1)+1)-INDEX(K96:K112,MATCH($E$2,'HP Calcs'!$A$4:$A$20,1))))/(INDEX('HP Calcs'!$A$4:$A$20,MATCH($E$2,'HP Calcs'!$A$4:$A$20,1)+1)-INDEX('HP Calcs'!$A$4:$A$20,MATCH($E$2,'HP Calcs'!$A$4:$A$20,1)))+INDEX(K96:K112,MATCH($E$2,'HP Calcs'!$A$4:$A$20,1)) ->  | I98: -13 | J98: - | K98: - | L98: ='Étape 5 Sélectionner des TP-Air'!$B$30*'Ducted Performance Tables'!J98 ->  | M98: ='Étape 5 Sélectionner des TP-Air'!$B$31*'Ducted Performance Tables'!K98 ->  | R98: - | S98: -
A99: -8 | B99: =((A99-A76)*(B77-B76))/(A77-A76)+B76 -> 0.4171428571 | C99: =((B99-B76)*(C77-C76))/(B77-B76)+C76 -> 1.302419355 | I99: -8 | J99: 0.2674285714 | K99: 0.6758064516 | L99: ='Étape 5 Sélectionner des TP-Air'!$B$30*'Ducted Performance Tables'!J99 -> 6418.285714 | M99: ='Étape 5 Sélectionner des TP-Air'!$B$31*'Ducted Performance Tables'!K99 -> 2.162580645 | N99: 2.78347734 | R99: 0.2674285714 | S99: 0.6758064516
A100: -3 | B100: =((A100-A77)*(B78-B77))/(A78-A77)+B77 -> 0.5005714286 | C100: =((B100-B77)*(C78-C77))/(B78-B77)+C77 -> 1.342741935 | D100: HP1 | E100: =IF(OR('Étape 5 Sélectionner des TP-Air'!$B$37="Non",'Étape 5 Sélectionner des TP-Air'!$B$37="Pas Certain"),0,IF(P104<0,INDEX(J96:J112,MATCH(MIN(R96:R112),J96:J112)),'HP Calcs'!$A$4*'Ducted Performance Tables'!P104+'Ducted Performance Tables'!P105)) -> 0.2142857143 | F100: =IF(OR('Étape 5 Sélectionner des TP-Air'!$B$37="Non",'Étape 5 Sélectionner des TP-Air'!$B$37="Pas Certain"),0,IF(Q104<0,INDEX(K96:K112,MATCH(MIN(S96:S112),K96:K112)),'HP Calcs'!$A$4*'Ducted Performance Tables'!Q104+'Ducted Performance Tables'!Q105)) -> 0.6580645161 | I100: -3 | J100: 0.3205714286 | K100: 0.6935483871 | L100: ='Étape 5 Sélectionner des TP-Air'!$B$30*'Ducted Performance Tables'!J100 -> 7693.714286 | M100: ='Étape 5 Sélectionner des TP-Air'!$B$31*'Ducted Performance Tables'!K100 -> 2.219354839 | N100: 3.251249255 | R100: =IF(AND(J100<>"-",J99="-",ISNUMBER(J101)),J100,"-") -> - | S100: =IF(AND(K100<>"-",K99="-",ISNUMBER(K101)),K100,"-") -> -
A101: 2 | B101: =((A101-A78)*(B79-B78))/(A79-A78)+B78 -> 0.5817142857 | C101: =((B101-B78)*(C79-C78))/(B79-B78)+C78 -> 1.381451613 | D101: HP2 | E101: =IF(OR('Étape 5 Sélectionner des TP-Air'!$G$37="Non",'Étape 5 Sélectionner des TP-Air'!$G$37="Pas Certain"),0,IF(P104<0,INDEX(J96:J112,MATCH(MIN(R96:R112),J96:J112)),'HP Calcs'!$A$26*'Ducted Performance Tables'!P104+'Ducted Performance Tables'!P105)) -> 0.2142857143 | F101: =IF(OR('Étape 5 Sélectionner des TP-Air'!$G$37="Non",'Étape 5 Sélectionner des TP-Air'!$G$37="Pas Certain"),0,IF(Q104<0,INDEX(K96:K112,MATCH(MIN(S96:S112),K96:K112)),'HP Calcs'!$A$26*'Ducted Performance Tables'!Q104+'Ducted Performance Tables'!Q105)) -> 0.6580645161 | I101: 2 | J101: 0.372 | K101: 0.7120967742 | L101: ='Étape 5 Sélectionner des TP-Air'!$B$30*'Ducted Performance Tables'!J101 -> 8928 | M101: ='Étape 5 Sélectionner des TP-Air'!$B$31*'Ducted Performance Tables'!K101 -> 2.278709677 | N101: 3.674566748 | P101: =INDEX(I96:I112,MATCH(MIN(R96:R112),R96:R112)) -> -8 | Q101: =INDEX(I96:I112,MATCH(MIN(S96:S112),S96:S112)) -> -8 | R101: =IF(AND(J101<>"-",J100="-",ISNUMBER(J102)),J101,"-") -> - | S101: =IF(AND(K101<>"-",K100="-",ISNUMBER(K102)),K101,"-") -> -
A102: 7 | B102: =((A102-A79)*(B80-B79))/(A80-A79)+B79 -> 0.6634285714 | C102: =((B102-B79)*(C80-C79))/(B80-B79)+C79 -> 1.419354839 | D102: HP3 | E102: =IF(OR('Étape 5 Sélectionner des TP-Air'!$L$37="Non",'Étape 5 Sélectionner des TP-Air'!$L$37="Pas Certain"),0,IF(P104<0,INDEX(J96:J112,MATCH(MIN(R96:R112),J96:J112)),'HP Calcs'!$A$48*'Ducted Performance Tables'!P104+'Ducted Performance Tables'!P105)) -> 0.2142857143 | F102: =IF(OR('Étape 5 Sélectionner des TP-Air'!$L$37="Non",'Étape 5 Sélectionner des TP-Air'!$L$37="Pas Certain"),0,IF(Q104<0,INDEX(K96:K112,MATCH(MIN(S96:S112),K96:K112)),'HP Calcs'!$A$48*'Ducted Performance Tables'!Q104+'Ducted Performance Tables'!Q105)) -> 0.6580645161 | I102: 7 | J102: 0.4234285714 | K102: 0.7298387097 | L102: ='Étape 5 Sélectionner des TP-Air'!$B$30*'Ducted Performance Tables'!J102 -> 10162.28571 | M102: ='Étape 5 Sélectionner des TP-Air'!$B$31*'Ducted Performance Tables'!K102 -> 2.335483871 | N102: 4.080895599 | P102: =INDEX(I96:I112,MATCH(MIN(R96:R112),R96:R112)+1) -> -3 | Q102: =INDEX(I96:I112,MATCH(MIN(S96:S112),S96:S112)+1) -> -3 | R102: - | S102: =IF(AND(K102<>"-",K101="-",ISNUMBER(K103)),K102,"-") -> -
A103: 12 | B103: =((A103-A80)*(B81-B80))/(A81-A80)+B80 -> 0.7434285714 | C103: =((B103-B80)*(C81-C80))/(B81-B80)+C80 -> 1.459677419 | D103: HP4 | E103: =IF(OR('Étape 5 Sélectionner des TP-Air'!$Q$37="Non",'Étape 5 Sélectionner des TP-Air'!$Q$37="Pas Certain"),0,IF(P104<0,INDEX(J96:J112,MATCH(MIN(R96:R112),J96:J112)),'HP Calcs'!$A$70*'Ducted Performance Tables'!P104+'Ducted Performance Tables'!P105)) -> 0.2142857143 | F103: =IF(OR('Étape 5 Sélectionner des TP-Air'!$Q$37="Non",'Étape 5 Sélectionner des TP-Air'!$Q$37="Pas Certain"),0,IF(Q104<0,INDEX(K96:K112,MATCH(MIN(S96:S112),K96:K112)),'HP Calcs'!$A$70*'Ducted Performance Tables'!Q104+'Ducted Performance Tables'!Q105)) -> 0.6580645161 | I103: 12 | J103: 0.4748571429 | K103: 0.7483870968 | L103: ='Étape 5 Sélectionner des TP-Air'!$B$30*'Ducted Performance Tables'!J103 -> 11396.57143 | M103: ='Étape 5 Sélectionner des TP-Air'!$B$31*'Ducted Performance Tables'!K103 -> 2.39483871 | N103: 4.463123488 | R103: - | S103: -
A104: 17 | B104: =B82 -> 0.8228571429 | C104: =C82 -> 1.5 | I104: 17 | J104: 0.5257142857 | K104: 0.7661290323 | L104: ='Étape 5 Sélectionner des TP-Air'!$B$30*'Ducted Performance Tables'!J104 -> 12617.14286 | M104: ='Étape 5 Sélectionner des TP-Air'!$B$31*'Ducted Performance Tables'!K104 -> 2.451612903 | N104: 4.826697459 | P104: =((INDEX(J96:J112,MATCH(MIN(R96:R112),R96:R112)+1))-INDEX(J96:J112,MATCH(MIN(R96:R112),R96:R112)))/(P102-P101) -> 0.01062857143 | Q104: =((INDEX(K96:K112,MATCH(MIN(S96:S112),S96:S112)+1))-INDEX(K96:K112,MATCH(MIN(S96:S112),S96:S112)))/(Q102-Q101) -> 0.003548387097 | R104: - | S104: -
A105: 22 | B105: =((A105-A83)*(B84-B83))/(A84-A83)+B83 -> 0.9011428571 | C105: =((B105-B83)*(C84-C83))/(B84-B83)+C83 -> 1.536290323 | I105: 22 | J105: 0.5754285714 | K105: 0.7822580645 | L105: ='Étape 5 Sélectionner des TP-Air'!$B$30*'Ducted Performance Tables'!J105 -> 13810.28571 | M105: ='Étape 5 Sélectionner des TP-Air'!$B$31*'Ducted Performance Tables'!K105 -> 2.503225806 | N105: 5.174204532 | P105: =INDEX(J96:J112,MATCH(MIN(R96:R112),R96:R112))-P104*P101 -> 0.3524571429 | Q105: =INDEX(K96:K112,MATCH(MIN(S96:S112),S96:S112))-Q104*Q101 -> 0.7041935484 | R105: - | S105: -
A106: 27 | B106: =((A106-A84)*(B85-B84))/(A85-A84)+B84 -> 0.9777142857 | C106: =((B106-B84)*(C85-C84))/(B85-B84)+C84 -> 1.576612903 | I106: 27 | J106: 0.6234285714 | K106: 0.8008064516 | L106: ='Étape 5 Sélectionner des TP-Air'!$B$30*'Ducted Performance Tables'!J106 -> 14962.28571 | M106: ='Étape 5 Sélectionner des TP-Air'!$B$31*'Ducted Performance Tables'!K106 -> 2.562580645 | N106: 5.475973752 | R106: - | S106: -
A107: 32 | B107: =((A107-A85)*(B86-B85))/(A86-A85)+B85 -> 0.948 | C107: =((B107-B85)*(C86-C85))/(B86-B85)+C85 -> 1.341129032 | I107: 32 | J107: 0.6325714286 | K107: 0.7072580645 | L107: ='Étape 5 Sélectionner des TP-Air'!$B$30*'Ducted Performance Tables'!J107 -> 15181.71429 | M107: ='Étape 5 Sélectionner des TP-Air'!$B$31*'Ducted Performance Tables'!K107 -> 2.263225806 | N107: 6.29120567 | R107: - | S107: -
A108: 37 | B108: =((A108-A86)*(B87-B86))/(A87-A86)+B86 -> 0.8588571429 | C108: =((B108-B86)*(C87-C86))/(B87-B86)+C86 -> 0.9596774194 | I108: 37 | J108: 0.6194285714 | K108: 0.5572580645 | L108: ='Étape 5 Sélectionner des TP-Air'!$B$30*'Ducted Performance Tables'!J108 -> 14866.28571 | M108: ='Étape 5 Sélectionner des TP-Air'!$B$31*'Ducted Performance Tables'!K108 -> 1.783225806 | N108: 7.818745742 | R108: - | S108: -
A109: 42 | B109: =((A109-A87)*(B88-B87))/(A88-A87)+B87 -> 0.9274285714 | C109: 0.9798387097 | I109: 42 | J109: 0.6691428571 | K109: 0.5677419355 | L109: ='Étape 5 Sélectionner des TP-Air'!$B$30*'Ducted Performance Tables'!J109 -> 16059.42857 | M109: ='Étape 5 Sélectionner des TP-Air'!$B$31*'Ducted Performance Tables'!K109 -> 1.816774194 | N109: 8.290297042 | R109: - | S109: -
A110: 47 | B110: =B89 -> 1 | C110: =C89 -> 1 | I110: 47 | J110: 0.72 | K110: 0.5766129032 | L110: ='Étape 5 Sélectionner des TP-Air'!$B$30*'Ducted Performance Tables'!J110 -> 17280 | M110: ='Étape 5 Sélectionner des TP-Air'!$B$31*'Ducted Performance Tables'!K110 -> 1.84516129 | N110: 8.783151198 | R110: - | S110: -
A111: 52 | B111: =((A111-A90)*(B91-B90))/(A91-A90)+B90 -> 1.075428571 | C111: =((B111-B90)*(C91-C90))/(B91-B90)+C90 -> 1.02016129 | I111: 52 | J111: 0.776 | K111: 0.5879032258 | L111: ='Étape 5 Sélectionner des TP-Air'!$B$30*'Ducted Performance Tables'!J111 -> 18624 | M111: ='Étape 5 Sélectionner des TP-Air'!$B$31*'Ducted Performance Tables'!K111 -> 1.881290323 | N111: 9.284490952 | R111: - | S111: -
A112: 57 | B112: =((A112-A91)*(B92-B91))/(A92-A91)+B91 -> 1.148571429 | C112: =((B112-B91)*(C92-C91))/(B92-B91)+C91 -> 1.040322581 | I112: 57 | J112: 0.828 | K112: 0.5975806452 | L112: ='Étape 5 Sélectionner des TP-Air'!$B$30*'Ducted Performance Tables'!J112 -> 19872 | M112: ='Étape 5 Sélectionner des TP-Air'!$B$31*'Ducted Performance Tables'!K112 -> 1.912258065 | N112: 9.746216023 | R112: - | S112: -
A117: MAX, Cool | I117: MIN, Cool
A118: Temperature (F) | B118: Normalized Capacity | C118: Normalized Power | I118: Temperature (F) | J118: Normalized Capacity | K118: Normalized Power
A119: 65 | B119: 1.002824859 | C119: 0.7865612648 | I119: 65 | J119: 0.709039548 | K119: 0.5375494071
A120: 75 | B120: 0.9717514124 | C120: 0.8537549407 | I120: 75 | J120: 0.6920903955 | K120: 0.5770750988
A121: 85 | B121: 0.9491525424 | C121: 0.9090909091 | I121: 85 | J121: 0.6751412429 | K121: 0.6086956522
A122: 95 | B122: 0.9265536723 | C122: 0.9565217391 | I122: 95 | J122: 0.6610169492 | K122: 0.6403162055
A123: 105 | B123: 0.8813559322 | C123: 1 | I123: 105 | J123: 0.6271186441 | K123: 0.6679841897
A124: 115 | B124: 0.8163841808 | C124: 1.035573123 | I124: 115 | J124: 0.5790960452 | K124: 0.6877470356
A127: Temperature (F) | I127: Temperature (F)
A128: 72 | B128: =((A128-A119)*(B120-B119))/(A120-A119)+B119 -> 0.9810734463 | C128: =((B128-B119)*(C120-C119))/(B120-B119)+C119 -> 0.8335968379 | I128: 72 | J128: =((I128-I119)*(J120-J119))/(I120-I119)+J119 -> 0.6971751412 | K128: =((J128-J119)*(K120-K119))/(J120-J119)+K119 -> 0.5652173913
A129: 77 | B129: =((A129-A120)*(B121-B120))/(A121-A120)+B120 -> 0.9672316384 | C129: =((B129-B120)*(C121-C120))/(B121-B120)+C120 -> 0.8648221344 | E129: =(($F$2-INDEX('HP Calcs'!$H$5:$H$13,MATCH($F$2,'HP Calcs'!$H$5:$H$13,1)))*(INDEX(J128:J136,MATCH($F$2,'HP Calcs'!$H$5:$H$13,1)+1)-INDEX(J128:J136,MATCH($F$2,'HP Calcs'!$H$5:$H$13,1))))/(INDEX('HP Calcs'!$H$5:$H$13,MATCH($F$2,'HP Calcs'!$H$5:$H$13,1)+1)-INDEX('HP Calcs'!$H$5:$H$13,MATCH($F$2,'HP Calcs'!$H$5:$H$13,1)))+INDEX(J128:J136,MATCH($F$2,'HP Calcs'!$H$5:$H$13,1)) -> 0.6738983051 | F129: =(($F$2-INDEX('HP Calcs'!$H$5:$H$13,MATCH($F$2,'HP Calcs'!$H$5:$H$13,1)))*(INDEX(K128:K136,MATCH($F$2,'HP Calcs'!$H$5:$H$13,1)+1)-INDEX(K128:K136,MATCH($F$2,'HP Calcs'!$H$5:$H$13,1))))/(INDEX('HP Calcs'!$H$5:$H$13,MATCH($F$2,'HP Calcs'!$H$5:$H$13,1)+1)-INDEX('HP Calcs'!$H$5:$H$13,MATCH($F$2,'HP Calcs'!$H$5:$H$13,1)))+INDEX(K128:K136,MATCH($F$2,'HP Calcs'!$H$5:$H$13,1)) -> 0.6118577075 | I129: 77 | J129: =((I129-I120)*(J121-J120))/(I121-I120)+J120 -> 0.688700565 | K129: 0.5833992095
A130: 82 | B130: =((A130-A120)*(B121-B120))/(A121-A120)+B120 -> 0.9559322034 | C130: =((B130-B120)*(C121-C120))/(B121-B120)+C120 -> 0.8924901186 | I130: 82 | J130: =((I130-I120)*(J121-J120))/(I121-I120)+J120 -> 0.6802259887 | K130: 0.5992094862
A131: 87 | B131: =((A131-A121)*(B122-B121))/(A122-A121)+B121 -> 0.9446327684 | C131: =((B131-B121)*(C122-C121))/(B122-B121)+C121 -> 0.9185770751 | I131: 87 | J131: =((I131-I121)*(J122-J121))/(I122-I121)+J121 -> 0.6723163842 | K131: 0.6150197628
A132: 92 | B132: =((A132-A121)*(B122-B121))/(A122-A121)+B121 -> 0.9333333333 | C132: =((B132-B121)*(C122-C121))/(B122-B121)+C121 -> 0.9422924901 | I132: 92 | J132: =((I132-I121)*(J122-J121))/(I122-I121)+J121 -> 0.6652542373 | K132: 0.6308300395
A133: 97 | B133: =((A133-A122)*(B123-B122))/(A123-A122)+B122 -> 0.9175141243 | C133: =((B133-B122)*(C123-C122))/(B123-B122)+C122 -> 0.9652173913 | I133: 97 | J133: =((I133-I122)*(J123-J122))/(I123-I122)+J122 -> 0.6542372881 | K133: 0.6458498024
A134: 102 | B134: =((A134-A122)*(B123-B122))/(A123-A122)+B122 -> 0.8949152542 | C134: =((B134-B122)*(C123-C122))/(B123-B122)+C122 -> 0.9869565217 | I134: 102 | J134: =((I134-I122)*(J123-J122))/(I123-I122)+J122 -> 0.6372881356 | K134: 0.6596837945
A135: 107 | B135: =((A135-A123)*(B124-B123))/(A124-A123)+B123 -> 0.8683615819 | C135: =((B135-B123)*(C124-C123))/(B124-B123)+C123 -> 1.007114625 | I135: 107 | J135: =((I135-I123)*(J124-J123))/(I124-I123)+J123 -> 0.6175141243 | K135: 0.6719367589
A136: 112 | B136: =((A136-A123)*(B124-B123))/(A124-A123)+B123 -> 0.8358757062 | C136: =((B136-B123)*(C124-C123))/(B124-B123)+C123 -> 1.024901186 | I136: 112 | J136: =((I136-I123)*(J124-J123))/(I124-I123)+J123 -> 0.5935028249 | K136: 0.6818181818

Sheet Ductless Single Per Table (hidden)
A1: Ductless, Single Split, Regular | C1: MUZ-HM12NA2
A2: MAX, Heat | E2: ='Étape 3 Charges de Conception'!B13 -> -11 | F2: ='Étape 3 Charges de Conception'!B15 -> 86 | J2: Min, Heat
A3: Temperature | B3: Normalized Capacity | C3: Normalized Power | J3: Temperature | K3: Normalized Capacity | L3: Normalized Power
A4: -4 | B4: 0.487704918 | C4: 0.7070707071 | J4: -4 | K4: 0.1393442623 | L4: 0.202020202
A5: 0 | B5: 0.5516393443 | C5: 0.7676767677 | J5: 0 | K5: 0.1581967213 | L5: 0.2222222222
A6: 5 | B6: 0.6147540984 | C6: 0.8282828283 | J6: 5 | K6: 0.1762295082 | L6: 0.2323232323
A7: 10 | B7: 0.6967213115 | C7: 0.8787878788 | J7: 10 | K7: 0.1983606557 | L7: 0.2525252525
A8: 15 | B8: 0.7786885246 | C8: 0.9292929293 | J8: 15 | K8: 0.2221311475 | L8: 0.2525252525
A9: 20 | B9: 0.8524590164 | C9: 0.9797979798 | J9: 20 | K9: 0.2442622951 | L9: 0.2828282828
A10: 25 | B10: 0.9262295082 | C10: 1.03030303 | J10: 25 | K10: 0.2647540984 | L10: 0.2929292929
A11: 30 | B11: 0.9959016393 | C11: 1.080808081 | J11: 30 | K11: 0.2844262295 | L11: 0.3131313131
A12: 35 | B12: 1.06557377 | C12: 1.131313131 | J12: 35 | K12: 0.3049180328 | L12: 0.3131313131
A13: 40 | B13: 1.12704918 | C13: 1.181818182 | J13: 40 | K13: 0.3213114754 | L13: 0.3333333333
A14: 43 | B14: 1.18852459 | C14: 1.232323232 | J14: 43 | K14: 0.3393442623 | L14: 0.3535353535
A15: 45 | B15: 1.204918033 | C15: 1.242424242 | J15: 45 | K15: 0.3442622951 | L15: 0.3535353535
A16: 50 | B16: 1.274590164 | C16: 1.292929293 | J16: 50 | K16: 0.3639344262 | L16: 0.3737373737
A17: 55 | B17: 1.344262295 | C17: 1.343434343 | J17: 55 | K17: 0.3836065574 | L17: 0.3838383838
A18: 60 | B18: 1.413934426 | C18: 1.393939394 | J18: 60 | K18: 0.4040983607 | L18: 0.3939393939
A21: Temperature
A22: -23 | B22: - | C22: - | J22: -23 | K22: - | L22: - | R22: =IF(AND(K22<>"-",K21="-",ISNUMBER(K23)),K22,"-") -> - | S22: =IF(AND(L22<>"-",L21="-",ISNUMBER(L23)),L22,"-") -> -
A23: -18 | B23: - | C23: - | J23: -18 | K23: - | L23: - | R23: =IF(AND(K23<>"-",K22="-",ISNUMBER(K24)),K23,"-") -> - | S23: =IF(AND(L23<>"-",L22="-",ISNUMBER(L24)),L23,"-") -> -
A24: -13 | B24: - | C24: - | J24: -13 | K24: - | L24: - | R24: - | S24: -
A25: -8 | B25: - | C25: - | E25: =(($E$2-INDEX('HP Calcs'!$A$4:$A$20,MATCH($E$2,'HP Calcs'!$A$4:$A$20,1)))*(INDEX(K22:K38,MATCH($E$2,'HP Calcs'!$A$4:$A$20,1)+1)-INDEX(K22:K38,MATCH($E$2,'HP Calcs'!$A$4:$A$20,1))))/(INDEX('HP Calcs'!$A$4:$A$20,MATCH($E$2,'HP Calcs'!$A$4:$A$20,1)+1)-INDEX('HP Calcs'!$A$4:$A$20,MATCH($E$2,'HP Calcs'!$A$4:$A$20,1)))+INDEX(K22:K38,MATCH($E$2,'HP Calcs'!$A$4:$A$20,1)) ->  | F25: =(($E$2-INDEX('HP Calcs'!$A$4:$A$20,MATCH($E$2,'HP Calcs'!$A$4:$A$20,1)))*(INDEX(L22:L38,MATCH($E$2,'HP Calcs'!$A$4:$A$20,1)+1)-INDEX(L22:L38,MATCH($E$2,'HP Calcs'!$A$4:$A$20,1))))/(INDEX('HP Calcs'!$A$4:$A$20,MATCH($E$2,'HP Calcs'!$A$4:$A$20,1)+1)-INDEX('HP Calcs'!$A$4:$A$20,MATCH($E$2,'HP Calcs'!$A$4:$A$20,1)))+INDEX(L22:L38,MATCH($E$2,'HP Calcs'!$A$4:$A$20,1)) ->  | J25: -8 | K25: - | L25: - | R25: - | S25: -
A26: -3 | B26: =((A26-A4)*(B5-B4))/(A5-A4)+B4 -> 0.5036885246 | C26: =((B26-B4)*(C5-C4))/(B5-B4)+C4 -> 0.7222222222 | J26: -3 | K26: 0.144057377 | L26: 0.2070707071 | R26: 0.144057377 | S26: 0.2070707071
A27: 2 | B27: 0.5768852459 | C27: =((B27-B5)*(C6-C5))/(B6-B5)+C5 -> 0.7919191919 | D27: HP1 | E27: =IF(OR('Étape 5 Sélectionner des TP-Air'!$B$37="Non",'Étape 5 Sélectionner des TP-Air'!$B$37="Pas Certain"),0,IF(P30<0,INDEX(K22:K38,MATCH(MIN(R22:R38),K22:K38)),'HP Calcs'!$A$4*P30+P31)) -> 0.101352459 | F27: =IF(OR('Étape 5 Sélectionner des TP-Air'!$B$37="Non",'Étape 5 Sélectionner des TP-Air'!$B$37="Pas Certain"),0,IF(Q30<0,INDEX(L22:L38,MATCH(MIN(S22:S38),L22:L38)),'HP Calcs'!$A$4*Q30+Q31)) -> 0.1686868687 | J27: 2 | K27: 0.1654098361 | L27: 0.2262626263 | P27: =INDEX(J22:J38,MATCH(MIN(R22:R38),R22:R38)) -> -3 | Q27: =INDEX(J22:J38,MATCH(MIN(S22:S38),S22:S38)) -> -3 | R27: - | S27: -
A28: 7 | B28: 0.6475409836 | C28: =((B28-B6)*(C7-C6))/(B7-B6)+C6 -> 0.8484848485 | D28: HP2 | E28: =IF(OR('Étape 5 Sélectionner des TP-Air'!$B$37="Non",'Étape 5 Sélectionner des TP-Air'!$B$37="Pas Certain"),0,IF(P30<0,INDEX(K22:K38,MATCH(MIN(R22:R38),K22:K38)),'HP Calcs'!$A$26*P30+P31)) -> 0.101352459 | F28: =IF(OR('Étape 5 Sélectionner des TP-Air'!$B$37="Non",'Étape 5 Sélectionner des TP-Air'!$B$37="Pas Certain"),0,IF(Q30<0,INDEX(L22:L38,MATCH(MIN(S22:S38),L22:L38)),'HP Calcs'!$A$26*Q30+Q31)) -> 0.1686868687 | J28: 7 | K28: 0.1850819672 | L28: 0.2404040404 | P28: =INDEX(J22:J38,MATCH(MIN(R22:R38),R22:R38)+1) -> 2 | Q28: =INDEX(J22:J38,MATCH(MIN(S22:S38),S22:S38)+1) -> 2 | R28: - | S28: -
A29: 12 | B29: 0.7295081967 | C29: =((B29-B7)*(C8-C7))/(B8-B7)+C7 -> 0.898989899 | D29: HP3 | E29: =IF(OR('Étape 5 Sélectionner des TP-Air'!$B$37="Non",'Étape 5 Sélectionner des TP-Air'!$B$37="Pas Certain"),0,IF(P30<0,INDEX(K22:K38,MATCH(MIN(R22:R38),K22:K38)),'HP Calcs'!$A$48*P30+P31)) -> 0.101352459 | F29: =IF(OR('Étape 5 Sélectionner des TP-Air'!$B$37="Non",'Étape 5 Sélectionner des TP-Air'!$B$37="Pas Certain"),0,IF(Q30<0,INDEX(L22:L38,MATCH(MIN(S22:S38),L22:L38)),'HP Calcs'!$A$48*Q30+Q31)) -> 0.1686868687 | J29: 12 | K29: 0.2078688525 | L29: 0.2525252525 | R29: - | S29: -
A30: 17 | B30: 0.8081967213 | C30: =((B30-B8)*(C9-C8))/(B9-B8)+C8 -> 0.9494949495 | D30: HP4 | E30: =IF(OR('Étape 5 Sélectionner des TP-Air'!$B$37="Non",'Étape 5 Sélectionner des TP-Air'!$B$37="Pas Certain"),0,IF(P30<0,INDEX(K22:K38,MATCH(MIN(R22:R38),K22:K38)),'HP Calcs'!$A$70*P30+P31)) -> 0.101352459 | F30: =IF(OR('Étape 5 Sélectionner des TP-Air'!$B$37="Non",'Étape 5 Sélectionner des TP-Air'!$B$37="Pas Certain"),0,IF(Q30<0,INDEX(L22:L38,MATCH(MIN(S22:S38),L22:L38)),'HP Calcs'!$A$70*Q30+Q31)) -> 0.1686868687 | J30: 17 | K30: 0.2309836066 | L30: 0.2646464646 | P30: =((INDEX(K22:K38,MATCH(MIN(R22:R38),R22:R38)+1))-INDEX(K22:K38,MATCH(MIN(R22:R38),R22:R38)))/(P28-P27) -> 0.004270491803 | Q30: =((INDEX(L22:L38,MATCH(MIN(S22:S38),S22:S38)+1))-INDEX(L22:L38,MATCH(MIN(S22:S38),S22:S38)))/(Q28-Q27) -> 0.003838383838 | R30: - | S30: -
A31: 22 | B31: 0.8819672131 | C31: =((B31-B9)*(C10-C9))/(B10-B9)+C9 -> 1 | J31: 22 | K31: =((J31-J9)*(K10-K9))/(J10-J9)+K9 -> 0.2524590164 | L31: 0.2868686869 | P31: =INDEX(K22:K38,MATCH(MIN(R22:R38),R22:R38))-P30*P27 -> 0.1568688525 | Q31: =INDEX(L22:L38,MATCH(MIN(S22:S38),S22:S38))-Q30*Q27 -> 0.2185858586 | R31: - | S31: -
A32: 27 | B32: 0.9540983607 | C32: =((B32-B10)*(C11-C10))/(B11-B10)+C10 -> 1.050505051 | J32: 27 | K32: 0.2726229508 | L32: 0.301010101 | R32: - | S32: -
A33: 32 | B33: 1.023770492 | C33: =((B33-B11)*(C12-C11))/(B12-B11)+C11 -> 1.101010101 | J33: 32 | K33: 0.2926229508 | L33: 0.3131313131 | R33: - | S33: -
A34: 37 | B34: 1.090163934 | C34: =((B34-B12)*(C13-C12))/(B13-B12)+C12 -> 1.151515152 | J34: 37 | K34: 0.3114754098 | L34: 0.3212121212 | R34: - | S34: -
A35: 42 | B35: 1.168032787 | C35: =((B35-B13)*(C14-C13))/(B14-B13)+C13 -> 1.215488215 | J35: 42 | K35: 0.3333333333 | L35: 0.3468013468 | R35: - | S35: -
A36: 47 | B36: =((A36-A15)*(B16-B15))/(A16-A15)+B15 -> 1.232786885 | C36: =((B36-B15)*(C16-C15))/(B16-B15)+C15 -> 1.262626263 | J36: 47 | K36: 0.3521311475 | L36: 0.3616161616 | R36: - | S36: -
A37: 52 | B37: =((A37-A16)*(B17-B16))/(A17-A16)+B16 -> 1.302459016 | C37: =((B37-B16)*(C17-C16))/(B17-B16)+C16 -> 1.313131313 | J37: 52 | K37: 0.3718032787 | L37: 0.3777777778 | R37: - | S37: -
A38: 57 | B38: =((A38-A17)*(B18-B17))/(A18-A17)+B17 -> 1.372131148 | C38: =((B38-B17)*(C18-C17))/(B18-B17)+C17 -> 1.363636364 | J38: 57 | K38: 0.3918032787 | L38: 0.3878787879 | R38: - | S38: -
A43: Max, Cool | J43: Min, Heat
A44: Temperature | B44: Normalized Capacity | C44: Normalized Power | J44: Temperature | K44: Normalized Capacity | L44: Normalized Power
A45: 70 | B45: 1.311666667 | C45: 0.9173553719 | J45: 70 | K45: 0.3883333333 | L45: 0.2809917355
A46: 75 | B46: 1.245833333 | C46: 0.958677686 | J46: 75 | K46: 0.3758333333 | L46: 0.2892561983
A47: 80 | B47: 1.2 | C47: 1.008264463 | J47: 80 | K47: 0.3633333333 | L47: 0.305785124
A48: 85 | B48: 1.160833333 | C48: 1.05785124 | J48: 85 | K48: 0.35 | L48: 0.3140495868
A49: 90 | B49: 1.1175 | C49: 1.099173554 | J49: 90 | K49: 0.3366666667 | L49: 0.3305785124
A50: 95 | B50: 1.074166667 | C50: 1.140495868 | J50: 95 | K50: 0.325 | L50: 0.3388429752
A51: 100 | B51: 1.0375 | C51: 1.181818182 | J51: 100 | K51: 0.3125 | L51: 0.3553719008
A52: 105 | B52: 0.9991666667 | C52: 1.214876033 | J52: 105 | K52: 0.3008333333 | L52: 0.3719008264
A53: 110 | B53: 0.9591666667 | C53: 1.239669421 | J53: 110 | K53: 0.2891666667 | L53: 0.3719008264
A54: 115 | B54: 0.9183333333 | C54: 1.26446281 | J54: 115 | K54: 0.2766666667 | L54: 0.3801652893
A57: Temperature | J57: Temperature
A58: 72 | B58: =((A58-A45)*(B46-B45))/(A46-A45)+B45 -> 1.285333333 | C58: =((B58-B45)*(C46-C45))/(B46-B45)+C45 -> 0.9338842975 | J58: 72 | K58: 0.3833333333 | L58: 0.2842975207
A59: 77 | B59: 1.2275 | C59: =((B59-B46)*(C47-C46))/(B47-B46)+C46 -> 0.9785123967 | J59: 77 | K59: 0.3708333333 | L59: 0.2958677686
A60: 82 | B60: 1.184333333 | C60: =((B60-B47)*(C48-C47))/(B48-B47)+C47 -> 1.028099174 | E60: =(($F$2-INDEX('HP Calcs'!$H$5:$H$13,MATCH($F$2,'HP Calcs'!$H$5:$H$13,1)))*(INDEX(K58:K66,MATCH($F$2,'HP Calcs'!$H$5:$H$13,1)+1)-INDEX(K58:K66,MATCH($F$2,'HP Calcs'!$H$5:$H$13,1))))/(INDEX('HP Calcs'!$H$5:$H$13,MATCH($F$2,'HP Calcs'!$H$5:$H$13,1)+1)-INDEX('HP Calcs'!$H$5:$H$13,MATCH($F$2,'HP Calcs'!$H$5:$H$13,1)))+INDEX(K58:K66,MATCH($F$2,'HP Calcs'!$H$5:$H$13,1)) -> 0.3473333333 | F60: =(($F$2-INDEX('HP Calcs'!$H$5:$H$13,MATCH($F$2,'HP Calcs'!$H$5:$H$13,1)))*(INDEX(L58:L66,MATCH($F$2,'HP Calcs'!$H$5:$H$13,1)+1)-INDEX(L58:L66,MATCH($F$2,'HP Calcs'!$H$5:$H$13,1))))/(INDEX('HP Calcs'!$H$5:$H$13,MATCH($F$2,'HP Calcs'!$H$5:$H$13,1)+1)-INDEX('HP Calcs'!$H$5:$H$13,MATCH($F$2,'HP Calcs'!$H$5:$H$13,1)))+INDEX(L58:L66,MATCH($F$2,'HP Calcs'!$H$5:$H$13,1)) -> 0.3183471074 | J60: 82 | K60: 0.358 | L60: 0.3090909091
A61: 87 | B61: 1.1435 | C61: =((B61-B48)*(C49-C48))/(B49-B48)+C48 -> 1.074380165 | J61: 87 | K61: 0.3446666667 | L61: 0.320661157
A62: 92 | B62: 1.100166667 | C62: =((B62-B49)*(C50-C49))/(B50-B49)+C49 -> 1.115702479 | J62: 92 | K62: 0.332 | L62: 0.3338842975
A63: 97 | B63: 1.0595 | C63: =((B63-B50)*(C51-C50))/(B51-B50)+C50 -> 1.157024793 | J63: 97 | K63: 0.32 | L63: 0.3454545455
A64: 102 | B64: 1.022166667 | C64: =((B64-B51)*(C52-C51))/(B52-B51)+C51 -> 1.195041322 | J64: 102 | K64: 0.3078333333 | L64: 0.3619834711
A65: 107 | B65: 0.9831666667 | C65: =((B65-B52)*(C53-C52))/(B53-B52)+C52 -> 1.224793388 | J65: 107 | K65: 0.2961666667 | L65: 0.3719008264
A66: 112 | B66: 0.9428333333 | C66: =((B66-B53)*(C54-C53))/(B54-B53)+C53 -> 1.249586777 | J66: 112 | K66: 0.2841666667 | L66: 0.3752066116
A69: Ductless, Single Split, Cold Climate | D69: MUZ-FH12HN
A70: MAX, Heat | J70: Min, Heat
A71: Temperature | B71: Normalized Capacity | C71: Normalized Power | J71: Temperature | K71: Normalized Capacity | L71: Normalized Power
A72: -13 | B72: 0.7573529412 | C72: 1.684210526 | J72: -13 | K72: 0.1286764706 | L72: 0.2842105263
A73: -10 | B73: 0.8161764706 | C73: 1.747368421 | J73: -10 | K73: 0.1389705882 | L73: 0.2947368421
A74: -4 | B74: 0.875 | C74: 1.8 | J74: -4 | K74: 0.1485294118 | L74: 0.3052631579
A75: 0 | B75: 0.9558823529 | C75: 1.884210526 | J75: 0 | K75: 0.1625 | L75: 0.3157894737
A76: 5 | B76: 1.029411765 | C76: 1.957894737 | J76: 5 | K76: 0.175 | L76: 0.3263157895
A77: 10 | B77: 1.102941176 | C77: 2.042105263 | J77: 10 | K77: 0.1875 | L77: 0.3473684211
A78: 15 | B78: 1.176470588 | C78: 2.115789474 | J78: 15 | K78: 0.2007352941 | L78: 0.3684210526
A79: 20 | B79: 1.253676471 | C79: 2.189473684 | J79: 20 | K79: 0.2139705882 | L79: 0.3684210526
A80: 25 | B80: 1.330882353 | C80: 2.263157895 | J80: 25 | K80: 0.2264705882 | L80: 0.3894736842
A81: 30 | B81: 1.400735294 | C81: 2.336842105 | J81: 30 | K81: 0.2389705882 | L81: 0.4
A82: 35 | B82: 1.470588235 | C82: 2.410526316 | J82: 35 | K82: 0.2507352941 | L82: 0.4105263158
A83: 40 | B83: 1.507352941 | C83: 2.421052632 | J83: 40 | K83: 0.2566176471 | L83: 0.4105263158
A84: 43 | B84: 1.544117647 | C84: 2.421052632 | J84: 43 | K84: 0.2632352941 | L84: 0.4105263158
A85: 45 | B85: 1.573529412 | C85: 2.473684211 | J85: 45 | K85: 0.2676470588 | L85: 0.4210526316
A86: 50 | B86: 1.617647059 | C86: 2.473684211 | J86: 50 | K86: 0.275 | L86: 0.4210526316
A87: 55 | B87: 1.661764706 | C87: 2.473684211 | J87: 55 | K87: 0.2830882353 | L87: 0.4210526316
A88: 60 | B88: 1.702205882 | C88: 2.473684211 | J88: 60 | K88: 0.2897058824 | L88: 0.4210526316
A90: Temperature | J90: Temperature
A91: -23 | B91: - | C91: - | J91: -23 | K91: - | L91: - | R91: =IF(AND(K91<>"-",K90="-",ISNUMBER(K92)),K91,"-") -> - | S91: =IF(AND(L91<>"-",L90="-",ISNUMBER(L92)),L91,"-") -> -
A92: -18 | B92: - | C92: - | J92: -18 | K92: - | L92: - | R92: =IF(AND(K92<>"-",K91="-",ISNUMBER(K93)),K92,"-") -> - | S92: =IF(AND(L92<>"-",L91="-",ISNUMBER(L93)),L92,"-") -> -
A93: -13 | B93: =B72 -> 0.7573529412 | C93: =C72 -> 1.684210526 | J93: -13 | K93: 0.1286764706 | L93: 0.2842105263 | R93: 0.1286764706 | S93: 0.2842105263
A94: -8 | B94: =((A94-A73)*(B74-B73))/(A74-A73)+B73 -> 0.8357843137 | C94: =((B94-B73)*(C74-C73))/(B74-B73)+C73 -> 1.764912281 | E94: =(($E$2-INDEX('HP Calcs'!$A$4:$A$20,MATCH($E$2,'HP Calcs'!$A$4:$A$20,1)))*(INDEX(K91:K107,MATCH($E$2,'HP Calcs'!$A$4:$A$20,1)+1)-INDEX(K91:K107,MATCH($E$2,'HP Calcs'!$A$4:$A$20,1))))/(INDEX('HP Calcs'!$A$4:$A$20,MATCH($E$2,'HP Calcs'!$A$4:$A$20,1)+1)-INDEX('HP Calcs'!$A$4:$A$20,MATCH($E$2,'HP Calcs'!$A$4:$A$20,1)))+INDEX(K91:K107,MATCH($E$2,'HP Calcs'!$A$4:$A$20,1)) -> 0.1340686275 | F94: =(($E$2-INDEX('HP Calcs'!$A$4:$A$20,MATCH($E$2,'HP Calcs'!$A$4:$A$20,1)))*(INDEX(L91:L107,MATCH($E$2,'HP Calcs'!$A$4:$A$20,1)+1)-INDEX(L91:L107,MATCH($E$2,'HP Calcs'!$A$4:$A$20,1))))/(INDEX('HP Calcs'!$A$4:$A$20,MATCH($E$2,'HP Calcs'!$A$4:$A$20,1)+1)-INDEX('HP Calcs'!$A$4:$A$20,MATCH($E$2,'HP Calcs'!$A$4:$A$20,1)))+INDEX(L91:L107,MATCH($E$2,'HP Calcs'!$A$4:$A$20,1)) -> 0.2898245614 | J94: -8 | K94: 0.1421568627 | L94: 0.298245614 | R94: - | S94: -
A95: -3 | B95: 0.8952205882 | C95: =((B95-B74)*(C75-C74))/(B75-B74)+C74 -> 1.821052632 | J95: -3 | K95: 0.1520220588 | L95: 0.3078947368 | R95: - | S95: -
A96: 2 | B96: 0.9852941176 | C96: =((B96-B75)*(C76-C75))/(B76-B75)+C75 -> 1.913684211 | D96: HP1 | E96: =IF(OR('Étape 5 Sélectionner des TP-Air'!$B$37="Non",'Étape 5 Sélectionner des TP-Air'!$B$37="Pas Certain"),0,IF(P99<0,INDEX(K91:K107,MATCH(MIN(R91:R107),K91:K107)),'HP Calcs'!$A$4*P99+P100)) -> 0.1286764706 | F96: =IF(OR('Étape 5 Sélectionner des TP-Air'!$B$37="Non",'Étape 5 Sélectionner des TP-Air'!$B$37="Pas Certain"),0,IF(Q99<0,INDEX(L91:L107,MATCH(MIN(S91:S107),L91:L107)),'HP Calcs'!$A$4*Q99+Q100)) -> 0.2842105263 | J96: 2 | K96: 0.1675 | L96: 0.32 | P96: =INDEX(J91:J107,MATCH(MIN(R91:R107),R91:R107)) -> -13 | Q96: =INDEX(J91:J107,MATCH(MIN(S91:S107),S91:S107)) -> -13 | R96: - | S96: -
A97: 7 | B97: 1.058823529 | C97: =((B97-B76)*(C77-C76))/(B77-B76)+C76 -> 1.991578947 | D97: HP2 | E97: =IF(OR('Étape 5 Sélectionner des TP-Air'!$B$37="Non",'Étape 5 Sélectionner des TP-Air'!$B$37="Pas Certain"),0,IF(P99<0,INDEX(K91:K107,MATCH(MIN(R91:R107),K91:K107)),'HP Calcs'!$A$26*P99+P100)) -> 0.1286764706 | F97: =IF(OR('Étape 5 Sélectionner des TP-Air'!$B$37="Non",'Étape 5 Sélectionner des TP-Air'!$B$37="Pas Certain"),0,IF(Q99<0,INDEX(L91:L107,MATCH(MIN(S91:S107),L91:L107)),'HP Calcs'!$A$26*Q99+Q100)) -> 0.2842105263 | J97: 7 | K97: 0.18 | L97: 0.3347368421 | P97: =INDEX(J91:J107,MATCH(MIN(R91:R107),R91:R107)+1) -> -8 | Q97: =INDEX(J91:J107,MATCH(MIN(S91:S107),S91:S107)+1) -> -8 | R97: - | S97: -
A98: 12 | B98: 1.132352941 | C98: =((B98-B77)*(C78-C77))/(B78-B77)+C77 -> 2.071578947 | D98: HP3 | E98: =IF(OR('Étape 5 Sélectionner des TP-Air'!$B$37="Non",'Étape 5 Sélectionner des TP-Air'!$B$37="Pas Certain"),0,IF(P99<0,INDEX(K91:K107,MATCH(MIN(R91:R107),K91:K107)),'HP Calcs'!$A$48*P99+P100)) -> 0.1286764706 | F98: =IF(OR('Étape 5 Sélectionner des TP-Air'!$B$37="Non",'Étape 5 Sélectionner des TP-Air'!$B$37="Pas Certain"),0,IF(Q99<0,INDEX(L91:L107,MATCH(MIN(S91:S107),L91:L107)),'HP Calcs'!$A$48*Q99+Q100)) -> 0.2842105263 | J98: 12 | K98: 0.1927941176 | L98: 0.3557894737 | R98: - | S98: -
A99: 17 | B99: 1.207352941 | C99: =((B99-B78)*(C79-C78))/(B79-B78)+C78 -> 2.145263158 | D99: HP4 | E99: =IF(OR('Étape 5 Sélectionner des TP-Air'!$B$37="Non",'Étape 5 Sélectionner des TP-Air'!$B$37="Pas Certain"),0,IF(P99<0,INDEX(K91:K107,MATCH(MIN(R91:R107),K91:K107)),'HP Calcs'!$A$70*P99+P100)) -> 0.1286764706 | F99: =IF(OR('Étape 5 Sélectionner des TP-Air'!$B$37="Non",'Étape 5 Sélectionner des TP-Air'!$B$37="Pas Certain"),0,IF(Q99<0,INDEX(L91:L107,MATCH(MIN(S91:S107),L91:L107)),'HP Calcs'!$A$70*Q99+Q100)) -> 0.2842105263 | J99: 17 | K99: 0.2060294118 | L99: 0.3684210526 | P99: =((INDEX(K91:K107,MATCH(MIN(R91:R107),R91:R107)+1))-INDEX(K91:K107,MATCH(MIN(R91:R107),R91:R107)))/(P97-P96) -> 0.002696078431 | Q99: =((INDEX(L91:L107,MATCH(MIN(S91:S107),S91:S107)+1))-INDEX(L91:L107,MATCH(MIN(S91:S107),S91:S107)))/(Q97-Q96) -> 0.002807017544 | R99: - | S99: -
A100: 22 | B100: 1.284558824 | C100: =((B100-B79)*(C80-C79))/(B80-B79)+C79 -> 2.218947368 | J100: 22 | K100: 0.2189705882 | L100: 0.3768421053 | P100: =INDEX(K91:K107,MATCH(MIN(R91:R107),R91:R107))-P99*P96 -> 0.1637254902 | Q100: =INDEX(L91:L107,MATCH(MIN(S91:S107),S91:S107))-Q99*Q96 -> 0.3207017544 | R100: - | S100: -
A101: 27 | B101: 1.358823529 | C101: =((B101-B80)*(C81-C80))/(B81-B80)+C80 -> 2.292631579 | J101: 27 | K101: 0.2314705882 | L101: 0.3936842105 | R101: - | S101: -
A102: 32 | B102: 1.428676471 | C102: =((B102-B81)*(C82-C81))/(B82-B81)+C81 -> 2.366315789 | J102: 32 | K102: 0.2436764706 | L102: 0.4042105263 | R102: - | S102: -
A103: 37 | B103: 1.485294118 | C103: =((B103-B82)*(C83-C82))/(B83-B82)+C82 -> 2.414736842 | J103: 37 | K103: 0.2530882353 | L103: 0.4105263158 | R103: - | S103: -
A104: 42 | B104: 1.531862745 | C104: =((B104-B83)*(C84-C83))/(B84-B83)+C83 -> 2.421052632 | J104: 42 | K104: 0.2610294118 | L104: 0.4105263158 | R104: - | S104: -
A105: 47 | B105: =((A105-A85)*(B86-B85))/(A86-A85)+B85 -> 1.591176471 | C105: =((B105-B85)*(C86-C85))/(B86-B85)+C85 -> 2.473684211 | J105: 47 | K105: 0.2705882353 | L105: 0.4210526316 | R105: - | S105: -
A106: 52 | B106: =((A106-A86)*(B87-B86))/(A87-A86)+B86 -> 1.635294118 | C106: =((B106-B86)*(C87-C86))/(B87-B86)+C86 -> 2.473684211 | J106: 52 | K106: 0.2782352941 | L106: 0.4210526316 | R106: - | S106: -
A107: 57 | B107: =((A107-A87)*(B88-B87))/(A88-A87)+B87 -> 1.677941176 | C107: =((B107-B87)*(C88-C87))/(B88-B87)+C87 -> 2.473684211 | J107: 57 | K107: 0.2857352941 | L107: 0.4210526316 | R107: - | S107: -
A110: Max, Cool | J110: Min, Heat
A111: Temperature | B111: Normalized Capacity | C111: Normalized Power | J111: Temperature | K111: Normalized Capacity | L111: Normalized Power
A112: 70 | B112: 1.435833333 | C112: 1.732142857 | J112: 70 | K112: 0.2466666667 | L112: 0.2857142857
A113: 75 | B113: 1.388333333 | C113: 1.821428571 | J113: 75 | K113: 0.2391666667 | L113: 0.3035714286
A114: 80 | B114: 1.340833333 | C114: 1.910714286 | J114: 80 | K114: 0.23 | L114: 0.3214285714
A115: 85 | B115: 1.2925 | C115: 1.982142857 | J115: 85 | K115: 0.2225 | L115: 0.3214285714
A116: 90 | B116: 1.245 | C116: 2.089285714 | J116: 90 | K116: 0.2141666667 | L116: 0.3392857143
A117: 95 | B117: 1.196666667 | C117: 2.160714286 | J117: 95 | K117: 0.2058333333 | L117: 0.3392857143
A118: 100 | B118: 1.155 | C118: 2.232142857 | J118: 100 | K118: 0.1983333333 | L118: 0.375
A119: 105 | B119: 1.113333333 | C119: 2.285714286 | J119: 105 | K119: 0.1916666667 | L119: 0.375
A120: 110 | B120: 1.068333333 | C120: 2.339285714 | J120: 110 | K120: 0.1841666667 | L120: 0.375
A121: 115 | B121: 1.023333333 | C121: 2.410714286 | J121: 115 | K121: 0.1766666667 | L121: 0.3928571429
A124: Temperature | J124: Temperature
A125: 72 | B125: =((A125-A112)*(B113-B112))/(A113-A112)+B112 -> 1.416833333 | C125: =((B125-B112)*(C113-C112))/(B113-B112)+C112 -> 1.767857143 | J125: 72 | K125: 0.2436666667 | L125: 0.2928571429
A126: 77 | B126: 1.369333333 | C126: =((B126-B113)*(C114-C113))/(B114-B113)+C113 -> 1.857142857 | J126: 77 | K126: 0.2355 | L126: 0.3107142857
A127: 82 | B127: 1.3215 | C127: =((B127-B114)*(C115-C114))/(B115-B114)+C114 -> 1.939285714 | E127: =(($F$2-INDEX('HP Calcs'!$H$5:$H$13,MATCH($F$2,'HP Calcs'!$H$5:$H$13,1)))*(INDEX(K125:K133,MATCH($F$2,'HP Calcs'!$H$5:$H$13,1)+1)-INDEX(K125:K133,MATCH($F$2,'HP Calcs'!$H$5:$H$13,1))))/(INDEX('HP Calcs'!$H$5:$H$13,MATCH($F$2,'HP Calcs'!$H$5:$H$13,1)+1)-INDEX('HP Calcs'!$H$5:$H$13,MATCH($F$2,'HP Calcs'!$H$5:$H$13,1)))+INDEX(K125:K133,MATCH($F$2,'HP Calcs'!$H$5:$H$13,1)) -> 0.2207333333 | F127: =(($F$2-INDEX('HP Calcs'!$H$5:$H$13,MATCH($F$2,'HP Calcs'!$H$5:$H$13,1)))*(INDEX(L125:L133,MATCH($F$2,'HP Calcs'!$H$5:$H$13,1)+1)-INDEX(L125:L133,MATCH($F$2,'HP Calcs'!$H$5:$H$13,1))))/(INDEX('HP Calcs'!$H$5:$H$13,MATCH($F$2,'HP Calcs'!$H$5:$H$13,1)+1)-INDEX('HP Calcs'!$H$5:$H$13,MATCH($F$2,'HP Calcs'!$H$5:$H$13,1)))+INDEX(L125:L133,MATCH($F$2,'HP Calcs'!$H$5:$H$13,1)) -> 0.3271428571 | J127: 82 | K127: 0.227 | L127: 0.3214285714
A128: 87 | B128: 1.2735 | C128: =((B128-B115)*(C116-C115))/(B116-B115)+C115 -> 2.025 | J128: 87 | K128: 0.2191666667 | L128: 0.3285714286
A129: 92 | B129: 1.225666667 | C129: =((B129-B116)*(C117-C116))/(B117-B116)+C116 -> 2.117857143 | J129: 92 | K129: 0.2108333333 | L129: 0.3392857143
A130: 97 | B130: 1.18 | C130: =((B130-B117)*(C118-C117))/(B118-B117)+C117 -> 2.189285714 | J130: 97 | K130: 0.2028333333 | L130: 0.3535714286
A131: 102 | B131: 1.138333333 | C131: =((B131-B118)*(C119-C118))/(B119-B118)+C118 -> 2.253571429 | J131: 102 | K131: 0.1956666667 | L131: 0.375
A132: 107 | B132: 1.095333333 | C132: =((B132-B119)*(C120-C119))/(B120-B119)+C119 -> 2.307142857 | J132: 107 | K132: 0.1886666667 | L132: 0.375
A133: 112 | B133: 1.050333333 | C133: =((B133-B120)*(C121-C120))/(B121-B120)+C120 -> 2.367857143 | J133: 112 | K133: 0.1811666667 | L133: 0.3821428571
A139: NOTES
A140: * PLEASE ENSURE WE ARE MULTIPLIYING BY THE DROPER HP FOR CAP, POWER, AND COP
A141: * LINKS IN THIS SPREADSHEET ARE PURELY TO ILLUSTRATE

Sheet HP Calcs (hidden)
A1: HP1
A2: =IF('Introduction & Options d''Unité'!$B$12="Impérial","Heating Load (BTU/h)","Heating Load (kW)") -> Heating Load (BTU/h) | S2: BPT Calculations | AP2: =NA() -> 
A3: =IF('Introduction & Options d''Unité'!$B$12="Impérial","Outdoor Temperature (°F)","Outdoor Temperature (°C)") -> Outdoor Temperature (°F) | B3: Normalized Capacity | C3: Normalized Power | D3: Actual Capacity | E3: Actual Power | F3: Actual COP | H3: =IF('Introduction & Options d''Unité'!$B$12="Impérial","Cooling Load (BTU/h)","Cooling Load (kW)") -> Cooling Load (BTU/h) | S3: Heat Load line | X3: BPT Ttemperature | Z3: Fraction of heating above BPT | AB3: High load line | AD3: HIGH | AG3: BPT Ttemperature | AI3: Fraction of heating above BPT | AJ3: HIGH/Étage Inférieur calculations | AP3: =NA() -> 
A4: ='Étape 5 Sélectionner des TP-Air'!B38 -> -13 | B4: =IF(A4='Load %s'!B8,"-",IF(OR('Étape 5 Sélectionner des TP-Air'!B37="Non",'Étape 5 Sélectionner des TP-Air'!B37="Pas Certain"),IF('Étape 5 Sélectionner des TP-Air'!$B$26="Monoétagé",'Ducted Performance Tables'!B4,IF('Étape 5 Sélectionner des TP-Air'!$B$26="Deux étages",'Ducted Performance Tables'!B43,IF('Étape 5 Sélectionner des TP-Air'!$B$26="Variable",'Ducted Performance Tables'!B96,IF(AND('Étape 5 Sélectionner des TP-Air'!$B$26="Variable (ordinaire)",'Étape 5 Sélectionner des TP-Air'!$B$25="Sans conduit, une seule zone"),'Ductless Single Per Table'!B22,IF(AND('Étape 5 Sélectionner des TP-Air'!$B$26="Variable (climat froid)",'Étape 5 Sélectionner des TP-Air'!$B$25="Sans conduit, une seule zone"),'Ductless Single Per Table'!B91,IF(AND('Étape 5 Sélectionner des TP-Air'!$B$26="Variable (ordinaire)",'Étape 5 Sélectionner des TP-Air'!$B$25="Sans conduit, Plusieurs zones"),'Ductless Multi-split'!B45,IF(AND('Étape 5 Sélectionner des TP-Air'!$B$26="Variable (climat froid)",'Étape 5 Sélectionner des TP-Air'!$B$25="Sans conduit, Plusieurs zones"),'Ductless Multi-split'!B118,""))))))),IF(AND(B33="Oui",A4>='Control Strategy Calcs'!U4),"-",L15))) -> 0.2066666667 | C4: =IF(OR('Étape 5 Sélectionner des TP-Air'!B37="Non",'Étape 5 Sélectionner des TP-Air'!B37="Pas Certain"),IF('Étape 5 Sélectionner des TP-Air'!$B$26="Monoétagé",'Ducted Performance Tables'!C4,IF('Étape 5 Sélectionner des TP-Air'!$B$26="Deux étages",'Ducted Performance Tables'!C43,IF('Étape 5 Sélectionner des TP-Air'!$B$26="Variable",'Ducted Performance Tables'!C96,IF(AND('Étape 5 Sélectionner des TP-Air'!$B$26="Variable (ordinaire)",'Étape 5 Sélectionner des TP-Air'!$B$25="Sans conduit, une seule zone"),'Ductless Single Per Table'!C22,IF(AND('Étape 5 Sélectionner des TP-Air'!$B$26="Variable (climat froid)",'Étape 5 Sélectionner des TP-Air'!$B$25="Sans conduit, une seule zone"),'Ductless Single Per Table'!C91,IF(AND('Étape 5 Sélectionner des TP-Air'!$B$26="Variable (ordinaire)",'Étape 5 Sélectionner des TP-Air'!$B$25="Sans conduit, Plusieurs zones"),'Ductless Multi-split'!C45,IF(AND('Étape 5 Sélectionner des TP-Air'!$B$26="Variable (climat froid)",'Étape 5 Sélectionner des TP-Air'!$B$25="Sans conduit, Plusieurs zones"),'Ductless Multi-split'!C118,""))))))),$M$15) -> 0.7627118644 | D4: =IFERROR(B4*IF('Étape 5 Sélectionner des TP-Air'!$B$27="Étage Inférieur",$AJ$7/'HP Calcs'!$B$18,IF('Étape 5 Sélectionner des TP-Air'!$B$27="Étage Supérieur",$AJ$7/'HP Calcs'!$B$18,$AJ$7)),NA()) -> 4960 | E4: =IFERROR(C4*IF('Étape 5 Sélectionner des TP-Air'!$B$27="Étage Inférieur",$AK$7/$C$18,IF('Étape 5 Sélectionner des TP-Air'!$B$27="Étage Supérieur",$AK$7/$C$18,$AK$7)),NA()) -> 2.440677966 | F4: =(D4/IF('Introduction & Options d''Unité'!$B$12="Métrique",1,3412))/E4 -> 0.5956102644 | H4: =IF('Introduction & Options d''Unité'!$B$12="Impérial","Outdoor Temperature (°F)","Outdoor Temperature (°C)") -> Outdoor Temperature (°F) | K4: Actual Capacity | L4: Actual Power | M4: Actual COP | P4: =IF(AND(Q4<>"-",Q3="-",ISNUMBER(Q5)),Q4,"-") -> - | Q4: =IF(AND('Étape 5 Sélectionner des TP-Air'!$G$37="Oui",'Étape 5 Sélectionner des TP-Air'!$B$38>A4),"-",IF('Étape 5 Sélectionner des TP-Air'!$B$27="Étage Supérieur",IF('Étape 5 Sélectionner des TP-Air'!$B$26="Monoétagé",'Ducted Performance Tables'!C4,IF('Étape 5 Sélectionner des TP-Air'!$B$26="Deux étages",'Ducted Performance Tables'!C43,IF('Étape 5 Sélectionner des TP-Air'!$B$26="Variable",'Ducted Performance Tables'!C96,IF(AND('Étape 5 Sélectionner des TP-Air'!$B$26="Variable (ordinaire)",'Étape 5 Sélectionner des TP-Air'!$B$25="Sans conduit, une seule zone"),'Ductless Single Per Table'!C22,IF(AND('Étape 5 Sélectionner des TP-Air'!$B$26="Variable (climat froid)",'Étape 5 Sélectionner des TP-Air'!$B$25="Sans conduit, une seule zone"),'Ductless Single Per Table'!C91,IF(AND('Étape 5 Sélectionner des TP-Air'!$B$26="Variable (ordinaire)",'Étape 5 Sélectionner des TP-Air'!$B$25="Sans conduit, Plusieurs zones"),'Ductless Multi-split'!C45,IF(AND('Étape 5 Sélectionner des TP-Air'!$B$26="Variable (climat froid)",'Étape 5 Sélectionner des TP-Air'!$B$25="Sans conduit, Plusieurs zones"),'Ductless Multi-split'!C118,""))))))),IF('Étape 5 Sélectionner des TP-Air'!$B$27="Étage Inférieur",IF('Étape 5 Sélectionner des TP-Air'!$B$26="Monoétagé",'Ducted Performance Tables'!C4,IF('Étape 5 Sélectionner des TP-Air'!$B$26="Deux étages",'Ducted Performance Tables'!K43,IF('Étape 5 Sélectionner des TP-Air'!$B$26="Variable",'Ducted Performance Tables'!K96,IF(AND('Étape 5 Sélectionner des TP-Air'!$B$26="Variable (ordinaire)",'Étape 5 Sélectionner des TP-Air'!$B$25="Sans conduit, une seule zone"),'Ductless Single Per Table'!L22,IF(AND('Étape 5 Sélectionner des TP-Air'!$B$26="Variable (climat froid)",'Étape 5 Sélectionner des TP-Air'!$B$25="Sans conduit, une seule zone"),'Ductless Single Per Table'!L91,IF(AND('Étape 5 Sélectionner des TP-Air'!$B$26="Variable (ordinaire)",'Étape 5 Sélectionner des TP-Air'!$B$25="Sans conduit, Plusieurs zones"),'Ductless Multi-split'!L45,IF(AND('Étape 5 Sélectionner des TP-Air'!$B$26="Variable (climat froid)",'Étape 5 Sélectionner des TP-Air'!$B$25="Sans conduit, Plusieurs zones"),'Ductless Multi-split'!L118,"")))))))))) -> - | S4: ='Design Load Calcs'!$G$23*'HP Calcs'!A4+'Design Load Calcs'!$H$23 -> 10281.69014 | T4: =IFERROR(IF(OR(D5<S5,D3>S3),"",IFERROR(ABS(S4-D4),"")),"") ->  | U4: =MATCH(MIN(T4:T20),T4:T20,0)-1 -> 5 | V4: =INDEX(A4:A20,U4) -> -3 | W4: =INDEX(IF('Étape 5 Sélectionner des TP-Air'!$B$6="Subarctic",'Load %s'!$O$8:$O$24,IF('Étape 5 Sélectionner des TP-Air'!$B$6="Very-Cold",'Load %s'!$P$8:$P$24,IF('Étape 5 Sélectionner des TP-Air'!$B$6="Cold-Dry",'Load %s'!$Q$8:$Q$24,IF('Étape 5 Sélectionner des TP-Air'!$B$6="Cold-Humid",'Load %s'!$R$8:$R$24,IF('Étape 5 Sélectionner des TP-Air'!$B$6="Marine",'Load %s'!$S$8:$S$24,IF('Étape 5 Sélectionner des TP-Air'!$B$6="Mixed-Humid",'Load %s'!$T$8:$T$24,IF('Étape 5 Sélectionner des TP-Air'!$B$6="Hot-Humid",'Load %s'!$U$8:$U$24,'Load %s'!$V$8:$V$24))))))),U4) -> 1 | X4: =IFERROR(INDEX(X11:X12,MATCH(V5,X11:X12)),INDEX(X11:X12,MATCH(V5,X11:X12,-1))) -> 0.5811077963 | Z4: =((X4-V4)*(W6-W4))/(V6-V4)+W4 -> 0.9987680649 | AB4: ='Design Load Calcs'!$J$23*'HP Calcs'!A4+'Design Load Calcs'!$K$23 ->  | AC4: =IFERROR(ABS(AB4-D4),"") ->  | AD4: =MATCH(MIN(AC4:AC20),AC4:AC20,0)-1 ->  | AE4: =INDEX($A$4:$A$20,AD4) ->  | AF4: =INDEX(IF('Étape 5 Sélectionner des TP-Air'!$B$6="Subarctic",'Load %s'!$O$8:$O$24,IF('Étape 5 Sélectionner des TP-Air'!$B$6="Very-Cold",'Load %s'!$P$8:$P$24,IF('Étape 5 Sélectionner des TP-Air'!$B$6="Cold-Dry",'Load %s'!$Q$8:$Q$24,IF('Étape 5 Sélectionner des TP-Air'!$B$6="Cold-Humid",'Load %s'!$R$8:$R$24,IF('Étape 5 Sélectionner des TP-Air'!$B$6="Marine",'Load %s'!$S$8:$S$24,IF('Étape 5 Sélectionner des TP-Air'!$B$6="Mixed-Humid",'Load %s'!$T$8:$T$24,IF('Étape 5 Sélectionner des TP-Air'!$B$6="Hot-Humid",'Load %s'!$U$8:$U$24,'Load %s'!$V$8:$V$24))))))),AD4) ->  | AG4: =IF(('Design Load Calcs'!$K$23-AF11)/(AE11-'Design Load Calcs'!$J$23)<'Étape 3 Charges de Conception'!B13,NA(),('Design Load Calcs'!$K$23-AF11)/(AE11-'Design Load Calcs'!$J$23)) ->  | AI4: =((AG4-AE4)*(AF6-AF4))/(AE6-AE4)+AF4 ->  | AP4: =NA() ->  | BB4: Control Strategy graph
A5: ='Load %s'!B9 -> -18 | B5: =IF('Étape 5 Sélectionner des TP-Air'!$B$27="Étage Supérieur",IF(AND('Étape 5 Sélectionner des TP-Air'!$B$37="Oui",'Étape 5 Sélectionner des TP-Air'!$B$38>'HP Calcs'!A5),"-",IF('Étape 5 Sélectionner des TP-Air'!$B$26="Monoétagé",'Ducted Performance Tables'!B5,IF('Étape 5 Sélectionner des TP-Air'!$B$26="Deux étages",'Ducted Performance Tables'!B44,IF('Étape 5 Sélectionner des TP-Air'!$B$26="Variable",'Ducted Performance Tables'!B97,IF(AND('Étape 5 Sélectionner des TP-Air'!$B$26="Variable (ordinaire)",'Étape 5 Sélectionner des TP-Air'!$B$25="Sans conduit, une seule zone"),'Ductless Single Per Table'!B23,IF(AND('Étape 5 Sélectionner des TP-Air'!$B$26="Variable (climat froid)",'Étape 5 Sélectionner des TP-Air'!$B$25="Sans conduit, une seule zone"),'Ductless Single Per Table'!B92,IF(AND('Étape 5 Sélectionner des TP-Air'!$B$26="Variable (ordinaire)",'Étape 5 Sélectionner des TP-Air'!$B$25="Sans conduit, Plusieurs zones"),'Ductless Multi-split'!B46,IF(AND('Étape 5 Sélectionner des TP-Air'!$B$26="Variable (climat froid)",'Étape 5 Sélectionner des TP-Air'!$B$25="Sans conduit, Plusieurs zones"),'Ductless Multi-split'!B119,"")))))))),IF('Étape 5 Sélectionner des TP-Air'!$B$27="Étage Inférieur",IF(AND('Étape 5 Sélectionner des TP-Air'!$B$37="Oui",'Étape 5 Sélectionner des TP-Air'!$B$38>'HP Calcs'!A5),"-",IF('Étape 5 Sélectionner des TP-Air'!$B$26="Monoétagé",'Ducted Performance Tables'!B5,IF('Étape 5 Sélectionner des TP-Air'!$B$26="Deux étages",'Ducted Performance Tables'!J44,IF('Étape 5 Sélectionner des TP-Air'!$B$26="Variable",'Ducted Performance Tables'!J97,IF(AND('Étape 5 Sélectionner des TP-Air'!$B$26="Variable (ordinaire)",'Étape 5 Sélectionner des TP-Air'!$B$25="Sans conduit, une seule zone"),'Ductless Single Per Table'!K23,IF(AND('Étape 5 Sélectionner des TP-Air'!$B$26="Variable (climat froid)",'Étape 5 Sélectionner des TP-Air'!$B$25="Sans conduit, une seule zone"),'Ductless Single Per Table'!K92,IF(AND('Étape 5 Sélectionner des TP-Air'!$B$26="Variable (ordinaire)",'Étape 5 Sélectionner des TP-Air'!$B$25="Sans conduit, Plusieurs zones"),'Ductless Multi-split'!K46,IF(AND('Étape 5 Sélectionner des TP-Air'!$B$26="Variable (climat froid)",'Étape 5 Sélectionner des TP-Air'!$B$25="Sans conduit, Plusieurs zones"),'Ductless Multi-split'!K119,"")))))))))) -> - | C5: =IF('Étape 5 Sélectionner des TP-Air'!$B$27="Étage Supérieur",IF('Étape 5 Sélectionner des TP-Air'!$B$26="Monoétagé",'Ducted Performance Tables'!C5,IF('Étape 5 Sélectionner des TP-Air'!$B$26="Deux étages",'Ducted Performance Tables'!C44,IF('Étape 5 Sélectionner des TP-Air'!$B$26="Variable",'Ducted Performance Tables'!C97,IF(AND('Étape 5 Sélectionner des TP-Air'!$B$26="Variable (ordinaire)",'Étape 5 Sélectionner des TP-Air'!$B$25="Sans conduit, une seule zone"),'Ductless Single Per Table'!C23,IF(AND('Étape 5 Sélectionner des TP-Air'!$B$26="Variable (climat froid)",'Étape 5 Sélectionner des TP-Air'!$B$25="Sans conduit, une seule zone"),'Ductless Single Per Table'!C92,IF(AND('Étape 5 Sélectionner des TP-Air'!$B$26="Variable (ordinaire)",'Étape 5 Sélectionner des TP-Air'!$B$25="Sans conduit, Plusieurs zones"),'Ductless Multi-split'!C46,IF(AND('Étape 5 Sélectionner des TP-Air'!$B$26="Variable (climat froid)",'Étape 5 Sélectionner des TP-Air'!$B$25="Sans conduit, Plusieurs zones"),'Ductless Multi-split'!C119,""))))))),IF('Étape 5 Sélectionner des TP-Air'!$B$27="Étage Inférieur",IF('Étape 5 Sélectionner des TP-Air'!$B$26="Monoétagé",'Ducted Performance Tables'!C5,IF('Étape 5 Sélectionner des TP-Air'!$B$26="Deux étages",'Ducted Performance Tables'!K44,IF('Étape 5 Sélectionner des TP-Air'!$B$26="Variable",'Ducted Performance Tables'!K97,IF(AND('Étape 5 Sélectionner des TP-Air'!$B$26="Variable (ordinaire)",'Étape 5 Sélectionner des TP-Air'!$B$25="Sans conduit, une seule zone"),'Ductless Single Per Table'!L23,IF(AND('Étape 5 Sélectionner des TP-Air'!$B$26="Variable (climat froid)",'Étape 5 Sélectionner des TP-Air'!$B$25="Sans conduit, une seule zone"),'Ductless Single Per Table'!L92,IF(AND('Étape 5 Sélectionner des TP-Air'!$B$26="Variable (ordinaire)",'Étape 5 Sélectionner des TP-Air'!$B$25="Sans conduit, Plusieurs zones"),'Ductless Multi-split'!L46,IF(AND('Étape 5 Sélectionner des TP-Air'!$B$26="Variable (climat froid)",'Étape 5 Sélectionner des TP-Air'!$B$25="Sans conduit, Plusieurs zones"),'Ductless Multi-split'!L119,""))))))))) -> - | D5: =IFERROR(B5*IF('Étape 5 Sélectionner des TP-Air'!$B$27="Étage Inférieur",$AJ$7/'HP Calcs'!$B$18,IF('Étape 5 Sélectionner des TP-Air'!$B$27="Étage Supérieur",$AJ$7/'HP Calcs'!$B$18,$AJ$7)),NA()) ->  | E5: =IFERROR(C5*IF('Étape 5 Sélectionner des TP-Air'!$B$27="Étage Inférieur",$AK$7/$C$18,IF('Étape 5 Sélectionner des TP-Air'!$B$27="Étage Supérieur",$AK$7/$C$18,$AK$7)),NA()) ->  | F5: =(D5/IF('Introduction & Options d''Unité'!$B$12="Métrique",1,3412))/E5 ->  | H5: =IF('Introduction & Options d''Unité'!$B$12="Métrique",(AR8-32)*(5/9),AR8) -> 72 | I5: =IF('Étape 5 Sélectionner des TP-Air'!$B$27="Étage Supérieur",IF('Étape 5 Sélectionner des TP-Air'!$B$26="Monoétagé",'Ducted Performance Tables'!B24,IF('Étape 5 Sélectionner des TP-Air'!$B$26="Deux étages",'Ducted Performance Tables'!B63,IF('Étape 5 Sélectionner des TP-Air'!$B$26="Variable",'Ducted Performance Tables'!B128,IF(AND('Étape 5 Sélectionner des TP-Air'!$B$26="Variable (climat froid)",'Étape 5 Sélectionner des TP-Air'!$B$25="Sans conduit, une seule zone"),'Ductless Single Per Table'!B125,IF(AND('Étape 5 Sélectionner des TP-Air'!$B$26="Variable (ordinaire)",'Étape 5 Sélectionner des TP-Air'!$B$25="Sans conduit, une seule zone"),'Ductless Single Per Table'!B58,IF(AND('Étape 5 Sélectionner des TP-Air'!$B$26="Variable (climat froid)",'Étape 5 Sélectionner des TP-Air'!$B$25="Sans conduit, Plusieurs zones"),'Ductless Multi-split'!B85,IF(AND('Étape 5 Sélectionner des TP-Air'!$B$26="Variable (ordinaire)",'Étape 5 Sélectionner des TP-Air'!$B$25="Sans conduit, Plusieurs zones"),'Ductless Multi-split'!B16,""))))))),IF('Étape 5 Sélectionner des TP-Air'!$B$27="Étage Inférieur",IF('Étape 5 Sélectionner des TP-Air'!$B$26="Monoétagé",'Ducted Performance Tables'!B24,IF(AND('Étape 5 Sélectionner des TP-Air'!$B$26="Deux étages"),'Ducted Performance Tables'!J63,IF(AND('Étape 5 Sélectionner des TP-Air'!$B$26="Variable"),'Ducted Performance Tables'!J128,IF(AND('Étape 5 Sélectionner des TP-Air'!$B$26="Variable (climat froid)",'Étape 5 Sélectionner des TP-Air'!$B$25="Sans conduit, une seule zone"),'Ductless Single Per Table'!K125,IF(AND('Étape 5 Sélectionner des TP-Air'!$B$26="Variable (ordinaire)",'Étape 5 Sélectionner des TP-Air'!$B$25="Sans conduit, une seule zone"),'Ductless Single Per Table'!K58,IF(AND('Étape 5 Sélectionner des TP-Air'!$B$26="Variable (climat froid)",'Étape 5 Sélectionner des TP-Air'!$B$25="Sans conduit, Plusieurs zones"),'Ductless Multi-split'!K85,IF(AND('Étape 5 Sélectionner des TP-Air'!$B$26="Variable (ordinaire)",'Étape 5 Sélectionner des TP-Air'!$B$25="Sans conduit, Plusieurs zones"),'Ductless Multi-split'!K16,""))))))))) -> - | J5: =IF('Étape 5 Sélectionner des TP-Air'!$B$27="Étage Supérieur",IF('Étape 5 Sélectionner des TP-Air'!$B$26="Monoétagé",'Ducted Performance Tables'!C24,IF('Étape 5 Sélectionner des TP-Air'!$B$26="Deux étages",'Ducted Performance Tables'!C63,IF('Étape 5 Sélectionner des TP-Air'!$B$26="Variable",'Ducted Performance Tables'!C128,IF(AND('Étape 5 Sélectionner des TP-Air'!$B$26="Variable (climat froid)",'Étape 5 Sélectionner des TP-Air'!$B$25="Sans conduit, une seule zone"),'Ductless Single Per Table'!C125,IF(AND('Étape 5 Sélectionner des TP-Air'!$B$26="Variable (ordinaire)",'Étape 5 Sélectionner des TP-Air'!$B$25="Sans conduit, une seule zone"),'Ductless Single Per Table'!C58,IF(AND('Étape 5 Sélectionner des TP-Air'!$B$26="Variable (climat froid)",'Étape 5 Sélectionner des TP-Air'!$B$25="Sans conduit, Plusieurs zones"),'Ductless Multi-split'!C85,IF(AND('Étape 5 Sélectionner des TP-Air'!$B$26="Variable (ordinaire)",'Étape 5 Sélectionner des TP-Air'!$B$25="Sans conduit, Plusieurs zones"),'Ductless Multi-split'!C16,""))))))),IF('Étape 5 Sélectionner des TP-Air'!$B$27="Étage Inférieur",IF('Étape 5 Sélectionner des TP-Air'!$B$26="Monoétagé",'Ducted Performance Tables'!C24,IF(AND('Étape 5 Sélectionner des TP-Air'!$B$26="Deux étages"),'Ducted Performance Tables'!K63,IF(AND('Étape 5 Sélectionner des TP-Air'!$B$26="Variable"),'Ducted Performance Tables'!K128,IF(AND('Étape 5 Sélectionner des TP-Air'!$B$26="Variable (climat froid)",'Étape 5 Sélectionner des TP-Air'!$B$25="Sans conduit, une seule zone"),'Ductless Single Per Table'!L125,IF(AND('Étape 5 Sélectionner des TP-Air'!$B$26="Variable (ordinaire)",'Étape 5 Sélectionner des TP-Air'!$B$25="Sans conduit, une seule zone"),'Ductless Single Per Table'!L58,IF(AND('Étape 5 Sélectionner des TP-Air'!$B$26="Variable (climat froid)",'Étape 5 Sélectionner des TP-Air'!$B$25="Sans conduit, Plusieurs zones"),'Ductless Multi-split'!L85,IF(AND('Étape 5 Sélectionner des TP-Air'!$B$26="Variable (ordinaire)",'Étape 5 Sélectionner des TP-Air'!$B$25="Sans conduit, Plusieurs zones"),'Ductless Multi-split'!L16,""))))))))) -> - | K5: =IF(I5=0,NA(),IFERROR(I5*IF('Étape 5 Sélectionner des TP-Air'!$B$26="Monoétagé",$AJ$14,IF('Étape 5 Sélectionner des TP-Air'!$B$27="Étage Inférieur",$AJ$14/$AJ$17,IF(AND('Étape 5 Sélectionner des TP-Air'!$B$27="Étage Supérieur"),$AJ$14/$AJ$20,$AJ$14/$AJ$17))),NA())) ->  | L5: =IF(J5=0,NA(),IFERROR(J5*IF('Étape 5 Sélectionner des TP-Air'!$B$26="Monoétagé",$AK$14,IF('Étape 5 Sélectionner des TP-Air'!$B$27="Étage Inférieur",$AK$14/$AK$17,IF(AND('Étape 5 Sélectionner des TP-Air'!$B$27="Étage Supérieur",'Étape 5 Sélectionner des TP-Air'!$B$28<>"B"),$AK$14/$AK$20,$AK$14/$AK$17))),NA())) ->  | M5: =(K5/IF('Introduction & Options d''Unité'!$B$12="Métrique",1,3412))/L5 ->  | P5: =IF(AND(Q5<>"-",Q4="-",ISNUMBER(Q6)),Q5,"-") -> - | Q5: =IF(AND('Étape 5 Sélectionner des TP-Air'!$G$37="Oui",'Étape 5 Sélectionner des TP-Air'!$B$38>A5),"-",IF('Étape 5 Sélectionner des TP-Air'!$B$27="Étage Supérieur",IF('Étape 5 Sélectionner des TP-Air'!$B$26="Monoétagé",'Ducted Performance Tables'!C5,IF('Étape 5 Sélectionner des TP-Air'!$B$26="Deux étages",'Ducted Performance Tables'!C44,IF('Étape 5 Sélectionner des TP-Air'!$B$26="Variable",'Ducted Performance Tables'!C97,IF(AND('Étape 5 Sélectionner des TP-Air'!$B$26="Variable (ordinaire)",'Étape 5 Sélectionner des TP-Air'!$B$25="Sans conduit, une seule zone"),'Ductless Single Per Table'!C23,IF(AND('Étape 5 Sélectionner des TP-Air'!$B$26="Variable (climat froid)",'Étape 5 Sélectionner des TP-Air'!$B$25="Sans conduit, une seule zone"),'Ductless Single Per Table'!C92,IF(AND('Étape 5 Sélectionner des TP-Air'!$B$26="Variable (ordinaire)",'Étape 5 Sélectionner des TP-Air'!$B$25="Sans conduit, Plusieurs zones"),'Ductless Multi-split'!C46,IF(AND('Étape 5 Sélectionner des TP-Air'!$B$26="Variable (climat froid)",'Étape 5 Sélectionner des TP-Air'!$B$25="Sans conduit, Plusieurs zones"),'Ductless Multi-split'!C119,""))))))),IF('Étape 5 Sélectionner des TP-Air'!$B$27="Étage Inférieur",IF('Étape 5 Sélectionner des TP-Air'!$B$26="Monoétagé",'Ducted Performance Tables'!C5,IF('Étape 5 Sélectionner des TP-Air'!$B$26="Deux étages",'Ducted Performance Tables'!K44,IF('Étape 5 Sélectionner des TP-Air'!$B$26="Variable",'Ducted Performance Tables'!K97,IF(AND('Étape 5 Sélectionner des TP-Air'!$B$26="Variable (ordinaire)",'Étape 5 Sélectionner des TP-Air'!$B$25="Sans conduit, une seule zone"),'Ductless Single Per Table'!L23,IF(AND('Étape 5 Sélectionner des TP-Air'!$B$26="Variable (climat froid)",'Étape 5 Sélectionner des TP-Air'!$B$25="Sans conduit, une seule zone"),'Ductless Single Per Table'!L92,IF(AND('Étape 5 Sélectionner des TP-Air'!$B$26="Variable (ordinaire)",'Étape 5 Sélectionner des TP-Air'!$B$25="Sans conduit, Plusieurs zones"),'Ductless Multi-split'!L46,IF(AND('Étape 5 Sélectionner des TP-Air'!$B$26="Variable (climat froid)",'Étape 5 Sélectionner des TP-Air'!$B$25="Sans conduit, Plusieurs zones"),'Ductless Multi-split'!L119,"")))))))))) -> - | S5: ='Design Load Calcs'!$G$23*'HP Calcs'!A5+'Design Load Calcs'!$H$23 -> 10985.91549 | T5: =IFERROR(IF(OR(D6<S6,D4>S4),"",IFERROR(ABS(S5-D5),"")),"") ->  | U5: =MATCH(MIN(T4:T20),T4:T20,0) -> 6 | V5: =INDEX(A4:A20,U5) -> 2 | W5: =INDEX(IF('Étape 5 Sélectionner des TP-Air'!$B$6="Subarctic",'Load %s'!$O$8:$O$24,IF('Étape 5 Sélectionner des TP-Air'!$B$6="Very-Cold",'Load %s'!$P$8:$P$24,IF('Étape 5 Sélectionner des TP-Air'!$B$6="Cold-Dry",'Load %s'!$Q$8:$Q$24,IF('Étape 5 Sélectionner des TP-Air'!$B$6="Cold-Humid",'Load %s'!$R$8:$R$24,IF('Étape 5 Sélectionner des TP-Air'!$B$6="Marine",'Load %s'!$S$8:$S$24,IF('Étape 5 Sélectionner des TP-Air'!$B$6="Mixed-Humid",'Load %s'!$T$8:$T$24,IF('Étape 5 Sélectionner des TP-Air'!$B$6="Hot-Humid",'Load %s'!$U$8:$U$24,'Load %s'!$V$8:$V$24))))))),U5) -> 1 | AB5: ='Design Load Calcs'!$J$23*'HP Calcs'!A5+'Design Load Calcs'!$K$23 ->  | AD5: =MATCH(MIN(AC4:AC20),AC4:AC20,0) ->  | AE5: =INDEX($A$4:$A$20,AD5) ->  | AF5: =INDEX(IF('Étape 5 Sélectionner des TP-Air'!$B$6="Subarctic",'Load %s'!$O$8:$O$24,IF('Étape 5 Sélectionner des TP-Air'!$B$6="Very-Cold",'Load %s'!$P$8:$P$24,IF('Étape 5 Sélectionner des TP-Air'!$B$6="Cold-Dry",'Load %s'!$Q$8:$Q$24,IF('Étape 5 Sélectionner des TP-Air'!$B$6="Cold-Humid",'Load %s'!$R$8:$R$24,IF('Étape 5 Sélectionner des TP-Air'!$B$6="Marine",'Load %s'!$S$8:$S$24,IF('Étape 5 Sélectionner des TP-Air'!$B$6="Mixed-Humid",'Load %s'!$T$8:$T$24,IF('Étape 5 Sélectionner des TP-Air'!$B$6="Hot-Humid",'Load %s'!$U$8:$U$24,'Load %s'!$V$8:$V$24))))))),AD5) ->  | AJ5: Heating | AP5: =NA() ->  | AS5: Heat temp (graph) | AT5: Cool Temp (graph) | AV5: ="t-TPE= "&ROUND(AV6,0)&'Étape 3 Charges de Conception'!C13 ->  | AX5: ="TP1" -> TP1
A6: ='Load %s'!B10 -> -13 | B6: =IF('Étape 5 Sélectionner des TP-Air'!$B$27="Étage Supérieur",IF(AND('Étape 5 Sélectionner des TP-Air'!$B$37="Oui",'Étape 5 Sélectionner des TP-Air'!$B$38>'HP Calcs'!A6),"-",IF('Étape 5 Sélectionner des TP-Air'!$B$26="Monoétagé",'Ducted Performance Tables'!B6,IF('Étape 5 Sélectionner des TP-Air'!$B$26="Deux étages",'Ducted Performance Tables'!B45,IF('Étape 5 Sélectionner des TP-Air'!$B$26="Variable",'Ducted Performance Tables'!B98,IF(AND('Étape 5 Sélectionner des TP-Air'!$B$26="Variable (ordinaire)",'Étape 5 Sélectionner des TP-Air'!$B$25="Sans conduit, une seule zone"),'Ductless Single Per Table'!B24,IF(AND('Étape 5 Sélectionner des TP-Air'!$B$26="Variable (climat froid)",'Étape 5 Sélectionner des TP-Air'!$B$25="Sans conduit, une seule zone"),'Ductless Single Per Table'!B93,IF(AND('Étape 5 Sélectionner des TP-Air'!$B$26="Variable (ordinaire)",'Étape 5 Sélectionner des TP-Air'!$B$25="Sans conduit, Plusieurs zones"),'Ductless Multi-split'!B47,IF(AND('Étape 5 Sélectionner des TP-Air'!$B$26="Variable (climat froid)",'Étape 5 Sélectionner des TP-Air'!$B$25="Sans conduit, Plusieurs zones"),'Ductless Multi-split'!B120,"")))))))),IF('Étape 5 Sélectionner des TP-Air'!$B$27="Étage Inférieur",IF(AND('Étape 5 Sélectionner des TP-Air'!$B$37="Oui",'Étape 5 Sélectionner des TP-Air'!$B$38>'HP Calcs'!A6),"-",IF('Étape 5 Sélectionner des TP-Air'!$B$26="Monoétagé",'Ducted Performance Tables'!B6,IF('Étape 5 Sélectionner des TP-Air'!$B$26="Deux étages",'Ducted Performance Tables'!J45,IF('Étape 5 Sélectionner des TP-Air'!$B$26="Variable",'Ducted Performance Tables'!J98,IF(AND('Étape 5 Sélectionner des TP-Air'!$B$26="Variable (ordinaire)",'Étape 5 Sélectionner des TP-Air'!$B$25="Sans conduit, une seule zone"),'Ductless Single Per Table'!K24,IF(AND('Étape 5 Sélectionner des TP-Air'!$B$26="Variable (climat froid)",'Étape 5 Sélectionner des TP-Air'!$B$25="Sans conduit, une seule zone"),'Ductless Single Per Table'!K93,IF(AND('Étape 5 Sélectionner des TP-Air'!$B$26="Variable (ordinaire)",'Étape 5 Sélectionner des TP-Air'!$B$25="Sans conduit, Plusieurs zones"),'Ductless Multi-split'!K47,IF(AND('Étape 5 Sélectionner des TP-Air'!$B$26="Variable (climat froid)",'Étape 5 Sélectionner des TP-Air'!$B$25="Sans conduit, Plusieurs zones"),'Ductless Multi-split'!K120,"")))))))))) -> - | C6: =IF('Étape 5 Sélectionner des TP-Air'!$B$27="Étage Supérieur",IF('Étape 5 Sélectionner des TP-Air'!$B$26="Monoétagé",'Ducted Performance Tables'!C6,IF('Étape 5 Sélectionner des TP-Air'!$B$26="Deux étages",'Ducted Performance Tables'!C45,IF('Étape 5 Sélectionner des TP-Air'!$B$26="Variable",'Ducted Performance Tables'!C98,IF(AND('Étape 5 Sélectionner des TP-Air'!$B$26="Variable (ordinaire)",'Étape 5 Sélectionner des TP-Air'!$B$25="Sans conduit, une seule zone"),'Ductless Single Per Table'!C24,IF(AND('Étape 5 Sélectionner des TP-Air'!$B$26="Variable (climat froid)",'Étape 5 Sélectionner des TP-Air'!$B$25="Sans conduit, une seule zone"),'Ductless Single Per Table'!C93,IF(AND('Étape 5 Sélectionner des TP-Air'!$B$26="Variable (ordinaire)",'Étape 5 Sélectionner des TP-Air'!$B$25="Sans conduit, Plusieurs zones"),'Ductless Multi-split'!C47,IF(AND('Étape 5 Sélectionner des TP-Air'!$B$26="Variable (climat froid)",'Étape 5 Sélectionner des TP-Air'!$B$25="Sans conduit, Plusieurs zones"),'Ductless Multi-split'!C120,""))))))),IF('Étape 5 Sélectionner des TP-Air'!$B$27="Étage Inférieur",IF('Étape 5 Sélectionner des TP-Air'!$B$26="Monoétagé",'Ducted Performance Tables'!C6,IF('Étape 5 Sélectionner des TP-Air'!$B$26="Deux étages",'Ducted Performance Tables'!K45,IF('Étape 5 Sélectionner des TP-Air'!$B$26="Variable",'Ducted Performance Tables'!K98,IF(AND('Étape 5 Sélectionner des TP-Air'!$B$26="Variable (ordinaire)",'Étape 5 Sélectionner des TP-Air'!$B$25="Sans conduit, une seule zone"),'Ductless Single Per Table'!L24,IF(AND('Étape 5 Sélectionner des TP-Air'!$B$26="Variable (climat froid)",'Étape 5 Sélectionner des TP-Air'!$B$25="Sans conduit, une seule zone"),'Ductless Single Per Table'!L93,IF(AND('Étape 5 Sélectionner des TP-Air'!$B$26="Variable (ordinaire)",'Étape 5 Sélectionner des TP-Air'!$B$25="Sans conduit, Plusieurs zones"),'Ductless Multi-split'!L47,IF(AND('Étape 5 Sélectionner des TP-Air'!$B$26="Variable (climat froid)",'Étape 5 Sélectionner des TP-Air'!$B$25="Sans conduit, Plusieurs zones"),'Ductless Multi-split'!L120,""))))))))) -> - | D6: =IFERROR(B6*IF('Étape 5 Sélectionner des TP-Air'!$B$27="Étage Inférieur",$AJ$7/'HP Calcs'!$B$18,IF('Étape 5 Sélectionner des TP-Air'!$B$27="Étage Supérieur",$AJ$7/'HP Calcs'!$B$18,$AJ$7)),NA()) ->  | E6: =IFERROR(C6*IF('Étape 5 Sélectionner des TP-Air'!$B$27="Étage Inférieur",$AK$7/$C$18,IF('Étape 5 Sélectionner des TP-Air'!$B$27="Étage Supérieur",$AK$7/$C$18,$AK$7)),NA()) ->  | F6: =(D6/IF('Introduction & Options d''Unité'!$B$12="Métrique",1,3412))/E6 ->  | H6: =IF('Introduction & Options d''Unité'!$B$12="Métrique",(AR9-32)*(5/9),AR9) -> 77 | I6: =IF('Étape 5 Sélectionner des TP-Air'!$B$27="Étage Supérieur",IF('Étape 5 Sélectionner des TP-Air'!$B$26="Monoétagé",'Ducted Performance Tables'!B25,IF('Étape 5 Sélectionner des TP-Air'!$B$26="Deux étages",'Ducted Performance Tables'!B64,IF('Étape 5 Sélectionner des TP-Air'!$B$26="Variable",'Ducted Performance Tables'!B129,IF(AND('Étape 5 Sélectionner des TP-Air'!$B$26="Variable (climat froid)",'Étape 5 Sélectionner des TP-Air'!$B$25="Sans conduit, une seule zone"),'Ductless Single Per Table'!B126,IF(AND('Étape 5 Sélectionner des TP-Air'!$B$26="Variable (ordinaire)",'Étape 5 Sélectionner des TP-Air'!$B$25="Sans conduit, une seule zone"),'Ductless Single Per Table'!B59,IF(AND('Étape 5 Sélectionner des TP-Air'!$B$26="Variable (climat froid)",'Étape 5 Sélectionner des TP-Air'!$B$25="Sans conduit, Plusieurs zones"),'Ductless Multi-split'!B86,IF(AND('Étape 5 Sélectionner des TP-Air'!$B$26="Variable (ordinaire)",'Étape 5 Sélectionner des TP-Air'!$B$25="Sans conduit, Plusieurs zones"),'Ductless Multi-split'!B17,""))))))),IF('Étape 5 Sélectionner des TP-Air'!$B$27="Étage Inférieur",IF('Étape 5 Sélectionner des TP-Air'!$B$26="Monoétagé",'Ducted Performance Tables'!B25,IF(AND('Étape 5 Sélectionner des TP-Air'!$B$26="Deux étages"),'Ducted Performance Tables'!J64,IF(AND('Étape 5 Sélectionner des TP-Air'!$B$26="Variable"),'Ducted Performance Tables'!J129,IF(AND('Étape 5 Sélectionner des TP-Air'!$B$26="Variable (climat froid)",'Étape 5 Sélectionner des TP-Air'!$B$25="Sans conduit, une seule zone"),'Ductless Single Per Table'!K126,IF(AND('Étape 5 Sélectionner des TP-Air'!$B$26="Variable (ordinaire)",'Étape 5 Sélectionner des TP-Air'!$B$25="Sans conduit, une seule zone"),'Ductless Single Per Table'!K59,IF(AND('Étape 5 Sélectionner des TP-Air'!$B$26="Variable (climat froid)",'Étape 5 Sélectionner des TP-Air'!$B$25="Sans conduit, Plusieurs zones"),'Ductless Multi-split'!K86,IF(AND('Étape 5 Sélectionner des TP-Air'!$B$26="Variable (ordinaire)",'Étape 5 Sélectionner des TP-Air'!$B$25="Sans conduit, Plusieurs zones"),'Ductless Multi-split'!K17,""))))))))) -> 1.012 | J6: =IF('Étape 5 Sélectionner des TP-Air'!$B$27="Étage Supérieur",IF('Étape 5 Sélectionner des TP-Air'!$B$26="Monoétagé",'Ducted Performance Tables'!C25,IF('Étape 5 Sélectionner des TP-Air'!$B$26="Deux étages",'Ducted Performance Tables'!C64,IF('Étape 5 Sélectionner des TP-Air'!$B$26="Variable",'Ducted Performance Tables'!C129,IF(AND('Étape 5 Sélectionner des TP-Air'!$B$26="Variable (climat froid)",'Étape 5 Sélectionner des TP-Air'!$B$25="Sans conduit, une seule zone"),'Ductless Single Per Table'!C126,IF(AND('Étape 5 Sélectionner des TP-Air'!$B$26="Variable (ordinaire)",'Étape 5 Sélectionner des TP-Air'!$B$25="Sans conduit, une seule zone"),'Ductless Single Per Table'!C59,IF(AND('Étape 5 Sélectionner des TP-Air'!$B$26="Variable (climat froid)",'Étape 5 Sélectionner des TP-Air'!$B$25="Sans conduit, Plusieurs zones"),'Ductless Multi-split'!C86,IF(AND('Étape 5 Sélectionner des TP-Air'!$B$26="Variable (ordinaire)",'Étape 5 Sélectionner des TP-Air'!$B$25="Sans conduit, Plusieurs zones"),'Ductless Multi-split'!C17,""))))))),IF('Étape 5 Sélectionner des TP-Air'!$B$27="Étage Inférieur",IF('Étape 5 Sélectionner des TP-Air'!$B$26="Monoétagé",'Ducted Performance Tables'!C25,IF(AND('Étape 5 Sélectionner des TP-Air'!$B$26="Deux étages"),'Ducted Performance Tables'!K64,IF(AND('Étape 5 Sélectionner des TP-Air'!$B$26="Variable"),'Ducted Performance Tables'!K129,IF(AND('Étape 5 Sélectionner des TP-Air'!$B$26="Variable (climat froid)",'Étape 5 Sélectionner des TP-Air'!$B$25="Sans conduit, une seule zone"),'Ductless Single Per Table'!L126,IF(AND('Étape 5 Sélectionner des TP-Air'!$B$26="Variable (ordinaire)",'Étape 5 Sélectionner des TP-Air'!$B$25="Sans conduit, une seule zone"),'Ductless Single Per Table'!L59,IF(AND('Étape 5 Sélectionner des TP-Air'!$B$26="Variable (climat froid)",'Étape 5 Sélectionner des TP-Air'!$B$25="Sans conduit, Plusieurs zones"),'Ductless Multi-split'!L86,IF(AND('Étape 5 Sélectionner des TP-Air'!$B$26="Variable (ordinaire)",'Étape 5 Sélectionner des TP-Air'!$B$25="Sans conduit, Plusieurs zones"),'Ductless Multi-split'!L17,""))))))))) -> 0.8010416667 | K6: =IF(I6=0,NA(),IFERROR(I6*IF('Étape 5 Sélectionner des TP-Air'!$B$26="Monoétagé",$AJ$14,IF('Étape 5 Sélectionner des TP-Air'!$B$27="Étage Inférieur",$AJ$14/$AJ$17,IF(AND('Étape 5 Sélectionner des TP-Air'!$B$27="Étage Supérieur"),$AJ$14/$AJ$20,$AJ$14/$AJ$17))),NA())) -> 24288 | L6: =IF(J6=0,NA(),IFERROR(J6*IF('Étape 5 Sélectionner des TP-Air'!$B$26="Monoétagé",$AK$14,IF('Étape 5 Sélectionner des TP-Air'!$B$27="Étage Inférieur",$AK$14/$AK$17,IF(AND('Étape 5 Sélectionner des TP-Air'!$B$27="Étage Supérieur",'Étape 5 Sélectionner des TP-Air'!$B$28<>"B"),$AK$14/$AK$20,$AK$14/$AK$17))),NA())) -> 1.478846154 | M6: =(K6/IF('Introduction & Options d''Unité'!$B$12="Métrique",1,3412))/L6 -> 4.81348625 | P6: - | Q6: =IF(AND('Étape 5 Sélectionner des TP-Air'!$G$37="Oui",'Étape 5 Sélectionner des TP-Air'!$B$38>A6),"-",IF('Étape 5 Sélectionner des TP-Air'!$B$27="Étage Supérieur",IF('Étape 5 Sélectionner des TP-Air'!$B$26="Monoétagé",'Ducted Performance Tables'!C6,IF('Étape 5 Sélectionner des TP-Air'!$B$26="Deux étages",'Ducted Performance Tables'!C45,IF('Étape 5 Sélectionner des TP-Air'!$B$26="Variable",'Ducted Performance Tables'!C98,IF(AND('Étape 5 Sélectionner des TP-Air'!$B$26="Variable (ordinaire)",'Étape 5 Sélectionner des TP-Air'!$B$25="Sans conduit, une seule zone"),'Ductless Single Per Table'!C24,IF(AND('Étape 5 Sélectionner des TP-Air'!$B$26="Variable (climat froid)",'Étape 5 Sélectionner des TP-Air'!$B$25="Sans conduit, une seule zone"),'Ductless Single Per Table'!C93,IF(AND('Étape 5 Sélectionner des TP-Air'!$B$26="Variable (ordinaire)",'Étape 5 Sélectionner des TP-Air'!$B$25="Sans conduit, Plusieurs zones"),'Ductless Multi-split'!C47,IF(AND('Étape 5 Sélectionner des TP-Air'!$B$26="Variable (climat froid)",'Étape 5 Sélectionner des TP-Air'!$B$25="Sans conduit, Plusieurs zones"),'Ductless Multi-split'!C120,""))))))),IF('Étape 5 Sélectionner des TP-Air'!$B$27="Étage Inférieur",IF('Étape 5 Sélectionner des TP-Air'!$B$26="Monoétagé",'Ducted Performance Tables'!C6,IF('Étape 5 Sélectionner des TP-Air'!$B$26="Deux étages",'Ducted Performance Tables'!K45,IF('Étape 5 Sélectionner des TP-Air'!$B$26="Variable",'Ducted Performance Tables'!K98,IF(AND('Étape 5 Sélectionner des TP-Air'!$B$26="Variable (ordinaire)",'Étape 5 Sélectionner des TP-Air'!$B$25="Sans conduit, une seule zone"),'Ductless Single Per Table'!L24,IF(AND('Étape 5 Sélectionner des TP-Air'!$B$26="Variable (climat froid)",'Étape 5 Sélectionner des TP-Air'!$B$25="Sans conduit, une seule zone"),'Ductless Single Per Table'!L93,IF(AND('Étape 5 Sélectionner des TP-Air'!$B$26="Variable (ordinaire)",'Étape 5 Sélectionner des TP-Air'!$B$25="Sans conduit, Plusieurs zones"),'Ductless Multi-split'!L47,IF(AND('Étape 5 Sélectionner des TP-Air'!$B$26="Variable (climat froid)",'Étape 5 Sélectionner des TP-Air'!$B$25="Sans conduit, Plusieurs zones"),'Ductless Multi-split'!L120,"")))))))))) -> - | S6: ='Design Load Calcs'!$G$23*'HP Calcs'!A6+'Design Load Calcs'!$H$23 -> 10281.69014 | U6: =MATCH(MIN(T4:T20),T4:T20,0)+1 -> 7 | V6: =INDEX(A4:A20,U6) -> 7 | W6: =INDEX(IF('Étape 5 Sélectionner des TP-Air'!$B$6="Subarctic",'Load %s'!$O$8:$O$24,IF('Étape 5 Sélectionner des TP-Air'!$B$6="Very-Cold",'Load %s'!$P$8:$P$24,IF('Étape 5 Sélectionner des TP-Air'!$B$6="Cold-Dry",'Load %s'!$Q$8:$Q$24,IF('Étape 5 Sélectionner des TP-Air'!$B$6="Cold-Humid",'Load %s'!$R$8:$R$24,IF('Étape 5 Sélectionner des TP-Air'!$B$6="Marine",'Load %s'!$S$8:$S$24,IF('Étape 5 Sélectionner des TP-Air'!$B$6="Mixed-Humid",'Load %s'!$T$8:$T$24,IF('Étape 5 Sélectionner des TP-Air'!$B$6="Hot-Humid",'Load %s'!$U$8:$U$24,'Load %s'!$V$8:$V$24))))))),U6) -> 0.9965599051 | AB6: ='Design Load Calcs'!$J$23*'HP Calcs'!A6+'Design Load Calcs'!$K$23 ->  | AD6: =MATCH(MIN(AC4:AC20),AC4:AC20,0)+1 ->  | AF6: =INDEX(IF('Étape 5 Sélectionner des TP-Air'!$B$6="Subarctic",'Load %s'!$O$8:$O$24,IF('Étape 5 Sélectionner des TP-Air'!$B$6="Very-Cold",'Load %s'!$P$8:$P$24,IF('Étape 5 Sélectionner des TP-Air'!$B$6="Cold-Dry",'Load %s'!$Q$8:$Q$24,IF('Étape 5 Sélectionner des TP-Air'!$B$6="Cold-Humid",'Load %s'!$R$8:$R$24,IF('Étape 5 Sélectionner des TP-Air'!$B$6="Marine",'Load %s'!$S$8:$S$24,IF('Étape 5 Sélectionner des TP-Air'!$B$6="Mixed-Humid",'Load %s'!$T$8:$T$24,IF('Étape 5 Sélectionner des TP-Air'!$B$6="Hot-Humid",'Load %s'!$U$8:$U$24,'Load %s'!$V$8:$V$24))))))),AD6) ->  | AJ6: Rated Capacity (heating) | AK6: Rated Power | AP6: =NA() ->  | AS6: =A4 -> -13 | AT6: ='HP Calcs'!H5 -> 72 | AV6: =IFERROR(IF('Étape 5 Sélectionner des TP-Air'!B24="Courbe saisie par l'utilisateur",'HP1'!L7,'HP Calcs'!X4),NA()) ->  | AW6: =IF('Étape 5 Sélectionner des TP-Air'!B24="Courbe saisie par l'utilisateur",'HP1'!L21,V15) -> 
A7: ='Load %s'!B11 -> -8 | B7: =IF('Étape 5 Sélectionner des TP-Air'!$B$27="Étage Supérieur",IF(AND('Étape 5 Sélectionner des TP-Air'!$B$37="Oui",'Étape 5 Sélectionner des TP-Air'!$B$38>'HP Calcs'!A7),"-",IF('Étape 5 Sélectionner des TP-Air'!$B$26="Monoétagé",'Ducted Performance Tables'!B7,IF('Étape 5 Sélectionner des TP-Air'!$B$26="Deux étages",'Ducted Performance Tables'!B46,IF('Étape 5 Sélectionner des TP-Air'!$B$26="Variable",'Ducted Performance Tables'!B99,IF(AND('Étape 5 Sélectionner des TP-Air'!$B$26="Variable (ordinaire)",'Étape 5 Sélectionner des TP-Air'!$B$25="Sans conduit, une seule zone"),'Ductless Single Per Table'!B25,IF(AND('Étape 5 Sélectionner des TP-Air'!$B$26="Variable (climat froid)",'Étape 5 Sélectionner des TP-Air'!$B$25="Sans conduit, une seule zone"),'Ductless Single Per Table'!B94,IF(AND('Étape 5 Sélectionner des TP-Air'!$B$26="Variable (ordinaire)",'Étape 5 Sélectionner des TP-Air'!$B$25="Sans conduit, Plusieurs zones"),'Ductless Multi-split'!B48,IF(AND('Étape 5 Sélectionner des TP-Air'!$B$26="Variable (climat froid)",'Étape 5 Sélectionner des TP-Air'!$B$25="Sans conduit, Plusieurs zones"),'Ductless Multi-split'!B121,"")))))))),IF('Étape 5 Sélectionner des TP-Air'!$B$27="Étage Inférieur",IF(AND('Étape 5 Sélectionner des TP-Air'!$B$37="Oui",'Étape 5 Sélectionner des TP-Air'!$B$38>'HP Calcs'!A7),"-",IF('Étape 5 Sélectionner des TP-Air'!$B$26="Monoétagé",'Ducted Performance Tables'!B7,IF('Étape 5 Sélectionner des TP-Air'!$B$26="Deux étages",'Ducted Performance Tables'!J46,IF('Étape 5 Sélectionner des TP-Air'!$B$26="Variable",'Ducted Performance Tables'!J99,IF(AND('Étape 5 Sélectionner des TP-Air'!$B$26="Variable (ordinaire)",'Étape 5 Sélectionner des TP-Air'!$B$25="Sans conduit, une seule zone"),'Ductless Single Per Table'!K25,IF(AND('Étape 5 Sélectionner des TP-Air'!$B$26="Variable (climat froid)",'Étape 5 Sélectionner des TP-Air'!$B$25="Sans conduit, une seule zone"),'Ductless Single Per Table'!K94,IF(AND('Étape 5 Sélectionner des TP-Air'!$B$26="Variable (ordinaire)",'Étape 5 Sélectionner des TP-Air'!$B$25="Sans conduit, Plusieurs zones"),'Ductless Multi-split'!K48,IF(AND('Étape 5 Sélectionner des TP-Air'!$B$26="Variable (climat froid)",'Étape 5 Sélectionner des TP-Air'!$B$25="Sans conduit, Plusieurs zones"),'Ductless Multi-split'!K121,"")))))))))) -> - | C7: =IF('Étape 5 Sélectionner des TP-Air'!$B$27="Étage Supérieur",IF('Étape 5 Sélectionner des TP-Air'!$B$26="Monoétagé",'Ducted Performance Tables'!C7,IF('Étape 5 Sélectionner des TP-Air'!$B$26="Deux étages",'Ducted Performance Tables'!C46,IF('Étape 5 Sélectionner des TP-Air'!$B$26="Variable",'Ducted Performance Tables'!C99,IF(AND('Étape 5 Sélectionner des TP-Air'!$B$26="Variable (ordinaire)",'Étape 5 Sélectionner des TP-Air'!$B$25="Sans conduit, une seule zone"),'Ductless Single Per Table'!C25,IF(AND('Étape 5 Sélectionner des TP-Air'!$B$26="Variable (climat froid)",'Étape 5 Sélectionner des TP-Air'!$B$25="Sans conduit, une seule zone"),'Ductless Single Per Table'!C94,IF(AND('Étape 5 Sélectionner des TP-Air'!$B$26="Variable (ordinaire)",'Étape 5 Sélectionner des TP-Air'!$B$25="Sans conduit, Plusieurs zones"),'Ductless Multi-split'!C48,IF(AND('Étape 5 Sélectionner des TP-Air'!$B$26="Variable (climat froid)",'Étape 5 Sélectionner des TP-Air'!$B$25="Sans conduit, Plusieurs zones"),'Ductless Multi-split'!C121,""))))))),IF('Étape 5 Sélectionner des TP-Air'!$B$27="Étage Inférieur",IF('Étape 5 Sélectionner des TP-Air'!$B$26="Monoétagé",'Ducted Performance Tables'!C7,IF('Étape 5 Sélectionner des TP-Air'!$B$26="Deux étages",'Ducted Performance Tables'!K46,IF('Étape 5 Sélectionner des TP-Air'!$B$26="Variable",'Ducted Performance Tables'!K99,IF(AND('Étape 5 Sélectionner des TP-Air'!$B$26="Variable (ordinaire)",'Étape 5 Sélectionner des TP-Air'!$B$25="Sans conduit, une seule zone"),'Ductless Single Per Table'!L25,IF(AND('Étape 5 Sélectionner des TP-Air'!$B$26="Variable (climat froid)",'Étape 5 Sélectionner des TP-Air'!$B$25="Sans conduit, une seule zone"),'Ductless Single Per Table'!L94,IF(AND('Étape 5 Sélectionner des TP-Air'!$B$26="Variable (ordinaire)",'Étape 5 Sélectionner des TP-Air'!$B$25="Sans conduit, Plusieurs zones"),'Ductless Multi-split'!L48,IF(AND('Étape 5 Sélectionner des TP-Air'!$B$26="Variable (climat froid)",'Étape 5 Sélectionner des TP-Air'!$B$25="Sans conduit, Plusieurs zones"),'Ductless Multi-split'!L121,""))))))))) -> - | D7: =IFERROR(B7*IF('Étape 5 Sélectionner des TP-Air'!$B$27="Étage Inférieur",$AJ$7/'HP Calcs'!$B$18,IF('Étape 5 Sélectionner des TP-Air'!$B$27="Étage Supérieur",$AJ$7/'HP Calcs'!$B$18,$AJ$7)),NA()) ->  | E7: =IFERROR(C7*IF('Étape 5 Sélectionner des TP-Air'!$B$27="Étage Inférieur",$AK$7/$C$18,IF('Étape 5 Sélectionner des TP-Air'!$B$27="Étage Supérieur",$AK$7/$C$18,$AK$7)),NA()) ->  | F7: =(D7/IF('Introduction & Options d''Unité'!$B$12="Métrique",1,3412))/E7 ->  | H7: =IF('Introduction & Options d''Unité'!$B$12="Métrique",(AR10-32)*(5/9),AR10) -> 82 | I7: =IF('Étape 5 Sélectionner des TP-Air'!$B$27="Étage Supérieur",IF('Étape 5 Sélectionner des TP-Air'!$B$26="Monoétagé",'Ducted Performance Tables'!B26,IF('Étape 5 Sélectionner des TP-Air'!$B$26="Deux étages",'Ducted Performance Tables'!B65,IF('Étape 5 Sélectionner des TP-Air'!$B$26="Variable",'Ducted Performance Tables'!B130,IF(AND('Étape 5 Sélectionner des TP-Air'!$B$26="Variable (climat froid)",'Étape 5 Sélectionner des TP-Air'!$B$25="Sans conduit, une seule zone"),'Ductless Single Per Table'!B127,IF(AND('Étape 5 Sélectionner des TP-Air'!$B$26="Variable (ordinaire)",'Étape 5 Sélectionner des TP-Air'!$B$25="Sans conduit, une seule zone"),'Ductless Single Per Table'!B60,IF(AND('Étape 5 Sélectionner des TP-Air'!$B$26="Variable (climat froid)",'Étape 5 Sélectionner des TP-Air'!$B$25="Sans conduit, Plusieurs zones"),'Ductless Multi-split'!B87,IF(AND('Étape 5 Sélectionner des TP-Air'!$B$26="Variable (ordinaire)",'Étape 5 Sélectionner des TP-Air'!$B$25="Sans conduit, Plusieurs zones"),'Ductless Multi-split'!B18,""))))))),IF('Étape 5 Sélectionner des TP-Air'!$B$27="Étage Inférieur",IF('Étape 5 Sélectionner des TP-Air'!$B$26="Monoétagé",'Ducted Performance Tables'!B26,IF(AND('Étape 5 Sélectionner des TP-Air'!$B$26="Deux étages"),'Ducted Performance Tables'!J65,IF(AND('Étape 5 Sélectionner des TP-Air'!$B$26="Variable"),'Ducted Performance Tables'!J130,IF(AND('Étape 5 Sélectionner des TP-Air'!$B$26="Variable (climat froid)",'Étape 5 Sélectionner des TP-Air'!$B$25="Sans conduit, une seule zone"),'Ductless Single Per Table'!K127,IF(AND('Étape 5 Sélectionner des TP-Air'!$B$26="Variable (ordinaire)",'Étape 5 Sélectionner des TP-Air'!$B$25="Sans conduit, une seule zone"),'Ductless Single Per Table'!K60,IF(AND('Étape 5 Sélectionner des TP-Air'!$B$26="Variable (climat froid)",'Étape 5 Sélectionner des TP-Air'!$B$25="Sans conduit, Plusieurs zones"),'Ductless Multi-split'!K87,IF(AND('Étape 5 Sélectionner des TP-Air'!$B$26="Variable (ordinaire)",'Étape 5 Sélectionner des TP-Air'!$B$25="Sans conduit, Plusieurs zones"),'Ductless Multi-split'!K18,""))))))))) -> 0.9886414141 | J7: =IF('Étape 5 Sélectionner des TP-Air'!$B$27="Étage Supérieur",IF('Étape 5 Sélectionner des TP-Air'!$B$26="Monoétagé",'Ducted Performance Tables'!C26,IF('Étape 5 Sélectionner des TP-Air'!$B$26="Deux étages",'Ducted Performance Tables'!C65,IF('Étape 5 Sélectionner des TP-Air'!$B$26="Variable",'Ducted Performance Tables'!C130,IF(AND('Étape 5 Sélectionner des TP-Air'!$B$26="Variable (climat froid)",'Étape 5 Sélectionner des TP-Air'!$B$25="Sans conduit, une seule zone"),'Ductless Single Per Table'!C127,IF(AND('Étape 5 Sélectionner des TP-Air'!$B$26="Variable (ordinaire)",'Étape 5 Sélectionner des TP-Air'!$B$25="Sans conduit, une seule zone"),'Ductless Single Per Table'!C60,IF(AND('Étape 5 Sélectionner des TP-Air'!$B$26="Variable (climat froid)",'Étape 5 Sélectionner des TP-Air'!$B$25="Sans conduit, Plusieurs zones"),'Ductless Multi-split'!C87,IF(AND('Étape 5 Sélectionner des TP-Air'!$B$26="Variable (ordinaire)",'Étape 5 Sélectionner des TP-Air'!$B$25="Sans conduit, Plusieurs zones"),'Ductless Multi-split'!C18,""))))))),IF('Étape 5 Sélectionner des TP-Air'!$B$27="Étage Inférieur",IF('Étape 5 Sélectionner des TP-Air'!$B$26="Monoétagé",'Ducted Performance Tables'!C26,IF(AND('Étape 5 Sélectionner des TP-Air'!$B$26="Deux étages"),'Ducted Performance Tables'!K65,IF(AND('Étape 5 Sélectionner des TP-Air'!$B$26="Variable"),'Ducted Performance Tables'!K130,IF(AND('Étape 5 Sélectionner des TP-Air'!$B$26="Variable (climat froid)",'Étape 5 Sélectionner des TP-Air'!$B$25="Sans conduit, une seule zone"),'Ductless Single Per Table'!L127,IF(AND('Étape 5 Sélectionner des TP-Air'!$B$26="Variable (ordinaire)",'Étape 5 Sélectionner des TP-Air'!$B$25="Sans conduit, une seule zone"),'Ductless Single Per Table'!L60,IF(AND('Étape 5 Sélectionner des TP-Air'!$B$26="Variable (climat froid)",'Étape 5 Sélectionner des TP-Air'!$B$25="Sans conduit, Plusieurs zones"),'Ductless Multi-split'!L87,IF(AND('Étape 5 Sélectionner des TP-Air'!$B$26="Variable (ordinaire)",'Étape 5 Sélectionner des TP-Air'!$B$25="Sans conduit, Plusieurs zones"),'Ductless Multi-split'!L18,""))))))))) -> 0.8510206229 | K7: =IF(I7=0,NA(),IFERROR(I7*IF('Étape 5 Sélectionner des TP-Air'!$B$26="Monoétagé",$AJ$14,IF('Étape 5 Sélectionner des TP-Air'!$B$27="Étage Inférieur",$AJ$14/$AJ$17,IF(AND('Étape 5 Sélectionner des TP-Air'!$B$27="Étage Supérieur"),$AJ$14/$AJ$20,$AJ$14/$AJ$17))),NA())) -> 23727.39394 | L7: =IF(J7=0,NA(),IFERROR(J7*IF('Étape 5 Sélectionner des TP-Air'!$B$26="Monoétagé",$AK$14,IF('Étape 5 Sélectionner des TP-Air'!$B$27="Étage Inférieur",$AK$14/$AK$17,IF(AND('Étape 5 Sélectionner des TP-Air'!$B$27="Étage Supérieur",'Étape 5 Sélectionner des TP-Air'!$B$28<>"B"),$AK$14/$AK$20,$AK$14/$AK$17))),NA())) -> 1.571114996 | M7: =(K7/IF('Introduction & Options d''Unité'!$B$12="Métrique",1,3412))/L7 -> 4.426220491 | P7: - | Q7: =IF(AND('Étape 5 Sélectionner des TP-Air'!$G$37="Oui",'Étape 5 Sélectionner des TP-Air'!$B$38>A7),"-",IF('Étape 5 Sélectionner des TP-Air'!$B$27="Étage Supérieur",IF('Étape 5 Sélectionner des TP-Air'!$B$26="Monoétagé",'Ducted Performance Tables'!C7,IF('Étape 5 Sélectionner des TP-Air'!$B$26="Deux étages",'Ducted Performance Tables'!C46,IF('Étape 5 Sélectionner des TP-Air'!$B$26="Variable",'Ducted Performance Tables'!C99,IF(AND('Étape 5 Sélectionner des TP-Air'!$B$26="Variable (ordinaire)",'Étape 5 Sélectionner des TP-Air'!$B$25="Sans conduit, une seule zone"),'Ductless Single Per Table'!C25,IF(AND('Étape 5 Sélectionner des TP-Air'!$B$26="Variable (climat froid)",'Étape 5 Sélectionner des TP-Air'!$B$25="Sans conduit, une seule zone"),'Ductless Single Per Table'!C94,IF(AND('Étape 5 Sélectionner des TP-Air'!$B$26="Variable (ordinaire)",'Étape 5 Sélectionner des TP-Air'!$B$25="Sans conduit, Plusieurs zones"),'Ductless Multi-split'!C48,IF(AND('Étape 5 Sélectionner des TP-Air'!$B$26="Variable (climat froid)",'Étape 5 Sélectionner des TP-Air'!$B$25="Sans conduit, Plusieurs zones"),'Ductless Multi-split'!C121,""))))))),IF('Étape 5 Sélectionner des TP-Air'!$B$27="Étage Inférieur",IF('Étape 5 Sélectionner des TP-Air'!$B$26="Monoétagé",'Ducted Performance Tables'!C7,IF('Étape 5 Sélectionner des TP-Air'!$B$26="Deux étages",'Ducted Performance Tables'!K46,IF('Étape 5 Sélectionner des TP-Air'!$B$26="Variable",'Ducted Performance Tables'!K99,IF(AND('Étape 5 Sélectionner des TP-Air'!$B$26="Variable (ordinaire)",'Étape 5 Sélectionner des TP-Air'!$B$25="Sans conduit, une seule zone"),'Ductless Single Per Table'!L25,IF(AND('Étape 5 Sélectionner des TP-Air'!$B$26="Variable (climat froid)",'Étape 5 Sélectionner des TP-Air'!$B$25="Sans conduit, une seule zone"),'Ductless Single Per Table'!L94,IF(AND('Étape 5 Sélectionner des TP-Air'!$B$26="Variable (ordinaire)",'Étape 5 Sélectionner des TP-Air'!$B$25="Sans conduit, Plusieurs zones"),'Ductless Multi-split'!L48,IF(AND('Étape 5 Sélectionner des TP-Air'!$B$26="Variable (climat froid)",'Étape 5 Sélectionner des TP-Air'!$B$25="Sans conduit, Plusieurs zones"),'Ductless Multi-split'!L121,"")))))))))) -> - | S7: ='Design Load Calcs'!$G$23*'HP Calcs'!A7+'Design Load Calcs'!$H$23 -> 9577.464789 | AB7: ='Design Load Calcs'!$J$23*'HP Calcs'!A7+'Design Load Calcs'!$K$23 ->  | AJ7: ='Étape 5 Sélectionner des TP-Air'!$B$30 -> 24000 | AK7: ='Étape 5 Sélectionner des TP-Air'!$B$31 -> 3.2 | AP7: =NA() ->  | AS7: -18 | AT7: ='HP Calcs'!H6 -> 77 | AV7: =AV6 ->  | AW7: 0
A8: ='Load %s'!B12 -> -3 | B8: =IF('Étape 5 Sélectionner des TP-Air'!$B$27="Étage Supérieur",IF(AND('Étape 5 Sélectionner des TP-Air'!$B$37="Oui",'Étape 5 Sélectionner des TP-Air'!$B$38>'HP Calcs'!A8),"-",IF('Étape 5 Sélectionner des TP-Air'!$B$26="Monoétagé",'Ducted Performance Tables'!B8,IF('Étape 5 Sélectionner des TP-Air'!$B$26="Deux étages",'Ducted Performance Tables'!B47,IF('Étape 5 Sélectionner des TP-Air'!$B$26="Variable",'Ducted Performance Tables'!B100,IF(AND('Étape 5 Sélectionner des TP-Air'!$B$26="Variable (ordinaire)",'Étape 5 Sélectionner des TP-Air'!$B$25="Sans conduit, une seule zone"),'Ductless Single Per Table'!B26,IF(AND('Étape 5 Sélectionner des TP-Air'!$B$26="Variable (climat froid)",'Étape 5 Sélectionner des TP-Air'!$B$25="Sans conduit, une seule zone"),'Ductless Single Per Table'!B95,IF(AND('Étape 5 Sélectionner des TP-Air'!$B$26="Variable (ordinaire)",'Étape 5 Sélectionner des TP-Air'!$B$25="Sans conduit, Plusieurs zones"),'Ductless Multi-split'!B49,IF(AND('Étape 5 Sélectionner des TP-Air'!$B$26="Variable (climat froid)",'Étape 5 Sélectionner des TP-Air'!$B$25="Sans conduit, Plusieurs zones"),'Ductless Multi-split'!B122,"")))))))),IF('Étape 5 Sélectionner des TP-Air'!$B$27="Étage Inférieur",IF(AND('Étape 5 Sélectionner des TP-Air'!$B$37="Oui",'Étape 5 Sélectionner des TP-Air'!$B$38>'HP Calcs'!A8),"-",IF('Étape 5 Sélectionner des TP-Air'!$B$26="Monoétagé",'Ducted Performance Tables'!B8,IF('Étape 5 Sélectionner des TP-Air'!$B$26="Deux étages",'Ducted Performance Tables'!J47,IF('Étape 5 Sélectionner des TP-Air'!$B$26="Variable",'Ducted Performance Tables'!J100,IF(AND('Étape 5 Sélectionner des TP-Air'!$B$26="Variable (ordinaire)",'Étape 5 Sélectionner des TP-Air'!$B$25="Sans conduit, une seule zone"),'Ductless Single Per Table'!K26,IF(AND('Étape 5 Sélectionner des TP-Air'!$B$26="Variable (climat froid)",'Étape 5 Sélectionner des TP-Air'!$B$25="Sans conduit, une seule zone"),'Ductless Single Per Table'!K95,IF(AND('Étape 5 Sélectionner des TP-Air'!$B$26="Variable (ordinaire)",'Étape 5 Sélectionner des TP-Air'!$B$25="Sans conduit, Plusieurs zones"),'Ductless Multi-split'!K49,IF(AND('Étape 5 Sélectionner des TP-Air'!$B$26="Variable (climat froid)",'Étape 5 Sélectionner des TP-Air'!$B$25="Sans conduit, Plusieurs zones"),'Ductless Multi-split'!K122,"")))))))))) -> 0.31125 | C8: =IF('Étape 5 Sélectionner des TP-Air'!$B$27="Étage Supérieur",IF('Étape 5 Sélectionner des TP-Air'!$B$26="Monoétagé",'Ducted Performance Tables'!C8,IF('Étape 5 Sélectionner des TP-Air'!$B$26="Deux étages",'Ducted Performance Tables'!C47,IF('Étape 5 Sélectionner des TP-Air'!$B$26="Variable",'Ducted Performance Tables'!C100,IF(AND('Étape 5 Sélectionner des TP-Air'!$B$26="Variable (ordinaire)",'Étape 5 Sélectionner des TP-Air'!$B$25="Sans conduit, une seule zone"),'Ductless Single Per Table'!C26,IF(AND('Étape 5 Sélectionner des TP-Air'!$B$26="Variable (climat froid)",'Étape 5 Sélectionner des TP-Air'!$B$25="Sans conduit, une seule zone"),'Ductless Single Per Table'!C95,IF(AND('Étape 5 Sélectionner des TP-Air'!$B$26="Variable (ordinaire)",'Étape 5 Sélectionner des TP-Air'!$B$25="Sans conduit, Plusieurs zones"),'Ductless Multi-split'!C49,IF(AND('Étape 5 Sélectionner des TP-Air'!$B$26="Variable (climat froid)",'Étape 5 Sélectionner des TP-Air'!$B$25="Sans conduit, Plusieurs zones"),'Ductless Multi-split'!C122,""))))))),IF('Étape 5 Sélectionner des TP-Air'!$B$27="Étage Inférieur",IF('Étape 5 Sélectionner des TP-Air'!$B$26="Monoétagé",'Ducted Performance Tables'!C8,IF('Étape 5 Sélectionner des TP-Air'!$B$26="Deux étages",'Ducted Performance Tables'!K47,IF('Étape 5 Sélectionner des TP-Air'!$B$26="Variable",'Ducted Performance Tables'!K100,IF(AND('Étape 5 Sélectionner des TP-Air'!$B$26="Variable (ordinaire)",'Étape 5 Sélectionner des TP-Air'!$B$25="Sans conduit, une seule zone"),'Ductless Single Per Table'!L26,IF(AND('Étape 5 Sélectionner des TP-Air'!$B$26="Variable (climat froid)",'Étape 5 Sélectionner des TP-Air'!$B$25="Sans conduit, une seule zone"),'Ductless Single Per Table'!L95,IF(AND('Étape 5 Sélectionner des TP-Air'!$B$26="Variable (ordinaire)",'Étape 5 Sélectionner des TP-Air'!$B$25="Sans conduit, Plusieurs zones"),'Ductless Multi-split'!L49,IF(AND('Étape 5 Sélectionner des TP-Air'!$B$26="Variable (climat froid)",'Étape 5 Sélectionner des TP-Air'!$B$25="Sans conduit, Plusieurs zones"),'Ductless Multi-split'!L122,""))))))))) -> 0.8079096045 | D8: =IFERROR(B8*IF('Étape 5 Sélectionner des TP-Air'!$B$27="Étage Inférieur",$AJ$7/'HP Calcs'!$B$18,IF('Étape 5 Sélectionner des TP-Air'!$B$27="Étage Supérieur",$AJ$7/'HP Calcs'!$B$18,$AJ$7)),NA()) -> 7470 | E8: =IFERROR(C8*IF('Étape 5 Sélectionner des TP-Air'!$B$27="Étage Inférieur",$AK$7/$C$18,IF('Étape 5 Sélectionner des TP-Air'!$B$27="Étage Supérieur",$AK$7/$C$18,$AK$7)),NA()) -> 2.585310734 | F8: =(D8/IF('Introduction & Options d''Unité'!$B$12="Métrique",1,3412))/E8 -> 0.8468350597 | H8: =IF('Introduction & Options d''Unité'!$B$12="Métrique",(AR11-32)*(5/9),AR11) -> 87 | I8: =IF('Étape 5 Sélectionner des TP-Air'!$B$27="Étage Supérieur",IF('Étape 5 Sélectionner des TP-Air'!$B$26="Monoétagé",'Ducted Performance Tables'!B27,IF('Étape 5 Sélectionner des TP-Air'!$B$26="Deux étages",'Ducted Performance Tables'!B66,IF('Étape 5 Sélectionner des TP-Air'!$B$26="Variable",'Ducted Performance Tables'!B131,IF(AND('Étape 5 Sélectionner des TP-Air'!$B$26="Variable (climat froid)",'Étape 5 Sélectionner des TP-Air'!$B$25="Sans conduit, une seule zone"),'Ductless Single Per Table'!B128,IF(AND('Étape 5 Sélectionner des TP-Air'!$B$26="Variable (ordinaire)",'Étape 5 Sélectionner des TP-Air'!$B$25="Sans conduit, une seule zone"),'Ductless Single Per Table'!B61,IF(AND('Étape 5 Sélectionner des TP-Air'!$B$26="Variable (climat froid)",'Étape 5 Sélectionner des TP-Air'!$B$25="Sans conduit, Plusieurs zones"),'Ductless Multi-split'!B88,IF(AND('Étape 5 Sélectionner des TP-Air'!$B$26="Variable (ordinaire)",'Étape 5 Sélectionner des TP-Air'!$B$25="Sans conduit, Plusieurs zones"),'Ductless Multi-split'!B19,""))))))),IF('Étape 5 Sélectionner des TP-Air'!$B$27="Étage Inférieur",IF('Étape 5 Sélectionner des TP-Air'!$B$26="Monoétagé",'Ducted Performance Tables'!B27,IF(AND('Étape 5 Sélectionner des TP-Air'!$B$26="Deux étages"),'Ducted Performance Tables'!J66,IF(AND('Étape 5 Sélectionner des TP-Air'!$B$26="Variable"),'Ducted Performance Tables'!J131,IF(AND('Étape 5 Sélectionner des TP-Air'!$B$26="Variable (climat froid)",'Étape 5 Sélectionner des TP-Air'!$B$25="Sans conduit, une seule zone"),'Ductless Single Per Table'!K128,IF(AND('Étape 5 Sélectionner des TP-Air'!$B$26="Variable (ordinaire)",'Étape 5 Sélectionner des TP-Air'!$B$25="Sans conduit, une seule zone"),'Ductless Single Per Table'!K61,IF(AND('Étape 5 Sélectionner des TP-Air'!$B$26="Variable (climat froid)",'Étape 5 Sélectionner des TP-Air'!$B$25="Sans conduit, Plusieurs zones"),'Ductless Multi-split'!K88,IF(AND('Étape 5 Sélectionner des TP-Air'!$B$26="Variable (ordinaire)",'Étape 5 Sélectionner des TP-Air'!$B$25="Sans conduit, Plusieurs zones"),'Ductless Multi-split'!K19,""))))))))) -> 0.9649404762 | J8: =IF('Étape 5 Sélectionner des TP-Air'!$B$27="Étage Supérieur",IF('Étape 5 Sélectionner des TP-Air'!$B$26="Monoétagé",'Ducted Performance Tables'!C27,IF('Étape 5 Sélectionner des TP-Air'!$B$26="Deux étages",'Ducted Performance Tables'!C66,IF('Étape 5 Sélectionner des TP-Air'!$B$26="Variable",'Ducted Performance Tables'!C131,IF(AND('Étape 5 Sélectionner des TP-Air'!$B$26="Variable (climat froid)",'Étape 5 Sélectionner des TP-Air'!$B$25="Sans conduit, une seule zone"),'Ductless Single Per Table'!C128,IF(AND('Étape 5 Sélectionner des TP-Air'!$B$26="Variable (ordinaire)",'Étape 5 Sélectionner des TP-Air'!$B$25="Sans conduit, une seule zone"),'Ductless Single Per Table'!C61,IF(AND('Étape 5 Sélectionner des TP-Air'!$B$26="Variable (climat froid)",'Étape 5 Sélectionner des TP-Air'!$B$25="Sans conduit, Plusieurs zones"),'Ductless Multi-split'!C88,IF(AND('Étape 5 Sélectionner des TP-Air'!$B$26="Variable (ordinaire)",'Étape 5 Sélectionner des TP-Air'!$B$25="Sans conduit, Plusieurs zones"),'Ductless Multi-split'!C19,""))))))),IF('Étape 5 Sélectionner des TP-Air'!$B$27="Étage Inférieur",IF('Étape 5 Sélectionner des TP-Air'!$B$26="Monoétagé",'Ducted Performance Tables'!C27,IF(AND('Étape 5 Sélectionner des TP-Air'!$B$26="Deux étages"),'Ducted Performance Tables'!K66,IF(AND('Étape 5 Sélectionner des TP-Air'!$B$26="Variable"),'Ducted Performance Tables'!K131,IF(AND('Étape 5 Sélectionner des TP-Air'!$B$26="Variable (climat froid)",'Étape 5 Sélectionner des TP-Air'!$B$25="Sans conduit, une seule zone"),'Ductless Single Per Table'!L128,IF(AND('Étape 5 Sélectionner des TP-Air'!$B$26="Variable (ordinaire)",'Étape 5 Sélectionner des TP-Air'!$B$25="Sans conduit, une seule zone"),'Ductless Single Per Table'!L61,IF(AND('Étape 5 Sélectionner des TP-Air'!$B$26="Variable (climat froid)",'Étape 5 Sélectionner des TP-Air'!$B$25="Sans conduit, Plusieurs zones"),'Ductless Multi-split'!L88,IF(AND('Étape 5 Sélectionner des TP-Air'!$B$26="Variable (ordinaire)",'Étape 5 Sélectionner des TP-Air'!$B$25="Sans conduit, Plusieurs zones"),'Ductless Multi-split'!L19,""))))))))) -> 0.9027777778 | K8: =IF(I8=0,NA(),IFERROR(I8*IF('Étape 5 Sélectionner des TP-Air'!$B$26="Monoétagé",$AJ$14,IF('Étape 5 Sélectionner des TP-Air'!$B$27="Étage Inférieur",$AJ$14/$AJ$17,IF(AND('Étape 5 Sélectionner des TP-Air'!$B$27="Étage Supérieur"),$AJ$14/$AJ$20,$AJ$14/$AJ$17))),NA())) -> 23158.57143 | L8: =IF(J8=0,NA(),IFERROR(J8*IF('Étape 5 Sélectionner des TP-Air'!$B$26="Monoétagé",$AK$14,IF('Étape 5 Sélectionner des TP-Air'!$B$27="Étage Inférieur",$AK$14/$AK$17,IF(AND('Étape 5 Sélectionner des TP-Air'!$B$27="Étage Supérieur",'Étape 5 Sélectionner des TP-Air'!$B$28<>"B"),$AK$14/$AK$20,$AK$14/$AK$17))),NA())) -> 1.666666667 | M8: =(K8/IF('Introduction & Options d''Unité'!$B$12="Métrique",1,3412))/L8 -> 4.072433428 | O8: =ABS(A4-$J$18) -> 2 | P8: 0.8079096045 | Q8: =IF(AND('Étape 5 Sélectionner des TP-Air'!$G$37="Oui",'Étape 5 Sélectionner des TP-Air'!$B$38>A8),"-",IF('Étape 5 Sélectionner des TP-Air'!$B$27="Étage Supérieur",IF('Étape 5 Sélectionner des TP-Air'!$B$26="Monoétagé",'Ducted Performance Tables'!C8,IF('Étape 5 Sélectionner des TP-Air'!$B$26="Deux étages",'Ducted Performance Tables'!C47,IF('Étape 5 Sélectionner des TP-Air'!$B$26="Variable",'Ducted Performance Tables'!C100,IF(AND('Étape 5 Sélectionner des TP-Air'!$B$26="Variable (ordinaire)",'Étape 5 Sélectionner des TP-Air'!$B$25="Sans conduit, une seule zone"),'Ductless Single Per Table'!C26,IF(AND('Étape 5 Sélectionner des TP-Air'!$B$26="Variable (climat froid)",'Étape 5 Sélectionner des TP-Air'!$B$25="Sans conduit, une seule zone"),'Ductless Single Per Table'!C95,IF(AND('Étape 5 Sélectionner des TP-Air'!$B$26="Variable (ordinaire)",'Étape 5 Sélectionner des TP-Air'!$B$25="Sans conduit, Plusieurs zones"),'Ductless Multi-split'!C49,IF(AND('Étape 5 Sélectionner des TP-Air'!$B$26="Variable (climat froid)",'Étape 5 Sélectionner des TP-Air'!$B$25="Sans conduit, Plusieurs zones"),'Ductless Multi-split'!C122,""))))))),IF('Étape 5 Sélectionner des TP-Air'!$B$27="Étage Inférieur",IF('Étape 5 Sélectionner des TP-Air'!$B$26="Monoétagé",'Ducted Performance Tables'!C8,IF('Étape 5 Sélectionner des TP-Air'!$B$26="Deux étages",'Ducted Performance Tables'!K47,IF('Étape 5 Sélectionner des TP-Air'!$B$26="Variable",'Ducted Performance Tables'!K100,IF(AND('Étape 5 Sélectionner des TP-Air'!$B$26="Variable (ordinaire)",'Étape 5 Sélectionner des TP-Air'!$B$25="Sans conduit, une seule zone"),'Ductless Single Per Table'!L26,IF(AND('Étape 5 Sélectionner des TP-Air'!$B$26="Variable (climat froid)",'Étape 5 Sélectionner des TP-Air'!$B$25="Sans conduit, une seule zone"),'Ductless Single Per Table'!L95,IF(AND('Étape 5 Sélectionner des TP-Air'!$B$26="Variable (ordinaire)",'Étape 5 Sélectionner des TP-Air'!$B$25="Sans conduit, Plusieurs zones"),'Ductless Multi-split'!L49,IF(AND('Étape 5 Sélectionner des TP-Air'!$B$26="Variable (climat froid)",'Étape 5 Sélectionner des TP-Air'!$B$25="Sans conduit, Plusieurs zones"),'Ductless Multi-split'!L122,"")))))))))) -> 0.8079096045 | S8: ='Design Load Calcs'!$G$23*'HP Calcs'!A8+'Design Load Calcs'!$H$23 -> 8873.239437 | AB8: ='Design Load Calcs'!$J$23*'HP Calcs'!A8+'Design Load Calcs'!$K$23 ->  | AP8: =NA() ->  | AR8: 72 | AS8: -13 | AT8: ='HP Calcs'!H7 -> 82 | BB8: =IF(NOT('Étape 5 Sélectionner des TP-Air'!B9=1),"BPT="&ROUND(BB9,0)&'Étape 3 Charges de Conception'!C13,"") -> 
A9: ='Load %s'!B13 -> 2 | B9: =IF('Étape 5 Sélectionner des TP-Air'!$B$27="Étage Supérieur",IF(AND('Étape 5 Sélectionner des TP-Air'!$B$37="Oui",'Étape 5 Sélectionner des TP-Air'!$B$38>'HP Calcs'!A9),"-",IF('Étape 5 Sélectionner des TP-Air'!$B$26="Monoétagé",'Ducted Performance Tables'!B9,IF('Étape 5 Sélectionner des TP-Air'!$B$26="Deux étages",'Ducted Performance Tables'!B48,IF('Étape 5 Sélectionner des TP-Air'!$B$26="Variable",'Ducted Performance Tables'!B101,IF(AND('Étape 5 Sélectionner des TP-Air'!$B$26="Variable (ordinaire)",'Étape 5 Sélectionner des TP-Air'!$B$25="Sans conduit, une seule zone"),'Ductless Single Per Table'!B27,IF(AND('Étape 5 Sélectionner des TP-Air'!$B$26="Variable (climat froid)",'Étape 5 Sélectionner des TP-Air'!$B$25="Sans conduit, une seule zone"),'Ductless Single Per Table'!B96,IF(AND('Étape 5 Sélectionner des TP-Air'!$B$26="Variable (ordinaire)",'Étape 5 Sélectionner des TP-Air'!$B$25="Sans conduit, Plusieurs zones"),'Ductless Multi-split'!B50,IF(AND('Étape 5 Sélectionner des TP-Air'!$B$26="Variable (climat froid)",'Étape 5 Sélectionner des TP-Air'!$B$25="Sans conduit, Plusieurs zones"),'Ductless Multi-split'!B123,"")))))))),IF('Étape 5 Sélectionner des TP-Air'!$B$27="Étage Inférieur",IF(AND('Étape 5 Sélectionner des TP-Air'!$B$37="Oui",'Étape 5 Sélectionner des TP-Air'!$B$38>'HP Calcs'!A9),"-",IF('Étape 5 Sélectionner des TP-Air'!$B$26="Monoétagé",'Ducted Performance Tables'!B9,IF('Étape 5 Sélectionner des TP-Air'!$B$26="Deux étages",'Ducted Performance Tables'!J48,IF('Étape 5 Sélectionner des TP-Air'!$B$26="Variable",'Ducted Performance Tables'!J101,IF(AND('Étape 5 Sélectionner des TP-Air'!$B$26="Variable (ordinaire)",'Étape 5 Sélectionner des TP-Air'!$B$25="Sans conduit, une seule zone"),'Ductless Single Per Table'!K27,IF(AND('Étape 5 Sélectionner des TP-Air'!$B$26="Variable (climat froid)",'Étape 5 Sélectionner des TP-Air'!$B$25="Sans conduit, une seule zone"),'Ductless Single Per Table'!K96,IF(AND('Étape 5 Sélectionner des TP-Air'!$B$26="Variable (ordinaire)",'Étape 5 Sélectionner des TP-Air'!$B$25="Sans conduit, Plusieurs zones"),'Ductless Multi-split'!K50,IF(AND('Étape 5 Sélectionner des TP-Air'!$B$26="Variable (climat froid)",'Étape 5 Sélectionner des TP-Air'!$B$25="Sans conduit, Plusieurs zones"),'Ductless Multi-split'!K123,"")))))))))) -> 0.3635416667 | C9: =IF('Étape 5 Sélectionner des TP-Air'!$B$27="Étage Supérieur",IF('Étape 5 Sélectionner des TP-Air'!$B$26="Monoétagé",'Ducted Performance Tables'!C9,IF('Étape 5 Sélectionner des TP-Air'!$B$26="Deux étages",'Ducted Performance Tables'!C48,IF('Étape 5 Sélectionner des TP-Air'!$B$26="Variable",'Ducted Performance Tables'!C101,IF(AND('Étape 5 Sélectionner des TP-Air'!$B$26="Variable (ordinaire)",'Étape 5 Sélectionner des TP-Air'!$B$25="Sans conduit, une seule zone"),'Ductless Single Per Table'!C27,IF(AND('Étape 5 Sélectionner des TP-Air'!$B$26="Variable (climat froid)",'Étape 5 Sélectionner des TP-Air'!$B$25="Sans conduit, une seule zone"),'Ductless Single Per Table'!C96,IF(AND('Étape 5 Sélectionner des TP-Air'!$B$26="Variable (ordinaire)",'Étape 5 Sélectionner des TP-Air'!$B$25="Sans conduit, Plusieurs zones"),'Ductless Multi-split'!C50,IF(AND('Étape 5 Sélectionner des TP-Air'!$B$26="Variable (climat froid)",'Étape 5 Sélectionner des TP-Air'!$B$25="Sans conduit, Plusieurs zones"),'Ductless Multi-split'!C123,""))))))),IF('Étape 5 Sélectionner des TP-Air'!$B$27="Étage Inférieur",IF('Étape 5 Sélectionner des TP-Air'!$B$26="Monoétagé",'Ducted Performance Tables'!C9,IF('Étape 5 Sélectionner des TP-Air'!$B$26="Deux étages",'Ducted Performance Tables'!K48,IF('Étape 5 Sélectionner des TP-Air'!$B$26="Variable",'Ducted Performance Tables'!K101,IF(AND('Étape 5 Sélectionner des TP-Air'!$B$26="Variable (ordinaire)",'Étape 5 Sélectionner des TP-Air'!$B$25="Sans conduit, une seule zone"),'Ductless Single Per Table'!L27,IF(AND('Étape 5 Sélectionner des TP-Air'!$B$26="Variable (climat froid)",'Étape 5 Sélectionner des TP-Air'!$B$25="Sans conduit, une seule zone"),'Ductless Single Per Table'!L96,IF(AND('Étape 5 Sélectionner des TP-Air'!$B$26="Variable (ordinaire)",'Étape 5 Sélectionner des TP-Air'!$B$25="Sans conduit, Plusieurs zones"),'Ductless Multi-split'!L50,IF(AND('Étape 5 Sélectionner des TP-Air'!$B$26="Variable (climat froid)",'Étape 5 Sélectionner des TP-Air'!$B$25="Sans conduit, Plusieurs zones"),'Ductless Multi-split'!L123,""))))))))) -> 0.8305084746 | D9: =IFERROR(B9*IF('Étape 5 Sélectionner des TP-Air'!$B$27="Étage Inférieur",$AJ$7/'HP Calcs'!$B$18,IF('Étape 5 Sélectionner des TP-Air'!$B$27="Étage Supérieur",$AJ$7/'HP Calcs'!$B$18,$AJ$7)),NA()) -> 8725 | E9: =IFERROR(C9*IF('Étape 5 Sélectionner des TP-Air'!$B$27="Étage Inférieur",$AK$7/$C$18,IF('Étape 5 Sélectionner des TP-Air'!$B$27="Étage Supérieur",$AK$7/$C$18,$AK$7)),NA()) -> 2.657627119 | F9: =(D9/IF('Introduction & Options d''Unité'!$B$12="Métrique",1,3412))/E9 -> 0.9621933841 | H9: =IF('Introduction & Options d''Unité'!$B$12="Métrique",(AR12-32)*(5/9),AR12) -> 92 | I9: =IF('Étape 5 Sélectionner des TP-Air'!$B$27="Étage Supérieur",IF('Étape 5 Sélectionner des TP-Air'!$B$26="Monoétagé",'Ducted Performance Tables'!B28,IF('Étape 5 Sélectionner des TP-Air'!$B$26="Deux étages",'Ducted Performance Tables'!B67,IF('Étape 5 Sélectionner des TP-Air'!$B$26="Variable",'Ducted Performance Tables'!B132,IF(AND('Étape 5 Sélectionner des TP-Air'!$B$26="Variable (climat froid)",'Étape 5 Sélectionner des TP-Air'!$B$25="Sans conduit, une seule zone"),'Ductless Single Per Table'!B129,IF(AND('Étape 5 Sélectionner des TP-Air'!$B$26="Variable (ordinaire)",'Étape 5 Sélectionner des TP-Air'!$B$25="Sans conduit, une seule zone"),'Ductless Single Per Table'!B62,IF(AND('Étape 5 Sélectionner des TP-Air'!$B$26="Variable (climat froid)",'Étape 5 Sélectionner des TP-Air'!$B$25="Sans conduit, Plusieurs zones"),'Ductless Multi-split'!B89,IF(AND('Étape 5 Sélectionner des TP-Air'!$B$26="Variable (ordinaire)",'Étape 5 Sélectionner des TP-Air'!$B$25="Sans conduit, Plusieurs zones"),'Ductless Multi-split'!B20,""))))))),IF('Étape 5 Sélectionner des TP-Air'!$B$27="Étage Inférieur",IF('Étape 5 Sélectionner des TP-Air'!$B$26="Monoétagé",'Ducted Performance Tables'!B28,IF(AND('Étape 5 Sélectionner des TP-Air'!$B$26="Deux étages"),'Ducted Performance Tables'!J67,IF(AND('Étape 5 Sélectionner des TP-Air'!$B$26="Variable"),'Ducted Performance Tables'!J132,IF(AND('Étape 5 Sélectionner des TP-Air'!$B$26="Variable (climat froid)",'Étape 5 Sélectionner des TP-Air'!$B$25="Sans conduit, une seule zone"),'Ductless Single Per Table'!K129,IF(AND('Étape 5 Sélectionner des TP-Air'!$B$26="Variable (ordinaire)",'Étape 5 Sélectionner des TP-Air'!$B$25="Sans conduit, une seule zone"),'Ductless Single Per Table'!K62,IF(AND('Étape 5 Sélectionner des TP-Air'!$B$26="Variable (climat froid)",'Étape 5 Sélectionner des TP-Air'!$B$25="Sans conduit, Plusieurs zones"),'Ductless Multi-split'!K89,IF(AND('Étape 5 Sélectionner des TP-Air'!$B$26="Variable (ordinaire)",'Étape 5 Sélectionner des TP-Air'!$B$25="Sans conduit, Plusieurs zones"),'Ductless Multi-split'!K20,""))))))))) -> 0.9407589286 | J9: =IF('Étape 5 Sélectionner des TP-Air'!$B$27="Étage Supérieur",IF('Étape 5 Sélectionner des TP-Air'!$B$26="Monoétagé",'Ducted Performance Tables'!C28,IF('Étape 5 Sélectionner des TP-Air'!$B$26="Deux étages",'Ducted Performance Tables'!C67,IF('Étape 5 Sélectionner des TP-Air'!$B$26="Variable",'Ducted Performance Tables'!C132,IF(AND('Étape 5 Sélectionner des TP-Air'!$B$26="Variable (climat froid)",'Étape 5 Sélectionner des TP-Air'!$B$25="Sans conduit, une seule zone"),'Ductless Single Per Table'!C129,IF(AND('Étape 5 Sélectionner des TP-Air'!$B$26="Variable (ordinaire)",'Étape 5 Sélectionner des TP-Air'!$B$25="Sans conduit, une seule zone"),'Ductless Single Per Table'!C62,IF(AND('Étape 5 Sélectionner des TP-Air'!$B$26="Variable (climat froid)",'Étape 5 Sélectionner des TP-Air'!$B$25="Sans conduit, Plusieurs zones"),'Ductless Multi-split'!C89,IF(AND('Étape 5 Sélectionner des TP-Air'!$B$26="Variable (ordinaire)",'Étape 5 Sélectionner des TP-Air'!$B$25="Sans conduit, Plusieurs zones"),'Ductless Multi-split'!C20,""))))))),IF('Étape 5 Sélectionner des TP-Air'!$B$27="Étage Inférieur",IF('Étape 5 Sélectionner des TP-Air'!$B$26="Monoétagé",'Ducted Performance Tables'!C28,IF(AND('Étape 5 Sélectionner des TP-Air'!$B$26="Deux étages"),'Ducted Performance Tables'!K67,IF(AND('Étape 5 Sélectionner des TP-Air'!$B$26="Variable"),'Ducted Performance Tables'!K132,IF(AND('Étape 5 Sélectionner des TP-Air'!$B$26="Variable (climat froid)",'Étape 5 Sélectionner des TP-Air'!$B$25="Sans conduit, une seule zone"),'Ductless Single Per Table'!L129,IF(AND('Étape 5 Sélectionner des TP-Air'!$B$26="Variable (ordinaire)",'Étape 5 Sélectionner des TP-Air'!$B$25="Sans conduit, une seule zone"),'Ductless Single Per Table'!L62,IF(AND('Étape 5 Sélectionner des TP-Air'!$B$26="Variable (climat froid)",'Étape 5 Sélectionner des TP-Air'!$B$25="Sans conduit, Plusieurs zones"),'Ductless Multi-split'!L89,IF(AND('Étape 5 Sélectionner des TP-Air'!$B$26="Variable (ordinaire)",'Étape 5 Sélectionner des TP-Air'!$B$25="Sans conduit, Plusieurs zones"),'Ductless Multi-split'!L20,""))))))))) -> 0.95703125 | K9: =IF(I9=0,NA(),IFERROR(I9*IF('Étape 5 Sélectionner des TP-Air'!$B$26="Monoétagé",$AJ$14,IF('Étape 5 Sélectionner des TP-Air'!$B$27="Étage Inférieur",$AJ$14/$AJ$17,IF(AND('Étape 5 Sélectionner des TP-Air'!$B$27="Étage Supérieur"),$AJ$14/$AJ$20,$AJ$14/$AJ$17))),NA())) -> 22578.21429 | L9: =IF(J9=0,NA(),IFERROR(J9*IF('Étape 5 Sélectionner des TP-Air'!$B$26="Monoétagé",$AK$14,IF('Étape 5 Sélectionner des TP-Air'!$B$27="Étage Inférieur",$AK$14/$AK$17,IF(AND('Étape 5 Sélectionner des TP-Air'!$B$27="Étage Supérieur",'Étape 5 Sélectionner des TP-Air'!$B$28<>"B"),$AK$14/$AK$20,$AK$14/$AK$17))),NA())) -> 1.766826923 | M9: =(K9/IF('Introduction & Options d''Unité'!$B$12="Métrique",1,3412))/L9 -> 3.74529956 | O9: 7 | P9: - | Q9: =IF(AND('Étape 5 Sélectionner des TP-Air'!$G$37="Oui",'Étape 5 Sélectionner des TP-Air'!$B$38>A9),"-",IF('Étape 5 Sélectionner des TP-Air'!$B$27="Étage Supérieur",IF('Étape 5 Sélectionner des TP-Air'!$B$26="Monoétagé",'Ducted Performance Tables'!C9,IF('Étape 5 Sélectionner des TP-Air'!$B$26="Deux étages",'Ducted Performance Tables'!C48,IF('Étape 5 Sélectionner des TP-Air'!$B$26="Variable",'Ducted Performance Tables'!C101,IF(AND('Étape 5 Sélectionner des TP-Air'!$B$26="Variable (ordinaire)",'Étape 5 Sélectionner des TP-Air'!$B$25="Sans conduit, une seule zone"),'Ductless Single Per Table'!C27,IF(AND('Étape 5 Sélectionner des TP-Air'!$B$26="Variable (climat froid)",'Étape 5 Sélectionner des TP-Air'!$B$25="Sans conduit, une seule zone"),'Ductless Single Per Table'!C96,IF(AND('Étape 5 Sélectionner des TP-Air'!$B$26="Variable (ordinaire)",'Étape 5 Sélectionner des TP-Air'!$B$25="Sans conduit, Plusieurs zones"),'Ductless Multi-split'!C50,IF(AND('Étape 5 Sélectionner des TP-Air'!$B$26="Variable (climat froid)",'Étape 5 Sélectionner des TP-Air'!$B$25="Sans conduit, Plusieurs zones"),'Ductless Multi-split'!C123,""))))))),IF('Étape 5 Sélectionner des TP-Air'!$B$27="Étage Inférieur",IF('Étape 5 Sélectionner des TP-Air'!$B$26="Monoétagé",'Ducted Performance Tables'!C9,IF('Étape 5 Sélectionner des TP-Air'!$B$26="Deux étages",'Ducted Performance Tables'!K48,IF('Étape 5 Sélectionner des TP-Air'!$B$26="Variable",'Ducted Performance Tables'!K101,IF(AND('Étape 5 Sélectionner des TP-Air'!$B$26="Variable (ordinaire)",'Étape 5 Sélectionner des TP-Air'!$B$25="Sans conduit, une seule zone"),'Ductless Single Per Table'!L27,IF(AND('Étape 5 Sélectionner des TP-Air'!$B$26="Variable (climat froid)",'Étape 5 Sélectionner des TP-Air'!$B$25="Sans conduit, une seule zone"),'Ductless Single Per Table'!L96,IF(AND('Étape 5 Sélectionner des TP-Air'!$B$26="Variable (ordinaire)",'Étape 5 Sélectionner des TP-Air'!$B$25="Sans conduit, Plusieurs zones"),'Ductless Multi-split'!L50,IF(AND('Étape 5 Sélectionner des TP-Air'!$B$26="Variable (climat froid)",'Étape 5 Sélectionner des TP-Air'!$B$25="Sans conduit, Plusieurs zones"),'Ductless Multi-split'!L123,"")))))))))) -> 0.8305084746 | S9: ='Design Load Calcs'!$G$23*'HP Calcs'!A9+'Design Load Calcs'!$H$23 -> 8169.014085 | T9: 555.9859155 | AB9: ='Design Load Calcs'!$J$23*'HP Calcs'!A9+'Design Load Calcs'!$K$23 ->  | AJ9: Normalized Cap @Étage Inférieur | AK9: Normalized power @Étage Inférieur | AP9: =NA() ->  | AR9: 77 | AS9: -8 | AT9: ='HP Calcs'!H8 -> 87 | AV9: =IF(IFERROR(ROUND(AV10,0)=ROUND(AV6,0),FALSE),"",IF(NOT('Étape 5 Sélectionner des TP-Air'!B9=1),"t-TPE="&ROUND(AV10,0)&'Étape 3 Charges de Conception'!C13,"")) ->  | AX9: ="TP2" -> TP2 | BB9: =IFERROR(IF(NOT('Étape 5 Sélectionner des TP-Air'!B9=1),IF('Étape 5 Sélectionner des TP-Air'!G24="Courbe saisie par l'utilisateur",'HP2'!L7,'HP Calcs'!X26),NA()),NA()) -> 
A10: ='Load %s'!B14 -> 7 | B10: =IF('Étape 5 Sélectionner des TP-Air'!$B$27="Étage Supérieur",IF(AND('Étape 5 Sélectionner des TP-Air'!$B$37="Oui",'Étape 5 Sélectionner des TP-Air'!$B$38>'HP Calcs'!A10),"-",IF('Étape 5 Sélectionner des TP-Air'!$B$26="Monoétagé",'Ducted Performance Tables'!B10,IF('Étape 5 Sélectionner des TP-Air'!$B$26="Deux étages",'Ducted Performance Tables'!B49,IF('Étape 5 Sélectionner des TP-Air'!$B$26="Variable",'Ducted Performance Tables'!B102,IF(AND('Étape 5 Sélectionner des TP-Air'!$B$26="Variable (ordinaire)",'Étape 5 Sélectionner des TP-Air'!$B$25="Sans conduit, une seule zone"),'Ductless Single Per Table'!B28,IF(AND('Étape 5 Sélectionner des TP-Air'!$B$26="Variable (climat froid)",'Étape 5 Sélectionner des TP-Air'!$B$25="Sans conduit, une seule zone"),'Ductless Single Per Table'!B97,IF(AND('Étape 5 Sélectionner des TP-Air'!$B$26="Variable (ordinaire)",'Étape 5 Sélectionner des TP-Air'!$B$25="Sans conduit, Plusieurs zones"),'Ductless Multi-split'!B51,IF(AND('Étape 5 Sélectionner des TP-Air'!$B$26="Variable (climat froid)",'Étape 5 Sélectionner des TP-Air'!$B$25="Sans conduit, Plusieurs zones"),'Ductless Multi-split'!B124,"")))))))),IF('Étape 5 Sélectionner des TP-Air'!$B$27="Étage Inférieur",IF(AND('Étape 5 Sélectionner des TP-Air'!$B$37="Oui",'Étape 5 Sélectionner des TP-Air'!$B$38>'HP Calcs'!A10),"-",IF('Étape 5 Sélectionner des TP-Air'!$B$26="Monoétagé",'Ducted Performance Tables'!B10,IF('Étape 5 Sélectionner des TP-Air'!$B$26="Deux étages",'Ducted Performance Tables'!J49,IF('Étape 5 Sélectionner des TP-Air'!$B$26="Variable",'Ducted Performance Tables'!J102,IF(AND('Étape 5 Sélectionner des TP-Air'!$B$26="Variable (ordinaire)",'Étape 5 Sélectionner des TP-Air'!$B$25="Sans conduit, une seule zone"),'Ductless Single Per Table'!K28,IF(AND('Étape 5 Sélectionner des TP-Air'!$B$26="Variable (climat froid)",'Étape 5 Sélectionner des TP-Air'!$B$25="Sans conduit, une seule zone"),'Ductless Single Per Table'!K97,IF(AND('Étape 5 Sélectionner des TP-Air'!$B$26="Variable (ordinaire)",'Étape 5 Sélectionner des TP-Air'!$B$25="Sans conduit, Plusieurs zones"),'Ductless Multi-split'!K51,IF(AND('Étape 5 Sélectionner des TP-Air'!$B$26="Variable (climat froid)",'Étape 5 Sélectionner des TP-Air'!$B$25="Sans conduit, Plusieurs zones"),'Ductless Multi-split'!K124,"")))))))))) -> 0.4158333333 | C10: =IF('Étape 5 Sélectionner des TP-Air'!$B$27="Étage Supérieur",IF('Étape 5 Sélectionner des TP-Air'!$B$26="Monoétagé",'Ducted Performance Tables'!C10,IF('Étape 5 Sélectionner des TP-Air'!$B$26="Deux étages",'Ducted Performance Tables'!C49,IF('Étape 5 Sélectionner des TP-Air'!$B$26="Variable",'Ducted Performance Tables'!C102,IF(AND('Étape 5 Sélectionner des TP-Air'!$B$26="Variable (ordinaire)",'Étape 5 Sélectionner des TP-Air'!$B$25="Sans conduit, une seule zone"),'Ductless Single Per Table'!C28,IF(AND('Étape 5 Sélectionner des TP-Air'!$B$26="Variable (climat froid)",'Étape 5 Sélectionner des TP-Air'!$B$25="Sans conduit, une seule zone"),'Ductless Single Per Table'!C97,IF(AND('Étape 5 Sélectionner des TP-Air'!$B$26="Variable (ordinaire)",'Étape 5 Sélectionner des TP-Air'!$B$25="Sans conduit, Plusieurs zones"),'Ductless Multi-split'!C51,IF(AND('Étape 5 Sélectionner des TP-Air'!$B$26="Variable (climat froid)",'Étape 5 Sélectionner des TP-Air'!$B$25="Sans conduit, Plusieurs zones"),'Ductless Multi-split'!C124,""))))))),IF('Étape 5 Sélectionner des TP-Air'!$B$27="Étage Inférieur",IF('Étape 5 Sélectionner des TP-Air'!$B$26="Monoétagé",'Ducted Performance Tables'!C10,IF('Étape 5 Sélectionner des TP-Air'!$B$26="Deux étages",'Ducted Performance Tables'!K49,IF('Étape 5 Sélectionner des TP-Air'!$B$26="Variable",'Ducted Performance Tables'!K102,IF(AND('Étape 5 Sélectionner des TP-Air'!$B$26="Variable (ordinaire)",'Étape 5 Sélectionner des TP-Air'!$B$25="Sans conduit, une seule zone"),'Ductless Single Per Table'!L28,IF(AND('Étape 5 Sélectionner des TP-Air'!$B$26="Variable (climat froid)",'Étape 5 Sélectionner des TP-Air'!$B$25="Sans conduit, une seule zone"),'Ductless Single Per Table'!L97,IF(AND('Étape 5 Sélectionner des TP-Air'!$B$26="Variable (ordinaire)",'Étape 5 Sélectionner des TP-Air'!$B$25="Sans conduit, Plusieurs zones"),'Ductless Multi-split'!L51,IF(AND('Étape 5 Sélectionner des TP-Air'!$B$26="Variable (climat froid)",'Étape 5 Sélectionner des TP-Air'!$B$25="Sans conduit, Plusieurs zones"),'Ductless Multi-split'!L124,""))))))))) -> 0.8531073446 | D10: =IFERROR(B10*IF('Étape 5 Sélectionner des TP-Air'!$B$27="Étage Inférieur",$AJ$7/'HP Calcs'!$B$18,IF('Étape 5 Sélectionner des TP-Air'!$B$27="Étage Supérieur",$AJ$7/'HP Calcs'!$B$18,$AJ$7)),NA()) -> 9980 | E10: =IFERROR(C10*IF('Étape 5 Sélectionner des TP-Air'!$B$27="Étage Inférieur",$AK$7/$C$18,IF('Étape 5 Sélectionner des TP-Air'!$B$27="Étage Supérieur",$AK$7/$C$18,$AK$7)),NA()) -> 2.729943503 | F10: =(D10/IF('Introduction & Options d''Unité'!$B$12="Métrique",1,3412))/E10 -> 1.071440009 | H10: =IF('Introduction & Options d''Unité'!$B$12="Métrique",(AR13-32)*(5/9),AR13) -> 97 | I10: =IF('Étape 5 Sélectionner des TP-Air'!$B$27="Étage Supérieur",IF('Étape 5 Sélectionner des TP-Air'!$B$26="Monoétagé",'Ducted Performance Tables'!B29,IF('Étape 5 Sélectionner des TP-Air'!$B$26="Deux étages",'Ducted Performance Tables'!B68,IF('Étape 5 Sélectionner des TP-Air'!$B$26="Variable",'Ducted Performance Tables'!B133,IF(AND('Étape 5 Sélectionner des TP-Air'!$B$26="Variable (climat froid)",'Étape 5 Sélectionner des TP-Air'!$B$25="Sans conduit, une seule zone"),'Ductless Single Per Table'!B130,IF(AND('Étape 5 Sélectionner des TP-Air'!$B$26="Variable (ordinaire)",'Étape 5 Sélectionner des TP-Air'!$B$25="Sans conduit, une seule zone"),'Ductless Single Per Table'!B63,IF(AND('Étape 5 Sélectionner des TP-Air'!$B$26="Variable (climat froid)",'Étape 5 Sélectionner des TP-Air'!$B$25="Sans conduit, Plusieurs zones"),'Ductless Multi-split'!B90,IF(AND('Étape 5 Sélectionner des TP-Air'!$B$26="Variable (ordinaire)",'Étape 5 Sélectionner des TP-Air'!$B$25="Sans conduit, Plusieurs zones"),'Ductless Multi-split'!B21,""))))))),IF('Étape 5 Sélectionner des TP-Air'!$B$27="Étage Inférieur",IF('Étape 5 Sélectionner des TP-Air'!$B$26="Monoétagé",'Ducted Performance Tables'!B29,IF(AND('Étape 5 Sélectionner des TP-Air'!$B$26="Deux étages"),'Ducted Performance Tables'!J68,IF(AND('Étape 5 Sélectionner des TP-Air'!$B$26="Variable"),'Ducted Performance Tables'!J133,IF(AND('Étape 5 Sélectionner des TP-Air'!$B$26="Variable (climat froid)",'Étape 5 Sélectionner des TP-Air'!$B$25="Sans conduit, une seule zone"),'Ductless Single Per Table'!K130,IF(AND('Étape 5 Sélectionner des TP-Air'!$B$26="Variable (ordinaire)",'Étape 5 Sélectionner des TP-Air'!$B$25="Sans conduit, une seule zone"),'Ductless Single Per Table'!K63,IF(AND('Étape 5 Sélectionner des TP-Air'!$B$26="Variable (climat froid)",'Étape 5 Sélectionner des TP-Air'!$B$25="Sans conduit, Plusieurs zones"),'Ductless Multi-split'!K90,IF(AND('Étape 5 Sélectionner des TP-Air'!$B$26="Variable (ordinaire)",'Étape 5 Sélectionner des TP-Air'!$B$25="Sans conduit, Plusieurs zones"),'Ductless Multi-split'!K21,""))))))))) -> 0.9157506614 | J10: =IF('Étape 5 Sélectionner des TP-Air'!$B$27="Étage Supérieur",IF('Étape 5 Sélectionner des TP-Air'!$B$26="Monoétagé",'Ducted Performance Tables'!C29,IF('Étape 5 Sélectionner des TP-Air'!$B$26="Deux étages",'Ducted Performance Tables'!C68,IF('Étape 5 Sélectionner des TP-Air'!$B$26="Variable",'Ducted Performance Tables'!C133,IF(AND('Étape 5 Sélectionner des TP-Air'!$B$26="Variable (climat froid)",'Étape 5 Sélectionner des TP-Air'!$B$25="Sans conduit, une seule zone"),'Ductless Single Per Table'!C130,IF(AND('Étape 5 Sélectionner des TP-Air'!$B$26="Variable (ordinaire)",'Étape 5 Sélectionner des TP-Air'!$B$25="Sans conduit, une seule zone"),'Ductless Single Per Table'!C63,IF(AND('Étape 5 Sélectionner des TP-Air'!$B$26="Variable (climat froid)",'Étape 5 Sélectionner des TP-Air'!$B$25="Sans conduit, Plusieurs zones"),'Ductless Multi-split'!C90,IF(AND('Étape 5 Sélectionner des TP-Air'!$B$26="Variable (ordinaire)",'Étape 5 Sélectionner des TP-Air'!$B$25="Sans conduit, Plusieurs zones"),'Ductless Multi-split'!C21,""))))))),IF('Étape 5 Sélectionner des TP-Air'!$B$27="Étage Inférieur",IF('Étape 5 Sélectionner des TP-Air'!$B$26="Monoétagé",'Ducted Performance Tables'!C29,IF(AND('Étape 5 Sélectionner des TP-Air'!$B$26="Deux étages"),'Ducted Performance Tables'!K68,IF(AND('Étape 5 Sélectionner des TP-Air'!$B$26="Variable"),'Ducted Performance Tables'!K133,IF(AND('Étape 5 Sélectionner des TP-Air'!$B$26="Variable (climat froid)",'Étape 5 Sélectionner des TP-Air'!$B$25="Sans conduit, une seule zone"),'Ductless Single Per Table'!L130,IF(AND('Étape 5 Sélectionner des TP-Air'!$B$26="Variable (ordinaire)",'Étape 5 Sélectionner des TP-Air'!$B$25="Sans conduit, une seule zone"),'Ductless Single Per Table'!L63,IF(AND('Étape 5 Sélectionner des TP-Air'!$B$26="Variable (climat froid)",'Étape 5 Sélectionner des TP-Air'!$B$25="Sans conduit, Plusieurs zones"),'Ductless Multi-split'!L90,IF(AND('Étape 5 Sélectionner des TP-Air'!$B$26="Variable (ordinaire)",'Étape 5 Sélectionner des TP-Air'!$B$25="Sans conduit, Plusieurs zones"),'Ductless Multi-split'!L21,""))))))))) -> 1.014384921 | K10: =IF(I10=0,NA(),IFERROR(I10*IF('Étape 5 Sélectionner des TP-Air'!$B$26="Monoétagé",$AJ$14,IF('Étape 5 Sélectionner des TP-Air'!$B$27="Étage Inférieur",$AJ$14/$AJ$17,IF(AND('Étape 5 Sélectionner des TP-Air'!$B$27="Étage Supérieur"),$AJ$14/$AJ$20,$AJ$14/$AJ$17))),NA())) -> 21978.01587 | L10: =IF(J10=0,NA(),IFERROR(J10*IF('Étape 5 Sélectionner des TP-Air'!$B$26="Monoétagé",$AK$14,IF('Étape 5 Sélectionner des TP-Air'!$B$27="Étage Inférieur",$AK$14/$AK$17,IF(AND('Étape 5 Sélectionner des TP-Air'!$B$27="Étage Supérieur",'Étape 5 Sélectionner des TP-Air'!$B$28<>"B"),$AK$14/$AK$20,$AK$14/$AK$17))),NA())) -> 1.872710623 | M10: =(K10/IF('Introduction & Options d''Unité'!$B$12="Métrique",1,3412))/L10 -> 3.4396067 | O10: 2 | P10: - | Q10: =IF(AND('Étape 5 Sélectionner des TP-Air'!$G$37="Oui",'Étape 5 Sélectionner des TP-Air'!$B$38>A10),"-",IF('Étape 5 Sélectionner des TP-Air'!$B$27="Étage Supérieur",IF('Étape 5 Sélectionner des TP-Air'!$B$26="Monoétagé",'Ducted Performance Tables'!C10,IF('Étape 5 Sélectionner des TP-Air'!$B$26="Deux étages",'Ducted Performance Tables'!C49,IF('Étape 5 Sélectionner des TP-Air'!$B$26="Variable",'Ducted Performance Tables'!C102,IF(AND('Étape 5 Sélectionner des TP-Air'!$B$26="Variable (ordinaire)",'Étape 5 Sélectionner des TP-Air'!$B$25="Sans conduit, une seule zone"),'Ductless Single Per Table'!C28,IF(AND('Étape 5 Sélectionner des TP-Air'!$B$26="Variable (climat froid)",'Étape 5 Sélectionner des TP-Air'!$B$25="Sans conduit, une seule zone"),'Ductless Single Per Table'!C97,IF(AND('Étape 5 Sélectionner des TP-Air'!$B$26="Variable (ordinaire)",'Étape 5 Sélectionner des TP-Air'!$B$25="Sans conduit, Plusieurs zones"),'Ductless Multi-split'!C51,IF(AND('Étape 5 Sélectionner des TP-Air'!$B$26="Variable (climat froid)",'Étape 5 Sélectionner des TP-Air'!$B$25="Sans conduit, Plusieurs zones"),'Ductless Multi-split'!C124,""))))))),IF('Étape 5 Sélectionner des TP-Air'!$B$27="Étage Inférieur",IF('Étape 5 Sélectionner des TP-Air'!$B$26="Monoétagé",'Ducted Performance Tables'!C10,IF('Étape 5 Sélectionner des TP-Air'!$B$26="Deux étages",'Ducted Performance Tables'!K49,IF('Étape 5 Sélectionner des TP-Air'!$B$26="Variable",'Ducted Performance Tables'!K102,IF(AND('Étape 5 Sélectionner des TP-Air'!$B$26="Variable (ordinaire)",'Étape 5 Sélectionner des TP-Air'!$B$25="Sans conduit, une seule zone"),'Ductless Single Per Table'!L28,IF(AND('Étape 5 Sélectionner des TP-Air'!$B$26="Variable (climat froid)",'Étape 5 Sélectionner des TP-Air'!$B$25="Sans conduit, une seule zone"),'Ductless Single Per Table'!L97,IF(AND('Étape 5 Sélectionner des TP-Air'!$B$26="Variable (ordinaire)",'Étape 5 Sélectionner des TP-Air'!$B$25="Sans conduit, Plusieurs zones"),'Ductless Multi-split'!L51,IF(AND('Étape 5 Sélectionner des TP-Air'!$B$26="Variable (climat froid)",'Étape 5 Sélectionner des TP-Air'!$B$25="Sans conduit, Plusieurs zones"),'Ductless Multi-split'!L124,"")))))))))) -> 0.8531073446 | S10: ='Design Load Calcs'!$G$23*'HP Calcs'!A10+'Design Load Calcs'!$H$23 -> 7464.788732 | V10: a | W10: b | Z10: =IF(AND(B33="Oui",A4>='Control Strategy Calcs'!U4),IF('Étape 5 Sélectionner des TP-Air'!$B$26="Deux étages",'Ducted Performance Tables'!E45,IF('Étape 5 Sélectionner des TP-Air'!$B$26="Variable",'Ducted Performance Tables'!E98,IF(AND('Étape 5 Sélectionner des TP-Air'!$B$26="Variable (ordinaire)",'Étape 5 Sélectionner des TP-Air'!$B$25="Sans conduit, une seule zone"),'Ductless Single Per Table'!E25,IF(AND('Étape 5 Sélectionner des TP-Air'!$B$26="Variable (climat froid)",'Étape 5 Sélectionner des TP-Air'!$B$25="Sans conduit, une seule zone"),'Ductless Single Per Table'!E94,IF(AND('Étape 5 Sélectionner des TP-Air'!$B$26="Variable (ordinaire)",'Étape 5 Sélectionner des TP-Air'!$B$25="Sans conduit, Plusieurs zones"),'Ductless Multi-split'!E48,IF(AND('Étape 5 Sélectionner des TP-Air'!$B$26="Variable (climat froid)",'Étape 5 Sélectionner des TP-Air'!$B$25="Sans conduit, Plusieurs zones"),'Ductless Multi-split'!E121,"")))))),IF('Étape 5 Sélectionner des TP-Air'!$B$26="Deux étages",'Ducted Performance Tables'!E47,IF('Étape 5 Sélectionner des TP-Air'!$B$26="Variable",'Ducted Performance Tables'!E100,IF(AND('Étape 5 Sélectionner des TP-Air'!$B$26="Variable (ordinaire)",'Étape 5 Sélectionner des TP-Air'!$B$25="Sans conduit, une seule zone"),'Ductless Single Per Table'!E27,IF(AND('Étape 5 Sélectionner des TP-Air'!$B$26="Variable (climat froid)",'Étape 5 Sélectionner des TP-Air'!$B$25="Sans conduit, une seule zone"),'Ductless Single Per Table'!E96,IF(AND('Étape 5 Sélectionner des TP-Air'!$B$26="Variable (ordinaire)",'Étape 5 Sélectionner des TP-Air'!$B$25="Sans conduit, Plusieurs zones"),'Ductless Multi-split'!E50,IF(AND('Étape 5 Sélectionner des TP-Air'!$B$26="Variable (climat froid)",'Étape 5 Sélectionner des TP-Air'!$B$25="Sans conduit, Plusieurs zones"),'Ductless Multi-split'!E123,""))))))) ->  | AA10: =IF(AND(B33="Oui",A4>='Control Strategy Calcs'!U4),IF('Étape 5 Sélectionner des TP-Air'!$B$26="Deux étages",'Ducted Performance Tables'!F45,IF('Étape 5 Sélectionner des TP-Air'!$B$26="Variable",'Ducted Performance Tables'!F98,IF(AND('Étape 5 Sélectionner des TP-Air'!$B$26="Variable (ordinaire)",'Étape 5 Sélectionner des TP-Air'!$B$25="Sans conduit, une seule zone"),'Ductless Single Per Table'!F25,IF(AND('Étape 5 Sélectionner des TP-Air'!$B$26="Variable (climat froid)",'Étape 5 Sélectionner des TP-Air'!$B$25="Sans conduit, une seule zone"),'Ductless Single Per Table'!F94,IF(AND('Étape 5 Sélectionner des TP-Air'!$B$26="Variable (ordinaire)",'Étape 5 Sélectionner des TP-Air'!$B$25="Sans conduit, Plusieurs zones"),'Ductless Multi-split'!F48,IF(AND('Étape 5 Sélectionner des TP-Air'!$B$26="Variable (climat froid)",'Étape 5 Sélectionner des TP-Air'!$B$25="Sans conduit, Plusieurs zones"),'Ductless Multi-split'!F121,"")))))),IF('Étape 5 Sélectionner des TP-Air'!$B$26="Deux étages",'Ducted Performance Tables'!F47,IF('Étape 5 Sélectionner des TP-Air'!$B$26="Variable",'Ducted Performance Tables'!F100,IF(AND('Étape 5 Sélectionner des TP-Air'!$B$26="Variable (ordinaire)",'Étape 5 Sélectionner des TP-Air'!$B$25="Sans conduit, une seule zone"),'Ductless Single Per Table'!F27,IF(AND('Étape 5 Sélectionner des TP-Air'!$B$26="Variable (climat froid)",'Étape 5 Sélectionner des TP-Air'!$B$25="Sans conduit, une seule zone"),'Ductless Single Per Table'!F96,IF(AND('Étape 5 Sélectionner des TP-Air'!$B$26="Variable (ordinaire)",'Étape 5 Sélectionner des TP-Air'!$B$25="Sans conduit, Plusieurs zones"),'Ductless Multi-split'!F50,IF(AND('Étape 5 Sélectionner des TP-Air'!$B$26="Variable (climat froid)",'Étape 5 Sélectionner des TP-Air'!$B$25="Sans conduit, Plusieurs zones"),'Ductless Multi-split'!F123,""))))))) ->  | AB10: ='Design Load Calcs'!$J$23*'HP Calcs'!A10+'Design Load Calcs'!$K$23 ->  | AE10: a | AF10: b | AJ10: =IF('Étape 5 Sélectionner des TP-Air'!$D$30='Étape 5 Sélectionner des TP-Air'!$W$16,IF('Étape 5 Sélectionner des TP-Air'!$B$26="Deux étages",'Ducted Performance Tables'!J51,IF('Étape 5 Sélectionner des TP-Air'!$B$26="Variable",'Ducted Performance Tables'!J104,IF(AND('Étape 5 Sélectionner des TP-Air'!$B$26="Variable (ordinaire)",'Étape 5 Sélectionner des TP-Air'!$B$25="Sans conduit, une seule zone"),'Ductless Single Per Table'!K30,IF(AND('Étape 5 Sélectionner des TP-Air'!$B$26="Variable (climat froid)",'Étape 5 Sélectionner des TP-Air'!$B$25="Sans conduit, une seule zone"),'Ductless Single Per Table'!K99,IF(AND('Étape 5 Sélectionner des TP-Air'!$B$26="Variable (ordinaire)",'Étape 5 Sélectionner des TP-Air'!$B$25="Sans conduit, Plusieurs zones"),'Ductless Multi-split'!K53,IF(AND('Étape 5 Sélectionner des TP-Air'!$B$26="Variable (climat froid)",'Étape 5 Sélectionner des TP-Air'!$B$25="Sans conduit, Plusieurs zones"),'Ductless Multi-split'!K126,"")))))),IF('Étape 5 Sélectionner des TP-Air'!$D$30='Étape 5 Sélectionner des TP-Air'!$W$17,IF('Étape 5 Sélectionner des TP-Air'!$B$26="Deux étages",'Ducted Performance Tables'!J57,IF('Étape 5 Sélectionner des TP-Air'!$B$26="Variable",'Ducted Performance Tables'!J110,IF(AND('Étape 5 Sélectionner des TP-Air'!$B$26="Variable (ordinaire)",'Étape 5 Sélectionner des TP-Air'!$B$25="Sans conduit, une seule zone"),'Ductless Single Per Table'!K36,IF(AND('Étape 5 Sélectionner des TP-Air'!$B$26="Variable (climat froid)",'Étape 5 Sélectionner des TP-Air'!$B$25="Sans conduit, une seule zone"),'Ductless Single Per Table'!K105,IF(AND('Étape 5 Sélectionner des TP-Air'!$B$26="Variable (ordinaire)",'Étape 5 Sélectionner des TP-Air'!$B$25="Sans conduit, Plusieurs zones"),'Ductless Multi-split'!K59,IF(AND('Étape 5 Sélectionner des TP-Air'!$B$26="Variable (climat froid)",'Étape 5 Sélectionner des TP-Air'!$B$25="Sans conduit, Plusieurs zones"),'Ductless Multi-split'!K111)))))),IF('Étape 5 Sélectionner des TP-Air'!$D$30='Étape 5 Sélectionner des TP-Air'!$W$18,Z10))) -> FALSE | AK10: =IF('Étape 5 Sélectionner des TP-Air'!$D$30='Étape 5 Sélectionner des TP-Air'!$W$16,IF('Étape 5 Sélectionner des TP-Air'!$B$26="Deux étages",'Ducted Performance Tables'!K51,IF('Étape 5 Sélectionner des TP-Air'!$B$26="Variable",'Ducted Performance Tables'!K104,IF(AND('Étape 5 Sélectionner des TP-Air'!$B$26="Variable (ordinaire)",'Étape 5 Sélectionner des TP-Air'!$B$25="Sans conduit, une seule zone"),'Ductless Single Per Table'!L30,IF(AND('Étape 5 Sélectionner des TP-Air'!$B$26="Variable (climat froid)",'Étape 5 Sélectionner des TP-Air'!$B$25="Sans conduit, une seule zone"),'Ductless Single Per Table'!L99,IF(AND('Étape 5 Sélectionner des TP-Air'!$B$26="Variable (ordinaire)",'Étape 5 Sélectionner des TP-Air'!$B$25="Sans conduit, Plusieurs zones"),'Ductless Multi-split'!L53,IF(AND('Étape 5 Sélectionner des TP-Air'!$B$26="Variable (climat froid)",'Étape 5 Sélectionner des TP-Air'!$B$25="Sans conduit, Plusieurs zones"),'Ductless Multi-split'!L126,"")))))),IF('Étape 5 Sélectionner des TP-Air'!$D$30='Étape 5 Sélectionner des TP-Air'!$W$17,IF('Étape 5 Sélectionner des TP-Air'!$B$26="Deux étages",'Ducted Performance Tables'!K57,IF('Étape 5 Sélectionner des TP-Air'!$B$26="Variable",'Ducted Performance Tables'!K110,IF(AND('Étape 5 Sélectionner des TP-Air'!$B$26="Variable (ordinaire)",'Étape 5 Sélectionner des TP-Air'!$B$25="Sans conduit, une seule zone"),'Ductless Single Per Table'!L36,IF(AND('Étape 5 Sélectionner des TP-Air'!$B$26="Variable (climat froid)",'Étape 5 Sélectionner des TP-Air'!$B$25="Sans conduit, une seule zone"),'Ductless Single Per Table'!L105,IF(AND('Étape 5 Sélectionner des TP-Air'!$B$26="Variable (ordinaire)",'Étape 5 Sélectionner des TP-Air'!$B$25="Sans conduit, Plusieurs zones"),'Ductless Multi-split'!L59,IF(AND('Étape 5 Sélectionner des TP-Air'!$B$26="Variable (climat froid)",'Étape 5 Sélectionner des TP-Air'!$B$25="Sans conduit, Plusieurs zones"),'Ductless Multi-split'!L111)))))),IF('Étape 5 Sélectionner des TP-Air'!$D$30='Étape 5 Sélectionner des TP-Air'!$W$18,AA10))) -> FALSE | AR10: 82 | AS10: -3 | AT10: ='HP Calcs'!H9 -> 92 | AU10: =IF(IFERROR(ROUND(IF('Étape 5 Sélectionner des TP-Air'!G24="Courbe saisie par l'utilisateur",'HP2'!L7,'HP Calcs'!X26),0)=ROUND(AV6,0),FALSE),NA(),IFERROR(IF(NOT('Étape 5 Sélectionner des TP-Air'!B9=1),IF('Étape 5 Sélectionner des TP-Air'!G24="Courbe saisie par l'utilisateur",'HP2'!L7,'HP Calcs'!X26),NA()),NA())) ->  | AV10: =IF(IFERROR(ROUND(IF('Étape 5 Sélectionner des TP-Air'!G24="Courbe saisie par l'utilisateur",'HP2'!L7,AU10),0)=ROUND(AV6,0),FALSE),NA(),IFERROR(IF(NOT('Étape 5 Sélectionner des TP-Air'!B9=1),IF('Étape 5 Sélectionner des TP-Air'!G24="Courbe saisie par l'utilisateur",'HP2'!L7,AU10),NA()),NA())) ->  | AW10: =IF(NOT('Étape 5 Sélectionner des TP-Air'!B9=1),IF('Étape 5 Sélectionner des TP-Air'!G24="Courbe saisie par l'utilisateur",'HP2'!L21,V37),NA()) ->  | BB10: =BB9 -> 
